Workbook

Sheet Introduction
B1: HMEA model - Introduction
B3: =" Version: v" & Version -> Version: v1.04
B4: Background and supporting documents
B6: The aim of the Highways Maintenance Economic Assessment model (HMEA) is to assess the benefits of a road network to society and the economy of the area served by that road network. Where the value of the benefits can be quantified the model will enable investigation of how those benefits change with the level of carriageway maintenance spend. The model comprises three parts: • Forecast of future road condition and maintenance need o This can be by using the HMEP Lifecycle Planning Toolkit (as part of HMEA) or by an external network analysis tool • Estimation of the impacts on the road user and society caused by the expected future condition o This uses the Highway Maintenance Assessment Toolkit (HMAT) as part of HMEA • Assessment of the effects on the economy caused by the road network. o These are calculated in HMEA The results from different HMEA analyses can be compared using the HMEA Collator. The HMEA User Guide describes how to undertake an HMEA analysis.
B18: Tabs
B20: The following tabs will always be visible in the model:
C22: White Tabs: sheets providing supporting information
C23: Purple Tabs: sheets requiring user inputs for the tool
C24: Green Tabs: sheet for selecting HMAT files for use in the tool
C25: Red Tabs: contains advanced settings
B27: The following tabs will only be visible once HMAT data has been imported:
C29: Yellow Tabs: contain supporting information extracted from the HMAT files
C30: Orange Tabs: contains the output from this model
B33: Buttons
C35: Help Button: Used to provide the user with page specific help and guidance
C37: Purple Button: Used to perform a specific calculation or function
C39: Blue Button: Used to select input files
C41: Green Button: Used to run import and model processing
C43: Red Button: Used to clear out imported and processed data
B46: Cells
C48: Cream cells: Require user inputs
C49: White cells: Cells containing read-only values, note once HMAT data is loaded in some cells will change from Cream to White cells.
C50: Grey Cells: Header text for tables
C51: Red Cells: Identifies a cell which contains an invalid result. This could be a cell that needs populating or a cell which sums the values of user inputs
B54: Liability
B55: No Liability for loss or damage that may be suffered by any person or organisation as a result of the use of this model, or as the result of any errors or omissions in the information contained herein, is accepted by the developers of the toolkit.
B59: Version history
B61: Version | C61: Date | D61: Description
B62: 1.00 | C62: 2019-11-08 | D62: Version for client review
B63: 1.02 | C63: 2019-11-27 | D63: Update to allow selection of cells on Future Projections for copying, and minor bug fixes.
B64: 1.03 | C64: 2019-12-06 | D64: Help button on Summary (life analysis) sheet, other minor changes to layout
B65: 1.04 | C65: 2020-06-10 | D65: Fix issue with calcuation of journey time in network benefits

Sheet Economic Data
B1: HMEA model - Economic Data
B3: =" Version: v" & Version -> Version: v1.04
B4: VAT and NIC data
E6: Total (£ Million) | G6: Population (count) | I6: Base year
C7: National Insurance (NIC) | E7: 2732 | G7: 1883179 | I7: 2018
C8: Value Added Tax (VAT) | E8: 3146 | G8: 1883179 | I8: 2018
B12: Network name, tax data and growth rates
B14: Network | C14: Case Study - Example
E16: Base year data | I16: Basic Growth rates (% per year)
E17: Year | G17: 2019
C18: Name | E18: Population | G18: Tax receipts from Income (£ millon) | I18: aGVA | K18: Tax receipts from Income | M18: VAT | O18: NIC | Q18: Employment
B20: Sub-network 1 | C20: R1 | E20: 419021 | G20: 679 | I20: 0.014 | K20: 0.014 | M20: 0.014 | O20: 0.014 | Q20: 0.009
B21: Sub-network 2 | C21: R2 | E21: 544460 | G21: 800 | I21: 0.014 | K21: 0.014 | M21: 0.014 | O21: 0.014 | Q21: 0.009
B22: Sub-network 3
B23: Sub-network 4
B24: Sub-network 5
B25: Sub-network 6
B26: Sub-network 7
B27: Sub-network 8
B28: Sub-network 9
B29: Sub-network 10
B30: ="Total for " & Net_Name -> Total for Case Study - Example | E30: =SUM(E20:E29) -> 963481 | G30: =SUM(G20:G29) -> 1479
B33: Discount rates
C35: % | D35: Rate applies to
B36: Discount rate 1 | C36: 0.035 | D36: The first | E36: 30 | F36: years of the analysis
B37: Discount rate 2 | C37: 0.03 | D37: The remainder of the analysis
B40: Industry sectors
D42: Industry sectors for analysis
D43: Sector 1 | F43: Sector 2 | H43: Sector 3 | J43: Sector 4 | L43: Sector 5 | N43: Sector 6
C44: Name | D44: Manufacturing | F44: Construction | H44: Human health and social work activities | J44: Agriculture, forestry and fishing | L44: Public administration | N44: Other service activities
B49: aGVA data
D51: aGVA % Split by SIC codes
C52: SIC code | D52: =IF(D44="",D43,D44) -> Manufacturing | F52: =IF(F44="",F43,F44) -> Construction | H52: =IF(H44="",H43,H44) -> Human health and social work activities | J52: =IF(J44="",J43,J44) -> Agriculture, forestry and fishing | L52: =IF(L44="",L43,L44) -> Public administration | N52: =IF(N44="",N43,N44) -> Other service activities | P52: Total %
C55: C | D55: 0.7 | P55: =SUM(D55:N55) -> 0.7
C56: Q | H56: 0.8 | P56: 0.8
C57: O | L57: 0.25 | P57: 0.25
C58: A | J58: 0.7 | P58: 0.7
C59: C | F59: 0.7 | P59: 0.7
C60: Other | N60: 0.4 | P60: 0.4
P61: 0
P62: 0
P63: 0
P64: 0
P65: 0
P66: 0
P67: 0
P68: =SUM(D68:N68) -> 0
P69: 0
P70: 0
P71: 0
C73: aGVA base year | E73: 2018
D75: aGVA data (£ million)
C76: SIC code | D76: =IF(D1_Name="",".",D1_Name) -> R1 | E76: =IF(D2_Name="",".",D2_Name) -> R2 | F76: =IF(D3_Name="",".",D3_Name) -> . | G76: =IF(D4_Name="",".",D4_Name) -> . | H76: =IF(D5_Name="",".",D5_Name) -> . | I76: =IF(D6_Name="",".",D6_Name) -> . | J76: =IF(D7_Name="",".",D7_Name) -> . | K76: =IF(D8_Name="",".",D8_Name) -> . | L76: =IF(D9_Name="",".",D9_Name) -> . | M76: =IF(D10_Name="",".",D10_Name) -> . | N76: =B183 -> Total for Case Study - Example
C82: =IF(C55="",".",C55) -> C | D82: 1122.272727 | E82: 1323.636364 | N82: =SUM(D82:M82) -> 2445.909091
C83: Q | D83: 785 | E83: 925.9090909 | N83: 1710.909091
C84: O | D84: 671.3636364 | E84: 791.3636364 | N84: 1462.727273
C85: A | D85: 637.2727273 | E85: 751.3636364 | N85: 1388.636364
C86: C | D86: 485.9090909 | E86: 573.1818182 | N86: 1059.090909
C87: Other | D87: 450 | E87: 530.9090909 | N87: 980.9090909
C88: . | N88: 0
C89: . | N89: 0
C90: . | N90: 0
C91: . | N91: 0
C92: . | N92: 0
C93: . | N93: 0
C94: . | N94: 0
C95: =IF(C68="",".",C68) -> . | N95: =SUM(D95:M95) -> 0
C96: . | N96: 0
C97: . | N97: 0
C98: =IF(C71="",".",C71) -> . | N98: 0
C99: Total aGVA for all sectors | D99: 4152 | E99: 4897 | N99: 9049
B102: Employment data
D104: Employment data % Split by SIC codes
C105: SIC code | D105: =D52 -> Manufacturing | F105: =F52 -> Construction | H105: =H52 -> Human health and social work activities | J105: =J52 -> Agriculture, forestry and fishing | L105: =L52 -> Public administration | N105: =N52 -> Other service activities | P105: Total %
C108: C | D108: 0.6 | P108: =SUM(D108:N108) -> 0.6
C109: Q | H109: 0.3 | P109: 0.3
C110: O | L110: 0.7 | P110: 0.7
C111: A | J111: 0.65 | P111: 0.65
C112: F | F112: 0.3 | P112: 0.3
C113: Other | N113: 0.7 | P113: 0.7
P114: 0
P115: 0
P116: 0
P117: 0
P118: 0
P119: 0
P120: 0
P121: =SUM(D121:N121) -> 0
P122: 0
P123: 0
P124: 0
C126: Employment base year | E126: 2019
D128: Employment data (Count)
C129: SIC code | D129: =D76 -> R1 | E129: R2 | F129: . | G129: . | H129: . | I129: . | J129: . | K129: . | L129: =L76 -> . | M129: . | N129: =N76 -> Total for Case Study - Example
C135: =IF(C108="",".",C108) -> C | D135: 17280 | E135: 13240 | N135: =SUM(D135:M135) -> 30520
C136: Q | D136: 1560 | E136: 1960 | N136: 3520
C137: O | D137: 19720 | E137: 24120 | N137: 43840
C138: A | D138: 15920 | E138: 19600 | N138: 35520
C139: F | D139: 7720 | E139: 11200 | N139: 18920
C140: Other | D140: 9960 | E140: 13320 | N140: 23280
C141: . | N141: 0
C142: . | N142: 0
C143: . | N143: 0
C144: . | N144: 0
C145: . | N145: 0
C146: . | N146: 0
C147: . | N147: 0
C148: =IF(C121="",".",C121) -> . | N148: =SUM(D148:M148) -> 0
C149: . | N149: 0
C150: . | N150: 0
C151: =IF(C124="",".",C124) -> . | N151: 0
C152: Total Employment for all sectors | D152: 72160 | E152: 83440 | N152: 155600
B155: Adjusted data for named sectors
B158: aGVA base year | D158: =aGVA_BaseYear -> 2018
D160: aGVA data (£ million)
D161: =D52 -> Manufacturing | F161: =F52 -> Construction | H161: =H52 -> Human health and social work activities | J161: =J52 -> Agriculture, forestry and fishing | L161: =L52 -> Public administration | N161: =N52 -> Other service activities | P161: Total for Named sectors
B164: =B30 -> Total for Case Study - Example | D164: =SUM(D165:D174) -> 1712.136364 | F164: =SUM(F165:F174) -> 741.3636364 | H164: =SUM(H165:H174) -> 1368.727273 | J164: =SUM(J165:J174) -> 972.0454545 | L164: =SUM(L165:L174) -> 365.6818182 | N164: =SUM(N165:N174) -> 392.3636364 | P164: =SUM(P165:P174) -> 5552.318182
B165: =IF(D1_Name="","",D1_Name) -> R1 | D165: =IF(SUMPRODUCT(D$55:D$71,$D$82:$D$98)=0,"",SUMPRODUCT(D$55:D$71,$D$82:$D$98)) -> 785.5909091 | F165: =IF(SUMPRODUCT(F$55:F$71,$D$82:$D$98)=0,"",SUMPRODUCT(F$55:F$71,$D$82:$D$98)) -> 340.1363636 | H165: =IF(SUMPRODUCT(H$55:H$71,$D$82:$D$98)=0,"",SUMPRODUCT(H$55:H$71,$D$82:$D$98)) -> 628 | J165: =IF(SUMPRODUCT(J$55:J$71,$D$82:$D$98)=0,"",SUMPRODUCT(J$55:J$71,$D$82:$D$98)) -> 446.0909091 | L165: =IF(SUMPRODUCT(L$55:L$71,$D$82:$D$98)=0,"",SUMPRODUCT(L$55:L$71,$D$82:$D$98)) -> 167.8409091 | N165: =IF(SUMPRODUCT(N$55:N$71,$D$82:$D$98)=0,"",SUMPRODUCT(N$55:N$71,$D$82:$D$98)) -> 180 | P165: =IF(SUM(D165:N165)=0,"",SUM(D165:N165)) -> 2547.659091
B166: =IF(D2_Name="","",D2_Name) -> R2 | D166: =IF(SUMPRODUCT(D$55:D$71,$E$82:$E$98)=0,"",SUMPRODUCT(D$55:D$71,$E$82:$E$98)) -> 926.5454545 | F166: =IF(SUMPRODUCT(F$55:F$71,$E$82:$E$98)=0,"",SUMPRODUCT(F$55:F$71,$E$82:$E$98)) -> 401.2272727 | H166: =IF(SUMPRODUCT(H$55:H$71,$E$82:$E$98)=0,"",SUMPRODUCT(H$55:H$71,$E$82:$E$98)) -> 740.7272727 | J166: =IF(SUMPRODUCT(J$55:J$71,$E$82:$E$98)=0,"",SUMPRODUCT(J$55:J$71,$E$82:$E$98)) -> 525.9545455 | L166: =IF(SUMPRODUCT(L$55:L$71,$E$82:$E$98)=0,"",SUMPRODUCT(L$55:L$71,$E$82:$E$98)) -> 197.8409091 | N166: =IF(SUMPRODUCT(N$55:N$71,$E$82:$E$98)=0,"",SUMPRODUCT(N$55:N$71,$E$82:$E$98)) -> 212.3636364 | P166: 3004.659091
B167: =IF(D3_Name="","",D3_Name) ->  | D167: =IF(SUMPRODUCT(D$55:D$71,$F$82:$F$98)=0,"",SUMPRODUCT(D$55:D$71,$F$82:$F$98)) ->  | F167: =IF(SUMPRODUCT(F$55:F$71,$F$82:$F$98)=0,"",SUMPRODUCT(F$55:F$71,$F$82:$F$98)) ->  | H167: =IF(SUMPRODUCT(H$55:H$71,$F$82:$F$98)=0,"",SUMPRODUCT(H$55:H$71,$F$82:$F$98)) ->  | J167: =IF(SUMPRODUCT(J$55:J$71,$F$82:$F$98)=0,"",SUMPRODUCT(J$55:J$71,$F$82:$F$98)) ->  | L167: =IF(SUMPRODUCT(L$55:L$71,$F$82:$F$98)=0,"",SUMPRODUCT(L$55:L$71,$F$82:$F$98)) ->  | N167: =IF(SUMPRODUCT(N$55:N$71,$F$82:$F$98)=0,"",SUMPRODUCT(N$55:N$71,$F$82:$F$98)) -> 
B168: =IF(D4_Name="","",D4_Name) ->  | D168: =IF(SUMPRODUCT(D$55:D$71,$G$82:$G$98)=0,"",SUMPRODUCT(D$55:D$71,$G$82:$G$98)) ->  | F168: =IF(SUMPRODUCT(F$55:F$71,$G$82:$G$98)=0,"",SUMPRODUCT(F$55:F$71,$G$82:$G$98)) ->  | H168: =IF(SUMPRODUCT(H$55:H$71,$G$82:$G$98)=0,"",SUMPRODUCT(H$55:H$71,$G$82:$G$98)) ->  | J168: =IF(SUMPRODUCT(J$55:J$71,$G$82:$G$98)=0,"",SUMPRODUCT(J$55:J$71,$G$82:$G$98)) ->  | L168: =IF(SUMPRODUCT(L$55:L$71,$G$82:$G$98)=0,"",SUMPRODUCT(L$55:L$71,$G$82:$G$98)) ->  | N168: =IF(SUMPRODUCT(N$55:N$71,$G$82:$G$98)=0,"",SUMPRODUCT(N$55:N$71,$G$82:$G$98)) -> 
B169: =IF(D5_Name="","",D5_Name) ->  | D169: =IF(SUMPRODUCT(D$55:D$71,$H$82:$H$98)=0,"",SUMPRODUCT(D$55:D$71,$H$82:$H$98)) ->  | F169: =IF(SUMPRODUCT(F$55:F$71,$H$82:$H$98)=0,"",SUMPRODUCT(F$55:F$71,$H$82:$H$98)) ->  | H169: =IF(SUMPRODUCT(H$55:H$71,$H$82:$H$98)=0,"",SUMPRODUCT(H$55:H$71,$H$82:$H$98)) ->  | J169: =IF(SUMPRODUCT(J$55:J$71,$H$82:$H$98)=0,"",SUMPRODUCT(J$55:J$71,$H$82:$H$98)) ->  | L169: =IF(SUMPRODUCT(L$55:L$71,$H$82:$H$98)=0,"",SUMPRODUCT(L$55:L$71,$H$82:$H$98)) ->  | N169: =IF(SUMPRODUCT(N$55:N$71,$H$82:$H$98)=0,"",SUMPRODUCT(N$55:N$71,$H$82:$H$98)) -> 
B170: =IF(D6_Name="","",D6_Name) ->  | D170: =IF(SUMPRODUCT(D$55:D$71,$I$82:$I$98)=0,"",SUMPRODUCT(D$55:D$71,$I$82:$I$98)) ->  | F170: =IF(SUMPRODUCT(F$55:F$71,$I$82:$I$98)=0,"",SUMPRODUCT(F$55:F$71,$I$82:$I$98)) ->  | H170: =IF(SUMPRODUCT(H$55:H$71,$I$82:$I$98)=0,"",SUMPRODUCT(H$55:H$71,$I$82:$I$98)) ->  | J170: =IF(SUMPRODUCT(J$55:J$71,$I$82:$I$98)=0,"",SUMPRODUCT(J$55:J$71,$I$82:$I$98)) ->  | L170: =IF(SUMPRODUCT(L$55:L$71,$I$82:$I$98)=0,"",SUMPRODUCT(L$55:L$71,$I$82:$I$98)) ->  | N170: =IF(SUMPRODUCT(N$55:N$71,$I$82:$I$98)=0,"",SUMPRODUCT(N$55:N$71,$I$82:$I$98)) -> 
B171: =IF(D7_Name="","",D7_Name) ->  | D171: =IF(SUMPRODUCT(D$55:D$71,$J$82:$J$98)=0,"",SUMPRODUCT(D$55:D$71,$J$82:$J$98)) ->  | F171: =IF(SUMPRODUCT(F$55:F$71,$J$82:$J$98)=0,"",SUMPRODUCT(F$55:F$71,$J$82:$J$98)) ->  | H171: =IF(SUMPRODUCT(H$55:H$71,$J$82:$J$98)=0,"",SUMPRODUCT(H$55:H$71,$J$82:$J$98)) ->  | J171: =IF(SUMPRODUCT(J$55:J$71,$J$82:$J$98)=0,"",SUMPRODUCT(J$55:J$71,$J$82:$J$98)) ->  | L171: =IF(SUMPRODUCT(L$55:L$71,$J$82:$J$98)=0,"",SUMPRODUCT(L$55:L$71,$J$82:$J$98)) ->  | N171: =IF(SUMPRODUCT(N$55:N$71,$J$82:$J$98)=0,"",SUMPRODUCT(N$55:N$71,$J$82:$J$98)) -> 
B172: =IF(D8_Name="","",D8_Name) ->  | D172: =IF(SUMPRODUCT(D$55:D$71,$K$82:$K$98)=0,"",SUMPRODUCT(D$55:D$71,$K$82:$K$98)) ->  | F172: =IF(SUMPRODUCT(F$55:F$71,$K$82:$K$98)=0,"",SUMPRODUCT(F$55:F$71,$K$82:$K$98)) ->  | H172: =IF(SUMPRODUCT(H$55:H$71,$K$82:$K$98)=0,"",SUMPRODUCT(H$55:H$71,$K$82:$K$98)) ->  | J172: =IF(SUMPRODUCT(J$55:J$71,$K$82:$K$98)=0,"",SUMPRODUCT(J$55:J$71,$K$82:$K$98)) ->  | L172: =IF(SUMPRODUCT(L$55:L$71,$K$82:$K$98)=0,"",SUMPRODUCT(L$55:L$71,$K$82:$K$98)) ->  | N172: =IF(SUMPRODUCT(N$55:N$71,$K$82:$K$98)=0,"",SUMPRODUCT(N$55:N$71,$K$82:$K$98)) -> 
B173: =IF(D9_Name="","",D9_Name) ->  | D173: =IF(SUMPRODUCT(D$55:D$71,$L$82:$L$98)=0,"",SUMPRODUCT(D$55:D$71,$L$82:$L$98)) ->  | F173: =IF(SUMPRODUCT(F$55:F$71,$L$82:$L$98)=0,"",SUMPRODUCT(F$55:F$71,$L$82:$L$98)) ->  | H173: =IF(SUMPRODUCT(H$55:H$71,$L$82:$L$98)=0,"",SUMPRODUCT(H$55:H$71,$L$82:$L$98)) ->  | J173: =IF(SUMPRODUCT(J$55:J$71,$L$82:$L$98)=0,"",SUMPRODUCT(J$55:J$71,$L$82:$L$98)) ->  | L173: =IF(SUMPRODUCT(L$55:L$71,$L$82:$L$98)=0,"",SUMPRODUCT(L$55:L$71,$L$82:$L$98)) ->  | N173: =IF(SUMPRODUCT(N$55:N$71,$L$82:$L$98)=0,"",SUMPRODUCT(N$55:N$71,$L$82:$L$98)) -> 
B174: =IF(D10_Name="","",D10_Name) ->  | D174: =IF(SUMPRODUCT(D$55:D$71,$M$82:$M$98)=0,"",SUMPRODUCT(D$55:D$71,$M$82:$M$98)) ->  | F174: =IF(SUMPRODUCT(F$55:F$71,$M$82:$M$98)=0,"",SUMPRODUCT(F$55:F$71,$M$82:$M$98)) ->  | H174: =IF(SUMPRODUCT(H$55:H$71,$M$82:$M$98)=0,"",SUMPRODUCT(H$55:H$71,$M$82:$M$98)) ->  | J174: =IF(SUMPRODUCT(J$55:J$71,$M$82:$M$98)=0,"",SUMPRODUCT(J$55:J$71,$M$82:$M$98)) ->  | L174: =IF(SUMPRODUCT(L$55:L$71,$M$82:$M$98)=0,"",SUMPRODUCT(L$55:L$71,$M$82:$M$98)) ->  | N174: =IF(SUMPRODUCT(N$55:N$71,$M$82:$M$98)=0,"",SUMPRODUCT(N$55:N$71,$M$82:$M$98)) -> 
B177: Employment base year | D177: =Employ_BaseYear -> 2019
D179: Employment data (Count)
D180: =D161 -> Manufacturing | F180: =F161 -> Construction | H180: =H161 -> Human health and social work activities | J180: =J161 -> Agriculture, forestry and fishing | L180: =L161 -> Public administration | N180: =N161 -> Other service activities | P180: Total for Named sectors
B183: =B164 -> Total for Case Study - Example | D183: =SUM(D184:D193) -> 18312 | F183: =SUM(F184:F193) -> 5676 | H183: =SUM(H184:H193) -> 1056 | J183: =SUM(J184:J193) -> 23088 | L183: =SUM(L184:L193) -> 30688 | N183: =SUM(N184:N193) -> 16296 | P183: =SUM(P184:P193) -> 95116
B184: R1 | D184: =IF(SUMPRODUCT(D$108:D$124,$D$135:$D$151)=0,"",SUMPRODUCT(D$108:D$124,$D$135:$D$151)) -> 10368 | F184: =IF(SUMPRODUCT(F$108:F$124,$D$135:$D$151)=0,"",SUMPRODUCT(F$108:F$124,$D$135:$D$151)) -> 2316 | H184: =IF(SUMPRODUCT(H$108:H$124,$D$135:$D$151)=0,"",SUMPRODUCT(H$108:H$124,$D$135:$D$151)) -> 468 | J184: =IF(SUMPRODUCT(J$108:J$124,$D$135:$D$151)=0,"",SUMPRODUCT(J$108:J$124,$D$135:$D$151)) -> 10348 | L184: =IF(SUMPRODUCT(L$108:L$124,$D$135:$D$151)=0,"",SUMPRODUCT(L$108:L$124,$D$135:$D$151)) -> 13804 | N184: =IF(SUMPRODUCT(N$108:N$124,$D$135:$D$151)=0,"",SUMPRODUCT(N$108:N$124,$D$135:$D$151)) -> 6972 | P184: =IF(SUM(D184:N184)=0,"",SUM(D184:N184)) -> 44276
B185: R2 | D185: =IF(SUMPRODUCT(D$108:D$124,$E$135:$E$151)=0,"",SUMPRODUCT(D$108:D$124,$E$135:$E$151)) -> 7944 | F185: =IF(SUMPRODUCT(F$108:F$124,$E$135:$E$151)=0,"",SUMPRODUCT(F$108:F$124,$E$135:$E$151)) -> 3360 | H185: =IF(SUMPRODUCT(H$108:H$124,$E$135:$E$151)=0,"",SUMPRODUCT(H$108:H$124,$E$135:$E$151)) -> 588 | J185: =IF(SUMPRODUCT(J$108:J$124,$E$135:$E$151)=0,"",SUMPRODUCT(J$108:J$124,$E$135:$E$151)) -> 12740 | L185: =IF(SUMPRODUCT(L$108:L$124,$E$135:$E$151)=0,"",SUMPRODUCT(L$108:L$124,$E$135:$E$151)) -> 16884 | N185: =IF(SUMPRODUCT(N$108:N$124,$E$135:$E$151)=0,"",SUMPRODUCT(N$108:N$124,$E$135:$E$151)) -> 9324 | P185: 50840
D186: =IF(SUMPRODUCT(D$108:D$124,$F$135:$F$151)=0,"",SUMPRODUCT(D$108:D$124,$F$135:$F$151)) ->  | F186: =IF(SUMPRODUCT(F$108:F$124,$F$135:$F$151)=0,"",SUMPRODUCT(F$108:F$124,$F$135:$F$151)) ->  | H186: =IF(SUMPRODUCT(H$108:H$124,$F$135:$F$151)=0,"",SUMPRODUCT(H$108:H$124,$F$135:$F$151)) ->  | J186: =IF(SUMPRODUCT(J$108:J$124,$F$135:$F$151)=0,"",SUMPRODUCT(J$108:J$124,$F$135:$F$151)) ->  | L186: =IF(SUMPRODUCT(L$108:L$124,$F$135:$F$151)=0,"",SUMPRODUCT(L$108:L$124,$F$135:$F$151)) ->  | N186: =IF(SUMPRODUCT(N$108:N$124,$F$135:$F$151)=0,"",SUMPRODUCT(N$108:N$124,$F$135:$F$151)) -> 
D187: =IF(SUMPRODUCT(D$108:D$124,$G$135:$G$151)=0,"",SUMPRODUCT(D$108:D$124,$G$135:$G$151)) ->  | F187: =IF(SUMPRODUCT(F$108:F$124,$G$135:$G$151)=0,"",SUMPRODUCT(F$108:F$124,$G$135:$G$151)) ->  | H187: =IF(SUMPRODUCT(H$108:H$124,$G$135:$G$151)=0,"",SUMPRODUCT(H$108:H$124,$G$135:$G$151)) ->  | J187: =IF(SUMPRODUCT(J$108:J$124,$G$135:$G$151)=0,"",SUMPRODUCT(J$108:J$124,$G$135:$G$151)) ->  | L187: =IF(SUMPRODUCT(L$108:L$124,$G$135:$G$151)=0,"",SUMPRODUCT(L$108:L$124,$G$135:$G$151)) ->  | N187: =IF(SUMPRODUCT(N$108:N$124,$G$135:$G$151)=0,"",SUMPRODUCT(N$108:N$124,$G$135:$G$151)) -> 
D188: =IF(SUMPRODUCT(D$108:D$124,$H$135:$H$151)=0,"",SUMPRODUCT(D$108:D$124,$H$135:$H$151)) ->  | F188: =IF(SUMPRODUCT(F$108:F$124,$H$135:$H$151)=0,"",SUMPRODUCT(F$108:F$124,$H$135:$H$151)) ->  | H188: =IF(SUMPRODUCT(H$108:H$124,$H$135:$H$151)=0,"",SUMPRODUCT(H$108:H$124,$H$135:$H$151)) ->  | J188: =IF(SUMPRODUCT(J$108:J$124,$H$135:$H$151)=0,"",SUMPRODUCT(J$108:J$124,$H$135:$H$151)) ->  | L188: =IF(SUMPRODUCT(L$108:L$124,$H$135:$H$151)=0,"",SUMPRODUCT(L$108:L$124,$H$135:$H$151)) ->  | N188: =IF(SUMPRODUCT(N$108:N$124,$H$135:$H$151)=0,"",SUMPRODUCT(N$108:N$124,$H$135:$H$151)) -> 
D189: =IF(SUMPRODUCT(D$108:D$124,$I$135:$I$151)=0,"",SUMPRODUCT(D$108:D$124,$I$135:$I$151)) ->  | F189: =IF(SUMPRODUCT(F$108:F$124,$I$135:$I$151)=0,"",SUMPRODUCT(F$108:F$124,$I$135:$I$151)) ->  | H189: =IF(SUMPRODUCT(H$108:H$124,$I$135:$I$151)=0,"",SUMPRODUCT(H$108:H$124,$I$135:$I$151)) ->  | J189: =IF(SUMPRODUCT(J$108:J$124,$I$135:$I$151)=0,"",SUMPRODUCT(J$108:J$124,$I$135:$I$151)) ->  | L189: =IF(SUMPRODUCT(L$108:L$124,$I$135:$I$151)=0,"",SUMPRODUCT(L$108:L$124,$I$135:$I$151)) ->  | N189: =IF(SUMPRODUCT(N$108:N$124,$I$135:$I$151)=0,"",SUMPRODUCT(N$108:N$124,$I$135:$I$151)) -> 
D190: =IF(SUMPRODUCT(D$108:D$124,$J$135:$J$151)=0,"",SUMPRODUCT(D$108:D$124,$J$135:$J$151)) ->  | F190: =IF(SUMPRODUCT(F$108:F$124,$J$135:$J$151)=0,"",SUMPRODUCT(F$108:F$124,$J$135:$J$151)) ->  | H190: =IF(SUMPRODUCT(H$108:H$124,$J$135:$J$151)=0,"",SUMPRODUCT(H$108:H$124,$J$135:$J$151)) ->  | J190: =IF(SUMPRODUCT(J$108:J$124,$J$135:$J$151)=0,"",SUMPRODUCT(J$108:J$124,$J$135:$J$151)) ->  | L190: =IF(SUMPRODUCT(L$108:L$124,$J$135:$J$151)=0,"",SUMPRODUCT(L$108:L$124,$J$135:$J$151)) ->  | N190: =IF(SUMPRODUCT(N$108:N$124,$J$135:$J$151)=0,"",SUMPRODUCT(N$108:N$124,$J$135:$J$151)) -> 
D191: =IF(SUMPRODUCT(D$108:D$124,$K$135:$K$151)=0,"",SUMPRODUCT(D$108:D$124,$K$135:$K$151)) ->  | F191: =IF(SUMPRODUCT(F$108:F$124,$K$135:$K$151)=0,"",SUMPRODUCT(F$108:F$124,$K$135:$K$151)) ->  | H191: =IF(SUMPRODUCT(H$108:H$124,$K$135:$K$151)=0,"",SUMPRODUCT(H$108:H$124,$K$135:$K$151)) ->  | J191: =IF(SUMPRODUCT(J$108:J$124,$K$135:$K$151)=0,"",SUMPRODUCT(J$108:J$124,$K$135:$K$151)) ->  | L191: =IF(SUMPRODUCT(L$108:L$124,$K$135:$K$151)=0,"",SUMPRODUCT(L$108:L$124,$K$135:$K$151)) ->  | N191: =IF(SUMPRODUCT(N$108:N$124,$K$135:$K$151)=0,"",SUMPRODUCT(N$108:N$124,$K$135:$K$151)) -> 
D192: =IF(SUMPRODUCT(D$108:D$124,$L$135:$L$151)=0,"",SUMPRODUCT(D$108:D$124,$L$135:$L$151)) ->  | F192: =IF(SUMPRODUCT(F$108:F$124,$L$135:$L$151)=0,"",SUMPRODUCT(F$108:F$124,$L$135:$L$151)) ->  | H192: =IF(SUMPRODUCT(H$108:H$124,$L$135:$L$151)=0,"",SUMPRODUCT(H$108:H$124,$L$135:$L$151)) ->  | J192: =IF(SUMPRODUCT(J$108:J$124,$L$135:$L$151)=0,"",SUMPRODUCT(J$108:J$124,$L$135:$L$151)) ->  | L192: =IF(SUMPRODUCT(L$108:L$124,$L$135:$L$151)=0,"",SUMPRODUCT(L$108:L$124,$L$135:$L$151)) ->  | N192: =IF(SUMPRODUCT(N$108:N$124,$L$135:$L$151)=0,"",SUMPRODUCT(N$108:N$124,$L$135:$L$151)) ->  | P192: =IF(SUM(D192:N192)=0,"",SUM(D192:N192)) -> 
D193: =IF(SUMPRODUCT(D$108:D$124,$M$135:$M$151)=0,"",SUMPRODUCT(D$108:D$124,$M$135:$M$151)) ->  | F193: =IF(SUMPRODUCT(F$108:F$124,$M$135:$M$151)=0,"",SUMPRODUCT(F$108:F$124,$M$135:$M$151)) ->  | H193: =IF(SUMPRODUCT(H$108:H$124,$M$135:$M$151)=0,"",SUMPRODUCT(H$108:H$124,$M$135:$M$151)) ->  | J193: =IF(SUMPRODUCT(J$108:J$124,$M$135:$M$151)=0,"",SUMPRODUCT(J$108:J$124,$M$135:$M$151)) ->  | L193: =IF(SUMPRODUCT(L$108:L$124,$M$135:$M$151)=0,"",SUMPRODUCT(L$108:L$124,$M$135:$M$151)) ->  | N193: =IF(SUMPRODUCT(N$108:N$124,$M$135:$M$151)=0,"",SUMPRODUCT(N$108:N$124,$M$135:$M$151)) -> 
D196: Per Capita aGVA (employment based) | R196: Per Capita aGVA (Population based)
D197: =D180 -> Manufacturing | F197: =F180 -> Construction | H197: =H180 -> Human health and social work activities | J197: =J180 -> Agriculture, forestry and fishing | L197: =L180 -> Public administration | N197: =N180 -> Other service activities | P197: Total for Named sectors
B200: =B183 -> Total for Case Study - Example | D200: =IFERROR((D164*1000000)/D183, "") -> 93498.05393 | F200: =IFERROR((F164*1000000)/F183, "") -> 130613.7485 | H200: =IFERROR((H164*1000000)/H183, "") -> 1296143.251 | J200: =IFERROR((J164*1000000)/J183, "") -> 42101.76085 | L200: =IFERROR((L164*1000000)/L183, "") -> 11916.11764 | N200: =IFERROR((N164*1000000)/N183, "") -> 24077.29727 | P200: =IFERROR((P164*1000000)/P183, "") -> 58374.1766 | R200: =IFERROR(((N99)*1000000)/E30, "") -> 9391.985934
B201: R1 | D201: =IFERROR((D165*1000000)/D184, "") -> 75770.72811 | F201: =IFERROR((F165*1000000)/F184, "") -> 146863.7149 | H201: =IFERROR((H165*1000000)/H184, "") -> 1341880.342 | J201: =IFERROR((J165*1000000)/J184, "") -> 43108.90115 | L201: =IFERROR((L165*1000000)/L184, "") -> 12158.86041 | N201: =IFERROR((N165*1000000)/N184, "") -> 25817.55594 | P201: =IFERROR((P165*1000000)/P184, "") -> 57540.40769 | R201: =IFERROR((D1_aGVA_Sum*1000000)/D1_Pop, "") -> 9908.811253
B202: R2 | D202: =IFERROR((D166*1000000)/D185, "") -> 116634.6242 | F202: =IFERROR((F166*1000000)/F185, "") -> 119412.8788 | H202: =IFERROR((H166*1000000)/H185, "") -> 1259740.26 | J202: =IFERROR((J166*1000000)/J185, "") -> 41283.71628 | L202: =IFERROR((L166*1000000)/L185, "") -> 11717.65631 | N202: =IFERROR((N166*1000000)/N185, "") -> 22776.02278 | P202: =IFERROR((P166*1000000)/P185, "") -> 59100.29683 | R202: =IFERROR((D2_aGVA_Sum*1000000)/D2_Pop, "") -> 8994.232818
D203: =IFERROR((D167*1000000)/D186, "") ->  | F203: =IFERROR((F167*1000000)/F186, "") ->  | H203: =IFERROR((H167*1000000)/H186, "") ->  | J203: =IFERROR((J167*1000000)/J186, "") ->  | L203: =IFERROR((L167*1000000)/L186, "") ->  | N203: =IFERROR((N167*1000000)/N186, "") ->  | P203: =IFERROR((P167*1000000)/P186, "") ->  | R203: =IFERROR((D3_aGVA_Sum*1000000)/D3_Pop, "") -> 
D204: =IFERROR((D168*1000000)/D187, "") ->  | F204: =IFERROR((F168*1000000)/F187, "") ->  | H204: =IFERROR((H168*1000000)/H187, "") ->  | J204: =IFERROR((J168*1000000)/J187, "") ->  | L204: =IFERROR((L168*1000000)/L187, "") ->  | N204: =IFERROR((N168*1000000)/N187, "") ->  | P204: =IFERROR((P168*1000000)/P187, "") ->  | R204: =IFERROR((D4_aGVA_Sum*1000000)/D4_Pop, "") -> 
P205: =IFERROR((P169*1000000)/P188, "") ->  | R205: =IFERROR((D5_aGVA_Sum*1000000)/D5_Pop, "") -> 
R206: =IFERROR((D6_aGVA_Sum*1000000)/D6_Pop, "") -> 
D207: =IFERROR((D171*1000000)/D190, "") ->  | F207: =IFERROR((F171*1000000)/F190, "") ->  | H207: =IFERROR((H171*1000000)/H190, "") ->  | J207: =IFERROR((J171*1000000)/J190, "") ->  | L207: =IFERROR((L171*1000000)/L190, "") ->  | N207: =IFERROR((N171*1000000)/N190, "") ->  | R207: =IFERROR((D7_aGVA_Sum*1000000)/D7_Pop, "") -> 
D208: =IFERROR((D172*1000000)/D191, "") ->  | R208: =IFERROR((D8_aGVA_Sum*1000000)/D8_Pop, "") -> 
D209: =IFERROR((D173*1000000)/D192, "") ->  | P209: =IFERROR((P173*1000000)/P192, "") ->  | R209: =IFERROR((D9_aGVA_Sum*1000000)/D9_Pop, "") -> 
D210: =IFERROR((D174*1000000)/D193, "") ->  | F210: =IFERROR((F174*1000000)/F193, "") ->  | H210: =IFERROR((H174*1000000)/H193, "") ->  | J210: =IFERROR((J174*1000000)/J193, "") ->  | L210: =IFERROR((L174*1000000)/L193, "") ->  | N210: =IFERROR((N174*1000000)/N193, "") ->  | P210: =IFERROR((P174*1000000)/P193, "") ->  | R210: =IFERROR((D10_aGVA_Sum*1000000)/D10_Pop, "") -> 
B213: Tax recipts base year | D213: =TaxReceip_BaseYear -> 2019
D215: Total tax recipts from Income (£k)
D216: =D197 -> Manufacturing | F216: =F197 -> Construction | H216: =H197 -> Human health and social work activities | J216: =J197 -> Agriculture, forestry and fishing | L216: =L197 -> Public administration | N216: =N197 -> Other service activities | P216: Total for Named sectors
B219: =B200 -> Total for Case Study - Example | D219: =SUM(D220:D229) -> 173724.1107 | F219: =SUM(F220:F229) -> 54007.50346 | H219: =SUM(H220:H229) -> 10041.29786 | J219: =SUM(J220:J229) -> 219518.6599 | L219: =SUM(L220:L229) -> 291769.9374 | N219: =SUM(N220:N229) -> 155000.0197 | P219: =SUM(P220:P229) -> 904061.529
B220: R1 | D220: =IFERROR(D1_TaxReceip*1000*D184/D1_Employ_Sum,"") -> 97559.20177 | F220: =IFERROR(D1_TaxReceip*1000*F184/D1_Employ_Sum,"") -> 21792.73836 | H220: =IFERROR(D1_TaxReceip*1000*H184/D1_Employ_Sum,"") -> 4403.713969 | J220: =IFERROR(D1_TaxReceip*1000*J184/D1_Employ_Sum,"") -> 97371.00887 | L220: =IFERROR(D1_TaxReceip*1000*L184/D1_Employ_Sum,"") -> 129890.7428 | N220: =IFERROR(D1_TaxReceip*1000*N184/D1_Employ_Sum,"") -> 65604.04656 | P220: =IFERROR(D1_TaxReceip*1000*P184/D1_Employ_Sum,"") -> 416621.4523
B221: R2 | D221: =IFERROR(D2_TaxReceip*1000*D185/D2_Employ_Sum,"") -> 76164.90892 | F221: =IFERROR(D2_TaxReceip*1000*F185/D2_Employ_Sum,"") -> 32214.7651 | H221: =IFERROR(D2_TaxReceip*1000*H185/D2_Employ_Sum,"") -> 5637.583893 | J221: =IFERROR(D2_TaxReceip*1000*J185/D2_Employ_Sum,"") -> 122147.651 | L221: =IFERROR(D2_TaxReceip*1000*L185/D2_Employ_Sum,"") -> 161879.1946 | N221: =IFERROR(D2_TaxReceip*1000*N185/D2_Employ_Sum,"") -> 89395.97315 | P221: =IFERROR(D2_TaxReceip*1000*P185/D2_Employ_Sum,"") -> 487440.0767
D222: =IFERROR(D3_TaxReceip*1000*D186/D3_Employ_Sum,"") ->  | F222: =IFERROR(D3_TaxReceip*1000*F186/D3_Employ_Sum,"") ->  | H222: =IFERROR(D3_TaxReceip*1000*H186/D3_Employ_Sum,"") ->  | J222: =IFERROR(D3_TaxReceip*1000*J186/D3_Employ_Sum,"") ->  | L222: =IFERROR(D3_TaxReceip*1000*L186/D3_Employ_Sum,"") ->  | N222: =IFERROR(D3_TaxReceip*1000*N186/D3_Employ_Sum,"") ->  | P222: =IFERROR(D3_TaxReceip*1000*P186/D3_Employ_Sum,"") -> 
D223: =IFERROR(D4_TaxReceip*1000*D187/D4_Employ_Sum,"") ->  | F223: =IFERROR(D4_TaxReceip*1000*F187/D4_Employ_Sum,"") ->  | H223: =IFERROR(D4_TaxReceip*1000*H187/D4_Employ_Sum,"") ->  | J223: =IFERROR(D4_TaxReceip*1000*J187/D4_Employ_Sum,"") ->  | L223: =IFERROR(D4_TaxReceip*1000*L187/D4_Employ_Sum,"") ->  | N223: =IFERROR(D4_TaxReceip*1000*N187/D4_Employ_Sum,"") ->  | P223: =IFERROR(D4_TaxReceip*1000*P187/D4_Employ_Sum,"") -> 
D224: =IFERROR(D5_TaxReceip*1000*D188/D5_Employ_Sum,"") ->  | F224: =IFERROR(D5_TaxReceip*1000*F188/D5_Employ_Sum,"") ->  | H224: =IFERROR(D5_TaxReceip*1000*H188/D5_Employ_Sum,"") ->  | J224: =IFERROR(D5_TaxReceip*1000*J188/D5_Employ_Sum,"") ->  | L224: =IFERROR(D5_TaxReceip*1000*L188/D5_Employ_Sum,"") ->  | N224: =IFERROR(D5_TaxReceip*1000*N188/D5_Employ_Sum,"") ->  | P224: =IFERROR(D5_TaxReceip*1000*P188/D5_Employ_Sum,"") -> 
D225: =IFERROR(D6_TaxReceip*1000*D189/D6_Employ_Sum,"") ->  | F225: =IFERROR(D6_TaxReceip*1000*F189/D6_Employ_Sum,"") ->  | H225: =IFERROR(D6_TaxReceip*1000*H189/D6_Employ_Sum,"") ->  | J225: =IFERROR(D6_TaxReceip*1000*J189/D6_Employ_Sum,"") ->  | L225: =IFERROR(D6_TaxReceip*1000*L189/D6_Employ_Sum,"") ->  | N225: =IFERROR(D6_TaxReceip*1000*N189/D6_Employ_Sum,"") ->  | P225: =IFERROR(D6_TaxReceip*1000*P189/D6_Employ_Sum,"") -> 
D226: =IFERROR(D7_TaxReceip*1000*D190/D7_Employ_Sum,"") ->  | F226: =IFERROR(D7_TaxReceip*1000*F190/D7_Employ_Sum,"") ->  | H226: =IFERROR(D7_TaxReceip*1000*H190/D7_Employ_Sum,"") ->  | J226: =IFERROR(D7_TaxReceip*1000*J190/D7_Employ_Sum,"") ->  | L226: =IFERROR(D7_TaxReceip*1000*L190/D7_Employ_Sum,"") ->  | N226: =IFERROR(D7_TaxReceip*1000*N190/D7_Employ_Sum,"") ->  | P226: =IFERROR(D7_TaxReceip*1000*P190/D7_Employ_Sum,"") -> 
D227: =IFERROR(D8_TaxReceip*1000*D191/D8_Employ_Sum,"") ->  | F227: =IFERROR(D8_TaxReceip*1000*F191/D8_Employ_Sum,"") ->  | H227: =IFERROR(D8_TaxReceip*1000*H191/D8_Employ_Sum,"") ->  | J227: =IFERROR(D8_TaxReceip*1000*J191/D8_Employ_Sum,"") ->  | L227: =IFERROR(D8_TaxReceip*1000*L191/D8_Employ_Sum,"") ->  | N227: =IFERROR(D8_TaxReceip*1000*N191/D8_Employ_Sum,"") ->  | P227: =IFERROR(D8_TaxReceip*1000*P191/D8_Employ_Sum,"") -> 
D228: =IFERROR(D9_TaxReceip*1000*D192/D9_Employ_Sum,"") ->  | F228: =IFERROR(D9_TaxReceip*1000*F192/D9_Employ_Sum,"") ->  | H228: =IFERROR(D9_TaxReceip*1000*H192/D9_Employ_Sum,"") ->  | J228: =IFERROR(D9_TaxReceip*1000*J192/D9_Employ_Sum,"") ->  | L228: =IFERROR(D9_TaxReceip*1000*L192/D9_Employ_Sum,"") ->  | N228: =IFERROR(D9_TaxReceip*1000*N192/D9_Employ_Sum,"") ->  | P228: =IFERROR(D9_TaxReceip*1000*P192/D9_Employ_Sum,"") -> 
D229: =IFERROR(D10_TaxReceip*1000*D193/D10_Employ_Sum,"") ->  | F229: =IFERROR(D10_TaxReceip*1000*F193/D10_Employ_Sum,"") ->  | H229: =IFERROR(D10_TaxReceip*1000*H193/D10_Employ_Sum,"") ->  | J229: =IFERROR(D10_TaxReceip*1000*J193/D10_Employ_Sum,"") ->  | L229: =IFERROR(D10_TaxReceip*1000*L193/D10_Employ_Sum,"") ->  | N229: =IFERROR(D10_TaxReceip*1000*N193/D10_Employ_Sum,"") ->  | P229: =IFERROR(D10_TaxReceip*1000*P193/D10_Employ_Sum,"") -> 
B232: VAT base year | D232: =VAT_BaseYear -> 2018
D234: Total VAT (£k)
D235: =D216 -> Manufacturing | F235: =F216 -> Construction | H235: =H216 -> Human health and social work activities | J235: =J216 -> Agriculture, forestry and fishing | L235: =L216 -> Public administration | N235: =N216 -> Other service activities | P235: Total for Named sectors
B238: =B219 -> Total for Case Study - Example | D238: =SUM(D239:D248) -> 30591.64955 | F238: =SUM(F239:F248) -> 9482.208542 | H238: =SUM(H239:H248) -> 1764.131822 | J238: =SUM(J239:J248) -> 38570.33665 | L238: =SUM(L239:L248) -> 51266.73991 | N238: =SUM(N239:N248) -> 27223.76152 | P238: =SUM(P239:P248) -> 158898.828
B239: R1 | D239: =IFERROR(UK_VAT*D184*1000/VAT_POP,"") -> 17320.56698 | F239: =IFERROR(UK_VAT*F184*1000/VAT_POP,"") -> 3869.061836 | H239: =IFERROR(UK_VAT*H184*1000/VAT_POP,"") -> 781.8311483 | J239: =IFERROR(UK_VAT*J184*1000/VAT_POP,"") -> 17287.15539 | L239: =IFERROR(UK_VAT*L184*1000/VAT_POP,"") -> 23060.67772 | N239: =IFERROR(UK_VAT*N184*1000/VAT_POP,"") -> 11647.27941 | P239: =IFERROR(UK_VAT*P184*1000/VAT_POP,"") -> 73966.57248
B240: R2 | D240: 13271.08257 | F240: 5613.146706 | H240: 982.3006735 | J240: 21283.18126 | L240: 28206.0622 | N240: 15576.48211 | P240: 84932.25551
B251: NIC base year | D251: =NIC_BaseYear -> 2018
D253: Total NIC (£k)
D254: =D235 -> Manufacturing | F254: =F235 -> Construction | H254: =H235 -> Human health and social work activities | J254: =J235 -> Agriculture, forestry and fishing | L254: =L235 -> Public administration | N254: =N235 -> Other service activities | P254: Total for Named sectors
B257: =B238 -> Total for Case Study - Example | D257: =SUM(D258:D267) -> 26565.92071 | F257: =SUM(F258:F267) -> 8234.390889 | H257: =SUM(H258:H267) -> 1531.9797 | J257: =SUM(J258:J267) -> 33494.64708 | L257: =SUM(L258:L267) -> 44520.25856 | N257: =SUM(N258:N267) -> 23641.23219 | P257: =SUM(P258:P267) -> 137988.4291
B258: R1 | D258: =IFERROR(UK_NIC*D184*1000/NIC_POP,"") -> 15041.25524 | F258: =IFERROR(UK_NIC*F184*1000/NIC_POP,"") -> 3359.910024 | H258: =IFERROR(UK_NIC*H184*1000/NIC_POP,"") -> 678.945549 | J258: =IFERROR(UK_NIC*J184*1000/NIC_POP,"") -> 15012.24047 | L258: =IFERROR(UK_NIC*L184*1000/NIC_POP,"") -> 20025.99222 | N258: =IFERROR(UK_NIC*N184*1000/NIC_POP,"") -> 10114.54779 | P258: =IFERROR(UK_NIC*P184*1000/NIC_POP,"") -> 64232.8913
B259: R2 | D259: 11524.66547 | F259: 4874.480865 | H259: 853.0341513 | J259: 18482.40661 | L259: 24494.26634 | N259: 13526.6844 | P259: 73755.53784

Sheet Network benefits
B1: HMEA model - Network benefits
B3: =" Version: v" & Version -> Version: v1.04
B11: Accident costs
B13: Base year | D13: 2019 | F13: Growth rate (%) | G13: 0.018
B15: Cost of fatal accidents | D15: 1745879
B16: Cost of serious accidents | D16: 199614
B18: Alternative network: road traffic and accidents
B20: Traffic base year | D20: 2018 | F20: Traffic Data entry format | H20: DfT
B22: Road Type | C22: Unit | E22: Analysis
E24: =IF(H20="DfT","Cars and taxis", "Cars") -> Cars and taxis | F24: =IF(H20="DfT","Motorbikes", "LGV") -> Motorbikes | G24: =IF(H20="DfT","Light vans", "OGV1") -> Light vans | H24: =IF(H20="DfT","Goods vehicles", "OGV2") -> Goods vehicles | I24: =IF(H20="DfT","Buses and coaches", "PSV") -> Buses and coaches | J24: All motor vehicles
B25: A roads - Urban | C25: Million vehicle km | E25: 1136 | F25: 52 | G25: 178 | H25: 263 | I25: 10 | J25: =SUM(E25:I25) -> 1639
B26: A roads - Rural | C26: Million vehicle km | E26: 2489 | F26: 210 | G26: 447 | H26: 94 | I26: 21 | J26: =SUM(E26:I26) -> 3261
B27: B roads - Urban | C27: Million vehicle km | E27: 384 | F27: 105 | G27: 94 | H27: 5 | I27: 5 | J27: 593
B28: B roads - Rural | C28: Million vehicle km | E28: 942 | F28: 210 | G28: 226 | H28: 15 | I28: 10 | J28: 1403
B29: C roads - Urban | C29: Million vehicle km | J29: =SUM(E29:I29) -> 0
B30: C roads - Rural | C30: Million vehicle km | J30: 0
B31: U roads - Urban | C31: Million vehicle km | J31: 0
B32: U roads - Rural | C32: Million vehicle km | J32: 0
B34: No. of fatal accidents | D34: 28
B35: No. of serious accidents | D35: 322
D38: =E24 -> Cars and taxis | E38: =F24 -> Motorbikes | F38: =G24 -> Light vans | G38: =H24 -> Goods vehicles | H38: =I24 -> Buses and coaches
B39: Annual Growth rates (%) | D39: 0.012 | E39: 0.012 | F39: 0.019 | G39: 0.001 | H39: 0.003
B42: Redistribution of road traffic
B44: Base Network | C44: Unit | D44: Alternative network
D45: A roads - Urban | E45: A roads - Rural | F45: B roads - Urban | G45: B roads - Rural | H45: C roads - Urban | I45: C roads - Rural | J45: U roads - Urban | K45: U roads - Rural | L45: Total
B47: Motorway Urban | C47: % | D47: 0.7 | F47: 0.3 | L47: =SUM(D47:K47) -> 1
B48: Motorway Rural | C48: % | E48: 0.7 | G48: 0.3 | L48: =SUM(D48:K48) -> 1
B49: A roads - Urban | C49: % | D49: 0.3 | F49: 0.4 | H49: 0.3 | L49: 1
B50: A roads - Rural | C50: % | E50: 0.3 | G50: 0.5 | I50: 0.2 | L50: 1
B51: B roads - Urban | C51: % | L51: 0
B52: B roads - Rural | C52: % | L52: 0
B53: C roads - Urban | C53: % | L53: 0
B54: C roads - Rural | C54: % | L54: 0
B55: U roads - Urban | C55: % | L55: 0
B56: U roads - Rural | C56: % | L56: 0
B59: Vehicle speeds for alternative network
D61: Vehicle speeds for alternative network (km/h)
B62: Alternative network | C62: Unit | D62: Cars | E62: LGV | F62: OGV1 | G62: OGV2 | H62: PSV
B63: A roads - Urban | C63: km/h | D63: 48 | E63: 48 | F63: 40 | G63: 40 | H63: 40
B64: A roads - Rural | C64: km/h | D64: 80 | E64: 48 | F64: 48 | G64: 48 | H64: 48
B65: B roads - Urban | C65: km/h | D65: 48 | E65: 48 | F65: 48 | G65: 48 | H65: 32
B66: B roads - Rural | C66: km/h | D66: 64 | E66: 64 | F66: 48 | G66: 48 | H66: 48
B67: C roads - Urban | C67: km/h | D67: 48 | E67: 48 | F67: 32 | G67: 32 | H67: 32
B68: C roads - Rural | C68: km/h | D68: 48 | E68: 48 | F68: 48 | G68: 48 | H68: 32
B69: U roads - Urban | C69: km/h | D69: 48 | E69: 48 | F69: 32 | G69: 32 | H69: 32
B70: U roads - Rural | C70: km/h | D70: 48 | E70: 48 | F70: 48 | G70: 48 | H70: 32
B73: Ratio of CO2 emissions between alternative network and base network
B75: Ratio of emissions between alternative network and base network - Urban | G75: 2
B76: Ratio of emissions between alternative network and base network - Rural | G76: 2

Sheet Public Income
B1: HMEA model - Public Income
B3: =" Version: v" & Version -> Version: v1.04
C11: Traffic Data entry format | F11: DfT
B13: Congestion charge
B15: Base year | C15: 2017 | F15: Days per week congestion charge applies | J15: 5
D17: Unit | E17: =IF(D1_Name="",".",D1_Name) -> R1 | F17: =IF(D2_Name="",".",D2_Name) -> R2 | G17: =IF(D3_Name="",".",D3_Name) -> . | H17: =IF(D4_Name="",".",D4_Name) -> . | I17: =IF(D5_Name="",".",D5_Name) -> . | J17: =IF(D6_Name="",".",D6_Name) -> . | K17: =IF(D7_Name="",".",D7_Name) -> . | L17: =IF(D8_Name="",".",D8_Name) -> . | M17: =IF(D9_Name="",".",D9_Name) -> . | N17: =IF(D10_Name="",".",D10_Name) -> .
B23: =IF(F11="DfT","Cars and bikes", "Cars") -> Cars and bikes | C23: Count | D23: No/Day | E23: 12000 | F23: 15000
C24: Count Growth rate (%) | D24: % | E24: 0.01 | F24: 0.01
B25: =IF(F11="DfT","Motorbikes", "LGV") -> Motorbikes | C25: Count | D25: No/Day | E25: 4500 | F25: 5000
C26: Count Growth rate (%) | D26: % | E26: 0.01 | F26: 0.01
B27: =IF(F11="DfT","Light vans", "OGV1") -> Light vans | C27: Count | D27: No/Day | E27: 2000 | F27: 2200
C28: Count Growth rate (%) | D28: % | E28: 0.01 | F28: 0.01
B29: =IF(F11="DfT","Goods vehicles", "OGV2") -> Goods vehicles | C29: Count | D29: No/Day | E29: 750 | F29: 780
C30: Count Growth rate (%) | D30: % | E30: 0.01 | F30: 0.01
B31: =IF(F11="DfT","Buses and coaches", "PSV") -> Buses and coaches | C31: Count | D31: No/Day | E31: 1 | F31: 1
C32: Count Growth rate (%) | D32: % | E32: 0.01 | F32: 0.01
D35: Unit | E35: =B23 -> Cars and bikes | F35: =B25 -> Motorbikes | G35: =B27 -> Light vans | H35: =B29 -> Goods vehicles | I35: =B31 -> Buses and coaches
C36: Charge per vehicle | D36: £ | E36: 11.5 | F36: 11.5 | G36: 11.5 | H36: 11.5 | I36: 11.5
C37: Growth rate | D37: % | E37: 0.02 | F37: 0.02 | G37: 0.02 | H37: 0.02 | I37: 0.02
B40: Tolls
B42: Base year | C42: 2017
D44: Unit | E44: =IF(D1_Name="",".",D1_Name) -> R1 | F44: =IF(D2_Name="",".",D2_Name) -> R2 | G44: =IF(D3_Name="",".",D3_Name) -> . | H44: =IF(D4_Name="",".",D4_Name) -> . | I44: =IF(D5_Name="",".",D5_Name) -> . | J44: =IF(D6_Name="",".",D6_Name) -> . | K44: =IF(D7_Name="",".",D7_Name) -> . | L44: =IF(D8_Name="",".",D8_Name) -> . | M44: =IF(D9_Name="",".",D9_Name) -> . | N44: =IF(D10_Name="",".",D10_Name) -> .
B50: =B23 -> Cars and bikes | C50: Count | D50: No/Day | E50: 8793.07 | F50: 3216
C51: Count Growth rate (%) | D51: % | E51: 0.017 | F51: 0.017
C52: Charge per vehicle | D52: £ | E52: 1.5 | F52: 1.5
C53: Charge Growth rate (%) | D53: % | E53: 0.015 | F53: 0.015
B54: =B25 -> Motorbikes | C54: Count | D54: No/Day | E54: 355.47 | F54: 427
C55: Count Growth rate (%) | D55: % | E55: 0.017 | F55: 0.017
C56: Charge per vehicle | D56: £ | E56: 1.5 | F56: 1.5
C57: Charge Growth rate (%) | D57: % | E57: 0.015 | F57: 0.015
B58: =B27 -> Light vans | C58: Count | D58: No/Day | E58: 1777.35 | F58: 2011
C59: Count Growth rate (%) | D59: % | E59: 0.027 | F59: 0.027
C60: Charge per vehicle | D60: £ | E60: 4 | F60: 4
C61: Charge Growth rate (%) | D61: % | E61: 0.015 | F61: 0.015
B62: =B29 -> Goods vehicles | C62: Count | D62: No/Day | E62: 1244.145 | F62: 1389
C63: Count Growth rate (%) | D63: % | E63: 0.011 | F63: 0.011
C64: Charge per vehicle | D64: £ | E64: 12 | F64: 12
C65: Charge Growth rate (%) | D65: % | E65: 0.015 | F65: 0.015
B66: =B31 -> Buses and coaches | C66: Count | D66: No/Day | E66: 122 | F66: 235
C67: Count Growth rate (%) | D67: % | E67: 0.01 | F67: 0.01
C68: Charge per vehicle | D68: £ | E68: 20 | F68: 20
C69: Charge Growth rate (%) | D69: % | E69: 0.015 | F69: 0.015

Sheet Name and Filepaths
B1: HMEA model - Treatment & condition impact
B3: =" Version: v" & Version -> Version: v1.04
B6: Analysis name
B7: Current Budget - 6 sectors, 30 years, with traffic effect
A9: Highways Maintenance Appraisal Tool (HMAT) files
B14: File path | E14: Sub-Network
A15: 1 | B15: C:\Data\projects\Wales Benefits of maintenance\Wales analyses\Example\Current Budget\HMAT - Current Budget - R1.xlsm | E15: R1
A16: 2 | B16: C:\Data\projects\Wales Benefits of maintenance\Wales analyses\Example\Current Budget\HMAT - Current Budget - R2.xlsm | E16: R2
A17: 3
A18: 4
A19: 5
A20: 6
A21: 7
A22: 8
A23: 9
A24: 10
B39: Use condition to modify traffic and therefore costs

Sheet Advanced Settings
B1: HMEA model - Advanced Settings
B3: =" Version: v" & Version -> Version: v1.04
B4: Use of condition data to modify traffic and therefore costs
B6: HMEA contains base growth rates for traffic and economic aspects of the model. Traffic growth rates are also used in HMAT and therefore affect the results from HMAT that feed into an HMEA analysis. The base traffic growth rates, by default, assume the current road condition is preserved but in analyses that reflect the impacts of changing network condition, it is reasonable to include the impact of changes in condition on traffic growth. The major effect of road condition will be seen mainly from changes in the level of poor condition of the network. Reducing the percentage of poor condition is also likely to result in an increase of the percentage of the network in good condition so the benefits of improvements in network condition are also included.
B15: HMAT can include up to 10 condition bands to represent the condition of the network. The definition of poor condition is therefore a function of the number of condition bands: • 3 condition bands, poor condition is the percentage in the bottom condition band • 4 condition bands, poor condition is the percentage in the bottom condition band • 5 condition bands, poor condition is the percentage in the bottom two condition bands • 6 condition bands, poor condition is the percentage in the bottom two condition bands • 7 condition bands, poor condition is the percentage in the bottom two condition bands • 8 condition bands, poor condition is the percentage in the bottom three condition bands • 9 condition bands, poor condition is the percentage in the bottom three condition bands • 10 condition bands, poor condition is the percentage in the bottom three condition bands
B26: For HMAT the condition is considered for each road type but for the economic impacts in HMEA, the condition is a weighted average of the condition on all road types. There are two parameters that define the effect on traffic growth and economic growth (the same two are used for all changes to the growth rate): • The maximum level of change (A%) in the growth rate (the maximum effect is the same as an increase or decrease in the growth rate • The change in poor condition (B%) where the maximum change is reached There is a linear relationship between the size of the change and the change in condition between the two points. The relationship is illustrated in Figure 1.
D47: Figure 1. Modifying base growth rates
B49: The change in condition (maximum B%) is an absolute change [i.e. if in a year, Cy% is not in poor condition, this represents a change of (Cy – Co) from the condition in the base year (Co%)]. If the base data growth rate for traffic or an economic parameter in a year is Gy% then that rate is modified to [Gy x (100 + Ay)/100].
B53: The recommended setttings and the settings used (if enabled on the Name and Filepath sheet) are provided in the table below. Note: the settings cannot be altered with HMAT data loaded. To change the settings, first clear out the HMAT data (on the Name and Filepaths worksheet).
D56: Recommended value | F56: Values used (if enabled)
B58: Maximum base rate change (A) | D58: 0.1 | F58: 0.1
B59: Change in condition which triggers the maximum base rate change (B) | D59: 0.1 | F59: 0.1

Sheet Network Size
B4: =Net_Name -> Case Study - Example | C4: Total | D4: Total
B5: Length | D5: =D11+D16+D21+D26+D31+D36+D41+D46+D51+D56 -> 761850
B6: Area | D6: =D13+D18+D23+D28+D33+D38+D43+D48+D53+D58 -> 6704685
B10: =D1_Name -> R1 | C10: Total | D10: Total | E10: MR | F10: MU | G10: DR | H10: DU | I10: SR | J10: SU
B11: Length | D11: =SUM(E11:CZ11) -> 497300 | E11: 34920 | F11: 3880 | G11: 80388 | H11: 812 | I11: 320705 | J11: 56595
B12: Width | D12: n/a | E12: 14.1 | F12: 14.1 | G12: 8.3 | H12: 8.3 | I12: 7.3 | J12: 7.3
B13: Area | D13: =SUM(E13:CZ13) -> 3975330 | E13: =E11*E12 -> 492372 | F13: 54708 | G13: 667220.4 | H13: 6739.6 | I13: 2341146.5 | J13: 413143.5
B15: =D2_Name -> R2 | C15: Total | D15: Total | E15: MR | F15: MU | G15: DR | H15: DU | I15: SR | J15: SU
B16: Length | D16: =SUM(E16:CZ16) -> 264550 | E16: 90270 | F16: 10030 | G16: 114939 | H16: 1161 | I16: 40927.5 | J16: 7222.5
B17: Width | D17: n/a | E17: 14.1 | F17: 14.1 | G17: 8.3 | H17: 8.3 | I17: 7.3 | J17: 7.3
B18: Area | D18: =SUM(E18:CZ18) -> 2729355 | E18: =E16*E17 -> 1272807 | F18: 141423 | G18: 953993.7 | H18: 9636.3 | I18: 298770.75 | J18: 52724.25
B20: =D3_Name ->  | C20: Total | D20: Total
B21: Length | D21: =SUM(E21:CZ21) -> 0
B22: Width | D22: n/a
B23: Area | D23: =SUM(E23:CZ23) -> 0
B25: =D4_Name ->  | C25: Total | D25: Total
B26: Length | D26: =SUM(E26:CZ26) -> 0
B27: Width | D27: n/a
B28: Area | D28: =SUM(E28:CZ28) -> 0
B30: =D5_Name ->  | C30: Total | D30: Total
B31: Length | D31: =SUM(E31:CZ31) -> 0
B32: Width | D32: n/a
B33: Area | D33: =SUM(E33:CZ33) -> 0
B35: =D6_Name ->  | C35: Total | D35: Total
B36: Length | D36: =SUM(E36:CZ36) -> 0
B37: Width | D37: n/a
B38: Area | D38: =SUM(E38:CZ38) -> 0
B40: =D7_Name ->  | C40: Total | D40: Total
B41: Length | D41: =SUM(E41:CZ41) -> 0
B42: Width | D42: n/a
B43: Area | D43: =SUM(E43:CZ43) -> 0
B45: =D8_Name ->  | C45: Total | D45: Total
B46: Length | D46: =SUM(E46:CZ46) -> 0
B47: Width | D47: n/a
B48: Area | D48: =SUM(E48:CZ48) -> 0
B50: =D9_Name ->  | C50: Total | D50: Total
B51: Length | D51: =SUM(E51:CZ51) -> 0
B52: Width | D52: n/a
B53: Area | D53: =SUM(E53:CZ53) -> 0
B55: =D10_Name ->  | C55: Total | D55: Total
B56: Length | D56: =SUM(E56:CZ56) -> 0
B57: Width | D57: n/a
B58: Area | D58: =SUM(E58:CZ58) -> 0

Sheet Condition&MaintData
B1: HMEA model - Condition and Maintenance data
B3: =" Version: v" & Version -> Version: v1.04
B6: Analysis period | H6: Condition Bands | L6: Treatment Types
H7: Number of condition bands | M7: Number of treatment types
B8: Start Year | C8: 2020 | J8: 3 | N8: 2
B9: End Year | C9: =IF(OR(start_year="",analysis_period=""),"",start_year+analysis_period-1) -> 2049
B10: Analysis Period (yrs) | C10: 30 | H10: No. | I10: Name | J10: Code | L10: No. | M10: Name | N10: Code | O10: Kg CO2/m2
H11: 1 | I11: Green | J11: G | L11: 1 | M11: Treatment 1 | N11: T1 | O11: 3.6
H12: 2 | I12: Amber | J12: A | L12: 2 | M12: Treatment 2 | N12: T2 | O12: 6.3
H13: 3 | I13: Red | J13: R
D16: Bar
D17: Area

Sheet Future Projections
A1: HMEA model - Projections | F1: Analysis year | H1: 1 | I1: =IF(H1="","",IF(H1+1>analysis_period,"",H1+1)) -> 2 | J1: 3 | K1: 4 | L1: 5 | M1: 6 | N1: 7 | O1: 8 | P1: 9 | Q1: 10 | R1: 11 | S1: 12 | T1: 13 | U1: 14 | V1: 15 | W1: 16 | X1: 17 | Y1: 18 | Z1: 19 | AA1: 20 | AB1: 21 | AC1: 22 | AD1: 23 | AE1: 24 | AF1: 25 | AG1: 26 | AH1: 27 | AI1: 28 | AJ1: 29 | AK1: =IF(AJ1="","",IF(AJ1+1>analysis_period,"",AJ1+1)) -> 30 | AL1: =IF(AK1="","",IF(AK1+1>analysis_period,"",AK1+1)) ->  | AM1: =IF(AL1="","",IF(AL1+1>analysis_period,"",AL1+1)) ->  | AN1: =IF(AM1="","",IF(AM1+1>analysis_period,"",AM1+1)) ->  | AO1: =IF(AN1="","",IF(AN1+1>analysis_period,"",AN1+1)) ->  | AP1: =IF(AO1="","",IF(AO1+1>analysis_period,"",AO1+1)) ->  | AQ1: =IF(AP1="","",IF(AP1+1>analysis_period,"",AP1+1)) ->  | AR1: =IF(AQ1="","",IF(AQ1+1>analysis_period,"",AQ1+1)) ->  | AS1: =IF(AR1="","",IF(AR1+1>analysis_period,"",AR1+1)) ->  | AT1: =IF(AS1="","",IF(AS1+1>analysis_period,"",AS1+1)) ->  | AU1: =IF(AT1="","",IF(AT1+1>analysis_period,"",AT1+1)) ->  | AV1: =IF(AU1="","",IF(AU1+1>analysis_period,"",AU1+1)) ->  | AW1: =IF(AV1="","",IF(AV1+1>analysis_period,"",AV1+1)) ->  | AX1: =IF(AW1="","",IF(AW1+1>analysis_period,"",AW1+1)) ->  | AY1: =IF(AX1="","",IF(AX1+1>analysis_period,"",AX1+1)) ->  | AZ1: =IF(AY1="","",IF(AY1+1>analysis_period,"",AY1+1)) ->  | BA1: =IF(AZ1="","",IF(AZ1+1>analysis_period,"",AZ1+1)) ->  | BB1: =IF(BA1="","",IF(BA1+1>analysis_period,"",BA1+1)) ->  | BC1: =IF(BB1="","",IF(BB1+1>analysis_period,"",BB1+1)) ->  | BD1: =IF(BC1="","",IF(BC1+1>analysis_period,"",BC1+1)) ->  | BE1: =IF(BD1="","",IF(BD1+1>analysis_period,"",BD1+1)) ->  | BF1: =IF(BE1="","",IF(BE1+1>analysis_period,"",BE1+1)) ->  | BG1: =IF(BF1="","",IF(BF1+1>analysis_period,"",BF1+1)) ->  | BH1: =IF(BG1="","",IF(BG1+1>analysis_period,"",BG1+1)) ->  | BI1: =IF(BH1="","",IF(BH1+1>analysis_period,"",BH1+1)) ->  | BJ1: =IF(BI1="","",IF(BI1+1>analysis_period,"",BI1+1)) ->  | BK1: =IF(BJ1="","",IF(BJ1+1>analysis_period,"",BJ1+1)) ->  | BL1: =IF(BK1="","",IF(BK1+1>analysis_period,"",BK1+1)) ->  | BM1: =IF(BL1="","",IF(BL1+1>analysis_period,"",BL1+1)) ->  | BN1: =IF(BM1="","",IF(BM1+1>analysis_period,"",BM1+1)) ->  | BO1: =IF(BN1="","",IF(BN1+1>analysis_period,"",BN1+1)) -> 
A2: =" Version: v" & Version -> Version: v1.04 | D2: Analysis name: | E2: ='Name and Filepaths'!B7 -> Current Budget - 6 sectors, 30 years, with traffic effect
A4: ="Undiscounted costs for " & IF('Economic Data'!C14="", "network",'Economic Data'!C14) -> Undiscounted costs for Case Study - Example | F4: Analysis period total | H4: =start_year -> 2020 | I4: =IF(I1="","",H4+1) -> 2021 | J4: 2022 | K4: 2023 | L4: 2024 | M4: 2025 | N4: 2026 | O4: 2027 | P4: 2028 | Q4: 2029 | R4: 2030 | S4: 2031 | T4: 2032 | U4: 2033 | V4: 2034 | W4: 2035 | X4: 2036 | Y4: 2037 | Z4: 2038 | AA4: 2039 | AB4: 2040 | AC4: 2041 | AD4: 2042 | AE4: 2043 | AF4: 2044 | AG4: 2045 | AH4: 2046 | AI4: 2047 | AJ4: 2048 | AK4: =IF(AK1="","",AJ4+1) -> 2049 | AL4: =IF(AL1="","",AK4+1) ->  | AM4: =IF(AM1="","",AL4+1) ->  | AN4: =IF(AN1="","",AM4+1) ->  | AO4: =IF(AO1="","",AN4+1) ->  | AP4: =IF(AP1="","",AO4+1) ->  | AQ4: =IF(AQ1="","",AP4+1) ->  | AR4: =IF(AR1="","",AQ4+1) ->  | AS4: =IF(AS1="","",AR4+1) ->  | AT4: =IF(AT1="","",AS4+1) ->  | AU4: =IF(AU1="","",AT4+1) ->  | AV4: =IF(AV1="","",AU4+1) ->  | AW4: =IF(AW1="","",AV4+1) ->  | AX4: =IF(AX1="","",AW4+1) ->  | AY4: =IF(AY1="","",AX4+1) ->  | AZ4: =IF(AZ1="","",AY4+1) ->  | BA4: =IF(BA1="","",AZ4+1) ->  | BB4: =IF(BB1="","",BA4+1) ->  | BC4: =IF(BC1="","",BB4+1) ->  | BD4: =IF(BD1="","",BC4+1) ->  | BE4: =IF(BE1="","",BD4+1) ->  | BF4: =IF(BF1="","",BE4+1) ->  | BG4: =IF(BG1="","",BF4+1) ->  | BH4: =IF(BH1="","",BG4+1) ->  | BI4: =IF(BI1="","",BH4+1) ->  | BJ4: =IF(BJ1="","",BI4+1) ->  | BK4: =IF(BK1="","",BJ4+1) ->  | BL4: =IF(BL1="","",BK4+1) ->  | BM4: =IF(BM1="","",BL4+1) ->  | BN4: =IF(BN1="","",BM4+1) -> 
D6: Parameter | E6: Unit
D7: Expenditure by Treatment | E7: £ k | F7: =SUM(H7:BO7) -> 166971.6 | H7: =IF(H$1="","",H78+H149+H220+H291+H362+H433+H504+H575+H646+H717) -> 5565.72 | I7: 5565.72 | J7: 5565.72 | K7: 5565.72 | L7: 5565.72 | M7: 5565.72 | N7: 5565.72 | O7: 5565.72 | P7: 5565.72 | Q7: 5565.72 | R7: 5565.72 | S7: 5565.72 | T7: 5565.72 | U7: 5565.72 | V7: 5565.72 | W7: 5565.72 | X7: 5565.72 | Y7: 5565.72 | Z7: 5565.72 | AA7: 5565.72 | AB7: 5565.72 | AC7: 5565.72 | AD7: 5565.72 | AE7: 5565.72 | AF7: 5565.72 | AG7: 5565.72 | AH7: 5565.72 | AI7: 5565.72 | AJ7: 5565.72 | AK7: 5565.72 | AN7: =IF(AN$1="","",AN78+AN149+AN220+AN291+AN362+AN433+AN504+AN575+AN646+AN717) -> 
D8: Percentage in poor condition | E8: % | H8: =IF(H1="","",(D1_Length*H79+D2_Length*H150+D3_Length*H221+D4_Length*H292+D5_Length*H363+D6_Length*H434+D7_Length*H505+D8_Length*H576+D9_Length*H647+D10_Length*H718)/County_Length) -> 0.3349769902 | I8: =IF(I1="","",(D1_Length*I79+D2_Length*I150+D3_Length*I221+D4_Length*I292+D5_Length*I363+D6_Length*I434+D7_Length*I505+D8_Length*I576+D9_Length*I647+D10_Length*I718)/County_Length) -> 0.3797468859 | J8: 0.420630636 | K8: 0.4574185601 | L8: 0.4900315285 | M8: 0.518712614 | N8: 0.5438007154 | O8: 0.5655000066 | P8: 0.5842063136 | Q8: 0.6001890858 | R8: 0.6138441491 | S8: 0.6254673295 | T8: 0.635354453 | U8: 0.6436055195 | V8: 0.6505816302 | W8: 0.656513336 | X8: 0.6614311872 | Y8: 0.6655657347 | Z8: 0.6690169784 | AA8: 0.6718460196 | AB8: 0.6742528582 | AC8: 0.6762680449 | AD8: 0.6779263044 | AE8: 0.6792234626 | AF8: 0.6803942443 | AG8: 0.6813344753 | AH8: 0.682113605 | AI8: 0.6827621842 | AJ8: 0.6832802126 | AK8: 0.6837024152 | AN8: =IF(AN1="","",(D1_Length*AN79+D2_Length*AN150+D3_Length*AN221+D4_Length*AN292+D5_Length*AN363+D6_Length*AN434+D7_Length*AN505+D8_Length*AN576+D9_Length*AN647+D10_Length*AN718)/County_Length) -> 
C10: Treatment and Condition Impacts | D10: Vehicle operating costs | E10: £ k | F10: =SUM(H10:BO10) -> 117665991.9 | H10: =IF(H$1="","",H81+H152+H223+H294+H365+H436+H507+H578+H649+H720) -> 1996685.985 | I10: 2059583.091 | J10: 2125322.913 | K10: 2205141.292 | L10: 2296840.623 | M10: 2414800.819 | N10: 2552164.699 | O10: 2696017.3 | P10: 2832519.484 | Q10: 2988513.477 | R10: 3174347.589 | S10: 3339253.154 | T10: 3507018.412 | U10: 3672762.579 | V10: 3837696.365 | W10: 4000138.721 | X10: 4159246.042 | Y10: 4312449.429 | Z10: 4474034.628 | AA10: 4631448.121 | AB10: 4785397.356 | AC10: 4945303.958 | AD10: 5095910.658 | AE10: 5241868.141 | AF10: 5386437.099 | AG10: 5524461.709 | AH10: 5659267.547 | AI10: 5789089.726 | AJ10: 5918293.43 | AK10: 6043977.536 | AN10: =IF(AN$1="","",AN81+AN152+AN223+AN294+AN365+AN436+AN507+AN578+AN649+AN720) -> 
D11: Travel time | E11: £ k | F11: 29946899.97 | H11: =IF(H$1="","",H82+H153+H224+H295+H366+H437+H508+H579+H650+H721) -> 674849.3609 | I11: 694645.7872 | J11: 710880.3594 | K11: 727054.0679 | L11: 744229.9988 | M11: 762359.7258 | N11: 781419.8346 | O11: 801367.079 | P11: 822257.0553 | Q11: 843744.2934 | R11: 866256.1107 | S11: 889072.6204 | T11: 913512.5757 | U11: 938255.8324 | V11: 963546.5071 | W11: 989589.8734 | X11: 1016712.893 | Y11: 1043650.289 | Z11: 1071182.654 | AA11: 1099157.521 | AB11: 1127500.859 | AC11: 1156513.403 | AD11: 1184969.504 | AE11: 1213898.176 | AF11: 1243208.86 | AG11: 1273034.772 | AH11: 1303431.705 | AI11: 1333124.516 | AJ11: 1363307.856 | AK11: 1394165.88 | AN11: =IF(AN$1="","",AN82+AN153+AN224+AN295+AN366+AN437+AN508+AN579+AN650+AN721) -> 
D12: Carbon (vehicle fuel) | E12: £ k | F12: 4033502.452 | H12: =IF(H$1="","",H83+H154+H225+H296+H367+H438+H509+H580+H651+H722) -> 68658.44301 | I12: 69341.17372 | J12: 70687.32397 | K12: 71294.4188 | L12: 72007.1366 | M12: 72760.48326 | N12: 73811.44512 | O12: 75047.13849 | P12: 77208.12261 | Q12: 78739.43186 | R12: 80439.17937 | S12: 87647.1553 | T12: 96241.97353 | U12: 104126.9609 | V12: 113026.2709 | W12: 121341.537 | X12: 130812.7715 | Y12: 139262.3398 | Z12: 149028.4708 | AA12: 157969.2971 | AB12: 167858.3602 | AC12: 177181.4762 | AD12: 187499.3629 | AE12: 196694.0267 | AF12: 207284.5154 | AG12: 216924.0419 | AH12: 227486.6423 | AI12: 237205.0835 | AJ12: 248117.4982 | AK12: 257800.3711 | AN12: =IF(AN$1="","",AN83+AN154+AN225+AN296+AN367+AN438+AN509+AN580+AN651+AN722) -> 
D13: Roadworks Accidents | E13: £ k | F13: 2829.008583 | H13: =IF(H$1="","",H84+H155+H226+H297+H368+H439+H510+H581+H652+H723) -> 89.74105422 | I13: 91.06749791 | J13: 89.89123776 | K13: 90.67269486 | L13: 91.4515375 | M13: 92.22866817 | N13: 93.00450091 | O13: 93.75608644 | P13: 94.50722677 | Q13: 91.62821257 | R13: 90.54543995 | S13: 91.25160207 | T13: 92.07938479 | U13: 92.9073011 | V13: 93.73530547 | W13: 94.56334322 | X13: 93.43370329 | Y13: 94.15348798 | Z13: 94.8732634 | AA13: 95.58120181 | AB13: 96.30071697 | AC13: 97.02007868 | AD13: 97.63765282 | AE13: 96.39386428 | AF13: 96.99958999 | AG13: 97.60514729 | AH13: 98.21051406 | AI13: 98.73340755 | AJ13: 99.25614477 | AK13: 99.77871637 | AN13: =IF(AN$1="","",AN84+AN155+AN226+AN297+AN368+AN439+AN510+AN581+AN652+AN723) -> 
D14: Carbon (vehicles in roadworks) | E14: £ k | F14: 226.8693981 | H14: =IF(H$1="","",H85+H156+H227+H298+H369+H440+H511+H582+H653+H724) -> 5.505594084 | I14: 5.600742139 | J14: 5.775429261 | K14: 5.832276099 | L14: 5.888826669 | M14: 5.945577473 | N14: 6.001147333 | O14: 6.053984332 | P14: 6.106308914 | Q14: 6.859187766 | R14: 7.396147767 | S14: 7.456842645 | T14: 7.526852119 | U14: 7.596467668 | V14: 7.66573919 | W14: 7.734711194 | X14: 8.132149895 | Y14: 8.195165389 | Z14: 8.258002923 | AA14: 8.678392914 | AB14: 8.743518504 | AC14: 8.808523127 | AD14: 8.867784601 | AE14: 8.734652634 | AF14: 8.789080843 | AG14: 8.843448774 | AH14: 8.897762689 | AI14: 8.944751608 | AJ14: 8.991704809 | AK14: 9.038624769 | AN14: =IF(AN$1="","",AN85+AN156+AN227+AN298+AN369+AN440+AN511+AN582+AN653+AN724) -> 
D15: Roadworks time delays | E15: £ k | F15: 101028.8317 | H15: =IF(H$1="","",H86+H157+H228+H299+H370+H441+H512+H583+H654+H725) -> 3374.758638 | I15: 3429.663825 | J15: 2962.019181 | K15: 2991.225503 | L15: 3020.251656 | M15: 3049.093627 | N15: 3077.57602 | O15: 3104.699826 | P15: 3131.545636 | Q15: 3394.15729 | R15: 3468.012382 | S15: 3496.438317 | T15: 3529.279275 | U15: 3561.908616 | V15: 3594.352906 | W15: 3626.636067 | X15: 3172.963403 | Y15: 3197.500854 | Z15: 3221.960599 | AA15: 3304.579852 | AB15: 3329.32854 | AC15: 3354.025586 | AD15: 3375.636335 | AE15: 3545.279479 | AF15: 3567.319546 | AG15: 3589.332529 | AH15: 3611.321037 | AI15: 3630.331996 | AJ15: 3649.326708 | AK15: 3668.306464 | AN15: =IF(AN$1="","",AN86+AN157+AN228+AN299+AN370+AN441+AN512+AN583+AN654+AN725) -> 
D16: Accidents | E16: £ k | F16: 4115478.078 | H16: =IF(H$1="","",H87+H158+H229+H300+H371+H442+H513+H584+H655+H726) -> 137182.6026 | I16: 137182.6026 | J16: 137182.6026 | K16: 137182.6026 | L16: 137182.6026 | M16: 137182.6026 | N16: 137182.6026 | O16: 137182.6026 | P16: 137182.6026 | Q16: 137182.6026 | R16: 137182.6026 | S16: 137182.6026 | T16: 137182.6026 | U16: 137182.6026 | V16: 137182.6026 | W16: 137182.6026 | X16: 137182.6026 | Y16: 137182.6026 | Z16: 137182.6026 | AA16: 137182.6026 | AB16: 137182.6026 | AC16: 137182.6026 | AD16: 137182.6026 | AE16: 137182.6026 | AF16: 137182.6026 | AG16: 137182.6026 | AH16: 137182.6026 | AI16: 137182.6026 | AJ16: 137182.6026 | AK16: 137182.6026 | AN16: =IF(AN$1="","",AN87+AN158+AN229+AN300+AN371+AN442+AN513+AN584+AN655+AN726) -> 
D17: Carbon (Embodied in materials) | E17: £ k | F17: 4589.641988 | H17: =IF(H$1="","",H88+H159+H230+H301+H372+H443+H514+H585+H656+H727) -> 83.66850652 | I17: 84.88109357 | J17: 87.30626767 | K17: 88.51885472 | L17: 89.73144177 | M17: 90.94402883 | N17: 92.15661588 | O17: 93.36920293 | P17: 95.79437703 | Q17: 97.00696408 | R17: 98.21955113 | S17: 106.7076605 | T17: 116.4083569 | U17: 124.8964663 | V17: 134.5971627 | W17: 143.085272 | X17: 152.7859684 | Y17: 161.2740778 | Z17: 170.9747742 | AA17: 179.4628835 | AB17: 189.16358 | AC17: 197.6516893 | AD17: 207.3523857 | AE17: 215.8404951 | AF17: 225.5411915 | AG17: 234.0293008 | AH17: 243.7299973 | AI17: 252.2181066 | AJ17: 261.918803 | AK17: 270.4069124 | AN17: =IF(AN$1="","",AN88+AN159+AN230+AN301+AN372+AN443+AN514+AN585+AN656+AN727) -> 
D18: Total HMAT costs | E18: £ k | F18: 155870546.7 | H18: =IF(H4="","",SUM(H10:H17)) -> 2880930.065 | I18: =IF(I4="","",SUM(I10:I17)) -> 2964363.868 | J18: 3047218.191 | K18: 3143848.631 | L18: 3253467.685 | M18: 3390341.842 | N18: 3547847.32 | O18: 3712912 | P18: 3872495.218 | Q18: 4051769.457 | R18: 4261889.655 | S18: 4456857.387 | T18: 4657700.858 | U18: 4856115.284 | V18: 5055282.096 | W18: 5252124.754 | X18: 5447381.624 | Y18: 5636005.784 | Z18: 5834924.422 | AA18: 6029345.843 | AB18: 6221562.714 | AC18: 6419838.946 | AD18: 6609251.622 | AE18: 6793509.195 | AF18: 6978011.727 | AG18: 7155532.936 | AH18: 7331330.657 | AI18: 7500592.156 | AJ18: 7670920.88 | AK18: 7837173.921
C20: Network Benefits | D20: Change in accident costs | E20: £ k | F20: =SUM(H20:BO20) -> -1257000.728 | H20: =IF(H$1="","",H91+H162+H233+H304+H375+H446+H517+H588+H659+H730) -> -41983.30182 | I20: -41703.99259 | J20: -41812.57865 | K20: -41919.52721 | L20: -42021.72761 | M20: -42117.88451 | N20: -42204.42693 | O20: -42302.01865 | P20: -42389.6055 | Q20: -42466.74768 | R20: -42533.01482 | S20: -42587.98118 | T20: -42506.74905 | U20: -42408.9905 | V20: -42294.15776 | W20: -42161.69378 | X20: -42011.03011 | Y20: -41945.96147 | Z20: -41865.17961 | AA20: -41768.16801 | AB20: -41654.39586 | AC20: -41523.31739 | AD20: -41500.39871 | AE20: -41463.4518 | AF20: -41411.99821 | AG20: -41345.54551 | AH20: -41263.63901 | AI20: -41279.10698 | AJ20: -41282.0678 | AK20: -41272.06899 | AN20: =IF(AN$1="","",AN91+AN162+AN233+AN304+AN375+AN446+AN517+AN588+AN659+AN730) -> 
D21: Change in travel time costs | E21: £ k | F21: =SUM(H21:BO21) -> 12312016.74 | H21: =IF(H$1="","",H92+H163+H234+H305+H376+H447+H518+H589+H660+H731) -> 282988.0325 | I21: 289502.3457 | J21: 294802.4808 | K21: 300216.4379 | L21: 306200.5839 | M21: 312730.1687 | N21: 319769.2777 | O21: 327404.7752 | P21: 335544.3976 | Q21: 344027.9382 | R21: 353036.946 | S21: 362246.5081 | T21: 372280.0377 | U21: 382503.6178 | V21: 393019.5369 | W21: 403913.5144 | X21: 415325.7045 | Y21: 426794.4961 | Z21: 438563.6968 | AA21: 450562.9783 | AB21: 462756.8966 | AC21: 475276.486 | AD21: 487606.3548 | AE21: 500171.3825 | AF21: 512929.8753 | AG21: 525939.9122 | AH21: 539226.1081 | AI21: 552219.9645 | AJ21: 565452.0286 | AK21: 579004.2546 | AN21: =IF(AN$1="","",AN92+AN163+AN234+AN305+AN376+AN447+AN518+AN589+AN660+AN731) -> 
D22: Change in cost of CO2 emissions | E22: £ k | F22: =SUM(H22:BO22) -> 3108683.766 | H22: =IF(H$1="","",H93+H164+H235+H306+H377+H448+H519+H590+H661+H732) -> 52910.13014 | I22: 53437.02565 | J22: 54478.42549 | K22: 54947.84559 | L22: 55497.88641 | M22: 56078.30766 | N22: 56887.64765 | O22: 57839.16186 | P22: 59504.09148 | Q22: 60682.28395 | R22: 61989.62555 | S22: 67546.77984 | T22: 74172.95361 | U22: 80250.80712 | V22: 87110.93634 | W22: 93519.57201 | X22: 100819.8078 | Y22: 107332.2034 | Z22: 114860.2799 | AA22: 121750.7843 | AB22: 129372.855 | AC22: 136557.148 | AD22: 144510.7819 | AE22: 151596.9436 | AF22: 159760.2694 | AG22: 167189.0973 | AH22: 175330.2609 | AI22: 182820.9464 | AJ22: 191233.1617 | AK22: 198695.7459 | AN22: =IF(AN$1="","",AN93+AN164+AN235+AN306+AN377+AN448+AN519+AN590+AN661+AN732) -> 
D23: Total Network Benefits costs | E23: £ k | F23: =SUM(H23:BO23) -> 14163699.78 | H23: =IF(H4="","",SUM(H20:H22)) -> 293914.8608 | I23: =IF(I4="","",SUM(I20:I22)) -> 301235.3788 | J23: 307468.3277 | K23: 313244.7563 | L23: 319676.7427 | M23: 326690.5918 | N23: 334452.4984 | O23: 342941.9184 | P23: 352658.8836 | Q23: 362243.4744 | R23: 372493.5567 | S23: 387205.3068 | T23: 403946.2423 | U23: 420345.4344 | V23: 437836.3155 | W23: 455271.3926 | X23: 474134.4822 | Y23: 492180.738 | Z23: 511558.7971 | AA23: 530545.5946 | AB23: 550475.3557 | AC23: 570310.3166 | AD23: 590616.738 | AE23: 610304.8742 | AF23: 631278.1466 | AG23: 651783.464 | AH23: 673292.73 | AI23: 693761.8039 | AJ23: 715403.1224 | AK23: 736427.9315
C25: Public Income | D25: Congestion charge | E25: £ k | F25: =SUM(H25:BO25) -> 2315743.731 | H25: =IF(H$1="","",H96+H167+H238+H309+H380+H451+H522+H593+H664+H735) -> 138442.3475 | I25: 137360.7221 | J25: 132542.3838 | K25: 127177.8918 | L25: 121506.1707 | M25: 115717.8808 | N25: 109952.4098 | O25: 104310.0412 | P25: 98866.41457 | Q25: 93660.90654 | R25: 88713.92188 | S25: 84035.54606 | T25: 79627.10363 | U25: 75482.67048 | V25: 71590.45719 | W25: 67934.02457 | X25: 64502.77841 | Y25: 61281.86355 | Z25: 58253.09796 | AA25: 55408.30214 | AB25: 52731.44268 | AC25: 50211.79242 | AD25: 47835.631 | AE25: 45597.6151 | AF25: 43482.1363 | AG25: 41485.11996 | AH25: 39596.10135 | AI25: 37808.62691 | AJ25: 36116.65416 | AK25: 34511.67664 | AN25: =IF(AN$1="","",AN96+AN167+AN238+AN309+AN380+AN451+AN522+AN593+AN664+AN735) -> 
D26: Tolls | E26: £ k | F26: =SUM(H26:BO26) -> 484167.105 | H26: =IF(H$1="","",H97+H168+H239+H310+H381+H452+H523+H594+H665+H736) -> 29238.09998 | I26: 28966.81673 | J26: 27859.72047 | K26: 26667.68785 | L26: 25433.32412 | M26: 24190.52106 | N26: 22963.88398 | O26: 21770.95154 | P26: 20624.84573 | Q26: 19532.09015 | R26: 18495.78375 | S26: 17517.18778 | T26: 16596.00069 | U26: 15730.62568 | V26: 14918.41583 | W26: 14155.88942 | X26: 13440.69098 | Y26: 12769.69459 | Z26: 12139.16939 | AA26: 11547.28937 | AB26: 10990.76671 | AC26: 10467.33153 | AD26: 9974.160813 | AE26: 9510.036655 | AF26: 9071.800282 | AG26: 8658.501189 | AH26: 8267.980495 | AI26: 7898.855431 | AJ26: 7549.83238 | AK26: 7219.150449 | AN26: =IF(AN$1="","",AN97+AN168+AN239+AN310+AN381+AN452+AN523+AN594+AN665+AN736) -> 
D27: Total Public Income | E27: £ k | F27: =SUM(H27:BO27) -> 2799910.836 | H27: =IF(H4="","",SUM(H25:H26)) -> 167680.4475 | I27: =IF(I4="","",SUM(I25:I26)) -> 166327.5388 | J27: 160402.1043 | K27: 153845.5796 | L27: 146939.4948 | M27: 139908.4019 | N27: 132916.2937 | O27: 126080.9927 | P27: 119491.2603 | Q27: 113192.9967 | R27: 107209.7056 | S27: 101552.7338 | T27: 96223.10432 | U27: 91213.29615 | V27: 86508.87302 | W27: 82089.91399 | X27: 77943.46938 | Y27: 74051.55814 | Z27: 70392.26735 | AA27: 66955.5915 | AB27: 63722.2094 | AC27: 60679.12395 | AD27: 57809.79181 | AE27: 55107.65175 | AF27: 52553.93658 | AG27: 50143.62115 | AH27: 47864.08185 | AI27: 45707.48234 | AJ27: 43666.48654 | AK27: 41730.82709
C29: Economic Impacts | D29: aGVA | E29: £ k | F29: =SUM(H29:BO29) -> 207560275.3 | H29: =IF(H$1="","",H100+H171+H242+H313+H384+H455+H526+H597+H668+H739) -> 5708871.345 | I29: 5785807.815 | J29: 5861558.903 | K29: 5937805.262 | L29: 6014674.999 | M29: 6092271.28 | N29: 6170674.952 | O29: 6249952.19 | P29: 6330162.856 | Q29: 6411350.35 | R29: 6493550.173 | S29: 6576794.278 | T29: 6661110.792 | U29: 6746523.723 | V29: 6833052.657 | W29: 6920712.451 | X29: 7009523.422 | Y29: 7099501.037 | Z29: 7190655.576 | AA29: 7283008.191 | AB29: 7376569.453 | AC29: 7471355.477 | AD29: 7567376.911 | AE29: 7664655.849 | AF29: 7763197.398 | AG29: 7863024.019 | AH29: 7964146.723 | AI29: 8066582.504 | AJ29: 8170348.579 | AK29: 8275456.166 | AN29: =IF(AN$1="","",AN100+AN171+AN242+AN313+AN384+AN455+AN526+AN597+AN668+AN739) -> 
D30: Per Capita aGVA | E30: £ | H30: =IFERROR((H29*1000)/H35,"") -> 59484.7323 | I30: =IF(I$1="","",IFERROR((I29*1000)/I35,"")) -> 59768.71363 | J30: =IF(J$1="","",IFERROR((J29*1000)/J35,"")) -> 60046.08781 | K30: 60322.92474 | L30: 60599.69484 | M30: 60876.76344 | N30: 61154.40404 | O30: 61432.82904 | P30: 61712.2216 | Q30: 61992.70108 | R30: 62274.35523 | S30: 62557.25647 | T30: 62841.46142 | U30: 63127.01056 | V30: 63413.92778 | W30: 63702.22 | X30: 63991.91162 | Y30: 64283.00988 | Z30: 64575.50447 | AA30: 64869.42015 | AB30: 65164.74653 | AC30: 65461.49075 | AD30: 65759.64207 | AE30: 66059.22549 | AF30: 66360.21203 | AG30: 66662.62668 | AH30: 66966.45823 | AI30: 67271.71351 | AJ30: 67578.39942 | AK30: 67886.5043
D31: Tax Receipts from income | E31: £ k | F31: =SUM(H31:BO31) -> 33329071.89 | H31: =IF(H$1="","",H102+H173+H244+H315+H386+H457+H528+H599+H670+H741) -> 916718.3904 | I31: 929071.7131 | J31: 941233.9688 | K31: 953476.0033 | L31: 965818.3193 | M31: 978277.4291 | N31: 990866.274 | O31: 1003595.448 | P31: 1016474.537 | Q31: 1029510.49 | R31: 1042708.995 | S31: 1056075.171 | T31: 1069613.526 | U31: 1083327.909 | V31: 1097221.46 | W31: 1111296.565 | X31: 1125556.482 | Y31: 1140003.693 | Z31: 1154639.852 | AA31: 1169468.35 | AB31: 1184490.888 | AC31: 1199710.051 | AD31: 1215127.552 | AE31: 1230746.935 | AF31: 1246569.025 | AG31: 1262597.425 | AH31: 1278833.904 | AI31: 1295281.192 | AJ31: 1311942.052 | AK31: 1328818.287 | AN31: =IF(AN$1="","",AN102+AN173+AN244+AN315+AN386+AN457+AN528+AN599+AN670+AN741) -> 
D32: VAT | E32: £ k | F32: =IFERROR(SUM(H32:BO32),0) -> 5939749.739 | H32: =IF(H$1="","",H103+H174+H245+H316+H387+H458+H529+H600+H671+H742) -> 163379.1393 | I32: 165580.3637 | J32: 167747.2342 | K32: 169928.4274 | L32: 172127.5685 | M32: 174347.5778 | N32: 176590.7447 | O32: 178858.944 | P32: 181153.8721 | Q32: 183476.7602 | R32: 185828.6161 | S32: 188210.3475 | T32: 190622.7539 | U32: 193066.5185 | V32: 195542.1996 | W32: 198050.2217 | X32: 200591.164 | Y32: 203165.4683 | Z32: 205773.4302 | AA32: 208415.6525 | AB32: 211092.4388 | AC32: 213804.2499 | AD32: 216551.3916 | AE32: 219334.4939 | AF32: 222153.7062 | AG32: 225009.6687 | AH32: 227902.698 | AI32: 230833.28 | AJ32: 233801.9067 | AK32: 236808.901 | AN32: =IF(AN$1="","",AN103+AN174+AN245+AN316+AN387+AN458+AN529+AN600+AN671+AN742) -> 
D33: NIC | E33: £ k | F33: =SUM(H33:BO33) -> 5158104.35 | H33: =IF(H$1="","",H104+H175+H246+H317+H388+H459+H530+H601+H672+H743) -> 141879.1509 | I33: 143790.7036 | J33: 145672.4234 | K33: 147566.581 | L33: 149476.3246 | M33: 151404.1902 | N33: 153352.1661 | O33: 155321.8802 | P33: 157314.8057 | Q33: 159332.0117 | R33: 161374.3736 | S33: 163442.6794 | T33: 165537.6235 | U33: 167659.7993 | V33: 169809.6914 | W33: 171987.6687 | X33: 174194.2339 | Y33: 176429.771 | Z33: 178694.5363 | AA33: 180989.0536 | AB33: 183313.5864 | AC33: 185668.5348 | AD33: 188054.1646 | AE33: 190471.0227 | AF33: 192919.2388 | AG33: 195399.369 | AH33: 197911.6882 | AI33: 200456.6182 | AJ33: 203034.5865 | AK33: 205645.8733 | AN33: =IF(AN$1="","",AN104+AN175+AN246+AN317+AN388+AN459+AN530+AN601+AN672+AN743) -> 
D34: Total tax receipts | E34: £ k | F34: =IFERROR(SUM(H34:BO34),0) -> 44426925.98 | H34: =IF(H$1="","",H105+H176+H247+H318+H389+H460+H531+H602+H673+H744) -> 1221976.681 | I34: 1238442.78 | J34: 1254653.626 | K34: 1270971.012 | L34: 1287422.212 | M34: 1304029.197 | N34: 1320809.185 | O34: 1337776.273 | P34: 1354943.215 | Q34: 1372319.262 | R34: 1389911.984 | S34: 1407728.198 | T34: 1425773.904 | U34: 1444054.226 | V34: 1462573.351 | W34: 1481334.455 | X34: 1500341.88 | Y34: 1519598.933 | Z34: 1539107.818 | AA34: 1558873.056 | AB34: 1578896.913 | AC34: 1599182.836 | AD34: 1619733.109 | AE34: 1640552.452 | AF34: 1661641.97 | AG34: 1683006.462 | AH34: 1704648.291 | AI34: 1726571.09 | AJ34: 1748778.545 | AK34: 1771273.062 | AN34: =IF(AN$1="","",AN105+AN176+AN247+AN318+AN389+AN460+AN531+AN602+AN673+AN744) -> 
D35: Employment | E35: No. | H35: =IF(H$1="","",H106+H177+H248+H319+H390+H461+H532+H603+H674+H745) -> 95972.044 | I35: 96803.28492 | J35: 97617.66531 | K35: 98433.6434 | L35: 99252.56248 | M35: 100075.4793 | N35: 100903.1982 | O35: 101736.3564 | P35: 102575.5141 | Q35: 103421.0518 | R35: 104273.2622 | S35: 105132.3963 | T35: 105998.6614 | U35: 106872.2194 | V35: 107753.1845 | W35: 108641.6211 | X35: 109537.6469 | Y35: 110441.3289 | Z35: 111352.6814 | AA35: 112271.8251 | AB35: 113198.7746 | AC35: 114133.5981 | AD35: 115076.3093 | AE35: 116027.0317 | AF35: 116985.7232 | AG35: 117952.5082 | AH35: 118927.3994 | AI35: 119910.4658 | AJ35: 120901.777 | AK35: 121901.3448 | AN35: =IF(AN$1="","",AN106+AN177+AN248+AN319+AN390+AN461+AN532+AN603+AN674+AN745) -> 
D36: Total Economic Impacts | E36: £ k | F36: =SUM(H36:BO36) -> 251987201.3 | H36: =IF(H4="","",SUM(H29,H31:H33)) -> 6930848.026 | I36: =IF(I4="","",SUM(I29,I31:I33)) -> 7024250.595 | J36: 7116212.53 | K36: 7208776.274 | L36: 7302097.211 | M36: 7396300.477 | N36: 7491484.137 | O36: 7587728.463 | P36: 7685106.07 | Q36: 7783669.611 | R36: 7883462.157 | S36: 7984522.476 | T36: 8086884.696 | U36: 8190577.949 | V36: 8295626.008 | W36: 8402046.907 | X36: 8509865.302 | Y36: 8619099.97 | Z36: 8729763.394 | AA36: 8841881.248 | AB36: 8955466.366 | AC36: 9070538.313 | AD36: 9187110.019 | AE36: 9305208.301 | AF36: 9424839.368 | AG36: 9546030.482 | AH36: 9668795.014 | AI36: 9793153.594 | AJ36: 9919127.123 | AK36: 10046729.23
A39: ="Discounted costs for " & IF('Economic Data'!C14="", "network",'Economic Data'!C14) -> Discounted costs for Case Study - Example | F39: Analysis period total | H39: =H4 -> 2020 | I39: 2021 | J39: 2022 | K39: 2023 | L39: 2024 | M39: 2025 | N39: 2026 | O39: 2027 | P39: 2028 | Q39: 2029 | R39: 2030 | S39: 2031 | T39: 2032 | U39: 2033 | V39: 2034 | W39: 2035 | X39: 2036 | Y39: 2037 | Z39: 2038 | AA39: 2039 | AB39: 2040 | AC39: 2041 | AD39: 2042 | AE39: 2043 | AF39: 2044 | AG39: 2045 | AH39: 2046 | AI39: 2047 | AJ39: 2048 | AK39: 2049 | AN39: =AN4 -> 
D41: Parameter | E41: Unit
D42: Expenditure by Treatment | E42: £ k | F42: =SUM(H42:BO42) -> 105947.7491 | H42: =IF(H$1="","",H113+H184+H255+H326+H397+H468+H539+H610+H681+H752) -> 5565.72 | I42: 5377.507246 | J42: 5195.659175 | K42: 5019.960556 | L42: 4850.203436 | M42: 4686.186894 | N42: 4527.716806 | O42: 4374.60561 | P42: 4226.672087 | Q42: 4083.741147 | R42: 3945.64362 | S42: 3812.216058 | T42: 3683.300539 | U42: 3558.744482 | V42: 3438.400466 | W42: 3322.126054 | X42: 3209.783627 | Y42: 3101.240219 | Z42: 2996.367362 | AA42: 2895.040929 | AB42: 2797.140994 | AC42: 2702.551685 | AD42: 2611.161049 | AE42: 2522.860917 | AF42: 2437.546779 | AG42: 2355.117661 | AH42: 2275.476001 | AI42: 2198.527537 | AJ42: 2124.181195 | AK42: 2052.348981 | AN42: =IF(AN$1="","",AN113+AN184+AN255+AN326+AN397+AN468+AN539+AN610+AN681+AN752) -> 
D43: Percentage in poor condition | E43: % | H43: =H8 -> 0.3349769902 | I43: =I8 -> 0.3797468859 | J43: 0.420630636 | K43: 0.4574185601 | L43: 0.4900315285 | M43: 0.518712614 | N43: 0.5438007154 | O43: 0.5655000066 | P43: 0.5842063136 | Q43: 0.6001890858 | R43: 0.6138441491 | S43: 0.6254673295 | T43: 0.635354453 | U43: 0.6436055195 | V43: 0.6505816302 | W43: 0.656513336 | X43: 0.6614311872 | Y43: 0.6655657347 | Z43: 0.6690169784 | AA43: 0.6718460196 | AB43: 0.6742528582 | AC43: 0.6762680449 | AD43: 0.6779263044 | AE43: 0.6792234626 | AF43: 0.6803942443 | AG43: 0.6813344753 | AH43: 0.682113605 | AI43: 0.6827621842 | AJ43: 0.6832802126 | AK43: 0.6837024152
C45: Treatment and Condition Impacts | D45: Vehicle operating costs | E45: £ k | F45: =SUM(H45:BO45) -> 67475683.9 | H45: =IF(H$1="","",H116+H187+H258+H329+H400+H471+H542+H613+H684+H755) -> 1996685.985 | I45: 1989935.354 | J45: 1984011.681 | K45: 1988911.103 | L45: 2001563.909 | M45: 2033197.493 | N45: 2076187.627 | O45: 2119045.228 | P45: 2151048.029 | Q45: 2192764.899 | R45: 2250354.727 | S45: 2287207.135 | T45: 2320886.212 | U45: 2348379.646 | V45: 2370858.931 | W45: 2387645.276 | X45: 2398661.781 | Y45: 2402913.12 | Z45: 2408646.381 | AA45: 2409074.095 | AB45: 2404977.455 | AC45: 2401295.708 | AD45: 2390749.699 | AE45: 2376063.522 | AF45: 2359028.554 | AG45: 2337659.339 | AH45: 2313721.762 | AI45: 2286761.313 | AJ45: 2258742.375 | AK45: 2228705.565 | AN45: =IF(AN$1="","",AN116+AN187+AN258+AN329+AN400+AN471+AN542+AN613+AN684+AN755) -> 
D46: Travel time | E46: £ k | F46: 17806092.81 | H46: =IF(H$1="","",H117+H188+H259+H330+H401+H472+H543+H614+H685+H756) -> 674849.3609 | I46: 671155.35 | J46: 663614.4222 | K46: 655761.1132 | L46: 648553.4481 | M46: 641886.4326 | N46: 635685.5389 | O46: 629867.2803 | P46: 624431.51 | Q46: 619081.3207 | R46: 614105.2544 | S46: 608966.4806 | T46: 604547.3653 | U46: 599924.6758 | V46: 595261.4861 | W46: 590676.9117 | X46: 586344.3359 | Y46: 581525.8855 | Z46: 576683.1141 | AA46: 571733.0389 | AB46: 566643.4664 | AC46: 561569.2574 | AD46: 555929.1903 | AE46: 550242.6039 | AF46: 544472.1892 | AG46: 538680.8312 | AH46: 532891.9825 | AI46: 526600.5042 | AJ46: 520312.3605 | AK46: 514096.0959 | AN46: =IF(AN$1="","",AN117+AN188+AN259+AN330+AN401+AN472+AN543+AN614+AN685+AN756) -> 
D47: Carbon (vehicle fuel) | E47: £ k | F47: 2236969.378 | H47: =IF(H$1="","",H118+H189+H260+H331+H402+H473+H544+H615+H686+H757) -> 68658.44301 | I47: 66996.30311 | J47: 65987.3733 | K47: 64303.48099 | L47: 62750.05952 | M47: 61262.37452 | N47: 60045.65816 | O47: 58986.37248 | P47: 58632.74054 | Q47: 57773.55989 | R47: 57024.84761 | S47: 60033.54334 | T47: 63691.33067 | U47: 66579.21125 | V47: 69825.57199 | W47: 72427.6251 | X47: 75440.49864 | Y47: 77597.50208 | Z47: 80231.13739 | AA47: 82168.62878 | AB47: 84359.88525 | AC47: 86034.16938 | AD47: 87965.44438 | AE47: 89158.57653 | AF47: 90781.73228 | AG47: 91790.75525 | AH47: 93005.10897 | AI47: 93698.91191 | AJ47: 94695.12011 | AK47: 95063.41119 | AN47: =IF(AN$1="","",AN118+AN189+AN260+AN331+AN402+AN473+AN544+AN615+AN686+AN757) -> 
D48: Roadworks Accidents | E48: £ k | F48: 1780.269124 | H48: =IF(H$1="","",H119+H190+H261+H332+H403+H474+H545+H616+H687+H758) -> 89.74105422 | I48: 87.98792069 | J48: 83.91443232 | K48: 81.78157573 | L48: 79.69473156 | M48: 77.65406382 | N48: 75.65922141 | O48: 73.69143645 | P48: 71.76988015 | Q48: 67.23045749 | R48: 64.18936588 | S48: 62.50239371 | T48: 60.93659897 | U48: 59.40531416 | V48: 57.90796483 | W48: 56.44397243 | X48: 53.88376904 | Y48: 52.46267935 | Z48: 51.0760782 | AA48: 49.71710601 | AB48: 48.39745499 | AC48: 47.1101272 | AD48: 45.80676641 | AE48: 43.69395384 | AF48: 42.48166242 | AG48: 41.30132421 | AH48: 40.15215781 | AI48: 39.00090471 | AJ48: 37.88153846 | AK48: 36.79321757 | AN48: =IF(AN$1="","",AN119+AN190+AN261+AN332+AN403+AN474+AN545+AN616+AN687+AN758) -> 
D49: Carbon (vehicles in roadworks) | E49: £ k | F49: 137.0926966 | H49: =IF(H$1="","",H120+H191+H262+H333+H404+H475+H546+H617+H688+H759) -> 5.505594084 | I49: 5.411345062 | J49: 5.391425014 | K49: 5.260378885 | L49: 5.131772231 | M49: 5.006016693 | N49: 4.881937222 | O49: 4.758376961 | P49: 4.637201555 | Q49: 5.032798508 | R49: 5.243268301 | S49: 5.107532407 | T49: 4.981145021 | U49: 4.857212975 | V49: 4.735754081 | W49: 4.61677655 | X49: 4.68985892 | Y49: 4.566377128 | Z49: 4.445787864 | AA49: 4.514115458 | AB49: 4.39419411 | AC49: 4.277162528 | AD49: 4.160326739 | AE49: 3.959292553 | AF49: 3.849240655 | AG49: 3.742078724 | AH49: 3.637740573 | AI49: 3.533286389 | AJ49: 3.431723168 | AK49: 3.332976207 | AN49: =IF(AN$1="","",AN120+AN191+AN262+AN333+AN404+AN475+AN546+AN617+AN688+AN759) -> 
D50: Roadworks time delays | E50: £ k | F50: 63309.43966 | H50: =IF(H$1="","",H121+H192+H263+H334+H405+H476+H547+H618+H689+H760) -> 3374.758638 | I50: 3313.684856 | J50: 2765.0766 | K50: 2697.914024 | L50: 2631.974831 | M50: 2567.255017 | N50: 2503.610075 | O50: 2440.265999 | P50: 2378.131945 | Q50: 2490.398328 | R50: 2458.539224 | S50: 2394.870438 | T50: 2335.618079 | U50: 2277.499161 | V50: 2220.525773 | W50: 2164.705046 | X50: 1829.866752 | Y50: 1781.65956 | Z50: 1734.57838 | AA50: 1718.896014 | AB50: 1673.206942 | AC50: 1628.617232 | AD50: 1583.681916 | AE50: 1607.024255 | AF50: 1562.333044 | AG50: 1518.815253 | AH50: 1476.444081 | AI50: 1434.025582 | AJ50: 1392.781378 | AK50: 1352.681241 | AN50: =IF(AN$1="","",AN121+AN192+AN263+AN334+AN405+AN476+AN547+AN618+AN689+AN760) -> 
D51: Accidents | E51: £ k | F51: 2611376.06 | H51: =IF(H$1="","",H122+H193+H264+H335+H406+H477+H548+H619+H690+H761) -> 137182.6026 | I51: 132543.5774 | J51: 128061.4274 | K51: 123730.8478 | L51: 119546.7128 | M51: 115504.0703 | N51: 111598.1356 | O51: 107824.2856 | P51: 104178.0537 | Q51: 100655.1244 | R51: 97251.3279 | S51: 93962.63565 | T51: 90785.15522 | U51: 87715.12581 | V51: 84748.91383 | W51: 81883.00853 | X51: 79114.0179 | Y51: 76438.66464 | Z51: 73853.78226 | AA51: 71356.31136 | AB51: 68943.296 | AC51: 66611.8802 | AD51: 64359.30454 | AE51: 62182.90294 | AF51: 60080.09945 | AG51: 58048.40527 | AH51: 56085.41572 | AI51: 54188.80746 | AJ51: 52356.33571 | AK51: 50585.8316 | AN51: =IF(AN$1="","",AN122+AN193+AN264+AN335+AN406+AN477+AN548+AN619+AN690+AN761) -> 
D52: Carbon (Embodied in materials) | E52: £ k | F52: 2588.525673 | H52: =IF(H$1="","",H123+H194+H265+H336+H407+H478+H549+H620+H691+H762) -> 83.66850652 | I52: 82.01071843 | J52: 81.50133508 | K52: 79.83893533 | L52: 78.19576751 | M52: 76.57243196 | N52: 74.96946639 | O52: 73.38734951 | P52: 72.74735694 | Q52: 71.17701406 | R52: 69.62968767 | S52: 73.08895467 | T52: 77.03710638 | U52: 79.85931921 | V52: 83.15167612 | W52: 85.40625653 | X52: 88.11257122 | Y52: 89.86252567 | Z52: 92.04617427 | AA52: 93.34864009 | AB52: 95.06716186 | AC52: 95.97390923 | AD52: 97.27950255 | AE52: 97.83739556 | AF52: 98.7773738 | AG52: 99.02879405 | AH52: 99.64600438 | AI52: 99.62923984 | AJ52: 99.962448 | AK52: 99.71205003 | AN52: =IF(AN$1="","",AN123+AN194+AN265+AN336+AN407+AN478+AN549+AN620+AN691+AN762) -> 
D53: Total HMAT costs | E53: £ k | F53: 90197937.48 | H53: =IF(H39="","",SUM(H45:H52)) -> 2880930.065 | I53: =IF(I39="","",SUM(I45:I52)) -> 2864119.679 | J53: 2844610.787 | K53: 2835571.34 | L53: 2835209.127 | M53: 2854576.858 | N53: 2886176.081 | O53: 2918315.269 | P53: 2940817.62 | Q53: 2972908.743 | R53: 3021333.758 | S53: 3052705.364 | T53: 3082388.636 | U53: 3105020.28 | V53: 3123061.224 | W53: 3134943.993 | X53: 3141537.186 | Y53: 3140403.724 | Z53: 3141296.561 | AA53: 3136198.55 | AB53: 3126745.168 | AC53: 3117286.993 | AD53: 3100734.567 | AE53: 3079400.12 | AF53: 3056070.016 | AG53: 3027842.219 | AH53: 2997324.15 | AI53: 2962825.726 | AJ53: 2927640.249 | AK53: 2889943.423 | AL53: =IF(AL39="","",SUM(AL45:AL52)) ->  | AM53: =IF(AM39="","",SUM(AM45:AM52)) ->  | AN53: =IF(AN39="","",SUM(AN45:AN52)) ->  | AO53: =IF(AO39="","",SUM(AO45:AO52)) ->  | AP53: =IF(AP39="","",SUM(AP45:AP52)) ->  | AQ53: =IF(AQ39="","",SUM(AQ45:AQ52)) ->  | AR53: =IF(AR39="","",SUM(AR45:AR52)) ->  | AS53: =IF(AS39="","",SUM(AS45:AS52)) ->  | AT53: =IF(AT39="","",SUM(AT45:AT52)) ->  | AU53: =IF(AU39="","",SUM(AU45:AU52)) ->  | AV53: =IF(AV39="","",SUM(AV45:AV52)) ->  | AW53: =IF(AW39="","",SUM(AW45:AW52)) ->  | AX53: =IF(AX39="","",SUM(AX45:AX52)) ->  | AY53: =IF(AY39="","",SUM(AY45:AY52)) ->  | AZ53: =IF(AZ39="","",SUM(AZ45:AZ52)) ->  | BA53: =IF(BA39="","",SUM(BA45:BA52)) ->  | BB53: =IF(BB39="","",SUM(BB45:BB52)) ->  | BC53: =IF(BC39="","",SUM(BC45:BC52)) ->  | BD53: =IF(BD39="","",SUM(BD45:BD52)) ->  | BE53: =IF(BE39="","",SUM(BE45:BE52)) ->  | BF53: =IF(BF39="","",SUM(BF45:BF52)) ->  | BG53: =IF(BG39="","",SUM(BG45:BG52)) ->  | BH53: =IF(BH39="","",SUM(BH45:BH52)) ->  | BI53: =IF(BI39="","",SUM(BI45:BI52)) ->  | BJ53: =IF(BJ39="","",SUM(BJ45:BJ52)) ->  | BK53: =IF(BK39="","",SUM(BK45:BK52)) ->  | BL53: =IF(BL39="","",SUM(BL45:BL52)) ->  | BM53: =IF(BM39="","",SUM(BM45:BM52)) ->  | BN53: =IF(BN39="","",SUM(BN45:BN52)) ->  | BO53: =IF(BO39="","",SUM(BO45:BO52)) -> 
C55: Network Benefits | D55: Change in accident costs | E55: £ k | F55: =SUM(H55:BO55) -> -799005.5378 | H55: =IF(H$1="","",H126+H197+H268+H339+H410+H481+H552+H623+H694+H765) -> -41983.30182 | I55: -40293.71264 | J55: -39032.48958 | K55: -37809.01179 | L55: -36619.50792 | M55: -35462.1286 | N55: -34333.3285 | O55: -33249.00428 | P55: -32191.15628 | Q55: -31159.16806 | R55: -30152.45441 | S55: -29170.45516 | T55: -28130.25659 | U55: -27116.48465 | V55: -26128.5605 | W55: -25165.91949 | X55: -24228.00942 | Y55: -23372.44826 | Z55: -22538.5858 | AA55: -21725.95027 | AB55: -20934.0783 | AC55: -20162.51471 | AD55: -19469.93823 | AE55: -18794.78702 | AF55: -18136.68005 | AG55: -17495.2431 | AH55: -16870.13006 | AI55: -16305.75261 | AJ55: -15755.48036 | AK55: -15218.99929 | AN55: =IF(AN$1="","",AN126+AN197+AN268+AN339+AN410+AN481+AN552+AN623+AN694+AN765) -> 
D56: Change in travel time costs | E56: £ k | F56: =SUM(H56:BO56) -> 7318488.752 | H56: =IF(H$1="","",H127+H198+H269+H340+H411+H482+H553+H624+H695+H766) -> 282988.0325 | I56: 279712.4113 | J56: 275201.2704 | K56: 270778.0263 | L56: 266836.1189 | M56: 263310.4105 | N56: 260132.5135 | O56: 257337.1938 | P56: 254816.2932 | Q56: 252423.9535 | R56: 250274.5329 | S56: 248119.1931 | T56: 246368.7113 | U56: 244574.4017 | V56: 242800.3131 | W56: 241092.1875 | X56: 239520.7891 | Y56: 237811.5063 | Z56: 236105.6516 | AA56: 234362.897 | AB56: 232565.829 | AC56: 230780.4324 | AD56: 228760.8289 | AE56: 226720.502 | AF56: 224641.2981 | AG56: 222549.8904 | AH56: 220455.9461 | AI56: 218133.6464 | AJ56: 215807.221 | AK56: 213506.7506 | AN56: =IF(AN$1="","",AN127+AN198+AN269+AN340+AN411+AN482+AN553+AN624+AN695+AN766) -> 
D57: Change in cost of CO2 emissions | E57: £ k | F57: =SUM(H57:BO57) -> 1724055.68 | H57: =IF(H$1="","",H128+H199+H270+H341+H412+H483+H554+H625+H696+H767) -> 52910.13014 | I57: 51629.97647 | J57: 50856.19314 | K57: 49559.80852 | L57: 48363.20176 | M57: 47216.43029 | N57: 46278.13801 | O57: 45461.0584 | P57: 45188.09472 | Q57: 44524.4712 | R57: 43945.61181 | S57: 46265.87733 | T57: 49086.42189 | U57: 51312.69935 | V57: 53815.55021 | W57: 55820.95519 | X57: 58143.3792 | Y57: 59805.9094 | Z57: 61836.31117 | AA57: 63329.36326 | AB57: 65018.38331 | AC57: 66308.17764 | AD57: 67797.32447 | AE57: 68716.71661 | AF57: 69968.14971 | AG57: 70745.56314 | AH57: 71681.61548 | AI57: 72216.512 | AJ57: 72984.96618 | AK57: 73268.68971 | AN57: =IF(AN$1="","",AN128+AN199+AN270+AN341+AN412+AN483+AN554+AN625+AN696+AN767) -> 
D58: Total Network Benefits costs | E58: £ k | F58: =SUM(H58:BO58) -> 8243538.894 | H58: =IF(H39="","",SUM(H55:H57)) -> 293914.8608 | I58: =IF(I39="","",SUM(I55:I57)) -> 291048.6751 | J58: 287024.9739 | K58: 282528.823 | L58: 278579.8128 | M58: 275064.7122 | N58: 272077.323 | O58: 269549.2479 | P58: 267813.2316 | Q58: 265789.2567 | R58: 264067.6903 | S58: 265214.6152 | T58: 267324.8766 | U58: 268770.6165 | V58: 270487.3029 | W58: 271747.2232 | X58: 273436.1588 | Y58: 274244.9674 | Z58: 275403.3769 | AA58: 275966.31 | AB58: 276650.134 | AC58: 276926.0953 | AD58: 277088.2151 | AE58: 276642.4316 | AF58: 276472.7678 | AG58: 275800.2104 | AH58: 275267.4315 | AI58: 274044.4058 | AJ58: 273036.7068 | AK58: 271556.441
C60: Public Income | D60: Congestion charge | E60: £ k | F60: =SUM(H60:BO60) -> 1654086.331 | H60: =IF(H$1="","",H131+H202+H273+H344+H415+H486+H557+H628+H699+H770) -> 138442.3475 | I60: 132715.6735 | J60: 123729.7335 | K60: 114707.1718 | L60: 105885.6081 | M60: 97431.35057 | N60: 89446.35618 | O60: 81986.74948 | P60: 75080.29775 | Q60: 68721.90801 | R60: 62890.96826 | S60: 57559.78708 | T60: 52695.88728 | U60: 48263.93298 | V60: 44227.28081 | W60: 40549.18195 | X60: 37199.13363 | Y60: 34146.48598 | Z60: 31361.2042 | AA60: 28820.94365 | AB60: 26501.02413 | AC60: 24381.38538 | AD60: 22442.11646 | AE60: 20668.74385 | AF60: 19043.31179 | AG60: 17554.30361 | AH60: 16188.37785 | AI60: 14934.8705 | AJ60: 13784.07782 | AK60: 12726.11709 | AN60: =IF(AN$1="","",AN131+AN202+AN273+AN344+AN415+AN486+AN557+AN628+AN699+AN770) -> 
D61: Tolls | E61: £ k | F61: =SUM(H61:BO61) -> 346106.6039 | H61: =IF(H$1="","",H132+H203+H274+H345+H416+H487+H558+H629+H700+H771) -> 29238.09998 | I61: 27987.26254 | J61: 26007.34717 | K61: 24052.72653 | L61: 22163.67263 | M61: 20367.76962 | N61: 18681.13441 | O61: 17111.77111 | P61: 15662.7462 | Q61: 14331.2995 | R61: 13112.00907 | S61: 11998.32269 | T61: 10982.95607 | U61: 10058.22739 | V61: 9216.325637 | W61: 8449.517593 | X61: 7751.325944 | Y61: 7115.322089 | Z61: 6535.257067 | AA61: 6006.388273 | AB61: 5523.584394 | AC61: 5082.631623 | AD61: 4679.383837 | AE61: 4310.76299 | AF61: 3973.059651 | AG61: 3663.81871 | AH61: 3380.261888 | AI61: 3120.144596 | AJ61: 2881.426297 | AK61: 2662.048409 | AN61: =IF(AN$1="","",AN132+AN203+AN274+AN345+AN416+AN487+AN558+AN629+AN700+AN771) -> 
D62: Total Public Income | E62: £ k | F62: =SUM(H62:BO62) -> 2000192.935 | H62: =IF(H39="","",SUM(H60:H61)) -> 167680.4475 | I62: =IF(I39="","",SUM(I60:I61)) -> 160702.936 | J62: 149737.0807 | K62: 138759.8984 | L62: 128049.2807 | M62: 117799.1202 | N62: 108127.4906 | O62: 99098.52059 | P62: 90743.04394 | Q62: 83053.20751 | R62: 76002.97733 | S62: 69558.10976 | T62: 63678.84335 | U62: 58322.16036 | V62: 53443.60645 | W62: 48998.69954 | X62: 44950.45957 | Y62: 41261.80807 | Z62: 37896.46127 | AA62: 34827.33192 | AB62: 32024.60852 | AC62: 29464.017 | AD62: 27121.50029 | AE62: 24979.50684 | AF62: 23016.37144 | AG62: 21218.12232 | AH62: 19568.63974 | AI62: 18055.01509 | AJ62: 16665.50412 | AK62: 15388.16549
C64: Economic Impacts | D64: aGVA | E64: £ k | F64: =SUM(H64:BO64) -> 127480185.7 | H64: =IF(H$1="","",H135+H206+H277+H348+H419+H490+H561+H632+H703+H774) -> 5708871.345 | I64: 5590152.478 | J64: 5471827.957 | K64: 5355560.144 | L64: 5241441.78 | M64: 5129528.943 | N64: 5019848.05 | O64: 4912405.926 | P64: 4807198.825 | Q64: 4704206.325 | R64: 4603399.885 | S64: 4504747.051 | T64: 4408211.87 | U64: 4313755.286 | V64: 4221335.504 | W64: 4130908.336 | X64: 4042433.596 | Y64: 3955868.81 | Z64: 3871169.53 | AA64: 3788298.154 | AB64: 3707212.151 | AC64: 3627872.824 | AD64: 3550239.651 | AE64: 3474278.383 | AF64: 3399947.682 | AG64: 3327214.94 | AH64: 3256043.196 | AI64: 3186398.843 | AJ64: 3118248.998 | AK64: 3051559.193 | AN64: =IF(AN$1="","",AN135+AN206+AN277+AN348+AN419+AN490+AN561+AN632+AN703+AN774) -> 
D65: Per Capita aGVA | E65: £ | H65: =IFERROR((H64*1000)/H70,"") -> 59484.7323 | I65: =IFERROR((I64*1000)/I70,"") -> 57747.5494 | J65: 56053.66549 | K65: 54407.82195 | L65: 52809.13307 | M65: 51256.6013 | N65: 49749.14709 | O65: 48285.64831 | P65: 46864.97424 | Q65: 45485.96483 | R65: 44147.46203 | S65: 42848.32468 | T65: 41587.42961 | U65: 40363.67271 | V65: 39175.96983 | W65: 38023.2575 | X65: 36904.51373 | Y65: 35818.73606 | Z65: 34764.94217 | AA65: 33742.19802 | AB65: 32749.57847 | AC65: 31786.19517 | AD65: 30851.17756 | AE65: 29943.69788 | AF65: 29062.92826 | AG65: 28208.08978 | AH65: 27378.4108 | AI65: 26573.1504 | AJ65: 25791.58946 | AK65: 25033.02321
D66: Tax Receipts from income | E66: £ k | F66: =SUM(H66:BO66) -> 20470227.76 | H66: =IF(H$1="","",H137+H208+H279+H350+H421+H492+H563+H634+H705+H776) -> 916718.3904 | I66: 897653.8291 | J66: 878651.9814 | K66: 859980.7262 | L66: 841654.8677 | M66: 823683.345 | N66: 806070.3523 | O66: 788816.9507 | P66: 771922.5098 | Q66: 755383.7326 | R66: 739196.0236 | S66: 723354.1618 | T66: 707852.3673 | U66: 692684.3638 | V66: 677843.438 | W66: 663322.4942 | X66: 649115.0771 | Y66: 635214.3665 | Z66: 621613.2265 | AA66: 608305.6171 | AB66: 595284.7106 | AC66: 582544.2927 | AD66: 570077.8577 | AE66: 557879.9043 | AF66: 545943.7974 | AG66: 534264.2989 | AH66: 522835.4748 | AI66: 511651.9281 | AJ66: 500708.3784 | AK66: 489999.2918 | AN66: =IF(AN$1="","",AN137+AN208+AN279+AN350+AN421+AN492+AN563+AN634+AN705+AN776) -> 
D67: VAT | E67: £ k | F67: =IFERROR(SUM(H67:BO67),0) -> 3648127.101 | H67: =IF(H$1="","",H138+H209+H280+H351+H422+H493+H564+H635+H706+H777) -> 163379.1393 | I67: 159981.0277 | J67: 156593.8381 | K67: 153265.7056 | L67: 149999.2317 | M67: 146795.9822 | N67: 143656.6846 | O67: 140581.5132 | P67: 137570.344 | Q67: 134622.5816 | R67: 131737.4021 | S67: 128913.8708 | T67: 126150.9548 | U67: 123447.5337 | V67: 120802.4101 | W67: 118214.3193 | X67: 115682.1101 | Y67: 113204.5668 | Z67: 110780.4184 | AA67: 108408.5876 | AB67: 106087.8582 | AC67: 103817.1226 | AD67: 101595.222 | AE67: 99421.17504 | AF67: 97293.80044 | AG67: 95212.16387 | AH67: 93175.20823 | AI67: 91181.97153 | AJ67: 89231.5125 | AK67: 87322.84531 | AN67: =IF(AN$1="","",AN138+AN209+AN280+AN351+AN422+AN493+AN564+AN635+AN706+AN777) -> 
D68: NIC | E68: £ k | F68: =SUM(H68:BO68) -> 3168049.346 | H68: =IF(H$1="","",H139+H210+H281+H352+H423+H494+H565+H636+H707+H778) -> 141879.1509 | I68: 138928.216 | J68: 135986.766 | K68: 133096.6013 | L68: 130259.9813 | M68: 127478.2655 | N68: 124752.0859 | O68: 122081.5938 | P68: 119466.6814 | Q68: 116906.8319 | R68: 114401.3295 | S68: 111949.3627 | T68: 109550.0345 | U68: 107202.3719 | V68: 104905.3352 | W68: 102657.826 | X68: 100458.8445 | Y68: 98307.33519 | Z68: 96202.19422 | AA68: 94142.48611 | AB68: 92127.15468 | AC68: 90155.23809 | AD68: 88225.72996 | AE68: 86337.77819 | AF68: 84490.3569 | AG68: 82682.6547 | AH68: 80913.75362 | AI68: 79182.81825 | AJ68: 77489.0312 | AK68: 75831.53636 | AN68: =IF(AN$1="","",AN139+AN210+AN281+AN352+AN423+AN494+AN565+AN636+AN707+AN778) -> 
D69: Total tax receipts | E69: £ k | F69: =IFERROR(SUM(H69:BO69),0) -> 27286404.2 | H69: =IF(H$1="","",H140+H211+H282+H353+H424+H495+H566+H637+H708+H779) -> 1221976.681 | I69: 1196563.073 | J69: 1171232.585 | K69: 1146343.033 | L69: 1121914.081 | M69: 1097957.593 | N69: 1074479.123 | O69: 1051480.058 | P69: 1028959.535 | Q69: 1006913.146 | R69: 985334.7552 | S69: 964217.3953 | T69: 943553.3566 | U69: 923334.2695 | V69: 903551.1833 | W69: 884194.6395 | X69: 865256.0317 | Y69: 846726.2685 | Z69: 828595.8391 | AA69: 810856.6908 | AB69: 793499.7235 | AC69: 776516.6534 | AD69: 759898.8096 | AE69: 743638.8575 | AF69: 727727.9548 | AG69: 712159.1175 | AH69: 696924.4366 | AI69: 682016.7179 | AJ69: 667428.9221 | AK69: 653153.6735 | AN69: =IF(AN$1="","",AN140+AN211+AN282+AN353+AN424+AN495+AN566+AN637+AN708+AN779) -> 
D70: Employment | E70: No. | H70: =IF(H$1="","",H141+H212+H283+H354+H425+H496+H567+H638+H709+H780) -> 95972.044 | I70: 96803.28492 | J70: 97617.66531 | K70: 98433.6434 | L70: 99252.56248 | M70: 100075.4793 | N70: 100903.1982 | O70: 101736.3564 | P70: 102575.5141 | Q70: 103421.0518 | R70: 104273.2622 | S70: 105132.3963 | T70: 105998.6614 | U70: 106872.2194 | V70: 107753.1845 | W70: 108641.6211 | X70: 109537.6469 | Y70: 110441.3289 | Z70: 111352.6814 | AA70: 112271.8251 | AB70: 113198.7746 | AC70: 114133.5981 | AD70: 115076.3093 | AE70: 116027.0317 | AF70: 116985.7232 | AG70: 117952.5082 | AH70: 118927.3994 | AI70: 119910.4658 | AJ70: 120901.777 | AK70: 121901.3448 | AN70: =IF(AN$1="","",AN141+AN212+AN283+AN354+AN425+AN496+AN567+AN638+AN709+AN780) -> 
D71: Total Economic Impacts | E71: £ k | F71: =SUM(H71:BO71) -> 154766589.9 | H71: =IF(H39="","",SUM(H64,H66:H68)) -> 6930848.026 | I71: =IF(I39="","",SUM(I64,I66:I68)) -> 6786715.551 | J71: 6643060.543 | K71: 6501903.177 | L71: 6363355.86 | M71: 6227486.536 | N71: 6094327.172 | O71: 5963885.984 | P71: 5836158.361 | Q71: 5711119.471 | R71: 5588734.64 | S71: 5468964.446 | T71: 5351765.227 | U71: 5237089.556 | V71: 5124886.687 | W71: 5015102.976 | X71: 4907689.628 | Y71: 4802595.079 | Z71: 4699765.369 | AA71: 4599154.845 | AB71: 4500711.875 | AC71: 4404389.478 | AD71: 4310138.46 | AE71: 4217917.24 | AF71: 4127675.637 | AG71: 4039374.058 | AH71: 3952967.633 | AI71: 3868415.56 | AJ71: 3785677.92 | AK71: 3704712.866
A75: ="Undiscounted costs for " & D1_Name -> Undiscounted costs for R1 | F75: Analysis period total | H75: =H39 -> 2020 | I75: 2021 | J75: 2022 | K75: 2023 | L75: 2024 | M75: 2025 | N75: 2026 | O75: 2027 | P75: 2028 | Q75: 2029 | R75: 2030 | S75: 2031 | T75: 2032 | U75: 2033 | V75: 2034 | W75: 2035 | X75: 2036 | Y75: 2037 | Z75: 2038 | AA75: 2039 | AB75: 2040 | AC75: 2041 | AD75: 2042 | AE75: 2043 | AF75: 2044 | AG75: 2045 | AH75: 2046 | AI75: 2047 | AJ75: 2048 | AK75: 2049 | AN75: =AN39 -> 
D77: Parameter | E77: Unit
D78: Expenditure by Treatment | E78: £ k | F78: =SUM(H78:BO78) -> 64320.75 | H78: 2144.025 | I78: 2144.025 | J78: 2144.025 | K78: 2144.025 | L78: 2144.025 | M78: 2144.025 | N78: 2144.025 | O78: 2144.025 | P78: 2144.025 | Q78: 2144.025 | R78: 2144.025 | S78: 2144.025 | T78: 2144.025 | U78: 2144.025 | V78: 2144.025 | W78: 2144.025 | X78: 2144.025 | Y78: 2144.025 | Z78: 2144.025 | AA78: 2144.025 | AB78: 2144.025 | AC78: 2144.025 | AD78: 2144.025 | AE78: 2144.025 | AF78: 2144.025 | AG78: 2144.025 | AH78: 2144.025 | AI78: 2144.025 | AJ78: 2144.025 | AK78: 2144.025
D79: Percentage in poor condition | E79: % | H79: 0.2873 | I79: 0.3453 | J79: 0.3999 | K79: 0.4503 | L79: 0.4959 | M79: 0.5367 | N79: 0.5729 | O79: 0.6046 | P79: 0.6323 | Q79: 0.6562 | R79: 0.6768 | S79: 0.6945 | T79: 0.7097 | U79: 0.7225 | V79: 0.7334 | W79: 0.7427 | X79: 0.7505 | Y79: 0.7571 | Z79: 0.7626 | AA79: 0.7672 | AB79: 0.7711 | AC79: 0.7744 | AD79: 0.7771 | AE79: 0.7793 | AF79: 0.7812 | AG79: 0.7828 | AH79: 0.7841 | AI79: 0.7852 | AJ79: 0.7861 | AK79: 0.7868
C81: Treatment and Condition Impacts | D81: Vehicle operating costs | E81: £ k | F81: =SUM(H81:BO81) -> 50457382.37 | H81: 859660.9936 | I81: 887870.4646 | J81: 916895.7967 | K81: 951895.158 | L81: 992088.2072 | M81: 1043564.599 | N81: 1103091.301 | O81: 1165213.962 | P81: 1224026.287 | Q81: 1290879.205 | R81: 1370168.59 | S81: 1440422.107 | T81: 1511678.57 | U81: 1581892.945 | V81: 1651591.927 | W81: 1720075.916 | X81: 1787005.767 | Y81: 1851318.932 | Z81: 1918990.574 | AA81: 1984797.006 | AB81: 2049048.906 | AC81: 2115661.245 | AD81: 2178301.377 | AE81: 2238931.749 | AF81: 2298903.077 | AG81: 2356098.787 | AH81: 2411907.846 | AI81: 2465589.154 | AJ81: 2518964.396 | AK81: 2570847.522
D82: Travel time | E82: £ k | F82: 13185851.58 | H82: 293355.5286 | I82: 302382.2456 | J82: 309933.1234 | K82: 317537.084 | L82: 325635.3633 | M82: 334174.2513 | N82: 343092.159 | O82: 352367.8787 | P82: 362009.616 | Q82: 371863.8487 | R82: 382112.3606 | S82: 392443.9808 | T82: 403433.3932 | U82: 414507.1163 | V82: 425772.1643 | W82: 437319.1494 | X82: 449291.2393 | Y82: 461149.0485 | Z82: 473227.6131 | AA82: 485463.4673 | AB82: 497826.9085 | AC82: 510449.3325 | AD82: 522804.4619 | AE82: 535337.913 | AF82: 548012.3553 | AG82: 560886.3596 | AH82: 573985.7831 | AI82: 586763.3703 | AJ82: 599734.8333 | AK82: 612979.6319
D83: Carbon (vehicle fuel) | E83: £ k | F83: 1666375.665 | H83: 29064.02195 | I83: 29319.93393 | J83: 29833.1138 | K83: 30042.96037 | L83: 30298.24303 | M83: 30573.7983 | N83: 30977.70869 | O83: 31462.13828 | P83: 32330.58858 | Q83: 32945.90112 | R83: 33635.77292 | S83: 36582.37994 | T83: 40091.82949 | U83: 43306.55881 | V83: 46928.75186 | W83: 50309.9354 | X83: 54154.25725 | Y83: 57579.11368 | Z83: 61530.67638 | AA83: 65144.64957 | AB83: 69133.89206 | AC83: 72893.95835 | AD83: 77045.88682 | AE83: 80743.20021 | AF83: 84993.56028 | AG83: 88858.9672 | AH83: 93086.68127 | AI83: 96974.8315 | AJ83: 101333.0799 | AK83: 105199.2739
D84: Roadworks Accidents | E84: £ k | F84: 1732.169966 | H84: 51.03084253 | I84: 51.76993655 | J84: 52.21354979 | K84: 52.65685432 | L84: 53.09975157 | M84: 53.54224555 | N84: 53.98433979 | O84: 54.41256775 | P84: 54.84042155 | Q84: 55.26790477 | R84: 55.69502091 | S84: 56.1217734 | T84: 56.62113309 | U84: 57.12000393 | V84: 57.61839113 | W84: 58.11629978 | X84: 58.61373491 | Y84: 59.05469712 | Z84: 59.49529378 | AA84: 59.93552819 | AB84: 60.37540362 | AC84: 60.81492324 | AD84: 61.19206406 | AE84: 61.56894679 | AF84: 61.94557335 | AG84: 62.32194566 | AH84: 62.69806559 | AI84: 63.02294878 | AJ84: 63.347646 | AK84: 63.6721584
D85: Carbon (vehicles in roadworks) | E85: £ k | F85: 16.26067576 | H85: 0.4725156681 | I85: 0.4860896349 | J85: 0.4902428966 | K85: 0.4944121585 | L85: 0.4985777165 | M85: 0.5027396041 | N85: 0.5068978433 | O85: 0.5109281278 | P85: 0.5149548832 | Q85: 0.5189781432 | R85: 0.5229979408 | S85: 0.5270143085 | T85: 0.5317147594 | U85: 0.5364105981 | V85: 0.5411018738 | W85: 0.545788635 | X85: 0.5504709289 | Y85: 0.5546226401 | Z85: 0.5587709012 | AA85: 0.5629157434 | AB85: 0.5670571976 | AC85: 0.571195294 | AD85: 0.5747453508 | AE85: 0.5782929729 | AF85: 0.5818381786 | AG85: 0.5853809859 | AH85: 0.5889214125 | AI85: 0.5919784335 | AJ85: 0.5950337015 | AK85: 0.5980872275
D86: Roadworks time delays | E86: £ k | F86: 2248.223113 | H86: 65.81270212 | I86: 67.37648967 | J86: 67.93842762 | K86: 68.4985855 | L86: 69.05817245 | M86: 69.61719545 | N86: 70.17566482 | O86: 70.71926755 | P86: 71.26240633 | Q86: 71.80508548 | R86: 72.34730923 | S86: 72.88908177 | T86: 73.52568303 | U86: 74.16167242 | V86: 74.79705634 | W86: 75.43184107 | X86: 76.06603277 | Y86: 76.62962414 | Z86: 77.19275531 | AA86: 77.75543037 | AB86: 78.31765336 | AC86: 78.87942824 | AD86: 79.36140191 | AE86: 79.84305055 | AF86: 80.32437656 | AG86: 80.8053823 | AH86: 81.2860701 | AI86: 81.700735 | AJ86: 82.11516617 | AK86: 82.52936506
D87: Accidents | E87: £ k | F87: 2273714.247 | H87: 75790.4749 | I87: 75790.4749 | J87: 75790.4749 | K87: 75790.4749 | L87: 75790.4749 | M87: 75790.4749 | N87: 75790.4749 | O87: 75790.4749 | P87: 75790.4749 | Q87: 75790.4749 | R87: 75790.4749 | S87: 75790.4749 | T87: 75790.4749 | U87: 75790.4749 | V87: 75790.4749 | W87: 75790.4749 | X87: 75790.4749 | Y87: 75790.4749 | Z87: 75790.4749 | AA87: 75790.4749 | AB87: 75790.4749 | AC87: 75790.4749 | AD87: 75790.4749 | AE87: 75790.4749 | AF87: 75790.4749 | AG87: 75790.4749 | AH87: 75790.4749 | AI87: 75790.4749 | AJ87: 75790.4749 | AK87: 75790.4749
D88: Carbon (Embodied in materials) | E88: £ k | F88: 1768.018054 | H88: 32.23071222 | I88: 32.69782399 | J88: 33.63204754 | K88: 34.09915931 | L88: 34.56627108 | M88: 35.03338285 | N88: 35.50049462 | O88: 35.96760639 | P88: 36.90182994 | Q88: 37.36894171 | R88: 37.83605348 | S88: 41.10583588 | T88: 44.84273005 | U88: 48.11251245 | V88: 51.84940662 | W88: 55.11918902 | X88: 58.85608319 | Y88: 62.12586559 | Z88: 65.86275976 | AA88: 69.13254216 | AB88: 72.86943633 | AC88: 76.13921873 | AD88: 79.8761129 | AE88: 83.1458953 | AF88: 86.88278947 | AG88: 90.15257187 | AH88: 93.88946604 | AI88: 97.15924844 | AJ88: 100.8961426 | AK88: 104.165925
D89: Total HMAT costs | E89: £ k | F89: 67589088.53 | H89: =IF(H75="","",SUM(H81:H88)) -> 1258020.566 | I89: =IF(I75="","",SUM(I81:I88)) -> 1295515.449 | J89: 1332606.783 | K89: 1375421.426 | L89: 1423969.511 | M89: 1484261.819 | N89: 1553111.811 | O89: 1624996.064 | P89: 1694320.486 | Q89: 1771644.391 | R89: 1861873.599 | S89: 1945409.587 | T89: 2031169.789 | U89: 2115677.026 | V89: 2200268.124 | W89: 2283684.689 | X89: 2366435.825 | Y89: 2446035.934 | Z89: 2529742.448 | AA89: 2611402.984 | AB89: 2692012.311 | AC89: 2775011.416 | AD89: 2854163.205 | AE89: 2931028.473 | AF89: 3007929.202 | AG89: 3081868.454 | AH89: 3155009.248 | AI89: 3225360.306 | AJ89: 3296069.738 | AK89: 3365067.869
C91: Network Benefits | D91: Change in accident costs | E91: £ k | F91: =SUM(H91:BO91) -> -1179285.489 | H91: ='D1 Traffic'!F131 -> -34257.67568 | I91: ='D1 Traffic'!G131 -> -34430.44697 | J91: ='D1 Traffic'!H131 -> -34778.85747 | K91: ='D1 Traffic'!I131 -> -35131.30394 | L91: ='D1 Traffic'!J131 -> -35485.60778 | M91: ='D1 Traffic'!K131 -> -35841.72156 | N91: ='D1 Traffic'!L131 -> -36199.58672 | O91: ='D1 Traffic'!M131 -> -36567.88532 | P91: ='D1 Traffic'!N131 -> -36937.9786 | Q91: ='D1 Traffic'!O131 -> -37309.81388 | R91: ='D1 Traffic'!P131 -> -37683.33606 | S91: ='D1 Traffic'!Q131 -> -38058.48754 | T91: ='D1 Traffic'!R131 -> -38382.06661 | U91: ='D1 Traffic'!S131 -> -38705.34143 | V91: ='D1 Traffic'!T131 -> -39028.19858 | W91: ='D1 Traffic'!U131 -> -39350.52067 | X91: ='D1 Traffic'!V131 -> -39672.18634 | Y91: ='D1 Traffic'!W131 -> -40037.30798 | Z91: ='D1 Traffic'!X131 -> -40403.03494 | AA91: ='D1 Traffic'!Y131 -> -40769.27309 | AB91: ='D1 Traffic'!Z131 -> -41135.92473 | AC91: ='D1 Traffic'!AA131 -> -41502.88855 | AD91: ='D1 Traffic'!AB131 -> -41923.54767 | AE91: ='D1 Traffic'!AC131 -> -42346.14333 | AF91: ='D1 Traffic'!AD131 -> -42770.61121 | AG91: ='D1 Traffic'!AE131 -> -43196.88413 | AH91: ='D1 Traffic'!AF131 -> -43624.8919 | AI91: ='D1 Traffic'!AG131 -> -44102.61401 | AJ91: ='D1 Traffic'!AH131 -> -44583.58457 | AK91: ='D1 Traffic'!AI131 -> -45067.76781 | AL91: ='D1 Traffic'!AJ131 ->  | AM91: ='D1 Traffic'!AK131 ->  | AN91: ='D1 Traffic'!AL131 ->  | AO91: ='D1 Traffic'!AM131 ->  | AP91: ='D1 Traffic'!AN131 ->  | AQ91: ='D1 Traffic'!AO131 ->  | AR91: ='D1 Traffic'!AP131 ->  | AS91: ='D1 Traffic'!AQ131 ->  | AT91: ='D1 Traffic'!AR131 ->  | AU91: ='D1 Traffic'!AS131 ->  | AV91: ='D1 Traffic'!AT131 ->  | AW91: ='D1 Traffic'!AU131 ->  | AX91: ='D1 Traffic'!AV131 ->  | AY91: ='D1 Traffic'!AW131 ->  | AZ91: ='D1 Traffic'!AX131 ->  | BA91: ='D1 Traffic'!AY131 ->  | BB91: ='D1 Traffic'!AZ131 ->  | BC91: ='D1 Traffic'!BA131 ->  | BD91: ='D1 Traffic'!BB131 ->  | BE91: ='D1 Traffic'!BC131 ->  | BF91: ='D1 Traffic'!BD131 ->  | BG91: ='D1 Traffic'!BE131 ->  | BH91: ='D1 Traffic'!BF131 ->  | BI91: ='D1 Traffic'!BG131 ->  | BJ91: ='D1 Traffic'!BH131 ->  | BK91: ='D1 Traffic'!BI131 ->  | BL91: ='D1 Traffic'!BJ131 ->  | BM91: ='D1 Traffic'!BK131 ->  | BN91: ='D1 Traffic'!BL131 ->  | BO91: ='D1 Traffic'!BM131 -> 
D92: Change in travel time costs | E92: £ k | F92: =SUM(H92:BO92) -> 5114714.122 | H92: ='D1 Traffic'!F276 -> 117698.9937 | I92: ='D1 Traffic'!G276 -> 120401.6766 | J92: ='D1 Traffic'!H276 -> 122610.0026 | K92: ='D1 Traffic'!I276 -> 124868.4771 | L92: ='D1 Traffic'!J276 -> 127370.4303 | M92: ='D1 Traffic'!K276 -> 130103.789 | N92: ='D1 Traffic'!L276 -> 133048.0591 | O92: ='D1 Traffic'!M276 -> 136224.5764 | P92: ='D1 Traffic'!N276 -> 139609.4513 | Q92: ='D1 Traffic'!O276 -> 143135.936 | R92: ='D1 Traffic'!P276 -> 146879.5131 | S92: ='D1 Traffic'!Q276 -> 150704.977 | T92: ='D1 Traffic'!R276 -> 154852.3957 | U92: ='D1 Traffic'!S276 -> 159076.3171 | V92: ='D1 Traffic'!T276 -> 163419.2902 | W92: ='D1 Traffic'!U276 -> 167916.9493 | X92: ='D1 Traffic'!V276 -> 172627.5277 | Y92: ='D1 Traffic'!W276 -> 177353.1048 | Z92: ='D1 Traffic'!X276 -> 182200.9128 | AA92: ='D1 Traffic'!Y276 -> 187141.7208 | AB92: ='D1 Traffic'!Z276 -> 192160.8084 | AC92: ='D1 Traffic'!AA276 -> 197312.5807 | AD92: ='D1 Traffic'!AB276 -> 202389.7717 | AE92: ='D1 Traffic'!AC276 -> 207562.4145 | AF92: ='D1 Traffic'!AD276 -> 212813.1945 | AG92: ='D1 Traffic'!AE276 -> 218166.1956 | AH92: ='D1 Traffic'!AF276 -> 223631.6882 | AI92: ='D1 Traffic'!AG276 -> 228984.2702 | AJ92: ='D1 Traffic'!AH276 -> 234434.0701 | AK92: ='D1 Traffic'!AI276 -> 240015.0278 | AL92: ='D1 Traffic'!AJ276 ->  | AM92: ='D1 Traffic'!AK276 ->  | AN92: ='D1 Traffic'!AL276 ->  | AO92: ='D1 Traffic'!AM276 ->  | AP92: ='D1 Traffic'!AN276 ->  | AQ92: ='D1 Traffic'!AO276 ->  | AR92: ='D1 Traffic'!AP276 ->  | AS92: ='D1 Traffic'!AQ276 ->  | AT92: ='D1 Traffic'!AR276 ->  | AU92: ='D1 Traffic'!AS276 ->  | AV92: ='D1 Traffic'!AT276 ->  | AW92: ='D1 Traffic'!AU276 ->  | AX92: ='D1 Traffic'!AV276 ->  | AY92: ='D1 Traffic'!AW276 ->  | AZ92: ='D1 Traffic'!AX276 ->  | BA92: ='D1 Traffic'!AY276 ->  | BB92: ='D1 Traffic'!AZ276 ->  | BC92: ='D1 Traffic'!BA276 ->  | BD92: ='D1 Traffic'!BB276 ->  | BE92: ='D1 Traffic'!BC276 ->  | BF92: ='D1 Traffic'!BD276 ->  | BG92: ='D1 Traffic'!BE276 ->  | BH92: ='D1 Traffic'!BF276 ->  | BI92: ='D1 Traffic'!BG276 ->  | BJ92: ='D1 Traffic'!BH276 ->  | BK92: ='D1 Traffic'!BI276 ->  | BL92: ='D1 Traffic'!BJ276 ->  | BM92: ='D1 Traffic'!BK276 ->  | BN92: ='D1 Traffic'!BL276 ->  | BO92: ='D1 Traffic'!BM276 -> 
D93: Change in cost of CO2 emissions | E93: £ k | F93: =SUM(H93:BO93) -> 1169390.833 | H93: =IF(H1="","",IF(H83=0,0,H83*'D1 Traffic'!F133*CO2RatioNon2Urb+H83*'D1 Traffic'!F134*CO2RatioNon2Rur-H83)) -> 20401.46124 | I93: =IF(I1="","",IF(I83=0,0,I83*'D1 Traffic'!G133*CO2RatioNon2Urb+I83*'D1 Traffic'!G134*CO2RatioNon2Rur-I83)) -> 20581.46034 | J93: =IF(J1="","",IF(J83=0,0,J83*'D1 Traffic'!H133*CO2RatioNon2Urb+J83*'D1 Traffic'!H134*CO2RatioNon2Rur-J83)) -> 20941.9604 | K93: =IF(K1="","",IF(K83=0,0,K83*'D1 Traffic'!I133*CO2RatioNon2Urb+K83*'D1 Traffic'!I134*CO2RatioNon2Rur-K83)) -> 21088.88509 | L93: =IF(L1="","",IF(L83=0,0,L83*'D1 Traffic'!J133*CO2RatioNon2Urb+L83*'D1 Traffic'!J134*CO2RatioNon2Rur-L83)) -> 21267.66359 | M93: =IF(M1="","",IF(M83=0,0,M83*'D1 Traffic'!K133*CO2RatioNon2Urb+M83*'D1 Traffic'!K134*CO2RatioNon2Rur-M83)) -> 21460.63223 | N93: =IF(N1="","",IF(N83=0,0,N83*'D1 Traffic'!L133*CO2RatioNon2Urb+N83*'D1 Traffic'!L134*CO2RatioNon2Rur-N83)) -> 21743.65807 | O93: =IF(O1="","",IF(O83=0,0,O83*'D1 Traffic'!M133*CO2RatioNon2Urb+O83*'D1 Traffic'!M134*CO2RatioNon2Rur-O83)) -> 22083.2024 | P93: =IF(P1="","",IF(P83=0,0,P83*'D1 Traffic'!N133*CO2RatioNon2Urb+P83*'D1 Traffic'!N134*CO2RatioNon2Rur-P83)) -> 22692.2774 | Q93: =IF(Q1="","",IF(Q83=0,0,Q83*'D1 Traffic'!O133*CO2RatioNon2Urb+Q83*'D1 Traffic'!O134*CO2RatioNon2Rur-Q83)) -> 23123.66514 | R93: =IF(R1="","",IF(R83=0,0,R83*'D1 Traffic'!P133*CO2RatioNon2Urb+R83*'D1 Traffic'!P134*CO2RatioNon2Rur-R83)) -> 23607.37233 | S93: =IF(S1="","",IF(S83=0,0,S83*'D1 Traffic'!Q133*CO2RatioNon2Urb+S83*'D1 Traffic'!Q134*CO2RatioNon2Rur-S83)) -> 25674.93164 | T93: =IF(T1="","",IF(T83=0,0,T83*'D1 Traffic'!R133*CO2RatioNon2Urb+T83*'D1 Traffic'!R134*CO2RatioNon2Rur-T83)) -> 28137.41503 | U93: =IF(U1="","",IF(U83=0,0,U83*'D1 Traffic'!S133*CO2RatioNon2Urb+U83*'D1 Traffic'!S134*CO2RatioNon2Rur-U83)) -> 30392.97056 | V93: =IF(V1="","",IF(V83=0,0,V83*'D1 Traffic'!T133*CO2RatioNon2Urb+V83*'D1 Traffic'!T134*CO2RatioNon2Rur-V83)) -> 32934.40294 | W93: =IF(W1="","",IF(W83=0,0,W83*'D1 Traffic'!U133*CO2RatioNon2Urb+W83*'D1 Traffic'!U134*CO2RatioNon2Rur-W83)) -> 35306.61064 | X93: =IF(X1="","",IF(X83=0,0,X83*'D1 Traffic'!V133*CO2RatioNon2Urb+X83*'D1 Traffic'!V134*CO2RatioNon2Rur-X83)) -> 38003.75469 | Y93: =IF(Y1="","",IF(Y83=0,0,Y83*'D1 Traffic'!W133*CO2RatioNon2Urb+Y83*'D1 Traffic'!W134*CO2RatioNon2Rur-Y83)) -> 40406.54749 | Z93: =IF(Z1="","",IF(Z83=0,0,Z83*'D1 Traffic'!X133*CO2RatioNon2Urb+Z83*'D1 Traffic'!X134*CO2RatioNon2Rur-Z83)) -> 43178.88658 | AA93: =IF(AA1="","",IF(AA83=0,0,AA83*'D1 Traffic'!Y133*CO2RatioNon2Urb+AA83*'D1 Traffic'!Y134*CO2RatioNon2Rur-AA83)) -> 45714.24977 | AB93: =IF(AB1="","",IF(AB83=0,0,AB83*'D1 Traffic'!Z133*CO2RatioNon2Urb+AB83*'D1 Traffic'!Z134*CO2RatioNon2Rur-AB83)) -> 48512.87984 | AC93: =IF(AC1="","",IF(AC83=0,0,AC83*'D1 Traffic'!AA133*CO2RatioNon2Urb+AC83*'D1 Traffic'!AA134*CO2RatioNon2Rur-AC83)) -> 51150.61915 | AD93: =IF(AD1="","",IF(AD83=0,0,AD83*'D1 Traffic'!AB133*CO2RatioNon2Urb+AD83*'D1 Traffic'!AB134*CO2RatioNon2Rur-AD83)) -> 54063.43706 | AE93: =IF(AE1="","",IF(AE83=0,0,AE83*'D1 Traffic'!AC133*CO2RatioNon2Urb+AE83*'D1 Traffic'!AC134*CO2RatioNon2Rur-AE83)) -> 56657.1931 | AF93: =IF(AF1="","",IF(AF83=0,0,AF83*'D1 Traffic'!AD133*CO2RatioNon2Urb+AF83*'D1 Traffic'!AD134*CO2RatioNon2Rur-AF83)) -> 59638.96373 | AG93: =IF(AG1="","",IF(AG83=0,0,AG83*'D1 Traffic'!AE133*CO2RatioNon2Urb+AG83*'D1 Traffic'!AE134*CO2RatioNon2Rur-AG83)) -> 62350.56097 | AH93: =IF(AH1="","",IF(AH83=0,0,AH83*'D1 Traffic'!AF133*CO2RatioNon2Urb+AH83*'D1 Traffic'!AF134*CO2RatioNon2Rur-AH83)) -> 65316.32682 | AI93: =IF(AI1="","",IF(AI83=0,0,AI83*'D1 Traffic'!AG133*CO2RatioNon2Urb+AI83*'D1 Traffic'!AG134*CO2RatioNon2Rur-AI83)) -> 68043.94921 | AJ93: =IF(AJ1="","",IF(AJ83=0,0,AJ83*'D1 Traffic'!AH133*CO2RatioNon2Urb+AJ83*'D1 Traffic'!AH134*CO2RatioNon2Rur-AJ83)) -> 71101.3807 | AK93: =IF(AK1="","",IF(AK83=0,0,AK83*'D1 Traffic'!AI133*CO2RatioNon2Urb+AK83*'D1 Traffic'!AI134*CO2RatioNon2Rur-AK83)) -> 73813.51528 | AL93: =IF(AL1="","",IF(AL83=0,0,AL83*'D1 Traffic'!AJ133*CO2RatioNon2Urb+AL83*'D1 Traffic'!AJ134*CO2RatioNon2Rur-AL83)) ->  | AM93: =IF(AM1="","",IF(AM83=0,0,AM83*'D1 Traffic'!AK133*CO2RatioNon2Urb+AM83*'D1 Traffic'!AK134*CO2RatioNon2Rur-AM83)) ->  | AN93: =IF(AN1="","",IF(AN83=0,0,AN83*'D1 Traffic'!AL133*CO2RatioNon2Urb+AN83*'D1 Traffic'!AL134*CO2RatioNon2Rur-AN83)) ->  | AO93: =IF(AO1="","",IF(AO83=0,0,AO83*'D1 Traffic'!AM133*CO2RatioNon2Urb+AO83*'D1 Traffic'!AM134*CO2RatioNon2Rur-AO83)) ->  | AP93: =IF(AP1="","",IF(AP83=0,0,AP83*'D1 Traffic'!AN133*CO2RatioNon2Urb+AP83*'D1 Traffic'!AN134*CO2RatioNon2Rur-AP83)) ->  | AQ93: =IF(AQ1="","",IF(AQ83=0,0,AQ83*'D1 Traffic'!AO133*CO2RatioNon2Urb+AQ83*'D1 Traffic'!AO134*CO2RatioNon2Rur-AQ83)) ->  | AR93: =IF(AR1="","",IF(AR83=0,0,AR83*'D1 Traffic'!AP133*CO2RatioNon2Urb+AR83*'D1 Traffic'!AP134*CO2RatioNon2Rur-AR83)) ->  | AS93: =IF(AS1="","",IF(AS83=0,0,AS83*'D1 Traffic'!AQ133*CO2RatioNon2Urb+AS83*'D1 Traffic'!AQ134*CO2RatioNon2Rur-AS83)) ->  | AT93: =IF(AT1="","",IF(AT83=0,0,AT83*'D1 Traffic'!AR133*CO2RatioNon2Urb+AT83*'D1 Traffic'!AR134*CO2RatioNon2Rur-AT83)) ->  | AU93: =IF(AU1="","",IF(AU83=0,0,AU83*'D1 Traffic'!AS133*CO2RatioNon2Urb+AU83*'D1 Traffic'!AS134*CO2RatioNon2Rur-AU83)) ->  | AV93: =IF(AV1="","",IF(AV83=0,0,AV83*'D1 Traffic'!AT133*CO2RatioNon2Urb+AV83*'D1 Traffic'!AT134*CO2RatioNon2Rur-AV83)) ->  | AW93: =IF(AW1="","",IF(AW83=0,0,AW83*'D1 Traffic'!AU133*CO2RatioNon2Urb+AW83*'D1 Traffic'!AU134*CO2RatioNon2Rur-AW83)) ->  | AX93: =IF(AX1="","",IF(AX83=0,0,AX83*'D1 Traffic'!AV133*CO2RatioNon2Urb+AX83*'D1 Traffic'!AV134*CO2RatioNon2Rur-AX83)) ->  | AY93: =IF(AY1="","",IF(AY83=0,0,AY83*'D1 Traffic'!AW133*CO2RatioNon2Urb+AY83*'D1 Traffic'!AW134*CO2RatioNon2Rur-AY83)) ->  | AZ93: =IF(AZ1="","",IF(AZ83=0,0,AZ83*'D1 Traffic'!AX133*CO2RatioNon2Urb+AZ83*'D1 Traffic'!AX134*CO2RatioNon2Rur-AZ83)) ->  | BA93: =IF(BA1="","",IF(BA83=0,0,BA83*'D1 Traffic'!AY133*CO2RatioNon2Urb+BA83*'D1 Traffic'!AY134*CO2RatioNon2Rur-BA83)) ->  | BB93: =IF(BB1="","",IF(BB83=0,0,BB83*'D1 Traffic'!AZ133*CO2RatioNon2Urb+BB83*'D1 Traffic'!AZ134*CO2RatioNon2Rur-BB83)) ->  | BC93: =IF(BC1="","",IF(BC83=0,0,BC83*'D1 Traffic'!BA133*CO2RatioNon2Urb+BC83*'D1 Traffic'!BA134*CO2RatioNon2Rur-BC83)) ->  | BD93: =IF(BD1="","",IF(BD83=0,0,BD83*'D1 Traffic'!BB133*CO2RatioNon2Urb+BD83*'D1 Traffic'!BB134*CO2RatioNon2Rur-BD83)) ->  | BE93: =IF(BE1="","",IF(BE83=0,0,BE83*'D1 Traffic'!BC133*CO2RatioNon2Urb+BE83*'D1 Traffic'!BC134*CO2RatioNon2Rur-BE83)) ->  | BF93: =IF(BF1="","",IF(BF83=0,0,BF83*'D1 Traffic'!BD133*CO2RatioNon2Urb+BF83*'D1 Traffic'!BD134*CO2RatioNon2Rur-BF83)) ->  | BG93: =IF(BG1="","",IF(BG83=0,0,BG83*'D1 Traffic'!BE133*CO2RatioNon2Urb+BG83*'D1 Traffic'!BE134*CO2RatioNon2Rur-BG83)) ->  | BH93: =IF(BH1="","",IF(BH83=0,0,BH83*'D1 Traffic'!BF133*CO2RatioNon2Urb+BH83*'D1 Traffic'!BF134*CO2RatioNon2Rur-BH83)) ->  | BI93: =IF(BI1="","",IF(BI83=0,0,BI83*'D1 Traffic'!BG133*CO2RatioNon2Urb+BI83*'D1 Traffic'!BG134*CO2RatioNon2Rur-BI83)) ->  | BJ93: =IF(BJ1="","",IF(BJ83=0,0,BJ83*'D1 Traffic'!BH133*CO2RatioNon2Urb+BJ83*'D1 Traffic'!BH134*CO2RatioNon2Rur-BJ83)) ->  | BK93: =IF(BK1="","",IF(BK83=0,0,BK83*'D1 Traffic'!BI133*CO2RatioNon2Urb+BK83*'D1 Traffic'!BI134*CO2RatioNon2Rur-BK83)) ->  | BL93: =IF(BL1="","",IF(BL83=0,0,BL83*'D1 Traffic'!BJ133*CO2RatioNon2Urb+BL83*'D1 Traffic'!BJ134*CO2RatioNon2Rur-BL83)) ->  | BM93: =IF(BM1="","",IF(BM83=0,0,BM83*'D1 Traffic'!BK133*CO2RatioNon2Urb+BM83*'D1 Traffic'!BK134*CO2RatioNon2Rur-BM83)) ->  | BN93: =IF(BN1="","",IF(BN83=0,0,BN83*'D1 Traffic'!BL133*CO2RatioNon2Urb+BN83*'D1 Traffic'!BL134*CO2RatioNon2Rur-BN83)) ->  | BO93: =IF(BO1="","",IF(BO83=0,0,BO83*'D1 Traffic'!BM133*CO2RatioNon2Urb+BO83*'D1 Traffic'!BM134*CO2RatioNon2Rur-BO83)) -> 
D94: Total Network Benefits costs | E94: £ k | F94: =SUM(H94:BO94) -> 5104819.467 | H94: =IF(H75="","",SUM(H91:H93)) -> 103842.7793 | I94: =IF(I75="","",SUM(I91:I93)) -> 106552.69 | J94: 108773.1055 | K94: 110826.0582 | L94: 113152.4862 | M94: 115722.6997 | N94: 118592.1304 | O94: 121739.8934 | P94: 125363.7501 | Q94: 128949.7872 | R94: 132803.5493 | S94: 138321.4211 | T94: 144607.7441 | U94: 150763.9462 | V94: 157325.4946 | W94: 163873.0393 | X94: 170959.096 | Y94: 177722.3443 | Z94: 184976.7645 | AA94: 192086.6975 | AB94: 199537.7635 | AC94: 206960.3113 | AD94: 214529.6611 | AE94: 221873.4643 | AF94: 229681.547 | AG94: 237319.8724 | AH94: 245323.1231 | AI94: 252925.6054 | AJ94: 260951.8662 | AK94: 268760.7753
C96: Public Income | D96: Congestion charge | E96: £ k | F96: =SUM(H96:BO96) -> 818231.8059 | H96: =IF(H1="","",'D1 Traffic'!F303) -> 63107.44534 | I96: =IF(I1="","",'D1 Traffic'!G303) -> 61279.85372 | J96: =IF(J1="","",'D1 Traffic'!H303) -> 56879.96022 | K96: =IF(K1="","",'D1 Traffic'!I303) -> 52795.97908 | L96: =IF(L1="","",'D1 Traffic'!J303) -> 49005.22778 | M96: =IF(M1="","",'D1 Traffic'!K303) -> 45486.65243 | N96: =IF(N1="","",'D1 Traffic'!L303) -> 42220.71078 | O96: =IF(O1="","",'D1 Traffic'!M303) -> 39189.26375 | P96: =IF(P1="","",'D1 Traffic'!N303) -> 36375.47461 | Q96: =IF(Q1="","",'D1 Traffic'!O303) -> 33763.71553 | R96: =IF(R1="","",'D1 Traffic'!P303) -> 31339.48076 | S96: =IF(S1="","",'D1 Traffic'!Q303) -> 29089.30604 | T96: =IF(T1="","",'D1 Traffic'!R303) -> 27000.69387 | U96: =IF(U1="","",'D1 Traffic'!S303) -> 25062.04405 | V96: =IF(V1="","",'D1 Traffic'!T303) -> 23262.58928 | W96: =IF(W1="","",'D1 Traffic'!U303) -> 21592.33537 | X96: =IF(X1="","",'D1 Traffic'!V303) -> 20042.00569 | Y96: =IF(Y1="","",'D1 Traffic'!W303) -> 18602.98968 | Z96: =IF(Z1="","",'D1 Traffic'!X303) -> 17267.29503 | AA96: =IF(AA1="","",'D1 Traffic'!Y303) -> 16027.50324 | AB96: =IF(AB1="","",'D1 Traffic'!Z303) -> 14876.72851 | AC96: =IF(AC1="","",'D1 Traffic'!AA303) -> 13808.5794 | AD96: =IF(AD1="","",'D1 Traffic'!AB303) -> 12817.1234 | AE96: =IF(AE1="","",'D1 Traffic'!AC303) -> 11896.85394 | AF96: =IF(AF1="","",'D1 Traffic'!AD303) -> 11042.65983 | AG96: =IF(AG1="","",'D1 Traffic'!AE303) -> 10249.79685 | AH96: =IF(AH1="","",'D1 Traffic'!AF303) -> 9513.861439 | AI96: =IF(AI1="","",'D1 Traffic'!AG303) -> 8830.766187 | AJ96: =IF(AJ1="","",'D1 Traffic'!AH303) -> 8196.717175 | AK96: =IF(AK1="","",'D1 Traffic'!AI303) -> 7608.192882 | AL96: =IF(AL1="","",'D1 Traffic'!AJ303) ->  | AM96: =IF(AM1="","",'D1 Traffic'!AK303) ->  | AN96: =IF(AN1="","",'D1 Traffic'!AL303) ->  | AO96: =IF(AO1="","",'D1 Traffic'!AM303) ->  | AP96: =IF(AP1="","",'D1 Traffic'!AN303) ->  | AQ96: =IF(AQ1="","",'D1 Traffic'!AO303) ->  | AR96: =IF(AR1="","",'D1 Traffic'!AP303) ->  | AS96: =IF(AS1="","",'D1 Traffic'!AQ303) ->  | AT96: =IF(AT1="","",'D1 Traffic'!AR303) ->  | AU96: =IF(AU1="","",'D1 Traffic'!AS303) ->  | AV96: =IF(AV1="","",'D1 Traffic'!AT303) ->  | AW96: =IF(AW1="","",'D1 Traffic'!AU303) ->  | AX96: =IF(AX1="","",'D1 Traffic'!AV303) ->  | AY96: =IF(AY1="","",'D1 Traffic'!AW303) ->  | AZ96: =IF(AZ1="","",'D1 Traffic'!AX303) ->  | BA96: =IF(BA1="","",'D1 Traffic'!AY303) ->  | BB96: =IF(BB1="","",'D1 Traffic'!AZ303) ->  | BC96: =IF(BC1="","",'D1 Traffic'!BA303) ->  | BD96: =IF(BD1="","",'D1 Traffic'!BB303) ->  | BE96: =IF(BE1="","",'D1 Traffic'!BC303) ->  | BF96: =IF(BF1="","",'D1 Traffic'!BD303) ->  | BG96: =IF(BG1="","",'D1 Traffic'!BE303) ->  | BH96: =IF(BH1="","",'D1 Traffic'!BF303) ->  | BI96: =IF(BI1="","",'D1 Traffic'!BG303) ->  | BJ96: =IF(BJ1="","",'D1 Traffic'!BH303) ->  | BK96: =IF(BK1="","",'D1 Traffic'!BI303) ->  | BL96: =IF(BL1="","",'D1 Traffic'!BJ303) ->  | BM96: =IF(BM1="","",'D1 Traffic'!BK303) ->  | BN96: =IF(BN1="","",'D1 Traffic'!BL303) ->  | BO96: =IF(BO1="","",'D1 Traffic'!BM303) -> 
D97: Tolls | E97: £ k | F97: =SUM(H97:BO97) -> 202368.8555 | H97: =IF(H1="","",'D1 Traffic'!F331) -> 15296.43933 | I97: =IF(I1="","",'D1 Traffic'!G331) -> 14876.48035 | J97: =IF(J1="","",'D1 Traffic'!H331) -> 13834.4257 | K97: =IF(K1="","",'D1 Traffic'!I331) -> 12865.91028 | L97: =IF(L1="","",'D1 Traffic'!J331) -> 11965.70907 | M97: =IF(M1="","",'D1 Traffic'!K331) -> 11128.97057 | N97: =IF(N1="","",'D1 Traffic'!L331) -> 10351.18994 | O97: =IF(O1="","",'D1 Traffic'!M331) -> 9628.184095 | P97: =IF(P1="","",'D1 Traffic'!N331) -> 8956.068604 | Q97: =IF(Q1="","",'D1 Traffic'!O331) -> 8331.236244 | R97: =IF(R1="","",'D1 Traffic'!P331) -> 7750.337102 | S97: =IF(S1="","",'D1 Traffic'!Q331) -> 7210.26012 | T97: =IF(T1="","",'D1 Traffic'!R331) -> 6708.115963 | U97: =IF(U1="","",'D1 Traffic'!S331) -> 6241.221129 | V97: =IF(V1="","",'D1 Traffic'!T331) -> 5807.083197 | W97: =IF(W1="","",'D1 Traffic'!U331) -> 5403.387142 | X97: =IF(X1="","",'D1 Traffic'!V331) -> 5027.982636 | Y97: =IF(Y1="","",'D1 Traffic'!W331) -> 4678.872259 | Z97: =IF(Z1="","",'D1 Traffic'!X331) -> 4354.200558 | AA97: =IF(AA1="","",'D1 Traffic'!Y331) -> 4052.243902 | AB97: =IF(AB1="","",'D1 Traffic'!Z331) -> 3771.401054 | AC97: =IF(AC1="","",'D1 Traffic'!AA331) -> 3510.184428 | AD97: =IF(AD1="","",'D1 Traffic'!AB331) -> 3267.211972 | AE97: =IF(AE1="","",'D1 Traffic'!AC331) -> 3041.199637 | AF97: =IF(AF1="","",'D1 Traffic'!AD331) -> 2830.954377 | AG97: =IF(AG1="","",'D1 Traffic'!AE331) -> 2635.367668 | AH97: =IF(AH1="","",'D1 Traffic'!AF331) -> 2453.409473 | AI97: =IF(AI1="","",'D1 Traffic'!AG331) -> 2284.122656 | AJ97: =IF(AJ1="","",'D1 Traffic'!AH331) -> 2126.617782 | AK97: =IF(AK1="","",'D1 Traffic'!AI331) -> 1980.068304 | AL97: =IF(AL1="","",'D1 Traffic'!AJ331) ->  | AM97: =IF(AM1="","",'D1 Traffic'!AK331) ->  | AN97: =IF(AN1="","",'D1 Traffic'!AL331) ->  | AO97: =IF(AO1="","",'D1 Traffic'!AM331) ->  | AP97: =IF(AP1="","",'D1 Traffic'!AN331) ->  | AQ97: =IF(AQ1="","",'D1 Traffic'!AO331) ->  | AR97: =IF(AR1="","",'D1 Traffic'!AP331) ->  | AS97: =IF(AS1="","",'D1 Traffic'!AQ331) ->  | AT97: =IF(AT1="","",'D1 Traffic'!AR331) ->  | AU97: =IF(AU1="","",'D1 Traffic'!AS331) ->  | AV97: =IF(AV1="","",'D1 Traffic'!AT331) ->  | AW97: =IF(AW1="","",'D1 Traffic'!AU331) ->  | AX97: =IF(AX1="","",'D1 Traffic'!AV331) ->  | AY97: =IF(AY1="","",'D1 Traffic'!AW331) ->  | AZ97: =IF(AZ1="","",'D1 Traffic'!AX331) ->  | BA97: =IF(BA1="","",'D1 Traffic'!AY331) ->  | BB97: =IF(BB1="","",'D1 Traffic'!AZ331) ->  | BC97: =IF(BC1="","",'D1 Traffic'!BA331) ->  | BD97: =IF(BD1="","",'D1 Traffic'!BB331) ->  | BE97: =IF(BE1="","",'D1 Traffic'!BC331) ->  | BF97: =IF(BF1="","",'D1 Traffic'!BD331) ->  | BG97: =IF(BG1="","",'D1 Traffic'!BE331) ->  | BH97: =IF(BH1="","",'D1 Traffic'!BF331) ->  | BI97: =IF(BI1="","",'D1 Traffic'!BG331) ->  | BJ97: =IF(BJ1="","",'D1 Traffic'!BH331) ->  | BK97: =IF(BK1="","",'D1 Traffic'!BI331) ->  | BL97: =IF(BL1="","",'D1 Traffic'!BJ331) ->  | BM97: =IF(BM1="","",'D1 Traffic'!BK331) ->  | BN97: =IF(BN1="","",'D1 Traffic'!BL331) ->  | BO97: =IF(BO1="","",'D1 Traffic'!BM331) -> 
D98: Total Public Income | E98: £ k | F98: =SUM(H98:BO98) -> 1020600.661 | H98: =IF(H75="","",SUM(H96:H97)) -> 78403.88467 | I98: =IF(I75="","",SUM(I96:I97)) -> 76156.33407 | J98: 70714.38592 | K98: 65661.88936 | L98: 60970.93685 | M98: 56615.623 | N98: 52571.90072 | O98: 48817.44784 | P98: 45331.54321 | Q98: 42094.95178 | R98: 39089.81786 | S98: 36299.56616 | T98: 33708.80983 | U98: 31303.26518 | V98: 29069.67248 | W98: 26995.72252 | X98: 25069.98833 | Y98: 23281.86194 | Z98: 21621.49558 | AA98: 20079.74714 | AB98: 18648.12956 | AC98: 17318.76383 | AD98: 16084.33537 | AE98: 14938.05358 | AF98: 13873.61421 | AG98: 12885.16452 | AH98: 11967.27091 | AI98: 11114.88884 | AJ98: 10323.33496 | AK98: 9588.261186
C100: Economic Impacts | D100: aGVA | E100: £ k | F100: =SUM(H100:BO100) -> 94837706.88 | H100: =D1_aGVA_Base*1000 -> 2619492.887 | I100: =IF(I$1="","",H100*(1+GR!I88)) -> 2654038.759 | J100: =IF(J$1="","",I100*(1+GR!J88)) -> 2687479.647 | K100: =IF(K$1="","",J100*(1+GR!K88)) -> 2721341.891 | L100: =IF(L$1="","",K100*(1+GR!L88)) -> 2755630.799 | M100: =IF(M$1="","",L100*(1+GR!M88)) -> 2790351.747 | N100: =IF(N$1="","",M100*(1+GR!N88)) -> 2825510.179 | O100: =IF(O$1="","",N100*(1+GR!O88)) -> 2861111.607 | P100: =IF(P$1="","",O100*(1+GR!P88)) -> 2897161.613 | Q100: =IF(Q$1="","",P100*(1+GR!Q88)) -> 2933665.849 | R100: =IF(R$1="","",Q100*(1+GR!R88)) -> 2970630.039 | S100: =IF(S$1="","",R100*(1+GR!S88)) -> 3008059.978 | T100: =IF(T$1="","",S100*(1+GR!T88)) -> 3045961.533 | U100: =IF(U$1="","",T100*(1+GR!U88)) -> 3084340.649 | V100: =IF(V$1="","",U100*(1+GR!V88)) -> 3123203.341 | W100: =IF(W$1="","",V100*(1+GR!W88)) -> 3162555.703 | X100: =IF(X$1="","",W100*(1+GR!X88)) -> 3202403.905 | Y100: =IF(Y$1="","",X100*(1+GR!Y88)) -> 3242754.194 | Z100: =IF(Z$1="","",Y100*(1+GR!Z88)) -> 3283612.897 | AA100: =IF(AA$1="","",Z100*(1+GR!AA88)) -> 3324986.419 | AB100: =IF(AB$1="","",AA100*(1+GR!AB88)) -> 3366881.248 | AC100: =IF(AC$1="","",AB100*(1+GR!AC88)) -> 3409303.952 | AD100: =IF(AD$1="","",AC100*(1+GR!AD88)) -> 3452261.182 | AE100: =IF(AE$1="","",AD100*(1+GR!AE88)) -> 3495759.673 | AF100: =IF(AF$1="","",AE100*(1+GR!AF88)) -> 3539806.245 | AG100: =IF(AG$1="","",AF100*(1+GR!AG88)) -> 3584407.803 | AH100: =IF(AH$1="","",AG100*(1+GR!AH88)) -> 3629571.342 | AI100: =IF(AI$1="","",AH100*(1+GR!AI88)) -> 3675303.94 | AJ100: =IF(AJ$1="","",AI100*(1+GR!AJ88)) -> 3721612.77 | AK100: =IF(AK$1="","",AJ100*(1+GR!AK88)) -> 3768505.091 | AL100: =IF(AL$1="","",AK100*(1+GR!AL88)) ->  | AM100: =IF(AM$1="","",AL100*(1+GR!AM88)) ->  | AN100: =IF(AN$1="","",AM100*(1+GR!AN88)) ->  | AO100: =IF(AO$1="","",AN100*(1+GR!AO88)) ->  | AP100: =IF(AP$1="","",AO100*(1+GR!AP88)) ->  | AQ100: =IF(AQ$1="","",AP100*(1+GR!AQ88)) ->  | AR100: =IF(AR$1="","",AQ100*(1+GR!AR88)) ->  | AS100: =IF(AS$1="","",AR100*(1+GR!AS88)) ->  | AT100: =IF(AT$1="","",AS100*(1+GR!AT88)) ->  | AU100: =IF(AU$1="","",AT100*(1+GR!AU88)) ->  | AV100: =IF(AV$1="","",AU100*(1+GR!AV88)) ->  | AW100: =IF(AW$1="","",AV100*(1+GR!AW88)) ->  | AX100: =IF(AX$1="","",AW100*(1+GR!AX88)) ->  | AY100: =IF(AY$1="","",AX100*(1+GR!AY88)) ->  | AZ100: =IF(AZ$1="","",AY100*(1+GR!AZ88)) ->  | BA100: =IF(BA$1="","",AZ100*(1+GR!BA88)) ->  | BB100: =IF(BB$1="","",BA100*(1+GR!BB88)) ->  | BC100: =IF(BC$1="","",BB100*(1+GR!BC88)) ->  | BD100: =IF(BD$1="","",BC100*(1+GR!BD88)) ->  | BE100: =IF(BE$1="","",BD100*(1+GR!BE88)) ->  | BF100: =IF(BF$1="","",BE100*(1+GR!BF88)) ->  | BG100: =IF(BG$1="","",BF100*(1+GR!BG88)) ->  | BH100: =IF(BH$1="","",BG100*(1+GR!BH88)) ->  | BI100: =IF(BI$1="","",BH100*(1+GR!BI88)) ->  | BJ100: =IF(BJ$1="","",BI100*(1+GR!BJ88)) ->  | BK100: =IF(BK$1="","",BJ100*(1+GR!BK88)) ->  | BL100: =IF(BL$1="","",BK100*(1+GR!BL88)) ->  | BM100: =IF(BM$1="","",BL100*(1+GR!BM88)) ->  | BN100: =IF(BN$1="","",BM100*(1+GR!BN88)) ->  | BO100: =IF(BO$1="","",BN100*(1+GR!BO88)) -> 
D101: Per Capita aGVA | E101: £ | H101: =IFERROR((H100*1000)/H106,"") -> 58635.10112 | I101: =IF(I$1="","",IFERROR((I100*1000)/I106,"")) -> 58908.95074 | J101: =IF(J$1="","",IFERROR((J100*1000)/J106,"")) -> 59171.91104 | K101: 59436.04516 | L101: 59701.35832 | M101: 59967.85581 | N101: 60235.54289 | O101: 60504.42489 | P101: 60774.50714 | Q101: 61045.79499 | R101: 61318.29383 | S101: 61592.00905 | T101: 61866.9461 | U101: 62143.11043 | V101: 62420.50751 | W101: 62699.14285 | X101: 62979.02197 | Y101: 63260.15043 | Z101: 63542.5338 | AA101: 63826.17769 | AB101: 64111.08772 | AC101: 64397.26954 | AD101: 64684.72883 | AE101: 64973.4713 | AF101: 65263.50266 | AG101: 65554.82868 | AH101: 65847.45514 | AI101: 66141.38783 | AJ101: 66436.6326 | AK101: 66733.19528
D102: Tax Receipts from income | E102: £ k | F102: =SUM(H102:BO102) -> 15294785.99 | H102: =D1_TaxReceip_Base -> 422454.1527 | I102: =IF(I$1="","",H102*(1+GR!I90)) -> 428025.478 | J102: =IF(J$1="","",I102*(1+GR!J90)) -> 433418.599 | K102: =IF(K$1="","",J102*(1+GR!K90)) -> 438879.6734 | L102: =IF(L$1="","",K102*(1+GR!L90)) -> 444409.5573 | M102: =IF(M$1="","",L102*(1+GR!M90)) -> 450009.1177 | N102: =IF(N$1="","",M102*(1+GR!N90)) -> 455679.2326 | O102: =IF(O$1="","",N102*(1+GR!O90)) -> 461420.7909 | P102: =IF(P$1="","",O102*(1+GR!P90)) -> 467234.6929 | Q102: =IF(Q$1="","",P102*(1+GR!Q90)) -> 473121.85 | R102: =IF(R$1="","",Q102*(1+GR!R90)) -> 479083.1853 | S102: =IF(S$1="","",R102*(1+GR!S90)) -> 485119.6335 | T102: =IF(T$1="","",S102*(1+GR!T90)) -> 491232.1408 | U102: =IF(U$1="","",T102*(1+GR!U90)) -> 497421.6658 | V102: =IF(V$1="","",U102*(1+GR!V90)) -> 503689.1788 | W102: =IF(W$1="","",V102*(1+GR!W90)) -> 510035.6625 | X102: =IF(X$1="","",W102*(1+GR!X90)) -> 516462.1118 | Y102: =IF(Y$1="","",X102*(1+GR!Y90)) -> 522969.5344 | Z102: =IF(Z$1="","",Y102*(1+GR!Z90)) -> 529558.9505 | AA102: =IF(AA$1="","",Z102*(1+GR!AA90)) -> 536231.3933 | AB102: =IF(AB$1="","",AA102*(1+GR!AB90)) -> 542987.9089 | AC102: =IF(AC$1="","",AB102*(1+GR!AC90)) -> 549829.5565 | AD102: =IF(AD$1="","",AC102*(1+GR!AD90)) -> 556757.4089 | AE102: =IF(AE$1="","",AD102*(1+GR!AE90)) -> 563772.5523 | AF102: =IF(AF$1="","",AE102*(1+GR!AF90)) -> 570876.0865 | AG102: =IF(AG$1="","",AF102*(1+GR!AG90)) -> 578069.1251 | AH102: =IF(AH$1="","",AG102*(1+GR!AH90)) -> 585352.7961 | AI102: =IF(AI$1="","",AH102*(1+GR!AI90)) -> 592728.2414 | AJ102: =IF(AJ$1="","",AI102*(1+GR!AJ90)) -> 600196.6172 | AK102: =IF(AK$1="","",AJ102*(1+GR!AK90)) -> 607759.0946 | AL102: =IF(AL$1="","",AK102*(1+GR!AL90)) ->  | AM102: =IF(AM$1="","",AL102*(1+GR!AM90)) ->  | AN102: =IF(AN$1="","",AM102*(1+GR!AN90)) ->  | AO102: =IF(AO$1="","",AN102*(1+GR!AO90)) ->  | AP102: =IF(AP$1="","",AO102*(1+GR!AP90)) ->  | AQ102: =IF(AQ$1="","",AP102*(1+GR!AQ90)) ->  | AR102: =IF(AR$1="","",AQ102*(1+GR!AR90)) ->  | AS102: =IF(AS$1="","",AR102*(1+GR!AS90)) ->  | AT102: =IF(AT$1="","",AS102*(1+GR!AT90)) ->  | AU102: =IF(AU$1="","",AT102*(1+GR!AU90)) ->  | AV102: =IF(AV$1="","",AU102*(1+GR!AV90)) ->  | AW102: =IF(AW$1="","",AV102*(1+GR!AW90)) ->  | AX102: =IF(AX$1="","",AW102*(1+GR!AX90)) ->  | AY102: =IF(AY$1="","",AX102*(1+GR!AY90)) ->  | AZ102: =IF(AZ$1="","",AY102*(1+GR!AZ90)) ->  | BA102: =IF(BA$1="","",AZ102*(1+GR!BA90)) ->  | BB102: =IF(BB$1="","",BA102*(1+GR!BB90)) ->  | BC102: =IF(BC$1="","",BB102*(1+GR!BC90)) ->  | BD102: =IF(BD$1="","",BC102*(1+GR!BD90)) ->  | BE102: =IF(BE$1="","",BD102*(1+GR!BE90)) ->  | BF102: =IF(BF$1="","",BE102*(1+GR!BF90)) ->  | BG102: =IF(BG$1="","",BF102*(1+GR!BG90)) ->  | BH102: =IF(BH$1="","",BG102*(1+GR!BH90)) ->  | BI102: =IF(BI$1="","",BH102*(1+GR!BI90)) ->  | BJ102: =IF(BJ$1="","",BI102*(1+GR!BJ90)) ->  | BK102: =IF(BK$1="","",BJ102*(1+GR!BK90)) ->  | BL102: =IF(BL$1="","",BK102*(1+GR!BL90)) ->  | BM102: =IF(BM$1="","",BL102*(1+GR!BM90)) ->  | BN102: =IF(BN$1="","",BM102*(1+GR!BN90)) ->  | BO102: =IF(BO$1="","",BN102*(1+GR!BO90)) -> 
D103: VAT | E103: £ k | F103: =IFERROR(SUM(H103:BO103),0) -> 2753437.516 | H103: =D1_VAT_Base -> 76052.13396 | I103: =IF(I$1="","",H103*(1+GR!I91)) -> 77055.1095 | J103: =IF(J$1="","",I103*(1+GR!J91)) -> 78026.00388 | K103: =IF(K$1="","",J103*(1+GR!K91)) -> 79009.13153 | L103: =IF(L$1="","",K103*(1+GR!L91)) -> 80004.64659 | M103: =IF(M$1="","",L103*(1+GR!M91)) -> 81012.70514 | N103: =IF(N$1="","",M103*(1+GR!N91)) -> 82033.46522 | O103: =IF(O$1="","",N103*(1+GR!O91)) -> 83067.08688 | P103: =IF(P$1="","",O103*(1+GR!P91)) -> 84113.73218 | Q103: =IF(Q$1="","",P103*(1+GR!Q91)) -> 85173.5652 | R103: =IF(R$1="","",Q103*(1+GR!R91)) -> 86246.75212 | S103: =IF(S$1="","",R103*(1+GR!S91)) -> 87333.4612 | T103: =IF(T$1="","",S103*(1+GR!T91)) -> 88433.86281 | U103: =IF(U$1="","",T103*(1+GR!U91)) -> 89548.12948 | V103: =IF(V$1="","",U103*(1+GR!V91)) -> 90676.43591 | W103: =IF(W$1="","",V103*(1+GR!W91)) -> 91818.95901 | X103: =IF(X$1="","",W103*(1+GR!X91)) -> 92975.87789 | Y103: =IF(Y$1="","",X103*(1+GR!Y91)) -> 94147.37395 | Z103: =IF(Z$1="","",Y103*(1+GR!Z91)) -> 95333.63086 | AA103: =IF(AA$1="","",Z103*(1+GR!AA91)) -> 96534.83461 | AB103: =IF(AB$1="","",AA103*(1+GR!AB91)) -> 97751.17353 | AC103: =IF(AC$1="","",AB103*(1+GR!AC91)) -> 98982.83831 | AD103: =IF(AD$1="","",AC103*(1+GR!AD91)) -> 100230.0221 | AE103: =IF(AE$1="","",AD103*(1+GR!AE91)) -> 101492.9204 | AF103: =IF(AF$1="","",AE103*(1+GR!AF91)) -> 102771.7312 | AG103: =IF(AG$1="","",AF103*(1+GR!AG91)) -> 104066.655 | AH103: =IF(AH$1="","",AG103*(1+GR!AH91)) -> 105377.8948 | AI103: =IF(AI$1="","",AH103*(1+GR!AI91)) -> 106705.6563 | AJ103: =IF(AJ$1="","",AI103*(1+GR!AJ91)) -> 108050.1476 | AK103: =IF(AK$1="","",AJ103*(1+GR!AK91)) -> 109411.5794 | AL103: =IF(AL$1="","",AK103*(1+GR!AL91)) ->  | AM103: =IF(AM$1="","",AL103*(1+GR!AM91)) ->  | AN103: =IF(AN$1="","",AM103*(1+GR!AN91)) ->  | AO103: =IF(AO$1="","",AN103*(1+GR!AO91)) ->  | AP103: =IF(AP$1="","",AO103*(1+GR!AP91)) ->  | AQ103: =IF(AQ$1="","",AP103*(1+GR!AQ91)) ->  | AR103: =IF(AR$1="","",AQ103*(1+GR!AR91)) ->  | AS103: =IF(AS$1="","",AR103*(1+GR!AS91)) ->  | AT103: =IF(AT$1="","",AS103*(1+GR!AT91)) ->  | AU103: =IF(AU$1="","",AT103*(1+GR!AU91)) ->  | AV103: =IF(AV$1="","",AU103*(1+GR!AV91)) ->  | AW103: =IF(AW$1="","",AV103*(1+GR!AW91)) ->  | AX103: =IF(AX$1="","",AW103*(1+GR!AX91)) ->  | AY103: =IF(AY$1="","",AX103*(1+GR!AY91)) ->  | AZ103: =IF(AZ$1="","",AY103*(1+GR!AZ91)) ->  | BA103: =IF(BA$1="","",AZ103*(1+GR!BA91)) ->  | BB103: =IF(BB$1="","",BA103*(1+GR!BB91)) ->  | BC103: =IF(BC$1="","",BB103*(1+GR!BC91)) ->  | BD103: =IF(BD$1="","",BC103*(1+GR!BD91)) ->  | BE103: =IF(BE$1="","",BD103*(1+GR!BE91)) ->  | BF103: =IF(BF$1="","",BE103*(1+GR!BF91)) ->  | BG103: =IF(BG$1="","",BF103*(1+GR!BG91)) ->  | BH103: =IF(BH$1="","",BG103*(1+GR!BH91)) ->  | BI103: =IF(BI$1="","",BH103*(1+GR!BI91)) ->  | BJ103: =IF(BJ$1="","",BI103*(1+GR!BJ91)) ->  | BK103: =IF(BK$1="","",BJ103*(1+GR!BK91)) ->  | BL103: =IF(BL$1="","",BK103*(1+GR!BL91)) ->  | BM103: =IF(BM$1="","",BL103*(1+GR!BM91)) ->  | BN103: =IF(BN$1="","",BM103*(1+GR!BN91)) ->  | BO103: =IF(BO$1="","",BN103*(1+GR!BO91)) -> 
D104: NIC | E104: £ k | F104: =SUM(H104:BO104) -> 2391097.042 | H104: =D1_NIC_Base -> 66044.0019 | I104: =IF(I$1="","",H104*(1+GR!I92)) -> 66914.9902 | J104: =IF(J$1="","",I104*(1+GR!J92)) -> 67758.11907 | K104: =IF(K$1="","",J104*(1+GR!K92)) -> 68611.87137 | L104: =IF(L$1="","",K104*(1+GR!L92)) -> 69476.38095 | M104: =IF(M$1="","",L104*(1+GR!M92)) -> 70351.78335 | N104: =IF(N$1="","",M104*(1+GR!N92)) -> 71238.21582 | O104: =IF(O$1="","",N104*(1+GR!O92)) -> 72135.81734 | P104: =IF(P$1="","",O104*(1+GR!P92)) -> 73044.72864 | Q104: =IF(Q$1="","",P104*(1+GR!Q92)) -> 73965.09222 | R104: =IF(R$1="","",Q104*(1+GR!R92)) -> 74897.05238 | S104: =IF(S$1="","",R104*(1+GR!S92)) -> 75840.75524 | T104: =IF(T$1="","",S104*(1+GR!T92)) -> 76796.34876 | U104: =IF(U$1="","",T104*(1+GR!U92)) -> 77763.98275 | V104: =IF(V$1="","",U104*(1+GR!V92)) -> 78743.80894 | W104: =IF(W$1="","",V104*(1+GR!W92)) -> 79735.98093 | X104: =IF(X$1="","",W104*(1+GR!X92)) -> 80740.65429 | Y104: =IF(Y$1="","",X104*(1+GR!Y92)) -> 81757.98653 | Z104: =IF(Z$1="","",Y104*(1+GR!Z92)) -> 82788.13716 | AA104: =IF(AA$1="","",Z104*(1+GR!AA92)) -> 83831.26769 | AB104: =IF(AB$1="","",AA104*(1+GR!AB92)) -> 84887.54167 | AC104: =IF(AC$1="","",AB104*(1+GR!AC92)) -> 85957.12469 | AD104: =IF(AD$1="","",AC104*(1+GR!AD92)) -> 87040.18446 | AE104: =IF(AE$1="","",AD104*(1+GR!AE92)) -> 88136.89079 | AF104: =IF(AF$1="","",AE104*(1+GR!AF92)) -> 89247.41561 | AG104: =IF(AG$1="","",AF104*(1+GR!AG92)) -> 90371.93305 | AH104: =IF(AH$1="","",AG104*(1+GR!AH92)) -> 91510.6194 | AI104: =IF(AI$1="","",AH104*(1+GR!AI92)) -> 92663.65321 | AJ104: =IF(AJ$1="","",AI104*(1+GR!AJ92)) -> 93831.21524 | AK104: =IF(AK$1="","",AJ104*(1+GR!AK92)) -> 95013.48855 | AL104: =IF(AL$1="","",AK104*(1+GR!AL92)) ->  | AM104: =IF(AM$1="","",AL104*(1+GR!AM92)) ->  | AN104: =IF(AN$1="","",AM104*(1+GR!AN92)) ->  | AO104: =IF(AO$1="","",AN104*(1+GR!AO92)) ->  | AP104: =IF(AP$1="","",AO104*(1+GR!AP92)) ->  | AQ104: =IF(AQ$1="","",AP104*(1+GR!AQ92)) ->  | AR104: =IF(AR$1="","",AQ104*(1+GR!AR92)) ->  | AS104: =IF(AS$1="","",AR104*(1+GR!AS92)) ->  | AT104: =IF(AT$1="","",AS104*(1+GR!AT92)) ->  | AU104: =IF(AU$1="","",AT104*(1+GR!AU92)) ->  | AV104: =IF(AV$1="","",AU104*(1+GR!AV92)) ->  | AW104: =IF(AW$1="","",AV104*(1+GR!AW92)) ->  | AX104: =IF(AX$1="","",AW104*(1+GR!AX92)) ->  | AY104: =IF(AY$1="","",AX104*(1+GR!AY92)) ->  | AZ104: =IF(AZ$1="","",AY104*(1+GR!AZ92)) ->  | BA104: =IF(BA$1="","",AZ104*(1+GR!BA92)) ->  | BB104: =IF(BB$1="","",BA104*(1+GR!BB92)) ->  | BC104: =IF(BC$1="","",BB104*(1+GR!BC92)) ->  | BD104: =IF(BD$1="","",BC104*(1+GR!BD92)) ->  | BE104: =IF(BE$1="","",BD104*(1+GR!BE92)) ->  | BF104: =IF(BF$1="","",BE104*(1+GR!BF92)) ->  | BG104: =IF(BG$1="","",BF104*(1+GR!BG92)) ->  | BH104: =IF(BH$1="","",BG104*(1+GR!BH92)) ->  | BI104: =IF(BI$1="","",BH104*(1+GR!BI92)) ->  | BJ104: =IF(BJ$1="","",BI104*(1+GR!BJ92)) ->  | BK104: =IF(BK$1="","",BJ104*(1+GR!BK92)) ->  | BL104: =IF(BL$1="","",BK104*(1+GR!BL92)) ->  | BM104: =IF(BM$1="","",BL104*(1+GR!BM92)) ->  | BN104: =IF(BN$1="","",BM104*(1+GR!BN92)) ->  | BO104: =IF(BO$1="","",BN104*(1+GR!BO92)) -> 
D105: Total tax receipts | E105: £ k | F105: =IFERROR(SUM(H105:BO105),0) -> 20439320.55 | H105: =SUM(H102:H104) -> 564550.2885 | I105: =IF(I$1="","",SUM(I102:I104)) -> 571995.5777 | J105: =IF(J$1="","",SUM(J102:J104)) -> 579202.722 | K105: 586500.6763 | L105: 593890.5848 | M105: 601373.6062 | N105: 608950.9136 | O105: 616623.6951 | P105: 624393.1537 | Q105: 632260.5074 | R105: 640226.9898 | S105: 648293.8499 | T105: 656462.3524 | U105: 664733.7781 | V105: 673109.4237 | W105: 681590.6024 | X105: 690178.644 | Y105: 698874.8949 | Z105: 707680.7186 | AA105: 716597.4956 | AB105: 725626.6241 | AC105: 734769.5195 | AD105: 744027.6155 | AE105: 753402.3634 | AF105: 762895.2332 | AG105: 772507.7132 | AH105: 782241.3103 | AI105: 792097.5509 | AJ105: 802077.98 | AK105: =IF(AK$1="","",SUM(AK102:AK104)) -> 812184.1625
D106: Employment | E106: No. | H106: =D1_Employ_Base -> 44674.484 | I106: =IF(I$1="","",H106*(1+GR!I94)) -> 45053.23428 | J106: =IF(J$1="","",I106*(1+GR!J94)) -> 45418.16547 | K106: =IF(K$1="","",J106*(1+GR!K94)) -> 45786.05261 | L106: =IF(L$1="","",K106*(1+GR!L94)) -> 46156.91964 | M106: =IF(M$1="","",L106*(1+GR!M94)) -> 46530.79069 | N106: =IF(N$1="","",M106*(1+GR!N94)) -> 46907.69009 | O106: =IF(O$1="","",N106*(1+GR!O94)) -> 47287.64238 | P106: =IF(P$1="","",O106*(1+GR!P94)) -> 47670.67229 | Q106: =IF(Q$1="","",P106*(1+GR!Q94)) -> 48056.80473 | R106: =IF(R$1="","",Q106*(1+GR!R94)) -> 48446.06485 | S106: =IF(S$1="","",R106*(1+GR!S94)) -> 48838.47798 | T106: =IF(T$1="","",S106*(1+GR!T94)) -> 49234.06965 | U106: =IF(U$1="","",T106*(1+GR!U94)) -> 49632.86561 | V106: =IF(V$1="","",U106*(1+GR!V94)) -> 50034.89182 | W106: =IF(W$1="","",V106*(1+GR!W94)) -> 50440.17445 | X106: =IF(X$1="","",W106*(1+GR!X94)) -> 50848.73986 | Y106: =IF(Y$1="","",X106*(1+GR!Y94)) -> 51260.61465 | Z106: =IF(Z$1="","",Y106*(1+GR!Z94)) -> 51675.82563 | AA106: =IF(AA$1="","",Z106*(1+GR!AA94)) -> 52094.39982 | AB106: =IF(AB$1="","",AA106*(1+GR!AB94)) -> 52516.36446 | AC106: =IF(AC$1="","",AB106*(1+GR!AC94)) -> 52941.74701 | AD106: =IF(AD$1="","",AC106*(1+GR!AD94)) -> 53370.57516 | AE106: =IF(AE$1="","",AD106*(1+GR!AE94)) -> 53802.87682 | AF106: =IF(AF$1="","",AE106*(1+GR!AF94)) -> 54238.68012 | AG106: =IF(AG$1="","",AF106*(1+GR!AG94)) -> 54678.01343 | AH106: =IF(AH$1="","",AG106*(1+GR!AH94)) -> 55120.90534 | AI106: =IF(AI$1="","",AH106*(1+GR!AI94)) -> 55567.38467 | AJ106: =IF(AJ$1="","",AI106*(1+GR!AJ94)) -> 56017.48049 | AK106: =IF(AK$1="","",AJ106*(1+GR!AK94)) -> 56471.22208 | AL106: =IF(AL$1="","",AK106*(1+GR!AL94)) ->  | AM106: =IF(AM$1="","",AL106*(1+GR!AM94)) ->  | AN106: =IF(AN$1="","",AM106*(1+GR!AN94)) ->  | AO106: =IF(AO$1="","",AN106*(1+GR!AO94)) ->  | AP106: =IF(AP$1="","",AO106*(1+GR!AP94)) ->  | AQ106: =IF(AQ$1="","",AP106*(1+GR!AQ94)) ->  | AR106: =IF(AR$1="","",AQ106*(1+GR!AR94)) ->  | AS106: =IF(AS$1="","",AR106*(1+GR!AS94)) ->  | AT106: =IF(AT$1="","",AS106*(1+GR!AT94)) ->  | AU106: =IF(AU$1="","",AT106*(1+GR!AU94)) ->  | AV106: =IF(AV$1="","",AU106*(1+GR!AV94)) ->  | AW106: =IF(AW$1="","",AV106*(1+GR!AW94)) ->  | AX106: =IF(AX$1="","",AW106*(1+GR!AX94)) ->  | AY106: =IF(AY$1="","",AX106*(1+GR!AY94)) ->  | AZ106: =IF(AZ$1="","",AY106*(1+GR!AZ94)) ->  | BA106: =IF(BA$1="","",AZ106*(1+GR!BA94)) ->  | BB106: =IF(BB$1="","",BA106*(1+GR!BB94)) ->  | BC106: =IF(BC$1="","",BB106*(1+GR!BC94)) ->  | BD106: =IF(BD$1="","",BC106*(1+GR!BD94)) ->  | BE106: =IF(BE$1="","",BD106*(1+GR!BE94)) ->  | BF106: =IF(BF$1="","",BE106*(1+GR!BF94)) ->  | BG106: =IF(BG$1="","",BF106*(1+GR!BG94)) ->  | BH106: =IF(BH$1="","",BG106*(1+GR!BH94)) ->  | BI106: =IF(BI$1="","",BH106*(1+GR!BI94)) ->  | BJ106: =IF(BJ$1="","",BI106*(1+GR!BJ94)) ->  | BK106: =IF(BK$1="","",BJ106*(1+GR!BK94)) ->  | BL106: =IF(BL$1="","",BK106*(1+GR!BL94)) ->  | BM106: =IF(BM$1="","",BL106*(1+GR!BM94)) ->  | BN106: =IF(BN$1="","",BM106*(1+GR!BN94)) ->  | BO106: =IF(BO$1="","",BN106*(1+GR!BO94)) -> 
D107: Total Economic Impacts | E107: £ k | F107: =SUM(H107:BO107) -> 115277027.4 | H107: =IF(H75="","",SUM(H100,H102:H104)) -> 3184043.175 | I107: =IF(I75="","",SUM(I100,I102:I104)) -> 3226034.337 | J107: 3266682.369 | K107: 3307842.567 | L107: 3349521.383 | M107: 3391725.353 | N107: 3434461.092 | O107: 3477735.302 | P107: 3521554.767 | Q107: 3565926.357 | R107: 3610857.029 | S107: 3656353.828 | T107: 3702423.886 | U107: 3749074.427 | V107: 3796312.765 | W107: 3844146.305 | X107: 3892582.549 | Y107: 3941629.089 | Z107: 3991293.615 | AA107: 4041583.915 | AB107: 4092507.872 | AC107: 4144073.472 | AD107: 4196288.797 | AE107: 4249162.036 | AF107: 4302701.478 | AG107: 4356915.516 | AH107: 4411812.652 | AI107: 4467401.491 | AJ107: 4523690.75 | AK107: 4580689.254
A110: ="Discounted costs for " & D1_Name -> Discounted costs for R1 | F110: Analysis period total | H110: =H75 -> 2020 | I110: 2021 | J110: 2022 | K110: 2023 | L110: 2024 | M110: 2025 | N110: 2026 | O110: 2027 | P110: 2028 | Q110: 2029 | R110: 2030 | S110: 2031 | T110: 2032 | U110: 2033 | V110: 2034 | W110: 2035 | X110: 2036 | Y110: 2037 | Z110: 2038 | AA110: 2039 | AB110: 2040 | AC110: 2041 | AD110: 2042 | AE110: 2043 | AF110: 2044 | AG110: 2045 | AH110: 2046 | AI110: 2047 | AJ110: 2048 | AK110: =AK75 -> 2049
D112: Parameter | E112: Unit
D113: Expenditure by Treatment | E113: £ k | F113: =SUM(H113:BO113) -> 40813.16034 | H113: =H78 -> 2144.025 | I113: =IF(I$1="","",I78/(1+GR!I$27)^(I$1-1)) -> 2071.521739 | J113: =IF(J$1="","",J78/(1+GR!J$27)^(J$1-1)) -> 2001.470279 | K113: =IF(K$1="","",K78/(1+GR!K$27)^(K$1-1)) -> 1933.78771 | L113: =IF(L$1="","",L78/(1+GR!L$27)^(L$1-1)) -> 1868.393922 | M113: =IF(M$1="","",M78/(1+GR!M$27)^(M$1-1)) -> 1805.211519 | N113: =IF(N$1="","",N78/(1+GR!N$27)^(N$1-1)) -> 1744.165719 | O113: =IF(O$1="","",O78/(1+GR!O$27)^(O$1-1)) -> 1685.184269 | P113: =IF(P$1="","",P78/(1+GR!P$27)^(P$1-1)) -> 1628.197362 | Q113: =IF(Q$1="","",Q78/(1+GR!Q$27)^(Q$1-1)) -> 1573.137548 | R113: =IF(R$1="","",R78/(1+GR!R$27)^(R$1-1)) -> 1519.93966 | S113: =IF(S$1="","",S78/(1+GR!S$27)^(S$1-1)) -> 1468.540734 | T113: =IF(T$1="","",T78/(1+GR!T$27)^(T$1-1)) -> 1418.879936 | U113: =IF(U$1="","",U78/(1+GR!U$27)^(U$1-1)) -> 1370.898489 | V113: =IF(V$1="","",V78/(1+GR!V$27)^(V$1-1)) -> 1324.539603 | W113: =IF(W$1="","",W78/(1+GR!W$27)^(W$1-1)) -> 1279.748409 | X113: =IF(X$1="","",X78/(1+GR!X$27)^(X$1-1)) -> 1236.471892 | Y113: =IF(Y$1="","",Y78/(1+GR!Y$27)^(Y$1-1)) -> 1194.658833 | Z113: =IF(Z$1="","",Z78/(1+GR!Z$27)^(Z$1-1)) -> 1154.259742 | AA113: =IF(AA$1="","",AA78/(1+GR!AA$27)^(AA$1-1)) -> 1115.226804 | AB113: =IF(AB$1="","",AB78/(1+GR!AB$27)^(AB$1-1)) -> 1077.51382 | AC113: =IF(AC$1="","",AC78/(1+GR!AC$27)^(AC$1-1)) -> 1041.076155 | AD113: =IF(AD$1="","",AD78/(1+GR!AD$27)^(AD$1-1)) -> 1005.870681 | AE113: =IF(AE$1="","",AE78/(1+GR!AE$27)^(AE$1-1)) -> 971.8557305 | AF113: =IF(AF$1="","",AF78/(1+GR!AF$27)^(AF$1-1)) -> 938.991044 | AG113: =IF(AG$1="","",AG78/(1+GR!AG$27)^(AG$1-1)) -> 907.2377237 | AH113: =IF(AH$1="","",AH78/(1+GR!AH$27)^(AH$1-1)) -> 876.5581871 | AI113: =IF(AI$1="","",AI78/(1+GR!AI$27)^(AI$1-1)) -> 846.9161228 | AJ113: =IF(AJ$1="","",AJ78/(1+GR!AJ$27)^(AJ$1-1)) -> 818.2764472 | AK113: =IF(AK$1="","",AK78/(1+GR!AK$27)^(AK$1-1)) -> 790.605263 | AL113: =IF(AL$1="","",AL78/(1+GR!AL$27)^(AL$1-1)) ->  | AM113: =IF(AM$1="","",AM78/(1+GR!AM$27)^(AM$1-1)) ->  | AN113: =IF(AN$1="","",AN78/(1+GR!AN$27)^(AN$1-1)) ->  | AO113: =IF(AO$1="","",AO78/(1+GR!AO$27)^(AO$1-1)) ->  | AP113: =IF(AP$1="","",AP78/(1+GR!AP$27)^(AP$1-1)) ->  | AQ113: =IF(AQ$1="","",AQ78/(1+GR!AQ$27)^(AQ$1-1)) ->  | AR113: =IF(AR$1="","",AR78/(1+GR!AR$27)^(AR$1-1)) ->  | AS113: =IF(AS$1="","",AS78/(1+GR!AS$27)^(AS$1-1)) ->  | AT113: =IF(AT$1="","",AT78/(1+GR!AT$27)^(AT$1-1)) ->  | AU113: =IF(AU$1="","",AU78/(1+GR!AU$27)^(AU$1-1)) ->  | AV113: =IF(AV$1="","",AV78/(1+GR!AV$27)^(AV$1-1)) ->  | AW113: =IF(AW$1="","",AW78/(1+GR!AW$27)^(AW$1-1)) ->  | AX113: =IF(AX$1="","",AX78/(1+GR!AX$27)^(AX$1-1)) ->  | AY113: =IF(AY$1="","",AY78/(1+GR!AY$27)^(AY$1-1)) ->  | AZ113: =IF(AZ$1="","",AZ78/(1+GR!AZ$27)^(AZ$1-1)) ->  | BA113: =IF(BA$1="","",BA78/(1+GR!BA$27)^(BA$1-1)) ->  | BB113: =IF(BB$1="","",BB78/(1+GR!BB$27)^(BB$1-1)) ->  | BC113: =IF(BC$1="","",BC78/(1+GR!BC$27)^(BC$1-1)) ->  | BD113: =IF(BD$1="","",BD78/(1+GR!BD$27)^(BD$1-1)) ->  | BE113: =IF(BE$1="","",BE78/(1+GR!BE$27)^(BE$1-1)) ->  | BF113: =IF(BF$1="","",BF78/(1+GR!BF$27)^(BF$1-1)) ->  | BG113: =IF(BG$1="","",BG78/(1+GR!BG$27)^(BG$1-1)) ->  | BH113: =IF(BH$1="","",BH78/(1+GR!BH$27)^(BH$1-1)) ->  | BI113: =IF(BI$1="","",BI78/(1+GR!BI$27)^(BI$1-1)) ->  | BJ113: =IF(BJ$1="","",BJ78/(1+GR!BJ$27)^(BJ$1-1)) ->  | BK113: =IF(BK$1="","",BK78/(1+GR!BK$27)^(BK$1-1)) ->  | BL113: =IF(BL$1="","",BL78/(1+GR!BL$27)^(BL$1-1)) ->  | BM113: =IF(BM$1="","",BM78/(1+GR!BM$27)^(BM$1-1)) ->  | BN113: =IF(BN$1="","",BN78/(1+GR!BN$27)^(BN$1-1)) ->  | BO113: =IF(BO$1="","",BO78/(1+GR!BO$27)^(BO$1-1)) -> 
D114: Percentage in poor condition | E114: % | H114: =IF(H79="","",H79) -> 0.2873 | I114: =IF(I79="","",I79) -> 0.3453 | J114: 0.3999 | K114: 0.4503 | L114: 0.4959 | M114: 0.5367 | N114: 0.5729 | O114: 0.6046 | P114: 0.6323 | Q114: 0.6562 | R114: 0.6768 | S114: 0.6945 | T114: 0.7097 | U114: 0.7225 | V114: 0.7334 | W114: 0.7427 | X114: 0.7505 | Y114: 0.7571 | Z114: 0.7626 | AA114: 0.7672 | AB114: 0.7711 | AC114: 0.7744 | AD114: 0.7771 | AE114: 0.7793 | AF114: 0.7812 | AG114: 0.7828 | AH114: 0.7841 | AI114: 0.7852 | AJ114: 0.7861 | AK114: 0.7868
C116: Treatment and Condition Impacts | D116: Vehicle operating costs | E116: £ k | F116: =SUM(H116:BO116) -> 28976695.56 | H116: =H81 -> 859660.9936 | I116: =IF(I$1="","",I81/(1+GR!I$27)^(I$1-1)) -> 857845.8595 | J116: =IF(J$1="","",J81/(1+GR!J$27)^(J$1-1)) -> 855932.0374 | K116: =IF(K$1="","",K81/(1+GR!K$27)^(K$1-1)) -> 858554.8944 | L116: =IF(L$1="","",L81/(1+GR!L$27)^(L$1-1)) -> 864547.5574 | M116: =IF(M$1="","",M81/(1+GR!M$27)^(M$1-1)) -> 878653.3899 | N116: =IF(N$1="","",N81/(1+GR!N$27)^(N$1-1)) -> 897365.4838 | O116: =IF(O$1="","",O81/(1+GR!O$27)^(O$1-1)) -> 915847.6415 | P116: =IF(P$1="","",P81/(1+GR!P$27)^(P$1-1)) -> 929539.7077 | Q116: =IF(Q$1="","",Q81/(1+GR!Q$27)^(Q$1-1)) -> 947158.0543 | R116: =IF(R$1="","",R81/(1+GR!R$27)^(R$1-1)) -> 971338.2911 | S116: =IF(S$1="","",S81/(1+GR!S$27)^(S$1-1)) -> 986610.9483 | T116: =IF(T$1="","",T81/(1+GR!T$27)^(T$1-1)) -> 1000403.63 | U116: =IF(U$1="","",U81/(1+GR!U$27)^(U$1-1)) -> 1011468.919 | V116: =IF(V$1="","",V81/(1+GR!V$27)^(V$1-1)) -> 1020323.417 | W116: =IF(W$1="","",W81/(1+GR!W$27)^(W$1-1)) -> 1026697.177 | X116: =IF(X$1="","",X81/(1+GR!X$27)^(X$1-1)) -> 1030576.79 | Y116: =IF(Y$1="","",Y81/(1+GR!Y$27)^(Y$1-1)) -> 1031561.906 | Z116: =IF(Z$1="","",Z81/(1+GR!Z$27)^(Z$1-1)) -> 1033109.952 | AA116: =IF(AA$1="","",AA81/(1+GR!AA$27)^(AA$1-1)) -> 1032403.457 | AB116: =IF(AB$1="","",AB81/(1+GR!AB$27)^(AB$1-1)) -> 1029782.076 | AC116: =IF(AC$1="","",AC81/(1+GR!AC$27)^(AC$1-1)) -> 1027303.541 | AD116: =IF(AD$1="","",AD81/(1+GR!AD$27)^(AD$1-1)) -> 1021951.465 | AE116: =IF(AE$1="","",AE81/(1+GR!AE$27)^(AE$1-1)) -> 1014875.596 | AF116: =IF(AF$1="","",AF81/(1+GR!AF$27)^(AF$1-1)) -> 1006821.003 | AG116: =IF(AG$1="","",AG81/(1+GR!AG$27)^(AG$1-1)) -> 996976.1081 | AH116: =IF(AH$1="","",AH81/(1+GR!AH$27)^(AH$1-1)) -> 986078.7859 | AI116: =IF(AI$1="","",AI81/(1+GR!AI$27)^(AI$1-1)) -> 973937.9003 | AJ116: =IF(AJ$1="","",AJ81/(1+GR!AJ$27)^(AJ$1-1)) -> 961373.6951 | AK116: =IF(AK$1="","",AK81/(1+GR!AK$27)^(AK$1-1)) -> 947995.2806 | AL116: =IF(AL$1="","",AL81/(1+GR!AL$27)^(AL$1-1)) ->  | AM116: =IF(AM$1="","",AM81/(1+GR!AM$27)^(AM$1-1)) ->  | AN116: =IF(AN$1="","",AN81/(1+GR!AN$27)^(AN$1-1)) ->  | AO116: =IF(AO$1="","",AO81/(1+GR!AO$27)^(AO$1-1)) ->  | AP116: =IF(AP$1="","",AP81/(1+GR!AP$27)^(AP$1-1)) ->  | AQ116: =IF(AQ$1="","",AQ81/(1+GR!AQ$27)^(AQ$1-1)) ->  | AR116: =IF(AR$1="","",AR81/(1+GR!AR$27)^(AR$1-1)) ->  | AS116: =IF(AS$1="","",AS81/(1+GR!AS$27)^(AS$1-1)) ->  | AT116: =IF(AT$1="","",AT81/(1+GR!AT$27)^(AT$1-1)) ->  | AU116: =IF(AU$1="","",AU81/(1+GR!AU$27)^(AU$1-1)) ->  | AV116: =IF(AV$1="","",AV81/(1+GR!AV$27)^(AV$1-1)) ->  | AW116: =IF(AW$1="","",AW81/(1+GR!AW$27)^(AW$1-1)) ->  | AX116: =IF(AX$1="","",AX81/(1+GR!AX$27)^(AX$1-1)) ->  | AY116: =IF(AY$1="","",AY81/(1+GR!AY$27)^(AY$1-1)) ->  | AZ116: =IF(AZ$1="","",AZ81/(1+GR!AZ$27)^(AZ$1-1)) ->  | BA116: =IF(BA$1="","",BA81/(1+GR!BA$27)^(BA$1-1)) ->  | BB116: =IF(BB$1="","",BB81/(1+GR!BB$27)^(BB$1-1)) ->  | BC116: =IF(BC$1="","",BC81/(1+GR!BC$27)^(BC$1-1)) ->  | BD116: =IF(BD$1="","",BD81/(1+GR!BD$27)^(BD$1-1)) ->  | BE116: =IF(BE$1="","",BE81/(1+GR!BE$27)^(BE$1-1)) ->  | BF116: =IF(BF$1="","",BF81/(1+GR!BF$27)^(BF$1-1)) ->  | BG116: =IF(BG$1="","",BG81/(1+GR!BG$27)^(BG$1-1)) ->  | BH116: =IF(BH$1="","",BH81/(1+GR!BH$27)^(BH$1-1)) ->  | BI116: =IF(BI$1="","",BI81/(1+GR!BI$27)^(BI$1-1)) ->  | BJ116: =IF(BJ$1="","",BJ81/(1+GR!BJ$27)^(BJ$1-1)) ->  | BK116: =IF(BK$1="","",BK81/(1+GR!BK$27)^(BK$1-1)) ->  | BL116: =IF(BL$1="","",BL81/(1+GR!BL$27)^(BL$1-1)) ->  | BM116: =IF(BM$1="","",BM81/(1+GR!BM$27)^(BM$1-1)) ->  | BN116: =IF(BN$1="","",BN81/(1+GR!BN$27)^(BN$1-1)) ->  | BO116: =IF(BO$1="","",BO81/(1+GR!BO$27)^(BO$1-1)) -> 
D117: Travel time | E117: £ k | F117: 7834028.635 | H117: 293355.5286 | I117: =IF(I$1="","",I82/(1+GR!I$27)^(I$1-1)) -> 292156.759 | J117: =IF(J$1="","",J82/(1+GR!J$27)^(J$1-1)) -> 289325.887 | K117: =IF(K$1="","",K82/(1+GR!K$27)^(K$1-1)) -> 286400.2567 | L117: =IF(L$1="","",L82/(1+GR!L$27)^(L$1-1)) -> 283772.4064 | M117: =IF(M$1="","",M82/(1+GR!M$27)^(M$1-1)) -> 281365.7527 | N117: =IF(N$1="","",N82/(1+GR!N$27)^(N$1-1)) -> 279105.6924 | O117: =IF(O$1="","",O82/(1+GR!O$27)^(O$1-1)) -> 276957.9675 | P117: =IF(P$1="","",P82/(1+GR!P$27)^(P$1-1)) -> 274914.2858 | Q117: =IF(Q$1="","",Q82/(1+GR!Q$27)^(Q$1-1)) -> 272848.0233 | R117: =IF(R$1="","",R82/(1+GR!R$27)^(R$1-1)) -> 270886.6414 | S117: =IF(S$1="","",S82/(1+GR!S$27)^(S$1-1)) -> 268802.8226 | T117: =IF(T$1="","",T82/(1+GR!T$27)^(T$1-1)) -> 266985.4816 | U117: =IF(U$1="","",U82/(1+GR!U$27)^(U$1-1)) -> 265037.5716 | V117: =IF(V$1="","",V82/(1+GR!V$27)^(V$1-1)) -> 263034.2899 | W117: =IF(W$1="","",W82/(1+GR!W$27)^(W$1-1)) -> 261031.6976 | X117: =IF(X$1="","",X82/(1+GR!X$27)^(X$1-1)) -> 259108.9138 | Y117: =IF(Y$1="","",Y82/(1+GR!Y$27)^(Y$1-1)) -> 256953.9927 | Z117: =IF(Z$1="","",Z82/(1+GR!Z$27)^(Z$1-1)) -> 254767.3571 | AA117: =IF(AA$1="","",AA82/(1+GR!AA$27)^(AA$1-1)) -> 252516.585 | AB117: =IF(AB$1="","",AB82/(1+GR!AB$27)^(AB$1-1)) -> 250190.8206 | AC117: =IF(AC$1="","",AC82/(1+GR!AC$27)^(AC$1-1)) -> 247859.3432 | AD117: =IF(AD$1="","",AD82/(1+GR!AD$27)^(AD$1-1)) -> 245274.043 | AE117: =IF(AE$1="","",AE82/(1+GR!AE$27)^(AE$1-1)) -> 242660.9851 | AF117: =IF(AF$1="","",AF82/(1+GR!AF$27)^(AF$1-1)) -> 240005.9205 | AG117: =IF(AG$1="","",AG82/(1+GR!AG$27)^(AG$1-1)) -> 237337.3744 | AH117: =IF(AH$1="","",AH82/(1+GR!AH$27)^(AH$1-1)) -> 234667.0106 | AI117: =IF(AI$1="","",AI82/(1+GR!AI$27)^(AI$1-1)) -> 231778.7146 | AJ117: =IF(AJ$1="","",AJ82/(1+GR!AJ$27)^(AJ$1-1)) -> 228891.4022 | AK117: =IF(AK$1="","",AK82/(1+GR!AK$27)^(AK$1-1)) -> 226035.1083 | AL117: =IF(AL$1="","",AL82/(1+GR!AL$27)^(AL$1-1)) ->  | AM117: =IF(AM$1="","",AM82/(1+GR!AM$27)^(AM$1-1)) ->  | AN117: =IF(AN$1="","",AN82/(1+GR!AN$27)^(AN$1-1)) ->  | AO117: =IF(AO$1="","",AO82/(1+GR!AO$27)^(AO$1-1)) ->  | AP117: =IF(AP$1="","",AP82/(1+GR!AP$27)^(AP$1-1)) ->  | AQ117: =IF(AQ$1="","",AQ82/(1+GR!AQ$27)^(AQ$1-1)) ->  | AR117: =IF(AR$1="","",AR82/(1+GR!AR$27)^(AR$1-1)) ->  | AS117: =IF(AS$1="","",AS82/(1+GR!AS$27)^(AS$1-1)) ->  | AT117: =IF(AT$1="","",AT82/(1+GR!AT$27)^(AT$1-1)) ->  | AU117: =IF(AU$1="","",AU82/(1+GR!AU$27)^(AU$1-1)) ->  | AV117: =IF(AV$1="","",AV82/(1+GR!AV$27)^(AV$1-1)) ->  | AW117: =IF(AW$1="","",AW82/(1+GR!AW$27)^(AW$1-1)) ->  | AX117: =IF(AX$1="","",AX82/(1+GR!AX$27)^(AX$1-1)) ->  | AY117: =IF(AY$1="","",AY82/(1+GR!AY$27)^(AY$1-1)) ->  | AZ117: =IF(AZ$1="","",AZ82/(1+GR!AZ$27)^(AZ$1-1)) ->  | BA117: =IF(BA$1="","",BA82/(1+GR!BA$27)^(BA$1-1)) ->  | BB117: =IF(BB$1="","",BB82/(1+GR!BB$27)^(BB$1-1)) ->  | BC117: =IF(BC$1="","",BC82/(1+GR!BC$27)^(BC$1-1)) ->  | BD117: =IF(BD$1="","",BD82/(1+GR!BD$27)^(BD$1-1)) ->  | BE117: =IF(BE$1="","",BE82/(1+GR!BE$27)^(BE$1-1)) ->  | BF117: =IF(BF$1="","",BF82/(1+GR!BF$27)^(BF$1-1)) ->  | BG117: =IF(BG$1="","",BG82/(1+GR!BG$27)^(BG$1-1)) ->  | BH117: =IF(BH$1="","",BH82/(1+GR!BH$27)^(BH$1-1)) ->  | BI117: =IF(BI$1="","",BI82/(1+GR!BI$27)^(BI$1-1)) ->  | BJ117: =IF(BJ$1="","",BJ82/(1+GR!BJ$27)^(BJ$1-1)) ->  | BK117: =IF(BK$1="","",BK82/(1+GR!BK$27)^(BK$1-1)) ->  | BL117: =IF(BL$1="","",BL82/(1+GR!BL$27)^(BL$1-1)) ->  | BM117: =IF(BM$1="","",BM82/(1+GR!BM$27)^(BM$1-1)) ->  | BN117: =IF(BN$1="","",BN82/(1+GR!BN$27)^(BN$1-1)) ->  | BO117: =IF(BO$1="","",BO82/(1+GR!BO$27)^(BO$1-1)) -> 
D118: Carbon (vehicle fuel) | E118: £ k | F118: 927149.8508 | H118: 29064.02195 | I118: =IF(I$1="","",I83/(1+GR!I$27)^(I$1-1)) -> 28328.43858 | J118: =IF(J$1="","",J83/(1+GR!J$27)^(J$1-1)) -> 27849.53096 | K118: =IF(K$1="","",K83/(1+GR!K$27)^(K$1-1)) -> 27097.02896 | L118: =IF(L$1="","",L83/(1+GR!L$27)^(L$1-1)) -> 26403.1684 | M118: =IF(M$1="","",M83/(1+GR!M$27)^(M$1-1)) -> 25742.31777 | N118: =IF(N$1="","",N83/(1+GR!N$27)^(N$1-1)) -> 25200.38598 | O118: =IF(O$1="","",O83/(1+GR!O$27)^(O$1-1)) -> 24728.95629 | P118: =IF(P$1="","",P83/(1+GR!P$27)^(P$1-1)) -> 24552.22259 | Q118: =IF(Q$1="","",Q83/(1+GR!Q$27)^(Q$1-1)) -> 24173.42806 | R118: =IF(R$1="","",R83/(1+GR!R$27)^(R$1-1)) -> 23845.03224 | S118: =IF(S$1="","",S83/(1+GR!S$27)^(S$1-1)) -> 25056.94434 | T118: =IF(T$1="","",T83/(1+GR!T$27)^(T$1-1)) -> 26532.10315 | U118: =IF(U$1="","",U83/(1+GR!U$27)^(U$1-1)) -> 27690.39355 | V118: =IF(V$1="","",V83/(1+GR!V$27)^(V$1-1)) -> 28991.72834 | W118: =IF(W$1="","",W83/(1+GR!W$27)^(W$1-1)) -> 30029.52846 | X118: =IF(X$1="","",X83/(1+GR!X$27)^(X$1-1)) -> 31231.0803 | Y118: =IF(Y$1="","",Y83/(1+GR!Y$27)^(Y$1-1)) -> 32083.29976 | Z118: =IF(Z$1="","",Z83/(1+GR!Z$27)^(Z$1-1)) -> 33125.72505 | AA118: =IF(AA$1="","",AA83/(1+GR!AA$27)^(AA$1-1)) -> 33885.36017 | AB118: =IF(AB$1="","",AB83/(1+GR!AB$27)^(AB$1-1)) -> 34744.33561 | AC118: =IF(AC$1="","",AC83/(1+GR!AC$27)^(AC$1-1)) -> 35395.18517 | AD118: =IF(AD$1="","",AD83/(1+GR!AD$27)^(AD$1-1)) -> 36146.1264 | AE118: =IF(AE$1="","",AE83/(1+GR!AE$27)^(AE$1-1)) -> 36599.73267 | AF118: =IF(AF$1="","",AF83/(1+GR!AF$27)^(AF$1-1)) -> 37223.53606 | AG118: =IF(AG$1="","",AG83/(1+GR!AG$27)^(AG$1-1)) -> 37600.40444 | AH118: =IF(AH$1="","",AH83/(1+GR!AH$27)^(AH$1-1)) -> 38057.34195 | AI118: =IF(AI$1="","",AI83/(1+GR!AI$27)^(AI$1-1)) -> 38306.24564 | AJ118: =IF(AJ$1="","",AJ83/(1+GR!AJ$27)^(AJ$1-1)) -> 38674.20976 | AK118: =IF(AK$1="","",AK83/(1+GR!AK$27)^(AK$1-1)) -> 38792.03816 | AL118: =IF(AL$1="","",AL83/(1+GR!AL$27)^(AL$1-1)) ->  | AM118: =IF(AM$1="","",AM83/(1+GR!AM$27)^(AM$1-1)) ->  | AN118: =IF(AN$1="","",AN83/(1+GR!AN$27)^(AN$1-1)) ->  | AO118: =IF(AO$1="","",AO83/(1+GR!AO$27)^(AO$1-1)) ->  | AP118: =IF(AP$1="","",AP83/(1+GR!AP$27)^(AP$1-1)) ->  | AQ118: =IF(AQ$1="","",AQ83/(1+GR!AQ$27)^(AQ$1-1)) ->  | AR118: =IF(AR$1="","",AR83/(1+GR!AR$27)^(AR$1-1)) ->  | AS118: =IF(AS$1="","",AS83/(1+GR!AS$27)^(AS$1-1)) ->  | AT118: =IF(AT$1="","",AT83/(1+GR!AT$27)^(AT$1-1)) ->  | AU118: =IF(AU$1="","",AU83/(1+GR!AU$27)^(AU$1-1)) ->  | AV118: =IF(AV$1="","",AV83/(1+GR!AV$27)^(AV$1-1)) ->  | AW118: =IF(AW$1="","",AW83/(1+GR!AW$27)^(AW$1-1)) ->  | AX118: =IF(AX$1="","",AX83/(1+GR!AX$27)^(AX$1-1)) ->  | AY118: =IF(AY$1="","",AY83/(1+GR!AY$27)^(AY$1-1)) ->  | AZ118: =IF(AZ$1="","",AZ83/(1+GR!AZ$27)^(AZ$1-1)) ->  | BA118: =IF(BA$1="","",BA83/(1+GR!BA$27)^(BA$1-1)) ->  | BB118: =IF(BB$1="","",BB83/(1+GR!BB$27)^(BB$1-1)) ->  | BC118: =IF(BC$1="","",BC83/(1+GR!BC$27)^(BC$1-1)) ->  | BD118: =IF(BD$1="","",BD83/(1+GR!BD$27)^(BD$1-1)) ->  | BE118: =IF(BE$1="","",BE83/(1+GR!BE$27)^(BE$1-1)) ->  | BF118: =IF(BF$1="","",BF83/(1+GR!BF$27)^(BF$1-1)) ->  | BG118: =IF(BG$1="","",BG83/(1+GR!BG$27)^(BG$1-1)) ->  | BH118: =IF(BH$1="","",BH83/(1+GR!BH$27)^(BH$1-1)) ->  | BI118: =IF(BI$1="","",BI83/(1+GR!BI$27)^(BI$1-1)) ->  | BJ118: =IF(BJ$1="","",BJ83/(1+GR!BJ$27)^(BJ$1-1)) ->  | BK118: =IF(BK$1="","",BK83/(1+GR!BK$27)^(BK$1-1)) ->  | BL118: =IF(BL$1="","",BL83/(1+GR!BL$27)^(BL$1-1)) ->  | BM118: =IF(BM$1="","",BM83/(1+GR!BM$27)^(BM$1-1)) ->  | BN118: =IF(BN$1="","",BN83/(1+GR!BN$27)^(BN$1-1)) ->  | BO118: =IF(BO$1="","",BO83/(1+GR!BO$27)^(BO$1-1)) -> 
D119: Roadworks Accidents | E119: £ k | F119: 1077.812504 | H119: 51.03084253 | I119: =IF(I$1="","",I84/(1+GR!I$27)^(I$1-1)) -> 50.01926236 | J119: =IF(J$1="","",J84/(1+GR!J$27)^(J$1-1)) -> 48.74190743 | K119: =IF(K$1="","",K84/(1+GR!K$27)^(K$1-1)) -> 47.49346565 | L119: =IF(L$1="","",L84/(1+GR!L$27)^(L$1-1)) -> 46.2733658 | M119: =IF(M$1="","",M84/(1+GR!M$27)^(M$1-1)) -> 45.08113405 | N119: =IF(N$1="","",N84/(1+GR!N$27)^(N$1-1)) -> 43.9162952 | O119: =IF(O$1="","",O84/(1+GR!O$27)^(O$1-1)) -> 42.7677864 | P119: =IF(P$1="","",P84/(1+GR!P$27)^(P$1-1)) -> 41.64644987 | Q119: =IF(Q$1="","",Q84/(1+GR!Q$27)^(Q$1-1)) -> 40.5517735 | R119: =IF(R$1="","",R84/(1+GR!R$27)^(R$1-1)) -> 39.48324815 | S119: =IF(S$1="","",S84/(1+GR!S$27)^(S$1-1)) -> 38.44036814 | T119: =IF(T$1="","",T84/(1+GR!T$27)^(T$1-1)) -> 37.47092021 | U119: =IF(U$1="","",U84/(1+GR!U$27)^(U$1-1)) -> 36.52276773 | V119: =IF(V$1="","",V84/(1+GR!V$27)^(V$1-1)) -> 35.59559282 | W119: =IF(W$1="","",W84/(1+GR!W$27)^(W$1-1)) -> 34.68907413 | X119: =IF(X$1="","",X84/(1+GR!X$27)^(X$1-1)) -> 33.80288743 | Y119: =IF(Y$1="","",Y84/(1+GR!Y$27)^(Y$1-1)) -> 32.90550043 | Z119: =IF(Z$1="","",Z84/(1+GR!Z$27)^(Z$1-1)) -> 32.02995416 | AA119: =IF(AA$1="","",AA84/(1+GR!AA$27)^(AA$1-1)) -> 31.17580605 | AB119: =IF(AB$1="","",AB84/(1+GR!AB$27)^(AB$1-1)) -> 30.34261812 | AC119: =IF(AC$1="","",AC84/(1+GR!AC$27)^(AC$1-1)) -> 29.52995718 | AD119: =IF(AD$1="","",AD84/(1+GR!AD$27)^(AD$1-1)) -> 28.70829545 | AE119: =IF(AE$1="","",AE84/(1+GR!AE$27)^(AE$1-1)) -> 27.90831905 | AF119: =IF(AF$1="","",AF84/(1+GR!AF$27)^(AF$1-1)) -> 27.12950576 | AG119: =IF(AG$1="","",AG84/(1+GR!AG$27)^(AG$1-1)) -> 26.37134367 | AH119: =IF(AH$1="","",AH84/(1+GR!AH$27)^(AH$1-1)) -> 25.6333311 | AI119: =IF(AI$1="","",AI84/(1+GR!AI$27)^(AI$1-1)) -> 24.89483632 | AJ119: =IF(AJ$1="","",AJ84/(1+GR!AJ$27)^(AJ$1-1)) -> 24.17690405 | AK119: =IF(AK$1="","",AK84/(1+GR!AK$27)^(AK$1-1)) -> 23.47899093 | AL119: =IF(AL$1="","",AL84/(1+GR!AL$27)^(AL$1-1)) ->  | AM119: =IF(AM$1="","",AM84/(1+GR!AM$27)^(AM$1-1)) ->  | AN119: =IF(AN$1="","",AN84/(1+GR!AN$27)^(AN$1-1)) ->  | AO119: =IF(AO$1="","",AO84/(1+GR!AO$27)^(AO$1-1)) ->  | AP119: =IF(AP$1="","",AP84/(1+GR!AP$27)^(AP$1-1)) ->  | AQ119: =IF(AQ$1="","",AQ84/(1+GR!AQ$27)^(AQ$1-1)) ->  | AR119: =IF(AR$1="","",AR84/(1+GR!AR$27)^(AR$1-1)) ->  | AS119: =IF(AS$1="","",AS84/(1+GR!AS$27)^(AS$1-1)) ->  | AT119: =IF(AT$1="","",AT84/(1+GR!AT$27)^(AT$1-1)) ->  | AU119: =IF(AU$1="","",AU84/(1+GR!AU$27)^(AU$1-1)) ->  | AV119: =IF(AV$1="","",AV84/(1+GR!AV$27)^(AV$1-1)) ->  | AW119: =IF(AW$1="","",AW84/(1+GR!AW$27)^(AW$1-1)) ->  | AX119: =IF(AX$1="","",AX84/(1+GR!AX$27)^(AX$1-1)) ->  | AY119: =IF(AY$1="","",AY84/(1+GR!AY$27)^(AY$1-1)) ->  | AZ119: =IF(AZ$1="","",AZ84/(1+GR!AZ$27)^(AZ$1-1)) ->  | BA119: =IF(BA$1="","",BA84/(1+GR!BA$27)^(BA$1-1)) ->  | BB119: =IF(BB$1="","",BB84/(1+GR!BB$27)^(BB$1-1)) ->  | BC119: =IF(BC$1="","",BC84/(1+GR!BC$27)^(BC$1-1)) ->  | BD119: =IF(BD$1="","",BD84/(1+GR!BD$27)^(BD$1-1)) ->  | BE119: =IF(BE$1="","",BE84/(1+GR!BE$27)^(BE$1-1)) ->  | BF119: =IF(BF$1="","",BF84/(1+GR!BF$27)^(BF$1-1)) ->  | BG119: =IF(BG$1="","",BG84/(1+GR!BG$27)^(BG$1-1)) ->  | BH119: =IF(BH$1="","",BH84/(1+GR!BH$27)^(BH$1-1)) ->  | BI119: =IF(BI$1="","",BI84/(1+GR!BI$27)^(BI$1-1)) ->  | BJ119: =IF(BJ$1="","",BJ84/(1+GR!BJ$27)^(BJ$1-1)) ->  | BK119: =IF(BK$1="","",BK84/(1+GR!BK$27)^(BK$1-1)) ->  | BL119: =IF(BL$1="","",BL84/(1+GR!BL$27)^(BL$1-1)) ->  | BM119: =IF(BM$1="","",BM84/(1+GR!BM$27)^(BM$1-1)) ->  | BN119: =IF(BN$1="","",BN84/(1+GR!BN$27)^(BN$1-1)) ->  | BO119: =IF(BO$1="","",BO84/(1+GR!BO$27)^(BO$1-1)) -> 
D120: Carbon (vehicles in roadworks) | E120: £ k | F120: 10.11499249 | H120: 0.4725156681 | I120: =IF(I$1="","",I85/(1+GR!I$27)^(I$1-1)) -> 0.4696518211 | J120: =IF(J$1="","",J85/(1+GR!J$27)^(J$1-1)) -> 0.4576469898 | K120: =IF(K$1="","",K85/(1+GR!K$27)^(K$1-1)) -> 0.44593144 | L120: =IF(L$1="","",L85/(1+GR!L$27)^(L$1-1)) -> 0.4344816759 | M120: =IF(M$1="","",M85/(1+GR!M$27)^(M$1-1)) -> 0.4232932566 | N120: =IF(N$1="","",N85/(1+GR!N$27)^(N$1-1)) -> 0.4123617221 | O120: =IF(O$1="","",O85/(1+GR!O$27)^(O$1-1)) -> 0.40158489 | P120: =IF(P$1="","",P85/(1+GR!P$27)^(P$1-1)) -> 0.3910626893 | Q120: =IF(Q$1="","",Q85/(1+GR!Q$27)^(Q$1-1)) -> 0.3807903375 | R120: =IF(R$1="","",R85/(1+GR!R$27)^(R$1-1)) -> 0.3707630797 | S120: =IF(S$1="","",S85/(1+GR!S$27)^(S$1-1)) -> 0.3609761917 | T120: =IF(T$1="","",T85/(1+GR!T$27)^(T$1-1)) -> 0.3518799472 | U120: =IF(U$1="","",U85/(1+GR!U$27)^(U$1-1)) -> 0.3429831641 | V120: =IF(V$1="","",V85/(1+GR!V$27)^(V$1-1)) -> 0.3342828843 | W120: =IF(W$1="","",W85/(1+GR!W$27)^(W$1-1)) -> 0.325776116 | X120: =IF(X$1="","",X85/(1+GR!X$27)^(X$1-1)) -> 0.317459839 | Y120: =IF(Y$1="","",Y85/(1+GR!Y$27)^(Y$1-1)) -> 0.3090378312 | Z120: =IF(Z$1="","",Z85/(1+GR!Z$27)^(Z$1-1)) -> 0.3008205391 | AA120: =IF(AA$1="","",AA85/(1+GR!AA$27)^(AA$1-1)) -> 0.2928038271 | AB120: =IF(AB$1="","",AB85/(1+GR!AB$27)^(AB$1-1)) -> 0.284983602 | AC120: =IF(AC$1="","",AC85/(1+GR!AC$27)^(AC$1-1)) -> 0.2773558146 | AD120: =IF(AD$1="","",AD85/(1+GR!AD$27)^(AD$1-1)) -> 0.2696421438 | AE120: =IF(AE$1="","",AE85/(1+GR!AE$27)^(AE$1-1)) -> 0.2621318966 | AF120: =IF(AF$1="","",AF85/(1+GR!AF$27)^(AF$1-1)) -> 0.2548201811 | AG120: =IF(AG$1="","",AG85/(1+GR!AG$27)^(AG$1-1)) -> 0.2477022018 | AH120: =IF(AH$1="","",AH85/(1+GR!AH$27)^(AH$1-1)) -> 0.2407732586 | AI120: =IF(AI$1="","",AI85/(1+GR!AI$27)^(AI$1-1)) -> 0.2338387284 | AJ120: =IF(AJ$1="","",AJ85/(1+GR!AJ$27)^(AJ$1-1)) -> 0.2270971949 | AK120: =IF(AK$1="","",AK85/(1+GR!AK$27)^(AK$1-1)) -> 0.2205435617 | AL120: =IF(AL$1="","",AL85/(1+GR!AL$27)^(AL$1-1)) ->  | AM120: =IF(AM$1="","",AM85/(1+GR!AM$27)^(AM$1-1)) ->  | AN120: =IF(AN$1="","",AN85/(1+GR!AN$27)^(AN$1-1)) ->  | AO120: =IF(AO$1="","",AO85/(1+GR!AO$27)^(AO$1-1)) ->  | AP120: =IF(AP$1="","",AP85/(1+GR!AP$27)^(AP$1-1)) ->  | AQ120: =IF(AQ$1="","",AQ85/(1+GR!AQ$27)^(AQ$1-1)) ->  | AR120: =IF(AR$1="","",AR85/(1+GR!AR$27)^(AR$1-1)) ->  | AS120: =IF(AS$1="","",AS85/(1+GR!AS$27)^(AS$1-1)) ->  | AT120: =IF(AT$1="","",AT85/(1+GR!AT$27)^(AT$1-1)) ->  | AU120: =IF(AU$1="","",AU85/(1+GR!AU$27)^(AU$1-1)) ->  | AV120: =IF(AV$1="","",AV85/(1+GR!AV$27)^(AV$1-1)) ->  | AW120: =IF(AW$1="","",AW85/(1+GR!AW$27)^(AW$1-1)) ->  | AX120: =IF(AX$1="","",AX85/(1+GR!AX$27)^(AX$1-1)) ->  | AY120: =IF(AY$1="","",AY85/(1+GR!AY$27)^(AY$1-1)) ->  | AZ120: =IF(AZ$1="","",AZ85/(1+GR!AZ$27)^(AZ$1-1)) ->  | BA120: =IF(BA$1="","",BA85/(1+GR!BA$27)^(BA$1-1)) ->  | BB120: =IF(BB$1="","",BB85/(1+GR!BB$27)^(BB$1-1)) ->  | BC120: =IF(BC$1="","",BC85/(1+GR!BC$27)^(BC$1-1)) ->  | BD120: =IF(BD$1="","",BD85/(1+GR!BD$27)^(BD$1-1)) ->  | BE120: =IF(BE$1="","",BE85/(1+GR!BE$27)^(BE$1-1)) ->  | BF120: =IF(BF$1="","",BF85/(1+GR!BF$27)^(BF$1-1)) ->  | BG120: =IF(BG$1="","",BG85/(1+GR!BG$27)^(BG$1-1)) ->  | BH120: =IF(BH$1="","",BH85/(1+GR!BH$27)^(BH$1-1)) ->  | BI120: =IF(BI$1="","",BI85/(1+GR!BI$27)^(BI$1-1)) ->  | BJ120: =IF(BJ$1="","",BJ85/(1+GR!BJ$27)^(BJ$1-1)) ->  | BK120: =IF(BK$1="","",BK85/(1+GR!BK$27)^(BK$1-1)) ->  | BL120: =IF(BL$1="","",BL85/(1+GR!BL$27)^(BL$1-1)) ->  | BM120: =IF(BM$1="","",BM85/(1+GR!BM$27)^(BM$1-1)) ->  | BN120: =IF(BN$1="","",BN85/(1+GR!BN$27)^(BN$1-1)) ->  | BO120: =IF(BO$1="","",BO85/(1+GR!BO$27)^(BO$1-1)) -> 
D121: Roadworks time delays | E121: £ k | F121: 1399.212189 | H121: 65.81270212 | I121: =IF(I$1="","",I86/(1+GR!I$27)^(I$1-1)) -> 65.09805765 | J121: =IF(J$1="","",J86/(1+GR!J$27)^(J$1-1)) -> 63.42124915 | K121: =IF(K$1="","",K86/(1+GR!K$27)^(K$1-1)) -> 61.78179954 | L121: =IF(L$1="","",L86/(1+GR!L$27)^(L$1-1)) -> 60.18020764 | M121: =IF(M$1="","",M86/(1+GR!M$27)^(M$1-1)) -> 58.61581052 | N121: =IF(N$1="","",N86/(1+GR!N$27)^(N$1-1)) -> 57.08794854 | O121: =IF(O$1="","",O86/(1+GR!O$27)^(O$1-1)) -> 55.58470504 | P121: =IF(P$1="","",P86/(1+GR!P$27)^(P$1-1)) -> 54.11749489 | Q121: =IF(Q$1="","",Q86/(1+GR!Q$27)^(Q$1-1)) -> 52.68561517 | R121: =IF(R$1="","",R86/(1+GR!R$27)^(R$1-1)) -> 51.28836864 | S121: =IF(S$1="","",S86/(1+GR!S$27)^(S$1-1)) -> 49.92506413 | T121: =IF(T$1="","",T86/(1+GR!T$27)^(T$1-1)) -> 48.65806903 | U121: =IF(U$1="","",U86/(1+GR!U$27)^(U$1-1)) -> 47.41928134 | V121: =IF(V$1="","",V86/(1+GR!V$27)^(V$1-1)) -> 46.20825937 | W121: =IF(W$1="","",W86/(1+GR!W$27)^(W$1-1)) -> 45.02455828 | X121: =IF(X$1="","",X86/(1+GR!X$27)^(X$1-1)) -> 43.86773078 | Y121: =IF(Y$1="","",Y86/(1+GR!Y$27)^(Y$1-1)) -> 42.69831619 | Z121: =IF(Z$1="","",Z86/(1+GR!Z$27)^(Z$1-1)) -> 41.55757971 | AA121: =IF(AA$1="","",AA86/(1+GR!AA$27)^(AA$1-1)) -> 40.44492957 | AB121: =IF(AB$1="","",AB86/(1+GR!AB$27)^(AB$1-1)) -> 39.35978073 | AC121: =IF(AC$1="","",AC86/(1+GR!AC$27)^(AC$1-1)) -> 38.30155519 | AD121: =IF(AD$1="","",AD86/(1+GR!AD$27)^(AD$1-1)) -> 37.23245176 | AE121: =IF(AE$1="","",AE86/(1+GR!AE$27)^(AE$1-1)) -> 36.19170775 | AF121: =IF(AF$1="","",AF86/(1+GR!AF$27)^(AF$1-1)) -> 35.17863374 | AG121: =IF(AG$1="","",AG86/(1+GR!AG$27)^(AG$1-1)) -> 34.19255424 | AH121: =IF(AH$1="","",AH86/(1+GR!AH$27)^(AH$1-1)) -> 33.23280757 | AI121: =IF(AI$1="","",AI86/(1+GR!AI$27)^(AI$1-1)) -> 32.27279053 | AJ121: =IF(AJ$1="","",AJ86/(1+GR!AJ$27)^(AJ$1-1)) -> 31.33960958 | AK121: =IF(AK$1="","",AK86/(1+GR!AK$27)^(AK$1-1)) -> 30.4325511 | AL121: =IF(AL$1="","",AL86/(1+GR!AL$27)^(AL$1-1)) ->  | AM121: =IF(AM$1="","",AM86/(1+GR!AM$27)^(AM$1-1)) ->  | AN121: =IF(AN$1="","",AN86/(1+GR!AN$27)^(AN$1-1)) ->  | AO121: =IF(AO$1="","",AO86/(1+GR!AO$27)^(AO$1-1)) ->  | AP121: =IF(AP$1="","",AP86/(1+GR!AP$27)^(AP$1-1)) ->  | AQ121: =IF(AQ$1="","",AQ86/(1+GR!AQ$27)^(AQ$1-1)) ->  | AR121: =IF(AR$1="","",AR86/(1+GR!AR$27)^(AR$1-1)) ->  | AS121: =IF(AS$1="","",AS86/(1+GR!AS$27)^(AS$1-1)) ->  | AT121: =IF(AT$1="","",AT86/(1+GR!AT$27)^(AT$1-1)) ->  | AU121: =IF(AU$1="","",AU86/(1+GR!AU$27)^(AU$1-1)) ->  | AV121: =IF(AV$1="","",AV86/(1+GR!AV$27)^(AV$1-1)) ->  | AW121: =IF(AW$1="","",AW86/(1+GR!AW$27)^(AW$1-1)) ->  | AX121: =IF(AX$1="","",AX86/(1+GR!AX$27)^(AX$1-1)) ->  | AY121: =IF(AY$1="","",AY86/(1+GR!AY$27)^(AY$1-1)) ->  | AZ121: =IF(AZ$1="","",AZ86/(1+GR!AZ$27)^(AZ$1-1)) ->  | BA121: =IF(BA$1="","",BA86/(1+GR!BA$27)^(BA$1-1)) ->  | BB121: =IF(BB$1="","",BB86/(1+GR!BB$27)^(BB$1-1)) ->  | BC121: =IF(BC$1="","",BC86/(1+GR!BC$27)^(BC$1-1)) ->  | BD121: =IF(BD$1="","",BD86/(1+GR!BD$27)^(BD$1-1)) ->  | BE121: =IF(BE$1="","",BE86/(1+GR!BE$27)^(BE$1-1)) ->  | BF121: =IF(BF$1="","",BF86/(1+GR!BF$27)^(BF$1-1)) ->  | BG121: =IF(BG$1="","",BG86/(1+GR!BG$27)^(BG$1-1)) ->  | BH121: =IF(BH$1="","",BH86/(1+GR!BH$27)^(BH$1-1)) ->  | BI121: =IF(BI$1="","",BI86/(1+GR!BI$27)^(BI$1-1)) ->  | BJ121: =IF(BJ$1="","",BJ86/(1+GR!BJ$27)^(BJ$1-1)) ->  | BK121: =IF(BK$1="","",BK86/(1+GR!BK$27)^(BK$1-1)) ->  | BL121: =IF(BL$1="","",BL86/(1+GR!BL$27)^(BL$1-1)) ->  | BM121: =IF(BM$1="","",BM86/(1+GR!BM$27)^(BM$1-1)) ->  | BN121: =IF(BN$1="","",BN86/(1+GR!BN$27)^(BN$1-1)) ->  | BO121: =IF(BO$1="","",BO86/(1+GR!BO$27)^(BO$1-1)) -> 
D122: Accidents | E122: £ k | F122: 1442729.821 | H122: 75790.4749 | I122: =IF(I$1="","",I87/(1+GR!I$27)^(I$1-1)) -> 73227.51198 | J122: =IF(J$1="","",J87/(1+GR!J$27)^(J$1-1)) -> 70751.21931 | K122: =IF(K$1="","",K87/(1+GR!K$27)^(K$1-1)) -> 68358.666 | L122: =IF(L$1="","",L87/(1+GR!L$27)^(L$1-1)) -> 66047.02029 | M122: =IF(M$1="","",M87/(1+GR!M$27)^(M$1-1)) -> 63813.54617 | N122: =IF(N$1="","",N87/(1+GR!N$27)^(N$1-1)) -> 61655.60016 | O122: =IF(O$1="","",O87/(1+GR!O$27)^(O$1-1)) -> 59570.62818 | P122: =IF(P$1="","",P87/(1+GR!P$27)^(P$1-1)) -> 57556.16249 | Q122: =IF(Q$1="","",Q87/(1+GR!Q$27)^(Q$1-1)) -> 55609.81883 | R122: =IF(R$1="","",R87/(1+GR!R$27)^(R$1-1)) -> 53729.29356 | S122: =IF(S$1="","",S87/(1+GR!S$27)^(S$1-1)) -> 51912.36092 | T122: =IF(T$1="","",T87/(1+GR!T$27)^(T$1-1)) -> 50156.87046 | U122: =IF(U$1="","",U87/(1+GR!U$27)^(U$1-1)) -> 48460.7444 | V122: =IF(V$1="","",V87/(1+GR!V$27)^(V$1-1)) -> 46821.97527 | W122: =IF(W$1="","",W87/(1+GR!W$27)^(W$1-1)) -> 45238.62345 | X122: =IF(X$1="","",X87/(1+GR!X$27)^(X$1-1)) -> 43708.81493 | Y122: =IF(Y$1="","",Y87/(1+GR!Y$27)^(Y$1-1)) -> 42230.73906 | Z122: =IF(Z$1="","",Z87/(1+GR!Z$27)^(Z$1-1)) -> 40802.64643 | AA122: =IF(AA$1="","",AA87/(1+GR!AA$27)^(AA$1-1)) -> 39422.8468 | AB122: =IF(AB$1="","",AB87/(1+GR!AB$27)^(AB$1-1)) -> 38089.70705 | AC122: =IF(AC$1="","",AC87/(1+GR!AC$27)^(AC$1-1)) -> 36801.64932 | AD122: =IF(AD$1="","",AD87/(1+GR!AD$27)^(AD$1-1)) -> 35557.1491 | AE122: =IF(AE$1="","",AE87/(1+GR!AE$27)^(AE$1-1)) -> 34354.73343 | AF122: =IF(AF$1="","",AF87/(1+GR!AF$27)^(AF$1-1)) -> 33192.97916 | AG122: =IF(AG$1="","",AG87/(1+GR!AG$27)^(AG$1-1)) -> 32070.51127 | AH122: =IF(AH$1="","",AH87/(1+GR!AH$27)^(AH$1-1)) -> 30986.00123 | AI122: =IF(AI$1="","",AI87/(1+GR!AI$27)^(AI$1-1)) -> 29938.16544 | AJ122: =IF(AJ$1="","",AJ87/(1+GR!AJ$27)^(AJ$1-1)) -> 28925.76371 | AK122: =IF(AK$1="","",AK87/(1+GR!AK$27)^(AK$1-1)) -> 27947.59778 | AL122: =IF(AL$1="","",AL87/(1+GR!AL$27)^(AL$1-1)) ->  | AM122: =IF(AM$1="","",AM87/(1+GR!AM$27)^(AM$1-1)) ->  | AN122: =IF(AN$1="","",AN87/(1+GR!AN$27)^(AN$1-1)) ->  | AO122: =IF(AO$1="","",AO87/(1+GR!AO$27)^(AO$1-1)) ->  | AP122: =IF(AP$1="","",AP87/(1+GR!AP$27)^(AP$1-1)) ->  | AQ122: =IF(AQ$1="","",AQ87/(1+GR!AQ$27)^(AQ$1-1)) ->  | AR122: =IF(AR$1="","",AR87/(1+GR!AR$27)^(AR$1-1)) ->  | AS122: =IF(AS$1="","",AS87/(1+GR!AS$27)^(AS$1-1)) ->  | AT122: =IF(AT$1="","",AT87/(1+GR!AT$27)^(AT$1-1)) ->  | AU122: =IF(AU$1="","",AU87/(1+GR!AU$27)^(AU$1-1)) ->  | AV122: =IF(AV$1="","",AV87/(1+GR!AV$27)^(AV$1-1)) ->  | AW122: =IF(AW$1="","",AW87/(1+GR!AW$27)^(AW$1-1)) ->  | AX122: =IF(AX$1="","",AX87/(1+GR!AX$27)^(AX$1-1)) ->  | AY122: =IF(AY$1="","",AY87/(1+GR!AY$27)^(AY$1-1)) ->  | AZ122: =IF(AZ$1="","",AZ87/(1+GR!AZ$27)^(AZ$1-1)) ->  | BA122: =IF(BA$1="","",BA87/(1+GR!BA$27)^(BA$1-1)) ->  | BB122: =IF(BB$1="","",BB87/(1+GR!BB$27)^(BB$1-1)) ->  | BC122: =IF(BC$1="","",BC87/(1+GR!BC$27)^(BC$1-1)) ->  | BD122: =IF(BD$1="","",BD87/(1+GR!BD$27)^(BD$1-1)) ->  | BE122: =IF(BE$1="","",BE87/(1+GR!BE$27)^(BE$1-1)) ->  | BF122: =IF(BF$1="","",BF87/(1+GR!BF$27)^(BF$1-1)) ->  | BG122: =IF(BG$1="","",BG87/(1+GR!BG$27)^(BG$1-1)) ->  | BH122: =IF(BH$1="","",BH87/(1+GR!BH$27)^(BH$1-1)) ->  | BI122: =IF(BI$1="","",BI87/(1+GR!BI$27)^(BI$1-1)) ->  | BJ122: =IF(BJ$1="","",BJ87/(1+GR!BJ$27)^(BJ$1-1)) ->  | BK122: =IF(BK$1="","",BK87/(1+GR!BK$27)^(BK$1-1)) ->  | BL122: =IF(BL$1="","",BL87/(1+GR!BL$27)^(BL$1-1)) ->  | BM122: =IF(BM$1="","",BM87/(1+GR!BM$27)^(BM$1-1)) ->  | BN122: =IF(BN$1="","",BN87/(1+GR!BN$27)^(BN$1-1)) ->  | BO122: =IF(BO$1="","",BO87/(1+GR!BO$27)^(BO$1-1)) -> 
D123: Carbon (Embodied in materials) | E123: £ k | F123: 997.1496984 | H123: 32.23071222 | I123: =IF(I$1="","",I88/(1+GR!I$27)^(I$1-1)) -> 31.59210048 | J123: =IF(J$1="","",J88/(1+GR!J$27)^(J$1-1)) -> 31.39587625 | K123: =IF(K$1="","",K88/(1+GR!K$27)^(K$1-1)) -> 30.75548801 | L123: =IF(L$1="","",L88/(1+GR!L$27)^(L$1-1)) -> 30.12250827 | M123: =IF(M$1="","",M88/(1+GR!M$27)^(M$1-1)) -> 29.4971683 | N123: =IF(N$1="","",N88/(1+GR!N$27)^(N$1-1)) -> 28.87967525 | O123: =IF(O$1="","",O88/(1+GR!O$27)^(O$1-1)) -> 28.2702135 | P123: =IF(P$1="","",P88/(1+GR!P$27)^(P$1-1)) -> 28.0236761 | Q123: =IF(Q$1="","",Q88/(1+GR!Q$27)^(Q$1-1)) -> 27.41874993 | R123: =IF(R$1="","",R88/(1+GR!R$27)^(R$1-1)) -> 26.82269015 | S123: =IF(S$1="","",S88/(1+GR!S$27)^(S$1-1)) -> 28.15526609 | T123: =IF(T$1="","",T88/(1+GR!T$27)^(T$1-1)) -> 29.6761698 | U123: =IF(U$1="","",U88/(1+GR!U$27)^(U$1-1)) -> 30.76334027 | V123: =IF(V$1="","",V88/(1+GR!V$27)^(V$1-1)) -> 32.03161925 | W123: =IF(W$1="","",W88/(1+GR!W$27)^(W$1-1)) -> 32.90012683 | X123: =IF(X$1="","",X88/(1+GR!X$27)^(X$1-1)) -> 33.94265111 | Y123: =IF(Y$1="","",Y88/(1+GR!Y$27)^(Y$1-1)) -> 34.61676711 | Z123: =IF(Z$1="","",Z88/(1+GR!Z$27)^(Z$1-1)) -> 35.4579504 | AA123: =IF(AA$1="","",AA88/(1+GR!AA$27)^(AA$1-1)) -> 35.95968519 | AB123: =IF(AB$1="","",AB88/(1+GR!AB$27)^(AB$1-1)) -> 36.62169272 | AC123: =IF(AC$1="","",AC88/(1+GR!AC$27)^(AC$1-1)) -> 36.97098918 | AD123: =IF(AD$1="","",AD88/(1+GR!AD$27)^(AD$1-1)) -> 37.47392875 | AE123: =IF(AE$1="","",AE88/(1+GR!AE$27)^(AE$1-1)) -> 37.68883983 | AF123: =IF(AF$1="","",AF88/(1+GR!AF$27)^(AF$1-1)) -> 38.05093746 | AG123: =IF(AG$1="","",AG88/(1+GR!AG$27)^(AG$1-1)) -> 38.14778936 | AH123: =IF(AH$1="","",AH88/(1+GR!AH$27)^(AH$1-1)) -> 38.38555061 | AI123: =IF(AI$1="","",AI88/(1+GR!AI$27)^(AI$1-1)) -> 38.37909259 | AJ123: =IF(AJ$1="","",AJ88/(1+GR!AJ$27)^(AJ$1-1)) -> 38.50745076 | AK123: =IF(AK$1="","",AK88/(1+GR!AK$27)^(AK$1-1)) -> 38.41099266 | AL123: =IF(AL$1="","",AL88/(1+GR!AL$27)^(AL$1-1)) ->  | AM123: =IF(AM$1="","",AM88/(1+GR!AM$27)^(AM$1-1)) ->  | AN123: =IF(AN$1="","",AN88/(1+GR!AN$27)^(AN$1-1)) ->  | AO123: =IF(AO$1="","",AO88/(1+GR!AO$27)^(AO$1-1)) ->  | AP123: =IF(AP$1="","",AP88/(1+GR!AP$27)^(AP$1-1)) ->  | AQ123: =IF(AQ$1="","",AQ88/(1+GR!AQ$27)^(AQ$1-1)) ->  | AR123: =IF(AR$1="","",AR88/(1+GR!AR$27)^(AR$1-1)) ->  | AS123: =IF(AS$1="","",AS88/(1+GR!AS$27)^(AS$1-1)) ->  | AT123: =IF(AT$1="","",AT88/(1+GR!AT$27)^(AT$1-1)) ->  | AU123: =IF(AU$1="","",AU88/(1+GR!AU$27)^(AU$1-1)) ->  | AV123: =IF(AV$1="","",AV88/(1+GR!AV$27)^(AV$1-1)) ->  | AW123: =IF(AW$1="","",AW88/(1+GR!AW$27)^(AW$1-1)) ->  | AX123: =IF(AX$1="","",AX88/(1+GR!AX$27)^(AX$1-1)) ->  | AY123: =IF(AY$1="","",AY88/(1+GR!AY$27)^(AY$1-1)) ->  | AZ123: =IF(AZ$1="","",AZ88/(1+GR!AZ$27)^(AZ$1-1)) ->  | BA123: =IF(BA$1="","",BA88/(1+GR!BA$27)^(BA$1-1)) ->  | BB123: =IF(BB$1="","",BB88/(1+GR!BB$27)^(BB$1-1)) ->  | BC123: =IF(BC$1="","",BC88/(1+GR!BC$27)^(BC$1-1)) ->  | BD123: =IF(BD$1="","",BD88/(1+GR!BD$27)^(BD$1-1)) ->  | BE123: =IF(BE$1="","",BE88/(1+GR!BE$27)^(BE$1-1)) ->  | BF123: =IF(BF$1="","",BF88/(1+GR!BF$27)^(BF$1-1)) ->  | BG123: =IF(BG$1="","",BG88/(1+GR!BG$27)^(BG$1-1)) ->  | BH123: =IF(BH$1="","",BH88/(1+GR!BH$27)^(BH$1-1)) ->  | BI123: =IF(BI$1="","",BI88/(1+GR!BI$27)^(BI$1-1)) ->  | BJ123: =IF(BJ$1="","",BJ88/(1+GR!BJ$27)^(BJ$1-1)) ->  | BK123: =IF(BK$1="","",BK88/(1+GR!BK$27)^(BK$1-1)) ->  | BL123: =IF(BL$1="","",BL88/(1+GR!BL$27)^(BL$1-1)) ->  | BM123: =IF(BM$1="","",BM88/(1+GR!BM$27)^(BM$1-1)) ->  | BN123: =IF(BN$1="","",BN88/(1+GR!BN$27)^(BN$1-1)) ->  | BO123: =IF(BO$1="","",BO88/(1+GR!BO$27)^(BO$1-1)) -> 
D124: Total HMAT costs | E124: £ k | F124: 39184088.15 | H124: =IF(H110="","",SUM(H116:H123)) -> 1258020.566 | I124: =IF(I110="","",SUM(I116:I123)) -> 1251705.748 | J124: 1244002.691 | K124: 1240551.323 | L124: 1240907.163 | M124: 1249708.624 | N124: 1263457.459 | O124: 1277232.218 | P124: 1286686.557 | Q124: 1299910.361 | R124: 1319917.223 | S124: 1332499.958 | T124: 1344194.242 | U124: 1352772.677 | V124: 1359285.581 | W124: 1363109.967 | X124: 1364737.53 | Y124: 1362940.467 | Z124: 1361915.027 | AA124: 1358336.122 | AB124: 1352913.548 | AC124: 1347464.798 | AD124: 1339032.468 | AE124: 1328593.099 | AF124: 1317344.052 | AG124: 1304083.358 | AH124: 1289886.632 | AI124: 1274056.807 | AJ124: 1257959.322 | AK124: 1240862.568
C126: Network Benefits | D126: Change in accident costs | E126: £ k | F126: =SUM(H126:BO126) -> -730661.7115 | H126: =H91 -> -34257.67568 | I126: =IF(I$1="","",I91/(1+GR!I$27)^(I$1-1)) -> -33266.13234 | J126: =IF(J$1="","",J91/(1+GR!J$27)^(J$1-1)) -> -32466.4356 | K126: =IF(K$1="","",K91/(1+GR!K$27)^(K$1-1)) -> -31686.42333 | L126: =IF(L$1="","",L91/(1+GR!L$27)^(L$1-1)) -> -30923.6571 | M126: =IF(M$1="","",M91/(1+GR!M$27)^(M$1-1)) -> -30177.76781 | N126: =IF(N$1="","",N91/(1+GR!N$27)^(N$1-1)) -> -29448.38712 | O126: =IF(O$1="","",O91/(1+GR!O$27)^(O$1-1)) -> -28742.02732 | P126: =IF(P$1="","",P91/(1+GR!P$27)^(P$1-1)) -> -28051.12781 | Q126: =IF(Q$1="","",Q91/(1+GR!Q$27)^(Q$1-1)) -> -27375.36601 | R126: =IF(R$1="","",R91/(1+GR!R$27)^(R$1-1)) -> -26714.4259 | S126: =IF(S$1="","",S91/(1+GR!S$27)^(S$1-1)) -> -26067.99791 | T126: =IF(T$1="","",T91/(1+GR!T$27)^(T$1-1)) -> -25400.61063 | U126: =IF(U$1="","",U91/(1+GR!U$27)^(U$1-1)) -> -24748.35605 | V126: =IF(V$1="","",V91/(1+GR!V$27)^(V$1-1)) -> -24110.91039 | W126: =IF(W$1="","",W91/(1+GR!W$27)^(W$1-1)) -> -23487.95663 | X126: =IF(X$1="","",X91/(1+GR!X$27)^(X$1-1)) -> -22879.18439 | Y126: =IF(Y$1="","",Y91/(1+GR!Y$27)^(Y$1-1)) -> -22308.93932 | Z126: =IF(Z$1="","",Z91/(1+GR!Z$27)^(Z$1-1)) -> -21751.42393 | AA126: =IF(AA$1="","",AA91/(1+GR!AA$27)^(AA$1-1)) -> -21206.36939 | AB126: =IF(AB$1="","",AB91/(1+GR!AB$27)^(AB$1-1)) -> -20673.51239 | AC126: =IF(AC$1="","",AC91/(1+GR!AC$27)^(AC$1-1)) -> -20152.59506 | AD126: =IF(AD$1="","",AD91/(1+GR!AD$27)^(AD$1-1)) -> -19668.45883 | AE126: =IF(AE$1="","",AE91/(1+GR!AE$27)^(AE$1-1)) -> -19194.89841 | AF126: =IF(AF$1="","",AF91/(1+GR!AF$27)^(AF$1-1)) -> -18731.6943 | AG126: =IF(AG$1="","",AG91/(1+GR!AG$27)^(AG$1-1)) -> -18278.63146 | AH126: =IF(AH$1="","",AH91/(1+GR!AH$27)^(AH$1-1)) -> -17835.49919 | AI126: =IF(AI$1="","",AI91/(1+GR!AI$27)^(AI$1-1)) -> -17421.07245 | AJ126: =IF(AJ$1="","",AJ91/(1+GR!AJ$27)^(AJ$1-1)) -> -17015.51856 | AK126: =IF(AK$1="","",AK91/(1+GR!AK$27)^(AK$1-1)) -> -16618.65623 | AL126: =IF(AL$1="","",AL91/(1+GR!AL$27)^(AL$1-1)) ->  | AM126: =IF(AM$1="","",AM91/(1+GR!AM$27)^(AM$1-1)) ->  | AN126: =IF(AN$1="","",AN91/(1+GR!AN$27)^(AN$1-1)) ->  | AO126: =IF(AO$1="","",AO91/(1+GR!AO$27)^(AO$1-1)) ->  | AP126: =IF(AP$1="","",AP91/(1+GR!AP$27)^(AP$1-1)) ->  | AQ126: =IF(AQ$1="","",AQ91/(1+GR!AQ$27)^(AQ$1-1)) ->  | AR126: =IF(AR$1="","",AR91/(1+GR!AR$27)^(AR$1-1)) ->  | AS126: =IF(AS$1="","",AS91/(1+GR!AS$27)^(AS$1-1)) ->  | AT126: =IF(AT$1="","",AT91/(1+GR!AT$27)^(AT$1-1)) ->  | AU126: =IF(AU$1="","",AU91/(1+GR!AU$27)^(AU$1-1)) ->  | AV126: =IF(AV$1="","",AV91/(1+GR!AV$27)^(AV$1-1)) ->  | AW126: =IF(AW$1="","",AW91/(1+GR!AW$27)^(AW$1-1)) ->  | AX126: =IF(AX$1="","",AX91/(1+GR!AX$27)^(AX$1-1)) ->  | AY126: =IF(AY$1="","",AY91/(1+GR!AY$27)^(AY$1-1)) ->  | AZ126: =IF(AZ$1="","",AZ91/(1+GR!AZ$27)^(AZ$1-1)) ->  | BA126: =IF(BA$1="","",BA91/(1+GR!BA$27)^(BA$1-1)) ->  | BB126: =IF(BB$1="","",BB91/(1+GR!BB$27)^(BB$1-1)) ->  | BC126: =IF(BC$1="","",BC91/(1+GR!BC$27)^(BC$1-1)) ->  | BD126: =IF(BD$1="","",BD91/(1+GR!BD$27)^(BD$1-1)) ->  | BE126: =IF(BE$1="","",BE91/(1+GR!BE$27)^(BE$1-1)) ->  | BF126: =IF(BF$1="","",BF91/(1+GR!BF$27)^(BF$1-1)) ->  | BG126: =IF(BG$1="","",BG91/(1+GR!BG$27)^(BG$1-1)) ->  | BH126: =IF(BH$1="","",BH91/(1+GR!BH$27)^(BH$1-1)) ->  | BI126: =IF(BI$1="","",BI91/(1+GR!BI$27)^(BI$1-1)) ->  | BJ126: =IF(BJ$1="","",BJ91/(1+GR!BJ$27)^(BJ$1-1)) ->  | BK126: =IF(BK$1="","",BK91/(1+GR!BK$27)^(BK$1-1)) ->  | BL126: =IF(BL$1="","",BL91/(1+GR!BL$27)^(BL$1-1)) ->  | BM126: =IF(BM$1="","",BM91/(1+GR!BM$27)^(BM$1-1)) ->  | BN126: =IF(BN$1="","",BN91/(1+GR!BN$27)^(BN$1-1)) ->  | BO126: =IF(BO$1="","",BO91/(1+GR!BO$27)^(BO$1-1)) -> 
D127: Change in travel time costs | E127: £ k | F127: =SUM(H127:BO127) -> 3041336.77 | H127: =H92 -> 117698.9937 | I127: =IF(I$1="","",I92/(1+GR!I$27)^(I$1-1)) -> 116330.1223 | J127: =IF(J$1="","",J92/(1+GR!J$27)^(J$1-1)) -> 114457.7494 | K127: =IF(K$1="","",K92/(1+GR!K$27)^(K$1-1)) -> 112624.2121 | L127: =IF(L$1="","",L92/(1+GR!L$27)^(L$1-1)) -> 110995.9716 | M127: =IF(M$1="","",M92/(1+GR!M$27)^(M$1-1)) -> 109543.8993 | N127: =IF(N$1="","",N92/(1+GR!N$27)^(N$1-1)) -> 108234.6818 | O127: =IF(O$1="","",O92/(1+GR!O$27)^(O$1-1)) -> 107071.2856 | P127: =IF(P$1="","",P92/(1+GR!P$27)^(P$1-1)) -> 106021.0307 | Q127: =IF(Q$1="","",Q92/(1+GR!Q$27)^(Q$1-1)) -> 105023.2695 | R127: =IF(R$1="","",R92/(1+GR!R$27)^(R$1-1)) -> 104125.6502 | S127: =IF(S$1="","",S92/(1+GR!S$27)^(S$1-1)) -> 103224.728 | T127: =IF(T$1="","",T92/(1+GR!T$27)^(T$1-1)) -> 102478.7292 | U127: =IF(U$1="","",U92/(1+GR!U$27)^(U$1-1)) -> 101714.0578 | V127: =IF(V$1="","",V92/(1+GR!V$27)^(V$1-1)) -> 100957.4617 | W127: =IF(W$1="","",W92/(1+GR!W$27)^(W$1-1)) -> 100228.0518 | X127: =IF(X$1="","",X92/(1+GR!X$27)^(X$1-1)) -> 99555.31572 | Y127: =IF(Y$1="","",Y92/(1+GR!Y$27)^(Y$1-1)) -> 98821.8203 | Z127: =IF(Z$1="","",Z92/(1+GR!Z$27)^(Z$1-1)) -> 98089.89106 | AA127: =IF(AA$1="","",AA92/(1+GR!AA$27)^(AA$1-1)) -> 97342.83097 | AB127: =IF(AB$1="","",AB92/(1+GR!AB$27)^(AB$1-1)) -> 96573.46663 | AC127: =IF(AC$1="","",AC92/(1+GR!AC$27)^(AC$1-1)) -> 95809.24795 | AD127: =IF(AD$1="","",AD92/(1+GR!AD$27)^(AD$1-1)) -> 94951.28904 | AE127: =IF(AE$1="","",AE92/(1+GR!AE$27)^(AE$1-1)) -> 94085.06058 | AF127: =IF(AF$1="","",AF92/(1+GR!AF$27)^(AF$1-1)) -> 93203.05673 | AG127: =IF(AG$1="","",AG92/(1+GR!AG$27)^(AG$1-1)) -> 92316.36882 | AH127: =IF(AH$1="","",AH92/(1+GR!AH$27)^(AH$1-1)) -> 91429.05853 | AI127: =IF(AI$1="","",AI92/(1+GR!AI$27)^(AI$1-1)) -> 90451.59002 | AJ127: =IF(AJ$1="","",AJ92/(1+GR!AJ$27)^(AJ$1-1)) -> 89472.7804 | AK127: =IF(AK$1="","",AK92/(1+GR!AK$27)^(AK$1-1)) -> 88505.09867 | AL127: =IF(AL$1="","",AL92/(1+GR!AL$27)^(AL$1-1)) ->  | AM127: =IF(AM$1="","",AM92/(1+GR!AM$27)^(AM$1-1)) ->  | AN127: =IF(AN$1="","",AN92/(1+GR!AN$27)^(AN$1-1)) ->  | AO127: =IF(AO$1="","",AO92/(1+GR!AO$27)^(AO$1-1)) ->  | AP127: =IF(AP$1="","",AP92/(1+GR!AP$27)^(AP$1-1)) ->  | AQ127: =IF(AQ$1="","",AQ92/(1+GR!AQ$27)^(AQ$1-1)) ->  | AR127: =IF(AR$1="","",AR92/(1+GR!AR$27)^(AR$1-1)) ->  | AS127: =IF(AS$1="","",AS92/(1+GR!AS$27)^(AS$1-1)) ->  | AT127: =IF(AT$1="","",AT92/(1+GR!AT$27)^(AT$1-1)) ->  | AU127: =IF(AU$1="","",AU92/(1+GR!AU$27)^(AU$1-1)) ->  | AV127: =IF(AV$1="","",AV92/(1+GR!AV$27)^(AV$1-1)) ->  | AW127: =IF(AW$1="","",AW92/(1+GR!AW$27)^(AW$1-1)) ->  | AX127: =IF(AX$1="","",AX92/(1+GR!AX$27)^(AX$1-1)) ->  | AY127: =IF(AY$1="","",AY92/(1+GR!AY$27)^(AY$1-1)) ->  | AZ127: =IF(AZ$1="","",AZ92/(1+GR!AZ$27)^(AZ$1-1)) ->  | BA127: =IF(BA$1="","",BA92/(1+GR!BA$27)^(BA$1-1)) ->  | BB127: =IF(BB$1="","",BB92/(1+GR!BB$27)^(BB$1-1)) ->  | BC127: =IF(BC$1="","",BC92/(1+GR!BC$27)^(BC$1-1)) ->  | BD127: =IF(BD$1="","",BD92/(1+GR!BD$27)^(BD$1-1)) ->  | BE127: =IF(BE$1="","",BE92/(1+GR!BE$27)^(BE$1-1)) ->  | BF127: =IF(BF$1="","",BF92/(1+GR!BF$27)^(BF$1-1)) ->  | BG127: =IF(BG$1="","",BG92/(1+GR!BG$27)^(BG$1-1)) ->  | BH127: =IF(BH$1="","",BH92/(1+GR!BH$27)^(BH$1-1)) ->  | BI127: =IF(BI$1="","",BI92/(1+GR!BI$27)^(BI$1-1)) ->  | BJ127: =IF(BJ$1="","",BJ92/(1+GR!BJ$27)^(BJ$1-1)) ->  | BK127: =IF(BK$1="","",BK92/(1+GR!BK$27)^(BK$1-1)) ->  | BL127: =IF(BL$1="","",BL92/(1+GR!BL$27)^(BL$1-1)) ->  | BM127: =IF(BM$1="","",BM92/(1+GR!BM$27)^(BM$1-1)) ->  | BN127: =IF(BN$1="","",BN92/(1+GR!BN$27)^(BN$1-1)) ->  | BO127: =IF(BO$1="","",BO92/(1+GR!BO$27)^(BO$1-1)) -> 
D128: Change in cost of CO2 emissions | E128: £ k | F128: =SUM(H128:BO128) -> 650661.0965 | H128: =H93 -> 20401.46124 | I128: =IF(I$1="","",I93/(1+GR!I$27)^(I$1-1)) -> 19885.46893 | J128: =IF(J$1="","",J93/(1+GR!J$27)^(J$1-1)) -> 19549.54412 | K128: =IF(K$1="","",K93/(1+GR!K$27)^(K$1-1)) -> 19020.96608 | L128: =IF(L$1="","",L93/(1+GR!L$27)^(L$1-1)) -> 18533.54014 | M128: =IF(M$1="","",M93/(1+GR!M$27)^(M$1-1)) -> 18069.27648 | N128: =IF(N$1="","",N93/(1+GR!N$27)^(N$1-1)) -> 17688.47985 | O128: =IF(O$1="","",O93/(1+GR!O$27)^(O$1-1)) -> 17357.19747 | P128: =IF(P$1="","",P93/(1+GR!P$27)^(P$1-1)) -> 17232.77769 | Q128: =IF(Q$1="","",Q93/(1+GR!Q$27)^(Q$1-1)) -> 16966.5493 | R128: =IF(R$1="","",R93/(1+GR!R$27)^(R$1-1)) -> 16735.71039 | S128: =IF(S$1="","",S93/(1+GR!S$27)^(S$1-1)) -> 17585.93438 | T128: =IF(T$1="","",T93/(1+GR!T$27)^(T$1-1)) -> 18620.87133 | U128: =IF(U$1="","",U93/(1+GR!U$27)^(U$1-1)) -> 19433.3916 | V128: =IF(V$1="","",V93/(1+GR!V$27)^(V$1-1)) -> 20346.27441 | W128: =IF(W$1="","",W93/(1+GR!W$27)^(W$1-1)) -> 21074.18467 | X128: =IF(X$1="","",X93/(1+GR!X$27)^(X$1-1)) -> 21916.99 | Y128: =IF(Y$1="","",Y93/(1+GR!Y$27)^(Y$1-1)) -> 22514.68097 | Z128: =IF(Z$1="","",Z93/(1+GR!Z$27)^(Z$1-1)) -> 23245.83458 | AA128: =IF(AA$1="","",AA93/(1+GR!AA$27)^(AA$1-1)) -> 23778.52715 | AB128: =IF(AB$1="","",AB93/(1+GR!AB$27)^(AB$1-1)) -> 24380.91836 | AC128: =IF(AC$1="","",AC93/(1+GR!AC$27)^(AC$1-1)) -> 24837.25232 | AD128: =IF(AD$1="","",AD93/(1+GR!AD$27)^(AD$1-1)) -> 25363.8956 | AE128: =IF(AE$1="","",AE93/(1+GR!AE$27)^(AE$1-1)) -> 25681.89167 | AF128: =IF(AF$1="","",AF93/(1+GR!AF$27)^(AF$1-1)) -> 26119.30962 | AG128: =IF(AG$1="","",AG93/(1+GR!AG$27)^(AG$1-1)) -> 26383.45216 | AH128: =IF(AH$1="","",AH93/(1+GR!AH$27)^(AH$1-1)) -> 26703.77492 | AI128: =IF(AI$1="","",AI93/(1+GR!AI$27)^(AI$1-1)) -> 26878.19295 | AJ128: =IF(AJ$1="","",AJ93/(1+GR!AJ$27)^(AJ$1-1)) -> 27136.15055 | AK128: =IF(AK$1="","",AK93/(1+GR!AK$27)^(AK$1-1)) -> 27218.59757 | AL128: =IF(AL$1="","",AL93/(1+GR!AL$27)^(AL$1-1)) ->  | AM128: =IF(AM$1="","",AM93/(1+GR!AM$27)^(AM$1-1)) ->  | AN128: =IF(AN$1="","",AN93/(1+GR!AN$27)^(AN$1-1)) ->  | AO128: =IF(AO$1="","",AO93/(1+GR!AO$27)^(AO$1-1)) ->  | AP128: =IF(AP$1="","",AP93/(1+GR!AP$27)^(AP$1-1)) ->  | AQ128: =IF(AQ$1="","",AQ93/(1+GR!AQ$27)^(AQ$1-1)) ->  | AR128: =IF(AR$1="","",AR93/(1+GR!AR$27)^(AR$1-1)) ->  | AS128: =IF(AS$1="","",AS93/(1+GR!AS$27)^(AS$1-1)) ->  | AT128: =IF(AT$1="","",AT93/(1+GR!AT$27)^(AT$1-1)) ->  | AU128: =IF(AU$1="","",AU93/(1+GR!AU$27)^(AU$1-1)) ->  | AV128: =IF(AV$1="","",AV93/(1+GR!AV$27)^(AV$1-1)) ->  | AW128: =IF(AW$1="","",AW93/(1+GR!AW$27)^(AW$1-1)) ->  | AX128: =IF(AX$1="","",AX93/(1+GR!AX$27)^(AX$1-1)) ->  | AY128: =IF(AY$1="","",AY93/(1+GR!AY$27)^(AY$1-1)) ->  | AZ128: =IF(AZ$1="","",AZ93/(1+GR!AZ$27)^(AZ$1-1)) ->  | BA128: =IF(BA$1="","",BA93/(1+GR!BA$27)^(BA$1-1)) ->  | BB128: =IF(BB$1="","",BB93/(1+GR!BB$27)^(BB$1-1)) ->  | BC128: =IF(BC$1="","",BC93/(1+GR!BC$27)^(BC$1-1)) ->  | BD128: =IF(BD$1="","",BD93/(1+GR!BD$27)^(BD$1-1)) ->  | BE128: =IF(BE$1="","",BE93/(1+GR!BE$27)^(BE$1-1)) ->  | BF128: =IF(BF$1="","",BF93/(1+GR!BF$27)^(BF$1-1)) ->  | BG128: =IF(BG$1="","",BG93/(1+GR!BG$27)^(BG$1-1)) ->  | BH128: =IF(BH$1="","",BH93/(1+GR!BH$27)^(BH$1-1)) ->  | BI128: =IF(BI$1="","",BI93/(1+GR!BI$27)^(BI$1-1)) ->  | BJ128: =IF(BJ$1="","",BJ93/(1+GR!BJ$27)^(BJ$1-1)) ->  | BK128: =IF(BK$1="","",BK93/(1+GR!BK$27)^(BK$1-1)) ->  | BL128: =IF(BL$1="","",BL93/(1+GR!BL$27)^(BL$1-1)) ->  | BM128: =IF(BM$1="","",BM93/(1+GR!BM$27)^(BM$1-1)) ->  | BN128: =IF(BN$1="","",BN93/(1+GR!BN$27)^(BN$1-1)) ->  | BO128: =IF(BO$1="","",BO93/(1+GR!BO$27)^(BO$1-1)) -> 
D129: Total Network Benefits costs | E129: £ k | F129: =SUM(H129:BO129) -> 2961336.155 | H129: =IF(H110="","",SUM(H126:H128)) -> 103842.7793 | I129: =IF(I110="","",SUM(I126:I128)) -> 102949.4589 | J129: 101540.8579 | K129: 99958.75481 | L129: 98605.8546 | M129: 97435.40795 | N129: 96474.77453 | O129: 95686.45579 | P129: 95202.68056 | Q129: 94614.45275 | R129: 94146.93465 | S129: 94742.66451 | T129: 95698.98987 | U129: 96399.09333 | V129: 97192.82571 | W129: 97814.2798 | X129: 98593.12133 | Y129: 99027.56195 | Z129: 99584.30171 | AA129: 99914.98873 | AB129: 100280.8726 | AC129: 100493.9052 | AD129: 100646.7258 | AE129: 100572.0538 | AF129: 100590.672 | AG129: 100421.1895 | AH129: 100297.3343 | AI129: 99908.71052 | AJ129: 99593.41239 | AK129: 99105.04002
C131: Public Income | D131: Congestion charge | E131: £ k | F131: =SUM(H131:BO131) -> 612506.1536 | H131: =H96 -> 63107.44534 | I131: =IF(I$1="","",I96/(1+GR!I$27)^(I$1-1)) -> 59207.58813 | J131: =IF(J$1="","",J96/(1+GR!J$27)^(J$1-1)) -> 53098.0515 | K131: =IF(K$1="","",K96/(1+GR!K$27)^(K$1-1)) -> 47618.94822 | L131: =IF(L$1="","",L96/(1+GR!L$27)^(L$1-1)) -> 42705.22487 | M131: =IF(M$1="","",M96/(1+GR!M$27)^(M$1-1)) -> 38298.54079 | N131: =IF(N$1="","",N96/(1+GR!N$27)^(N$1-1)) -> 34346.57542 | O131: =IF(O$1="","",O96/(1+GR!O$27)^(O$1-1)) -> 30802.40706 | P131: =IF(P$1="","",P96/(1+GR!P$27)^(P$1-1)) -> 27623.95578 | Q131: =IF(Q$1="","",Q96/(1+GR!Q$27)^(Q$1-1)) -> 24773.48382 | R131: =IF(R$1="","",R96/(1+GR!R$27)^(R$1-1)) -> 22217.14752 | S131: =IF(S$1="","",S96/(1+GR!S$27)^(S$1-1)) -> 19924.59549 | T131: =IF(T$1="","",T96/(1+GR!T$27)^(T$1-1)) -> 17868.60824 | U131: =IF(U$1="","",U96/(1+GR!U$27)^(U$1-1)) -> 16024.77504 | V131: =IF(V$1="","",V96/(1+GR!V$27)^(V$1-1)) -> 14371.20405 | W131: =IF(W$1="","",W96/(1+GR!W$27)^(W$1-1)) -> 12888.26242 | X131: =IF(X$1="","",X96/(1+GR!X$27)^(X$1-1)) -> 11558.34317 | Y131: =IF(Y$1="","",Y96/(1+GR!Y$27)^(Y$1-1)) -> 10365.65616 | Z131: =IF(Z$1="","",Z96/(1+GR!Z$27)^(Z$1-1)) -> 9296.040627 | AA131: =IF(AA$1="","",AA96/(1+GR!AA$27)^(AA$1-1)) -> 8336.797014 | AB131: =IF(AB$1="","",AB96/(1+GR!AB$27)^(AB$1-1)) -> 7476.536221 | AC131: =IF(AC$1="","",AC96/(1+GR!AC$27)^(AC$1-1)) -> 6705.044367 | AD131: =IF(AD$1="","",AD96/(1+GR!AD$27)^(AD$1-1)) -> 6013.161528 | AE131: =IF(AE$1="","",AE96/(1+GR!AE$27)^(AE$1-1)) -> 5392.672976 | AF131: =IF(AF$1="","",AF96/(1+GR!AF$27)^(AF$1-1)) -> 4836.211649 | AG131: =IF(AG$1="","",AG96/(1+GR!AG$27)^(AG$1-1)) -> 4337.170679 | AH131: =IF(AH$1="","",AH96/(1+GR!AH$27)^(AH$1-1)) -> 3889.624951 | AI131: =IF(AI$1="","",AI96/(1+GR!AI$27)^(AI$1-1)) -> 3488.260753 | AJ131: =IF(AJ$1="","",AJ96/(1+GR!AJ$27)^(AJ$1-1)) -> 3128.312687 | AK131: =IF(AK$1="","",AK96/(1+GR!AK$27)^(AK$1-1)) -> 2805.507088 | AL131: =IF(AL$1="","",AL96/(1+GR!AL$27)^(AL$1-1)) ->  | AM131: =IF(AM$1="","",AM96/(1+GR!AM$27)^(AM$1-1)) ->  | AN131: =IF(AN$1="","",AN96/(1+GR!AN$27)^(AN$1-1)) ->  | AO131: =IF(AO$1="","",AO96/(1+GR!AO$27)^(AO$1-1)) ->  | AP131: =IF(AP$1="","",AP96/(1+GR!AP$27)^(AP$1-1)) ->  | AQ131: =IF(AQ$1="","",AQ96/(1+GR!AQ$27)^(AQ$1-1)) ->  | AR131: =IF(AR$1="","",AR96/(1+GR!AR$27)^(AR$1-1)) ->  | AS131: =IF(AS$1="","",AS96/(1+GR!AS$27)^(AS$1-1)) ->  | AT131: =IF(AT$1="","",AT96/(1+GR!AT$27)^(AT$1-1)) ->  | AU131: =IF(AU$1="","",AU96/(1+GR!AU$27)^(AU$1-1)) ->  | AV131: =IF(AV$1="","",AV96/(1+GR!AV$27)^(AV$1-1)) ->  | AW131: =IF(AW$1="","",AW96/(1+GR!AW$27)^(AW$1-1)) ->  | AX131: =IF(AX$1="","",AX96/(1+GR!AX$27)^(AX$1-1)) ->  | AY131: =IF(AY$1="","",AY96/(1+GR!AY$27)^(AY$1-1)) ->  | AZ131: =IF(AZ$1="","",AZ96/(1+GR!AZ$27)^(AZ$1-1)) ->  | BA131: =IF(BA$1="","",BA96/(1+GR!BA$27)^(BA$1-1)) ->  | BB131: =IF(BB$1="","",BB96/(1+GR!BB$27)^(BB$1-1)) ->  | BC131: =IF(BC$1="","",BC96/(1+GR!BC$27)^(BC$1-1)) ->  | BD131: =IF(BD$1="","",BD96/(1+GR!BD$27)^(BD$1-1)) ->  | BE131: =IF(BE$1="","",BE96/(1+GR!BE$27)^(BE$1-1)) ->  | BF131: =IF(BF$1="","",BF96/(1+GR!BF$27)^(BF$1-1)) ->  | BG131: =IF(BG$1="","",BG96/(1+GR!BG$27)^(BG$1-1)) ->  | BH131: =IF(BH$1="","",BH96/(1+GR!BH$27)^(BH$1-1)) ->  | BI131: =IF(BI$1="","",BI96/(1+GR!BI$27)^(BI$1-1)) ->  | BJ131: =IF(BJ$1="","",BJ96/(1+GR!BJ$27)^(BJ$1-1)) ->  | BK131: =IF(BK$1="","",BK96/(1+GR!BK$27)^(BK$1-1)) ->  | BL131: =IF(BL$1="","",BL96/(1+GR!BL$27)^(BL$1-1)) ->  | BM131: =IF(BM$1="","",BM96/(1+GR!BM$27)^(BM$1-1)) ->  | BN131: =IF(BN$1="","",BN96/(1+GR!BN$27)^(BN$1-1)) ->  | BO131: =IF(BO$1="","",BO96/(1+GR!BO$27)^(BO$1-1)) -> 
D132: Tolls | E132: £ k | F132: =SUM(H132:BO132) -> 150836.6975 | H132: =H97 -> 15296.43933 | I132: =IF(I$1="","",I97/(1+GR!I$27)^(I$1-1)) -> 14373.41096 | J132: =IF(J$1="","",J97/(1+GR!J$27)^(J$1-1)) -> 12914.58442 | K132: =IF(K$1="","",K97/(1+GR!K$27)^(K$1-1)) -> 11604.31393 | L132: =IF(L$1="","",L97/(1+GR!L$27)^(L$1-1)) -> 10427.42417 | M132: =IF(M$1="","",M97/(1+GR!M$27)^(M$1-1)) -> 9370.294596 | N132: =IF(N$1="","",N97/(1+GR!N$27)^(N$1-1)) -> 8420.699685 | O132: =IF(O$1="","",O97/(1+GR!O$27)^(O$1-1)) -> 7567.665666 | P132: =IF(P$1="","",P97/(1+GR!P$27)^(P$1-1)) -> 6801.341996 | Q132: =IF(Q$1="","",Q97/(1+GR!Q$27)^(Q$1-1)) -> 6112.886069 | R132: =IF(R$1="","",R97/(1+GR!R$27)^(R$1-1)) -> 5494.359785 | S132: =IF(S$1="","",S97/(1+GR!S$27)^(S$1-1)) -> 4938.636764 | T132: =IF(T$1="","",T97/(1+GR!T$27)^(T$1-1)) -> 4439.319107 | U132: =IF(U$1="","",U97/(1+GR!U$27)^(U$1-1)) -> 3990.662709 | V132: =IF(V$1="","",V97/(1+GR!V$27)^(V$1-1)) -> 3587.510253 | W132: =IF(W$1="","",W97/(1+GR!W$27)^(W$1-1)) -> 3225.231094 | X132: =IF(X$1="","",X97/(1+GR!X$27)^(X$1-1)) -> 2899.66731 | Y132: =IF(Y$1="","",Y97/(1+GR!Y$27)^(Y$1-1)) -> 2607.085306 | Z132: =IF(Z$1="","",Z97/(1+GR!Z$27)^(Z$1-1)) -> 2344.132374 | AA132: =IF(AA$1="","",AA97/(1+GR!AA$27)^(AA$1-1)) -> 2107.797725 | AB132: =IF(AB$1="","",AB97/(1+GR!AB$27)^(AB$1-1)) -> 1895.377506 | AC132: =IF(AC$1="","",AC97/(1+GR!AC$27)^(AC$1-1)) -> 1704.443422 | AD132: =IF(AD$1="","",AD97/(1+GR!AD$27)^(AD$1-1)) -> 1532.814558 | AE132: =IF(AE$1="","",AE97/(1+GR!AE$27)^(AE$1-1)) -> 1378.532104 | AF132: =IF(AF$1="","",AF97/(1+GR!AF$27)^(AF$1-1)) -> 1239.836665 | AG132: =IF(AG$1="","",AG97/(1+GR!AG$27)^(AG$1-1)) -> 1115.147894 | AH132: =IF(AH$1="","",AH97/(1+GR!AH$27)^(AH$1-1)) -> 1003.046215 | AI132: =IF(AI$1="","",AI97/(1+GR!AI$27)^(AI$1-1)) -> 902.2564119 | AJ132: =IF(AJ$1="","",AJ97/(1+GR!AJ$27)^(AJ$1-1)) -> 811.6329069 | AK132: =IF(AK$1="","",AK97/(1+GR!AK$27)^(AK$1-1)) -> 730.146534 | AL132: =IF(AL$1="","",AL97/(1+GR!AL$27)^(AL$1-1)) ->  | AM132: =IF(AM$1="","",AM97/(1+GR!AM$27)^(AM$1-1)) ->  | AN132: =IF(AN$1="","",AN97/(1+GR!AN$27)^(AN$1-1)) ->  | AO132: =IF(AO$1="","",AO97/(1+GR!AO$27)^(AO$1-1)) ->  | AP132: =IF(AP$1="","",AP97/(1+GR!AP$27)^(AP$1-1)) ->  | AQ132: =IF(AQ$1="","",AQ97/(1+GR!AQ$27)^(AQ$1-1)) ->  | AR132: =IF(AR$1="","",AR97/(1+GR!AR$27)^(AR$1-1)) ->  | AS132: =IF(AS$1="","",AS97/(1+GR!AS$27)^(AS$1-1)) ->  | AT132: =IF(AT$1="","",AT97/(1+GR!AT$27)^(AT$1-1)) ->  | AU132: =IF(AU$1="","",AU97/(1+GR!AU$27)^(AU$1-1)) ->  | AV132: =IF(AV$1="","",AV97/(1+GR!AV$27)^(AV$1-1)) ->  | AW132: =IF(AW$1="","",AW97/(1+GR!AW$27)^(AW$1-1)) ->  | AX132: =IF(AX$1="","",AX97/(1+GR!AX$27)^(AX$1-1)) ->  | AY132: =IF(AY$1="","",AY97/(1+GR!AY$27)^(AY$1-1)) ->  | AZ132: =IF(AZ$1="","",AZ97/(1+GR!AZ$27)^(AZ$1-1)) ->  | BA132: =IF(BA$1="","",BA97/(1+GR!BA$27)^(BA$1-1)) ->  | BB132: =IF(BB$1="","",BB97/(1+GR!BB$27)^(BB$1-1)) ->  | BC132: =IF(BC$1="","",BC97/(1+GR!BC$27)^(BC$1-1)) ->  | BD132: =IF(BD$1="","",BD97/(1+GR!BD$27)^(BD$1-1)) ->  | BE132: =IF(BE$1="","",BE97/(1+GR!BE$27)^(BE$1-1)) ->  | BF132: =IF(BF$1="","",BF97/(1+GR!BF$27)^(BF$1-1)) ->  | BG132: =IF(BG$1="","",BG97/(1+GR!BG$27)^(BG$1-1)) ->  | BH132: =IF(BH$1="","",BH97/(1+GR!BH$27)^(BH$1-1)) ->  | BI132: =IF(BI$1="","",BI97/(1+GR!BI$27)^(BI$1-1)) ->  | BJ132: =IF(BJ$1="","",BJ97/(1+GR!BJ$27)^(BJ$1-1)) ->  | BK132: =IF(BK$1="","",BK97/(1+GR!BK$27)^(BK$1-1)) ->  | BL132: =IF(BL$1="","",BL97/(1+GR!BL$27)^(BL$1-1)) ->  | BM132: =IF(BM$1="","",BM97/(1+GR!BM$27)^(BM$1-1)) ->  | BN132: =IF(BN$1="","",BN97/(1+GR!BN$27)^(BN$1-1)) ->  | BO132: =IF(BO$1="","",BO97/(1+GR!BO$27)^(BO$1-1)) -> 
D133: Total Public Income | E133: £ k | F133: =SUM(H133:BO133) -> 763342.8511 | H133: =IF(H110="","",SUM(H131:H132)) -> 78403.88467 | I133: =IF(I110="","",SUM(I131:I132)) -> 73580.9991 | J133: 66012.63593 | K133: 59223.26215 | L133: 53132.64904 | M133: 47668.83539 | N133: 42767.27511 | O133: 38370.07273 | P133: 34425.29778 | Q133: 30886.36989 | R133: 27711.50731 | S133: 24863.23225 | T133: 22307.92735 | U133: 20015.43775 | V133: 17958.71431 | W133: 16113.49351 | X133: 14458.01048 | Y133: 12972.74147 | Z133: 11640.173 | AA133: 10444.59474 | AB133: 9371.913727 | AC133: 8409.487789 | AD133: 7545.976086 | AE133: 6771.20508 | AF133: 6076.048314 | AG133: 5452.318573 | AH133: 4892.671165 | AI133: 4390.517165 | AJ133: 3939.945594 | AK133: 3535.653622
C135: Economic Impacts | D135: aGVA | E135: £ k | F135: =SUM(H135:BO135) -> 58284677.28 | H135: =H100 -> 2619492.887 | I135: =IF(I$1="","",I100/(1+GR!I$27)^(I$1-1)) -> 2564288.656 | J135: =IF(J$1="","",J100/(1+GR!J$27)^(J$1-1)) -> 2508791.008 | K135: =IF(K$1="","",K100/(1+GR!K$27)^(K$1-1)) -> 2454494.468 | L135: =IF(L$1="","",L100/(1+GR!L$27)^(L$1-1)) -> 2401373.042 | M135: =IF(M$1="","",M100/(1+GR!M$27)^(M$1-1)) -> 2349401.297 | N135: =IF(N$1="","",N100/(1+GR!N$27)^(N$1-1)) -> 2298554.351 | O135: =IF(O$1="","",O100/(1+GR!O$27)^(O$1-1)) -> 2248807.861 | P135: =IF(P$1="","",P100/(1+GR!P$27)^(P$1-1)) -> 2200138.009 | Q135: =IF(Q$1="","",Q100/(1+GR!Q$27)^(Q$1-1)) -> 2152521.496 | R135: =IF(R$1="","",R100/(1+GR!R$27)^(R$1-1)) -> 2105935.523 | S135: =IF(S$1="","",S100/(1+GR!S$27)^(S$1-1)) -> 2060357.788 | T135: =IF(T$1="","",T100/(1+GR!T$27)^(T$1-1)) -> 2015766.47 | U135: =IF(U$1="","",U100/(1+GR!U$27)^(U$1-1)) -> 1972140.22 | V135: =IF(V$1="","",V100/(1+GR!V$27)^(V$1-1)) -> 1929458.151 | W135: =IF(W$1="","",W100/(1+GR!W$27)^(W$1-1)) -> 1887699.83 | X135: =IF(X$1="","",X100/(1+GR!X$27)^(X$1-1)) -> 1846845.264 | Y135: =IF(Y$1="","",Y100/(1+GR!Y$27)^(Y$1-1)) -> 1806874.893 | Z135: =IF(Z$1="","",Z100/(1+GR!Z$27)^(Z$1-1)) -> 1767769.581 | AA135: =IF(AA$1="","",AA100/(1+GR!AA$27)^(AA$1-1)) -> 1729510.606 | AB135: =IF(AB$1="","",AB100/(1+GR!AB$27)^(AB$1-1)) -> 1692079.652 | AC135: =IF(AC$1="","",AC100/(1+GR!AC$27)^(AC$1-1)) -> 1655458.798 | AD135: =IF(AD$1="","",AD100/(1+GR!AD$27)^(AD$1-1)) -> 1619630.511 | AE135: =IF(AE$1="","",AE100/(1+GR!AE$27)^(AE$1-1)) -> 1584577.638 | AF135: =IF(AF$1="","",AF100/(1+GR!AF$27)^(AF$1-1)) -> 1550283.397 | AG135: =IF(AG$1="","",AG100/(1+GR!AG$27)^(AG$1-1)) -> 1516731.37 | AH135: =IF(AH$1="","",AH100/(1+GR!AH$27)^(AH$1-1)) -> 1483905.493 | AI135: =IF(AI$1="","",AI100/(1+GR!AI$27)^(AI$1-1)) -> 1451790.051 | AJ135: =IF(AJ$1="","",AJ100/(1+GR!AJ$27)^(AJ$1-1)) -> 1420369.667 | AK135: =IF(AK$1="","",AK100/(1+GR!AK$27)^(AK$1-1)) -> 1389629.299 | AL135: =IF(AL$1="","",AL100/(1+GR!AL$27)^(AL$1-1)) ->  | AM135: =IF(AM$1="","",AM100/(1+GR!AM$27)^(AM$1-1)) ->  | AN135: =IF(AN$1="","",AN100/(1+GR!AN$27)^(AN$1-1)) ->  | AO135: =IF(AO$1="","",AO100/(1+GR!AO$27)^(AO$1-1)) ->  | AP135: =IF(AP$1="","",AP100/(1+GR!AP$27)^(AP$1-1)) ->  | AQ135: =IF(AQ$1="","",AQ100/(1+GR!AQ$27)^(AQ$1-1)) ->  | AR135: =IF(AR$1="","",AR100/(1+GR!AR$27)^(AR$1-1)) ->  | AS135: =IF(AS$1="","",AS100/(1+GR!AS$27)^(AS$1-1)) ->  | AT135: =IF(AT$1="","",AT100/(1+GR!AT$27)^(AT$1-1)) ->  | AU135: =IF(AU$1="","",AU100/(1+GR!AU$27)^(AU$1-1)) ->  | AV135: =IF(AV$1="","",AV100/(1+GR!AV$27)^(AV$1-1)) ->  | AW135: =IF(AW$1="","",AW100/(1+GR!AW$27)^(AW$1-1)) ->  | AX135: =IF(AX$1="","",AX100/(1+GR!AX$27)^(AX$1-1)) ->  | AY135: =IF(AY$1="","",AY100/(1+GR!AY$27)^(AY$1-1)) ->  | AZ135: =IF(AZ$1="","",AZ100/(1+GR!AZ$27)^(AZ$1-1)) ->  | BA135: =IF(BA$1="","",BA100/(1+GR!BA$27)^(BA$1-1)) ->  | BB135: =IF(BB$1="","",BB100/(1+GR!BB$27)^(BB$1-1)) ->  | BC135: =IF(BC$1="","",BC100/(1+GR!BC$27)^(BC$1-1)) ->  | BD135: =IF(BD$1="","",BD100/(1+GR!BD$27)^(BD$1-1)) ->  | BE135: =IF(BE$1="","",BE100/(1+GR!BE$27)^(BE$1-1)) ->  | BF135: =IF(BF$1="","",BF100/(1+GR!BF$27)^(BF$1-1)) ->  | BG135: =IF(BG$1="","",BG100/(1+GR!BG$27)^(BG$1-1)) ->  | BH135: =IF(BH$1="","",BH100/(1+GR!BH$27)^(BH$1-1)) ->  | BI135: =IF(BI$1="","",BI100/(1+GR!BI$27)^(BI$1-1)) ->  | BJ135: =IF(BJ$1="","",BJ100/(1+GR!BJ$27)^(BJ$1-1)) ->  | BK135: =IF(BK$1="","",BK100/(1+GR!BK$27)^(BK$1-1)) ->  | BL135: =IF(BL$1="","",BL100/(1+GR!BL$27)^(BL$1-1)) ->  | BM135: =IF(BM$1="","",BM100/(1+GR!BM$27)^(BM$1-1)) ->  | BN135: =IF(BN$1="","",BN100/(1+GR!BN$27)^(BN$1-1)) ->  | BO135: =IF(BO$1="","",BO100/(1+GR!BO$27)^(BO$1-1)) -> 
D136: Per Capita aGVA | E136: £ | H136: =IFERROR((H135*1000)/H141,"") -> 58635.10112 | I136: =IF(I$1="","",IFERROR((I135*1000)/I141,"")) -> 56916.86062 | J136: =IF(J$1="","",IFERROR((J135*1000)/J141,"")) -> 55237.61212 | K136: 53607.90738 | L136: 52026.2847 | M136: 50491.32546 | N136: 49001.65295 | O136: 47555.93105 | P136: 46152.86304 | Q136: 44791.19051 | R136: 43469.69212 | S136: 42187.1826 | T136: 40942.51165 | U136: 39734.56289 | V136: 38562.25288 | W136: 37424.53016 | X136: 36320.37428 | Y136: 35248.79491 | Z136: 34208.83091 | AA136: 33199.54952 | AB136: 32220.0455 | AC136: 31269.44031 | AD136: 30346.88133 | AE136: 29451.5411 | AF136: 28582.61657 | AG136: 27739.32839 | AH136: 26920.92019 | AI136: 26126.65792 | AJ136: 25355.82919 | AK136: 24607.74264
D137: Tax Receipts from income | E137: £ k | F137: =SUM(H137:BO137) -> 9399759.808 | H137: =H102 -> 422454.1527 | I137: =IF(I$1="","",I102/(1+GR!I$27)^(I$1-1)) -> 413551.1865 | J137: =IF(J$1="","",J102/(1+GR!J$27)^(J$1-1)) -> 404600.9 | K137: =IF(K$1="","",K102/(1+GR!K$27)^(K$1-1)) -> 395844.3201 | L137: =IF(L$1="","",L102/(1+GR!L$27)^(L$1-1)) -> 387277.2546 | M137: =IF(M$1="","",M102/(1+GR!M$27)^(M$1-1)) -> 378895.6019 | N137: =IF(N$1="","",N102/(1+GR!N$27)^(N$1-1)) -> 370695.3493 | O137: =IF(O$1="","",O102/(1+GR!O$27)^(O$1-1)) -> 362672.5707 | P137: =IF(P$1="","",P102/(1+GR!P$27)^(P$1-1)) -> 354823.4252 | Q137: =IF(Q$1="","",Q102/(1+GR!Q$27)^(Q$1-1)) -> 347144.155 | R137: =IF(R$1="","",R102/(1+GR!R$27)^(R$1-1)) -> 339631.0834 | S137: =IF(S$1="","",S102/(1+GR!S$27)^(S$1-1)) -> 332280.6136 | T137: =IF(T$1="","",T102/(1+GR!T$27)^(T$1-1)) -> 325089.2264 | U137: =IF(U$1="","",U102/(1+GR!U$27)^(U$1-1)) -> 318053.4789 | V137: =IF(V$1="","",V102/(1+GR!V$27)^(V$1-1)) -> 311170.0026 | W137: =IF(W$1="","",W102/(1+GR!W$27)^(W$1-1)) -> 304435.5021 | X137: =IF(X$1="","",X102/(1+GR!X$27)^(X$1-1)) -> 297846.7531 | Y137: =IF(Y$1="","",Y102/(1+GR!Y$27)^(Y$1-1)) -> 291400.6011 | Z137: =IF(Z$1="","",Z102/(1+GR!Z$27)^(Z$1-1)) -> 285093.9601 | AA137: =IF(AA$1="","",AA102/(1+GR!AA$27)^(AA$1-1)) -> 278923.8106 | AB137: =IF(AB$1="","",AB102/(1+GR!AB$27)^(AB$1-1)) -> 272887.1987 | AC137: =IF(AC$1="","",AC102/(1+GR!AC$27)^(AC$1-1)) -> 266981.2342 | AD137: =IF(AD$1="","",AD102/(1+GR!AD$27)^(AD$1-1)) -> 261203.0896 | AE137: =IF(AE$1="","",AE102/(1+GR!AE$27)^(AE$1-1)) -> 255549.9986 | AF137: =IF(AF$1="","",AF102/(1+GR!AF$27)^(AF$1-1)) -> 250019.2546 | AG137: =IF(AG$1="","",AG102/(1+GR!AG$27)^(AG$1-1)) -> 244608.2099 | AH137: =IF(AH$1="","",AH102/(1+GR!AH$27)^(AH$1-1)) -> 239314.2738 | AI137: =IF(AI$1="","",AI102/(1+GR!AI$27)^(AI$1-1)) -> 234134.9117 | AJ137: =IF(AJ$1="","",AJ102/(1+GR!AJ$27)^(AJ$1-1)) -> 229067.644 | AK137: =IF(AK$1="","",AK102/(1+GR!AK$27)^(AK$1-1)) -> 224110.0448 | AL137: =IF(AL$1="","",AL102/(1+GR!AL$27)^(AL$1-1)) ->  | AM137: =IF(AM$1="","",AM102/(1+GR!AM$27)^(AM$1-1)) ->  | AN137: =IF(AN$1="","",AN102/(1+GR!AN$27)^(AN$1-1)) ->  | AO137: =IF(AO$1="","",AO102/(1+GR!AO$27)^(AO$1-1)) ->  | AP137: =IF(AP$1="","",AP102/(1+GR!AP$27)^(AP$1-1)) ->  | AQ137: =IF(AQ$1="","",AQ102/(1+GR!AQ$27)^(AQ$1-1)) ->  | AR137: =IF(AR$1="","",AR102/(1+GR!AR$27)^(AR$1-1)) ->  | AS137: =IF(AS$1="","",AS102/(1+GR!AS$27)^(AS$1-1)) ->  | AT137: =IF(AT$1="","",AT102/(1+GR!AT$27)^(AT$1-1)) ->  | AU137: =IF(AU$1="","",AU102/(1+GR!AU$27)^(AU$1-1)) ->  | AV137: =IF(AV$1="","",AV102/(1+GR!AV$27)^(AV$1-1)) ->  | AW137: =IF(AW$1="","",AW102/(1+GR!AW$27)^(AW$1-1)) ->  | AX137: =IF(AX$1="","",AX102/(1+GR!AX$27)^(AX$1-1)) ->  | AY137: =IF(AY$1="","",AY102/(1+GR!AY$27)^(AY$1-1)) ->  | AZ137: =IF(AZ$1="","",AZ102/(1+GR!AZ$27)^(AZ$1-1)) ->  | BA137: =IF(BA$1="","",BA102/(1+GR!BA$27)^(BA$1-1)) ->  | BB137: =IF(BB$1="","",BB102/(1+GR!BB$27)^(BB$1-1)) ->  | BC137: =IF(BC$1="","",BC102/(1+GR!BC$27)^(BC$1-1)) ->  | BD137: =IF(BD$1="","",BD102/(1+GR!BD$27)^(BD$1-1)) ->  | BE137: =IF(BE$1="","",BE102/(1+GR!BE$27)^(BE$1-1)) ->  | BF137: =IF(BF$1="","",BF102/(1+GR!BF$27)^(BF$1-1)) ->  | BG137: =IF(BG$1="","",BG102/(1+GR!BG$27)^(BG$1-1)) ->  | BH137: =IF(BH$1="","",BH102/(1+GR!BH$27)^(BH$1-1)) ->  | BI137: =IF(BI$1="","",BI102/(1+GR!BI$27)^(BI$1-1)) ->  | BJ137: =IF(BJ$1="","",BJ102/(1+GR!BJ$27)^(BJ$1-1)) ->  | BK137: =IF(BK$1="","",BK102/(1+GR!BK$27)^(BK$1-1)) ->  | BL137: =IF(BL$1="","",BL102/(1+GR!BL$27)^(BL$1-1)) ->  | BM137: =IF(BM$1="","",BM102/(1+GR!BM$27)^(BM$1-1)) ->  | BN137: =IF(BN$1="","",BN102/(1+GR!BN$27)^(BN$1-1)) ->  | BO137: =IF(BO$1="","",BO102/(1+GR!BO$27)^(BO$1-1)) -> 
D138: VAT | E138: £ k | F138: =IFERROR(SUM(H138:BO138),0) -> 1692187.868 | H138: =H103 -> 76052.13396 | I138: =IF(I$1="","",I103/(1+GR!I$27)^(I$1-1)) -> 74449.38116 | J138: =IF(J$1="","",J103/(1+GR!J$27)^(J$1-1)) -> 72838.10953 | K138: =IF(K$1="","",K103/(1+GR!K$27)^(K$1-1)) -> 71261.70987 | L138: =IF(L$1="","",L103/(1+GR!L$27)^(L$1-1)) -> 69719.42745 | M138: =IF(M$1="","",M103/(1+GR!M$27)^(M$1-1)) -> 68210.5239 | N138: =IF(N$1="","",N103/(1+GR!N$27)^(N$1-1)) -> 66734.27681 | O138: =IF(O$1="","",O103/(1+GR!O$27)^(O$1-1)) -> 65289.97942 | P138: =IF(P$1="","",P103/(1+GR!P$27)^(P$1-1)) -> 63876.94025 | Q138: =IF(Q$1="","",Q103/(1+GR!Q$27)^(Q$1-1)) -> 62494.4828 | R138: =IF(R$1="","",R103/(1+GR!R$27)^(R$1-1)) -> 61141.9452 | S138: =IF(S$1="","",S103/(1+GR!S$27)^(S$1-1)) -> 59818.67991 | T138: =IF(T$1="","",T103/(1+GR!T$27)^(T$1-1)) -> 58524.05341 | U138: =IF(U$1="","",U103/(1+GR!U$27)^(U$1-1)) -> 57257.44588 | V138: =IF(V$1="","",V103/(1+GR!V$27)^(V$1-1)) -> 56018.25091 | W138: =IF(W$1="","",W103/(1+GR!W$27)^(W$1-1)) -> 54805.87524 | X138: =IF(X$1="","",X103/(1+GR!X$27)^(X$1-1)) -> 53619.73843 | Y138: =IF(Y$1="","",Y103/(1+GR!Y$27)^(Y$1-1)) -> 52459.27259 | Z138: =IF(Z$1="","",Z103/(1+GR!Z$27)^(Z$1-1)) -> 51323.92215 | AA138: =IF(AA$1="","",AA103/(1+GR!AA$27)^(AA$1-1)) -> 50213.14354 | AB138: =IF(AB$1="","",AB103/(1+GR!AB$27)^(AB$1-1)) -> 49126.40498 | AC138: =IF(AC$1="","",AC103/(1+GR!AC$27)^(AC$1-1)) -> 48063.18617 | AD138: =IF(AD$1="","",AD103/(1+GR!AD$27)^(AD$1-1)) -> 47022.97808 | AE138: =IF(AE$1="","",AE103/(1+GR!AE$27)^(AE$1-1)) -> 46005.28271 | AF138: =IF(AF$1="","",AF103/(1+GR!AF$27)^(AF$1-1)) -> 45009.61282 | AG138: =IF(AG$1="","",AG103/(1+GR!AG$27)^(AG$1-1)) -> 44035.49173 | AH138: =IF(AH$1="","",AH103/(1+GR!AH$27)^(AH$1-1)) -> 43082.45307 | AI138: =IF(AI$1="","",AI103/(1+GR!AI$27)^(AI$1-1)) -> 42150.04056 | AJ138: =IF(AJ$1="","",AJ103/(1+GR!AJ$27)^(AJ$1-1)) -> 41237.8078 | AK138: =IF(AK$1="","",AK103/(1+GR!AK$27)^(AK$1-1)) -> 40345.31804 | AL138: =IF(AL$1="","",AL103/(1+GR!AL$27)^(AL$1-1)) ->  | AM138: =IF(AM$1="","",AM103/(1+GR!AM$27)^(AM$1-1)) ->  | AN138: =IF(AN$1="","",AN103/(1+GR!AN$27)^(AN$1-1)) ->  | AO138: =IF(AO$1="","",AO103/(1+GR!AO$27)^(AO$1-1)) ->  | AP138: =IF(AP$1="","",AP103/(1+GR!AP$27)^(AP$1-1)) ->  | AQ138: =IF(AQ$1="","",AQ103/(1+GR!AQ$27)^(AQ$1-1)) ->  | AR138: =IF(AR$1="","",AR103/(1+GR!AR$27)^(AR$1-1)) ->  | AS138: =IF(AS$1="","",AS103/(1+GR!AS$27)^(AS$1-1)) ->  | AT138: =IF(AT$1="","",AT103/(1+GR!AT$27)^(AT$1-1)) ->  | AU138: =IF(AU$1="","",AU103/(1+GR!AU$27)^(AU$1-1)) ->  | AV138: =IF(AV$1="","",AV103/(1+GR!AV$27)^(AV$1-1)) ->  | AW138: =IF(AW$1="","",AW103/(1+GR!AW$27)^(AW$1-1)) ->  | AX138: =IF(AX$1="","",AX103/(1+GR!AX$27)^(AX$1-1)) ->  | AY138: =IF(AY$1="","",AY103/(1+GR!AY$27)^(AY$1-1)) ->  | AZ138: =IF(AZ$1="","",AZ103/(1+GR!AZ$27)^(AZ$1-1)) ->  | BA138: =IF(BA$1="","",BA103/(1+GR!BA$27)^(BA$1-1)) ->  | BB138: =IF(BB$1="","",BB103/(1+GR!BB$27)^(BB$1-1)) ->  | BC138: =IF(BC$1="","",BC103/(1+GR!BC$27)^(BC$1-1)) ->  | BD138: =IF(BD$1="","",BD103/(1+GR!BD$27)^(BD$1-1)) ->  | BE138: =IF(BE$1="","",BE103/(1+GR!BE$27)^(BE$1-1)) ->  | BF138: =IF(BF$1="","",BF103/(1+GR!BF$27)^(BF$1-1)) ->  | BG138: =IF(BG$1="","",BG103/(1+GR!BG$27)^(BG$1-1)) ->  | BH138: =IF(BH$1="","",BH103/(1+GR!BH$27)^(BH$1-1)) ->  | BI138: =IF(BI$1="","",BI103/(1+GR!BI$27)^(BI$1-1)) ->  | BJ138: =IF(BJ$1="","",BJ103/(1+GR!BJ$27)^(BJ$1-1)) ->  | BK138: =IF(BK$1="","",BK103/(1+GR!BK$27)^(BK$1-1)) ->  | BL138: =IF(BL$1="","",BL103/(1+GR!BL$27)^(BL$1-1)) ->  | BM138: =IF(BM$1="","",BM103/(1+GR!BM$27)^(BM$1-1)) ->  | BN138: =IF(BN$1="","",BN103/(1+GR!BN$27)^(BN$1-1)) ->  | BO138: =IF(BO$1="","",BO103/(1+GR!BO$27)^(BO$1-1)) -> 
D139: NIC | E139: £ k | F139: =SUM(H139:BO139) -> 1469503.26 | H139: =H104 -> 66044.0019 | I139: =IF(I$1="","",I104/(1+GR!I$27)^(I$1-1)) -> 64652.16444 | J139: =IF(J$1="","",J104/(1+GR!J$27)^(J$1-1)) -> 63252.92919 | K139: =IF(K$1="","",K104/(1+GR!K$27)^(K$1-1)) -> 61883.97691 | L139: =IF(L$1="","",L104/(1+GR!L$27)^(L$1-1)) -> 60544.65219 | M139: =IF(M$1="","",M104/(1+GR!M$27)^(M$1-1)) -> 59234.31382 | N139: =IF(N$1="","",N104/(1+GR!N$27)^(N$1-1)) -> 57952.33447 | O139: =IF(O$1="","",O104/(1+GR!O$27)^(O$1-1)) -> 56698.10037 | P139: =IF(P$1="","",P104/(1+GR!P$27)^(P$1-1)) -> 55471.01105 | Q139: =IF(Q$1="","",Q104/(1+GR!Q$27)^(Q$1-1)) -> 54270.47902 | R139: =IF(R$1="","",R104/(1+GR!R$27)^(R$1-1)) -> 53095.92953 | S139: =IF(S$1="","",S104/(1+GR!S$27)^(S$1-1)) -> 51946.80023 | T139: =IF(T$1="","",T104/(1+GR!T$27)^(T$1-1)) -> 50822.54098 | U139: =IF(U$1="","",U104/(1+GR!U$27)^(U$1-1)) -> 49722.61352 | V139: =IF(V$1="","",V104/(1+GR!V$27)^(V$1-1)) -> 48646.49126 | W139: =IF(W$1="","",W104/(1+GR!W$27)^(W$1-1)) -> 47593.65898 | X139: =IF(X$1="","",X104/(1+GR!X$27)^(X$1-1)) -> 46563.61264 | Y139: =IF(Y$1="","",Y104/(1+GR!Y$27)^(Y$1-1)) -> 45555.8591 | Z139: =IF(Z$1="","",Z104/(1+GR!Z$27)^(Z$1-1)) -> 44569.91587 | AA139: =IF(AA$1="","",AA104/(1+GR!AA$27)^(AA$1-1)) -> 43605.31092 | AB139: =IF(AB$1="","",AB104/(1+GR!AB$27)^(AB$1-1)) -> 42661.58245 | AC139: =IF(AC$1="","",AC104/(1+GR!AC$27)^(AC$1-1)) -> 41738.27864 | AD139: =IF(AD$1="","",AD104/(1+GR!AD$27)^(AD$1-1)) -> 40834.95744 | AE139: =IF(AE$1="","",AE104/(1+GR!AE$27)^(AE$1-1)) -> 39951.18638 | AF139: =IF(AF$1="","",AF104/(1+GR!AF$27)^(AF$1-1)) -> 39086.54235 | AG139: =IF(AG$1="","",AG104/(1+GR!AG$27)^(AG$1-1)) -> 38240.61138 | AH139: =IF(AH$1="","",AH104/(1+GR!AH$27)^(AH$1-1)) -> 37412.98849 | AI139: =IF(AI$1="","",AI104/(1+GR!AI$27)^(AI$1-1)) -> 36603.27743 | AJ139: =IF(AJ$1="","",AJ104/(1+GR!AJ$27)^(AJ$1-1)) -> 35811.09056 | AK139: =IF(AK$1="","",AK104/(1+GR!AK$27)^(AK$1-1)) -> 35036.0486 | AL139: =IF(AL$1="","",AL104/(1+GR!AL$27)^(AL$1-1)) ->  | AM139: =IF(AM$1="","",AM104/(1+GR!AM$27)^(AM$1-1)) ->  | AN139: =IF(AN$1="","",AN104/(1+GR!AN$27)^(AN$1-1)) ->  | AO139: =IF(AO$1="","",AO104/(1+GR!AO$27)^(AO$1-1)) ->  | AP139: =IF(AP$1="","",AP104/(1+GR!AP$27)^(AP$1-1)) ->  | AQ139: =IF(AQ$1="","",AQ104/(1+GR!AQ$27)^(AQ$1-1)) ->  | AR139: =IF(AR$1="","",AR104/(1+GR!AR$27)^(AR$1-1)) ->  | AS139: =IF(AS$1="","",AS104/(1+GR!AS$27)^(AS$1-1)) ->  | AT139: =IF(AT$1="","",AT104/(1+GR!AT$27)^(AT$1-1)) ->  | AU139: =IF(AU$1="","",AU104/(1+GR!AU$27)^(AU$1-1)) ->  | AV139: =IF(AV$1="","",AV104/(1+GR!AV$27)^(AV$1-1)) ->  | AW139: =IF(AW$1="","",AW104/(1+GR!AW$27)^(AW$1-1)) ->  | AX139: =IF(AX$1="","",AX104/(1+GR!AX$27)^(AX$1-1)) ->  | AY139: =IF(AY$1="","",AY104/(1+GR!AY$27)^(AY$1-1)) ->  | AZ139: =IF(AZ$1="","",AZ104/(1+GR!AZ$27)^(AZ$1-1)) ->  | BA139: =IF(BA$1="","",BA104/(1+GR!BA$27)^(BA$1-1)) ->  | BB139: =IF(BB$1="","",BB104/(1+GR!BB$27)^(BB$1-1)) ->  | BC139: =IF(BC$1="","",BC104/(1+GR!BC$27)^(BC$1-1)) ->  | BD139: =IF(BD$1="","",BD104/(1+GR!BD$27)^(BD$1-1)) ->  | BE139: =IF(BE$1="","",BE104/(1+GR!BE$27)^(BE$1-1)) ->  | BF139: =IF(BF$1="","",BF104/(1+GR!BF$27)^(BF$1-1)) ->  | BG139: =IF(BG$1="","",BG104/(1+GR!BG$27)^(BG$1-1)) ->  | BH139: =IF(BH$1="","",BH104/(1+GR!BH$27)^(BH$1-1)) ->  | BI139: =IF(BI$1="","",BI104/(1+GR!BI$27)^(BI$1-1)) ->  | BJ139: =IF(BJ$1="","",BJ104/(1+GR!BJ$27)^(BJ$1-1)) ->  | BK139: =IF(BK$1="","",BK104/(1+GR!BK$27)^(BK$1-1)) ->  | BL139: =IF(BL$1="","",BL104/(1+GR!BL$27)^(BL$1-1)) ->  | BM139: =IF(BM$1="","",BM104/(1+GR!BM$27)^(BM$1-1)) ->  | BN139: =IF(BN$1="","",BN104/(1+GR!BN$27)^(BN$1-1)) ->  | BO139: =IF(BO$1="","",BO104/(1+GR!BO$27)^(BO$1-1)) -> 
D140: Total tax receipts | E140: £ k | F140: =IFERROR(SUM(H140:BO140),0) -> 12561450.94 | H140: =SUM(H137:H139) -> 564550.2885 | I140: =IF(I$1="","",SUM(I137:I139)) -> 552652.7321 | J140: =IF(J$1="","",SUM(J137:J139)) -> 540691.9387 | K140: 528990.0069 | L140: 517541.3342 | M140: 506340.4397 | N140: 495381.9606 | O140: 484660.6505 | P140: 474171.3765 | Q140: 463909.1168 | R140: 453868.9581 | S140: 444046.0937 | T140: 434435.8208 | U140: 425033.5383 | V140: 415834.7448 | W140: 406835.0363 | X140: 398030.1041 | Y140: 389415.7328 | Z140: 380987.7981 | AA140: 372742.2651 | AB140: 364675.1861 | AC140: 356782.699 | AD140: 349061.0251 | AE140: 341506.4677 | AF140: 334115.4098 | AG140: 326884.313 | AH140: 319809.7153 | AI140: 312888.2297 | AJ140: 306116.5424 | AK140: 299491.4114
D141: Employment | E141: No. | H141: =H106 -> 44674.484 | I141: 45053.23428 | J141: 45418.16547 | K141: 45786.05261 | L141: 46156.91964 | M141: 46530.79069 | N141: 46907.69009 | O141: 47287.64238 | P141: 47670.67229 | Q141: 48056.80473 | R141: 48446.06485 | S141: 48838.47798 | T141: 49234.06965 | U141: 49632.86561 | V141: 50034.89182 | W141: 50440.17445 | X141: 50848.73986 | Y141: 51260.61465 | Z141: 51675.82563 | AA141: 52094.39982 | AB141: 52516.36446 | AC141: 52941.74701 | AD141: 53370.57516 | AE141: 53802.87682 | AF141: 54238.68012 | AG141: 54678.01343 | AH141: 55120.90534 | AI141: 55567.38467 | AJ141: 56017.48049 | AK141: 56471.22208 | AN141: =AN106 -> 
D142: Total Economic Impacts | E142: £ k | F142: =SUM(H142:BO142) -> 70846128.21 | H142: =IF(H110="","",SUM(H135,H137:H139)) -> 3184043.175 | I142: =IF(I110="","",SUM(I135,I137:I139)) -> 3116941.388 | J142: 3049482.946 | K142: 2983484.475 | L142: 2918914.376 | M142: 2855741.736 | N142: 2793936.311 | O142: 2733468.511 | P142: 2674309.386 | Q142: 2616430.613 | R142: 2559804.481 | S142: 2504403.882 | T142: 2450202.291 | U142: 2397173.758 | V142: 2345292.896 | W142: 2294534.866 | X142: 2244875.368 | Y142: 2196290.625 | Z142: 2148757.379 | AA142: 2102252.872 | AB142: 2056754.838 | AC142: 2012241.497 | AD142: 1968691.536 | AE142: 1926084.106 | AF142: 1884398.807 | AG142: 1843615.683 | AH142: 1803715.209 | AI142: 1764678.28 | AJ142: 1726486.209 | AK142: 1689120.711
A146: =IF(D2_Name="","","Undiscounted costs for " & D2_Name) -> Undiscounted costs for R2 | F146: Analysis period total | H146: =H110 -> 2020 | I146: 2021 | J146: 2022 | K146: 2023 | L146: 2024 | M146: 2025 | N146: 2026 | O146: 2027 | P146: 2028 | Q146: 2029 | R146: 2030 | S146: 2031 | T146: 2032 | U146: 2033 | V146: 2034 | W146: 2035 | X146: 2036 | Y146: 2037 | Z146: 2038 | AA146: 2039 | AB146: 2040 | AC146: 2041 | AD146: 2042 | AE146: 2043 | AF146: 2044 | AG146: 2045 | AH146: 2046 | AI146: 2047 | AJ146: 2048 | AK146: 2049 | AN146: =AN110 -> 
D148: Parameter | E148: Unit
D149: Expenditure by Treatment | E149: £ k | F149: =SUM(H149:BO149) -> 102650.85 | H149: 3421.695 | I149: 3421.695 | J149: 3421.695 | K149: 3421.695 | L149: 3421.695 | M149: 3421.695 | N149: 3421.695 | O149: 3421.695 | P149: 3421.695 | Q149: 3421.695 | R149: 3421.695 | S149: 3421.695 | T149: 3421.695 | U149: 3421.695 | V149: 3421.695 | W149: 3421.695 | X149: 3421.695 | Y149: 3421.695 | Z149: 3421.695 | AA149: 3421.695 | AB149: 3421.695 | AC149: 3421.695 | AD149: 3421.695 | AE149: 3421.695 | AF149: 3421.695 | AG149: 3421.695 | AH149: 3421.695 | AI149: 3421.695 | AJ149: 3421.695 | AK149: 3421.695
D150: Percentage in poor condition | E150: % | H150: 0.4246 | I150: 0.4445 | J150: 0.4596 | K150: 0.4708 | L150: 0.479 | M150: 0.4849 | N150: 0.4891 | O150: 0.492 | P150: 0.4938 | Q150: 0.4949 | R150: 0.4955 | S150: 0.4957 | T150: 0.4956 | U150: 0.4953 | V150: 0.4949 | W150: 0.4945 | X150: 0.494 | Y150: 0.4935 | Z150: 0.4931 | AA150: 0.4926 | AB150: 0.4922 | AC150: 0.4918 | AD150: 0.4915 | AE150: 0.4911 | AF150: 0.4909 | AG150: 0.4906 | AH150: 0.4904 | AI150: 0.4902 | AJ150: 0.49 | AK150: 0.4899
C152: Treatment and Condition Impacts | D152: Vehicle operating costs | E152: £ k | F152: =SUM(H152:BO152) -> 67208609.52 | H152: 1137024.991 | I152: 1171712.627 | J152: 1208427.116 | K152: 1253246.134 | L152: 1304752.416 | M152: 1371236.22 | N152: 1449073.399 | O152: 1530803.338 | P152: 1608493.196 | Q152: 1697634.272 | R152: 1804178.999 | S152: 1898831.047 | T152: 1995339.843 | U152: 2090869.634 | V152: 2186104.438 | W152: 2280062.805 | X152: 2372240.275 | Y152: 2461130.497 | Z152: 2555044.054 | AA152: 2646651.115 | AB152: 2736348.45 | AC152: 2829642.713 | AD152: 2917609.281 | AE152: 3002936.392 | AF152: 3087534.022 | AG152: 3168362.922 | AH152: 3247359.702 | AI152: 3323500.572 | AJ152: 3399329.034 | AK152: 3473130.014
D153: Travel time | E153: £ k | F153: 16761048.39 | H153: 381493.8324 | I153: 392263.5416 | J153: 400947.2361 | K153: 409516.9839 | L153: 418594.6355 | M153: 428185.4745 | N153: 438327.6756 | O153: 448999.2004 | P153: 460247.4393 | Q153: 471880.4447 | R153: 484143.7501 | S153: 496628.6396 | T153: 510079.1824 | U153: 523748.7161 | V153: 537774.3427 | W153: 552270.724 | X153: 567421.6537 | Y153: 582501.2406 | Z153: 597955.0405 | AA153: 613694.0533 | AB153: 629673.9505 | AC153: 646064.0709 | AD153: 662165.0422 | AE153: 678560.2633 | AF153: 695196.5049 | AG153: 712148.4128 | AH153: 729445.9224 | AI153: 746361.1453 | AJ153: 763573.0226 | AK153: 781186.248
D154: Carbon (vehicle fuel) | E154: £ k | F154: 2367126.787 | H154: 39594.42106 | I154: 40021.23979 | J154: 40854.21016 | K154: 41251.45843 | L154: 41708.89357 | M154: 42186.68497 | N154: 42833.73643 | O154: 43585.00021 | P154: 44877.53403 | Q154: 45793.53074 | R154: 46803.40645 | S154: 51064.77536 | T154: 56150.14404 | U154: 60820.40211 | V154: 66097.51905 | W154: 71031.60163 | X154: 76658.51422 | Y154: 81683.22613 | Z154: 87497.79446 | AA154: 92824.6475 | AB154: 98724.46814 | AC154: 104287.5179 | AD154: 110453.4761 | AE154: 115950.8265 | AF154: 122290.9551 | AG154: 128065.0747 | AH154: 134399.961 | AI154: 140230.252 | AJ154: 146784.4183 | AK154: 152601.0972
D155: Roadworks Accidents | E155: £ k | F155: 1096.838617 | H155: 38.71021168 | I155: 39.29756137 | J155: 37.67768798 | K155: 38.01584054 | L155: 38.35178593 | M155: 38.68642262 | N155: 39.02016112 | O155: 39.34351869 | P155: 39.66680522 | Q155: 36.3603078 | R155: 34.85041904 | S155: 35.12982867 | T155: 35.45825169 | U155: 35.78729717 | V155: 36.11691435 | W155: 36.44704344 | X155: 34.81996838 | Y155: 35.09879086 | Z155: 35.37796962 | AA155: 35.64567361 | AB155: 35.92531335 | AC155: 36.20515544 | AD155: 36.44558876 | AE155: 34.82491749 | AF155: 35.05401664 | AG155: 35.28320162 | AH155: 35.51244847 | AI155: 35.71045876 | AJ155: 35.90849877 | AK155: 36.10655797
D156: Carbon (vehicles in roadworks) | E156: £ k | F156: 210.6087224 | H156: 5.033078416 | I156: 5.114652504 | J156: 5.285186364 | K156: 5.337863941 | L156: 5.390248953 | M156: 5.442837868 | N156: 5.494249489 | O156: 5.543056204 | P156: 5.591354031 | Q156: 6.340209622 | R156: 6.873149826 | S156: 6.929828336 | T156: 6.995137359 | U156: 7.06005707 | V156: 7.124637316 | W156: 7.188922559 | X156: 7.581678966 | Y156: 7.640542749 | Z156: 7.699232022 | AA156: 8.115477171 | AB156: 8.176461307 | AC156: 8.237327833 | AD156: 8.29303925 | AE156: 8.156359661 | AF156: 8.207242664 | AG156: 8.258067788 | AH156: 8.308841277 | AI156: 8.352773174 | AJ156: 8.396671107 | AK156: 8.440537542
D157: Roadworks time delays | E157: £ k | F157: 98780.60858 | H157: 3308.945936 | I157: 3362.287336 | J157: 2894.080753 | K157: 2922.726918 | L157: 2951.193483 | M157: 2979.476431 | N157: 3007.400355 | O157: 3033.980559 | P157: 3060.28323 | Q157: 3322.352204 | R157: 3395.665073 | S157: 3423.549235 | T157: 3455.753592 | U157: 3487.746943 | V157: 3519.55585 | W157: 3551.204226 | X157: 3096.89737 | Y157: 3120.871229 | Z157: 3144.767844 | AA157: 3226.824421 | AB157: 3251.010887 | AC157: 3275.146158 | AD157: 3296.274933 | AE157: 3465.436428 | AF157: 3486.995169 | AG157: 3508.527146 | AH157: 3530.034966 | AI157: 3548.631261 | AJ157: 3567.211542 | AK157: 3585.777099
D158: Accidents | E158: £ k | F158: 1841763.831 | H158: 61392.1277 | I158: 61392.1277 | J158: 61392.1277 | K158: 61392.1277 | L158: 61392.1277 | M158: 61392.1277 | N158: 61392.1277 | O158: 61392.1277 | P158: 61392.1277 | Q158: 61392.1277 | R158: 61392.1277 | S158: 61392.1277 | T158: 61392.1277 | U158: 61392.1277 | V158: 61392.1277 | W158: 61392.1277 | X158: 61392.1277 | Y158: 61392.1277 | Z158: 61392.1277 | AA158: 61392.1277 | AB158: 61392.1277 | AC158: 61392.1277 | AD158: 61392.1277 | AE158: 61392.1277 | AF158: 61392.1277 | AG158: 61392.1277 | AH158: 61392.1277 | AI158: 61392.1277 | AJ158: 61392.1277 | AK158: 61392.1277
D159: Carbon (Embodied in materials) | E159: £ k | F159: 2821.623934 | H159: 51.4377943 | I159: 52.18326958 | J159: 53.67422014 | K159: 54.41969542 | L159: 55.1651707 | M159: 55.91064598 | N159: 56.65612126 | O159: 57.40159654 | P159: 58.89254709 | Q159: 59.63802237 | R159: 60.38349765 | S159: 65.60182461 | T159: 71.56562685 | U159: 76.78395381 | V159: 82.74775604 | W159: 87.966083 | X159: 93.92988524 | Y159: 99.1482122 | Z159: 105.1120144 | AA159: 110.3303414 | AB159: 116.2941436 | AC159: 121.5124706 | AD159: 127.4762728 | AE159: 132.6945998 | AF159: 138.658402 | AG159: 143.876729 | AH159: 149.8405312 | AI159: 155.0588582 | AJ159: 161.0226604 | AK159: 166.2409874
D160: Total HMAT costs | E160: £ k | F160: 88281458.21 | H160: =IF(H146="","",SUM(H152:H159)) -> 1622909.499 | I160: =IF(I146="","",SUM(I152:I159)) -> 1668848.419 | J160: 1714611.408 | K160: 1768427.204 | L160: 1829498.173 | M160: 1906080.023 | N160: 1994735.509 | O160: 2087915.935 | P160: 2178174.731 | Q160: 2280125.066 | R160: 2400016.056 | S160: 2511447.801 | T160: 2626531.07 | U160: 2740438.258 | V160: 2855013.973 | W160: 2968440.065 | X160: 3080945.8 | Y160: 3189969.85 | Z160: 3305181.973 | AA160: 3417942.859 | AB160: 3529550.403 | AC160: 3644827.531 | AD160: 3755088.417 | AE160: 3862480.722 | AF160: 3970082.525 | AG160: 4073664.482 | AH160: 4176321.409 | AI160: 4275231.85 | AJ160: 4374851.142 | AK160: 4472106.052
C162: Network Benefits | D162: Change in accident costs | E162: £ k | F162: =SUM(H162:BO162) -> -77715.23866 | H162: ='D2 Traffic'!F131 -> -7725.626135 | I162: ='D2 Traffic'!G131 -> -7273.545619 | J162: ='D2 Traffic'!H131 -> -7033.72118 | K162: ='D2 Traffic'!I131 -> -6788.223267 | L162: ='D2 Traffic'!J131 -> -6536.119832 | M162: ='D2 Traffic'!K131 -> -6276.162946 | N162: ='D2 Traffic'!L131 -> -6004.840219 | O162: ='D2 Traffic'!M131 -> -5734.133326 | P162: ='D2 Traffic'!N131 -> -5451.626899 | Q162: ='D2 Traffic'!O131 -> -5156.933802 | R162: ='D2 Traffic'!P131 -> -4849.678759 | S162: ='D2 Traffic'!Q131 -> -4529.493642 | T162: ='D2 Traffic'!R131 -> -4124.682443 | U162: ='D2 Traffic'!S131 -> -3703.649063 | V162: ='D2 Traffic'!T131 -> -3265.959187 | W162: ='D2 Traffic'!U131 -> -2811.17311 | X162: ='D2 Traffic'!V131 -> -2338.843776 | Y162: ='D2 Traffic'!W131 -> -1908.653492 | Z162: ='D2 Traffic'!X131 -> -1462.144669 | AA162: ='D2 Traffic'!Y131 -> -998.8949249 | AB162: ='D2 Traffic'!Z131 -> -518.4711352 | AC162: ='D2 Traffic'!AA131 -> -20.42884571 | AD162: ='D2 Traffic'!AB131 -> 423.1489648 | AE162: ='D2 Traffic'!AC131 -> 882.6915297 | AF162: ='D2 Traffic'!AD131 -> 1358.612998 | AG162: ='D2 Traffic'!AE131 -> 1851.338618 | AH162: ='D2 Traffic'!AF131 -> 2361.252886 | AI162: ='D2 Traffic'!AG131 -> 2823.507031 | AJ162: ='D2 Traffic'!AH131 -> 3301.516766 | AK162: ='D2 Traffic'!AI131 -> 3795.698816 | AL162: ='D2 Traffic'!AJ131 ->  | AM162: ='D2 Traffic'!AK131 ->  | AN162: ='D2 Traffic'!AL131 ->  | AO162: ='D2 Traffic'!AM131 ->  | AP162: ='D2 Traffic'!AN131 ->  | AQ162: ='D2 Traffic'!AO131 ->  | AR162: ='D2 Traffic'!AP131 ->  | AS162: ='D2 Traffic'!AQ131 ->  | AT162: ='D2 Traffic'!AR131 ->  | AU162: ='D2 Traffic'!AS131 ->  | AV162: ='D2 Traffic'!AT131 ->  | AW162: ='D2 Traffic'!AU131 ->  | AX162: ='D2 Traffic'!AV131 ->  | AY162: ='D2 Traffic'!AW131 ->  | AZ162: ='D2 Traffic'!AX131 ->  | BA162: ='D2 Traffic'!AY131 ->  | BB162: ='D2 Traffic'!AZ131 ->  | BC162: ='D2 Traffic'!BA131 ->  | BD162: ='D2 Traffic'!BB131 ->  | BE162: ='D2 Traffic'!BC131 ->  | BF162: ='D2 Traffic'!BD131 ->  | BG162: ='D2 Traffic'!BE131 ->  | BH162: ='D2 Traffic'!BF131 ->  | BI162: ='D2 Traffic'!BG131 ->  | BJ162: ='D2 Traffic'!BH131 ->  | BK162: ='D2 Traffic'!BI131 ->  | BL162: ='D2 Traffic'!BJ131 ->  | BM162: ='D2 Traffic'!BK131 ->  | BN162: ='D2 Traffic'!BL131 ->  | BO162: ='D2 Traffic'!BM131 -> 
D163: Change in travel time costs | E163: £ k | F163: =SUM(H163:BO163) -> 7197302.616 | H163: ='D2 Traffic'!F276 -> 165289.0387 | I163: ='D2 Traffic'!G276 -> 169100.6691 | J163: ='D2 Traffic'!H276 -> 172192.4782 | K163: ='D2 Traffic'!I276 -> 175347.9608 | L163: ='D2 Traffic'!J276 -> 178830.1535 | M163: ='D2 Traffic'!K276 -> 182626.3796 | N163: ='D2 Traffic'!L276 -> 186721.2186 | O163: ='D2 Traffic'!M276 -> 191180.1989 | P163: ='D2 Traffic'!N276 -> 195934.9463 | Q163: ='D2 Traffic'!O276 -> 200892.0022 | R163: ='D2 Traffic'!P276 -> 206157.4329 | S163: ='D2 Traffic'!Q276 -> 211541.5311 | T163: ='D2 Traffic'!R276 -> 217427.642 | U163: ='D2 Traffic'!S276 -> 223427.3007 | V163: ='D2 Traffic'!T276 -> 229600.2467 | W163: ='D2 Traffic'!U276 -> 235996.565 | X163: ='D2 Traffic'!V276 -> 242698.1768 | Y163: ='D2 Traffic'!W276 -> 249441.3913 | Z163: ='D2 Traffic'!X276 -> 256362.784 | AA163: ='D2 Traffic'!Y276 -> 263421.2575 | AB163: ='D2 Traffic'!Z276 -> 270596.0882 | AC163: ='D2 Traffic'!AA276 -> 277963.9053 | AD163: ='D2 Traffic'!AB276 -> 285216.5831 | AE163: ='D2 Traffic'!AC276 -> 292608.9679 | AF163: ='D2 Traffic'!AD276 -> 300116.6808 | AG163: ='D2 Traffic'!AE276 -> 307773.7167 | AH163: ='D2 Traffic'!AF276 -> 315594.4199 | AI163: ='D2 Traffic'!AG276 -> 323235.6943 | AJ163: ='D2 Traffic'!AH276 -> 331017.9584 | AK163: ='D2 Traffic'!AI276 -> 338989.2268 | AL163: ='D2 Traffic'!AJ276 ->  | AM163: ='D2 Traffic'!AK276 ->  | AN163: ='D2 Traffic'!AL276 ->  | AO163: ='D2 Traffic'!AM276 ->  | AP163: ='D2 Traffic'!AN276 ->  | AQ163: ='D2 Traffic'!AO276 ->  | AR163: ='D2 Traffic'!AP276 ->  | AS163: ='D2 Traffic'!AQ276 ->  | AT163: ='D2 Traffic'!AR276 ->  | AU163: ='D2 Traffic'!AS276 ->  | AV163: ='D2 Traffic'!AT276 ->  | AW163: ='D2 Traffic'!AU276 ->  | AX163: ='D2 Traffic'!AV276 ->  | AY163: ='D2 Traffic'!AW276 ->  | AZ163: ='D2 Traffic'!AX276 ->  | BA163: ='D2 Traffic'!AY276 ->  | BB163: ='D2 Traffic'!AZ276 ->  | BC163: ='D2 Traffic'!BA276 ->  | BD163: ='D2 Traffic'!BB276 ->  | BE163: ='D2 Traffic'!BC276 ->  | BF163: ='D2 Traffic'!BD276 ->  | BG163: ='D2 Traffic'!BE276 ->  | BH163: ='D2 Traffic'!BF276 ->  | BI163: ='D2 Traffic'!BG276 ->  | BJ163: ='D2 Traffic'!BH276 ->  | BK163: ='D2 Traffic'!BI276 ->  | BL163: ='D2 Traffic'!BJ276 ->  | BM163: ='D2 Traffic'!BK276 ->  | BN163: ='D2 Traffic'!BL276 ->  | BO163: ='D2 Traffic'!BM276 -> 
D164: Change in cost of CO2 emissions | E164: £ k | F164: =SUM(H164:BO164) -> 1939292.932 | H164: =IF(H1="","",IF(H154=0,0,H154*'D2 Traffic'!F133*CO2RatioNon2Urb+H154*'D2 Traffic'!F134*CO2RatioNon2Rur-H154)) -> 32508.6689 | I164: =IF(I1="","",IF(I154=0,0,I154*'D2 Traffic'!G133*CO2RatioNon2Urb+I154*'D2 Traffic'!G134*CO2RatioNon2Rur-I154)) -> 32855.56531 | J164: =IF(J1="","",IF(J154=0,0,J154*'D2 Traffic'!H133*CO2RatioNon2Urb+J154*'D2 Traffic'!H134*CO2RatioNon2Rur-J154)) -> 33536.4651 | K164: =IF(K1="","",IF(K154=0,0,K154*'D2 Traffic'!I133*CO2RatioNon2Urb+K154*'D2 Traffic'!I134*CO2RatioNon2Rur-K154)) -> 33858.9605 | L164: =IF(L1="","",IF(L154=0,0,L154*'D2 Traffic'!J133*CO2RatioNon2Urb+L154*'D2 Traffic'!J134*CO2RatioNon2Rur-L154)) -> 34230.22282 | M164: =IF(M1="","",IF(M154=0,0,M154*'D2 Traffic'!K133*CO2RatioNon2Urb+M154*'D2 Traffic'!K134*CO2RatioNon2Rur-M154)) -> 34617.67543 | N164: =IF(N1="","",IF(N154=0,0,N154*'D2 Traffic'!L133*CO2RatioNon2Urb+N154*'D2 Traffic'!L134*CO2RatioNon2Rur-N154)) -> 35143.98957 | O164: =IF(O1="","",IF(O154=0,0,O154*'D2 Traffic'!M133*CO2RatioNon2Urb+O154*'D2 Traffic'!M134*CO2RatioNon2Rur-O154)) -> 35755.95946 | P164: =IF(P1="","",IF(P154=0,0,P154*'D2 Traffic'!N133*CO2RatioNon2Urb+P154*'D2 Traffic'!N134*CO2RatioNon2Rur-P154)) -> 36811.81409 | Q164: =IF(Q1="","",IF(Q154=0,0,Q154*'D2 Traffic'!O133*CO2RatioNon2Urb+Q154*'D2 Traffic'!O134*CO2RatioNon2Rur-Q154)) -> 37558.61882 | R164: =IF(R1="","",IF(R154=0,0,R154*'D2 Traffic'!P133*CO2RatioNon2Urb+R154*'D2 Traffic'!P134*CO2RatioNon2Rur-R154)) -> 38382.25322 | S164: =IF(S1="","",IF(S154=0,0,S154*'D2 Traffic'!Q133*CO2RatioNon2Urb+S154*'D2 Traffic'!Q134*CO2RatioNon2Rur-S154)) -> 41871.8482 | T164: =IF(T1="","",IF(T154=0,0,T154*'D2 Traffic'!R133*CO2RatioNon2Urb+T154*'D2 Traffic'!R134*CO2RatioNon2Rur-T154)) -> 46035.53858 | U164: =IF(U1="","",IF(U154=0,0,U154*'D2 Traffic'!S133*CO2RatioNon2Urb+U154*'D2 Traffic'!S134*CO2RatioNon2Rur-U154)) -> 49857.83656 | V164: =IF(V1="","",IF(V154=0,0,V154*'D2 Traffic'!T133*CO2RatioNon2Urb+V154*'D2 Traffic'!T134*CO2RatioNon2Rur-V154)) -> 54176.53341 | W164: =IF(W1="","",IF(W154=0,0,W154*'D2 Traffic'!U133*CO2RatioNon2Urb+W154*'D2 Traffic'!U134*CO2RatioNon2Rur-W154)) -> 58212.96137 | X164: =IF(X1="","",IF(X154=0,0,X154*'D2 Traffic'!V133*CO2RatioNon2Urb+X154*'D2 Traffic'!V134*CO2RatioNon2Rur-X154)) -> 62816.05315 | Y164: =IF(Y1="","",IF(Y154=0,0,Y154*'D2 Traffic'!W133*CO2RatioNon2Urb+Y154*'D2 Traffic'!W134*CO2RatioNon2Rur-Y154)) -> 66925.65594 | Z164: =IF(Z1="","",IF(Z154=0,0,Z154*'D2 Traffic'!X133*CO2RatioNon2Urb+Z154*'D2 Traffic'!X134*CO2RatioNon2Rur-Z154)) -> 71681.39332 | AA164: =IF(AA1="","",IF(AA154=0,0,AA154*'D2 Traffic'!Y133*CO2RatioNon2Urb+AA154*'D2 Traffic'!Y134*CO2RatioNon2Rur-AA154)) -> 76036.53453 | AB164: =IF(AB1="","",IF(AB154=0,0,AB154*'D2 Traffic'!Z133*CO2RatioNon2Urb+AB154*'D2 Traffic'!Z134*CO2RatioNon2Rur-AB154)) -> 80859.97518 | AC164: =IF(AC1="","",IF(AC154=0,0,AC154*'D2 Traffic'!AA133*CO2RatioNon2Urb+AC154*'D2 Traffic'!AA134*CO2RatioNon2Rur-AC154)) -> 85406.52884 | AD164: =IF(AD1="","",IF(AD154=0,0,AD154*'D2 Traffic'!AB133*CO2RatioNon2Urb+AD154*'D2 Traffic'!AB134*CO2RatioNon2Rur-AD154)) -> 90447.34482 | AE164: =IF(AE1="","",IF(AE154=0,0,AE154*'D2 Traffic'!AC133*CO2RatioNon2Urb+AE154*'D2 Traffic'!AC134*CO2RatioNon2Rur-AE154)) -> 94939.75047 | AF164: =IF(AF1="","",IF(AF154=0,0,AF154*'D2 Traffic'!AD133*CO2RatioNon2Urb+AF154*'D2 Traffic'!AD134*CO2RatioNon2Rur-AF154)) -> 100121.3057 | AG164: =IF(AG1="","",IF(AG154=0,0,AG154*'D2 Traffic'!AE133*CO2RatioNon2Urb+AG154*'D2 Traffic'!AE134*CO2RatioNon2Rur-AG154)) -> 104838.5363 | AH164: =IF(AH1="","",IF(AH154=0,0,AH154*'D2 Traffic'!AF133*CO2RatioNon2Urb+AH154*'D2 Traffic'!AF134*CO2RatioNon2Rur-AH154)) -> 110013.9341 | AI164: =IF(AI1="","",IF(AI154=0,0,AI154*'D2 Traffic'!AG133*CO2RatioNon2Urb+AI154*'D2 Traffic'!AG134*CO2RatioNon2Rur-AI154)) -> 114776.9972 | AJ164: =IF(AJ1="","",IF(AJ154=0,0,AJ154*'D2 Traffic'!AH133*CO2RatioNon2Urb+AJ154*'D2 Traffic'!AH134*CO2RatioNon2Rur-AJ154)) -> 120131.781 | AK164: =IF(AK1="","",IF(AK154=0,0,AK154*'D2 Traffic'!AI133*CO2RatioNon2Urb+AK154*'D2 Traffic'!AI134*CO2RatioNon2Rur-AK154)) -> 124882.2307 | AL164: =IF(AL1="","",IF(AL154=0,0,AL154*'D2 Traffic'!AJ133*CO2RatioNon2Urb+AL154*'D2 Traffic'!AJ134*CO2RatioNon2Rur-AL154)) ->  | AM164: =IF(AM1="","",IF(AM154=0,0,AM154*'D2 Traffic'!AK133*CO2RatioNon2Urb+AM154*'D2 Traffic'!AK134*CO2RatioNon2Rur-AM154)) ->  | AN164: =IF(AN1="","",IF(AN154=0,0,AN154*'D2 Traffic'!AL133*CO2RatioNon2Urb+AN154*'D2 Traffic'!AL134*CO2RatioNon2Rur-AN154)) ->  | AO164: =IF(AO1="","",IF(AO154=0,0,AO154*'D2 Traffic'!AM133*CO2RatioNon2Urb+AO154*'D2 Traffic'!AM134*CO2RatioNon2Rur-AO154)) ->  | AP164: =IF(AP1="","",IF(AP154=0,0,AP154*'D2 Traffic'!AN133*CO2RatioNon2Urb+AP154*'D2 Traffic'!AN134*CO2RatioNon2Rur-AP154)) ->  | AQ164: =IF(AQ1="","",IF(AQ154=0,0,AQ154*'D2 Traffic'!AO133*CO2RatioNon2Urb+AQ154*'D2 Traffic'!AO134*CO2RatioNon2Rur-AQ154)) ->  | AR164: =IF(AR1="","",IF(AR154=0,0,AR154*'D2 Traffic'!AP133*CO2RatioNon2Urb+AR154*'D2 Traffic'!AP134*CO2RatioNon2Rur-AR154)) ->  | AS164: =IF(AS1="","",IF(AS154=0,0,AS154*'D2 Traffic'!AQ133*CO2RatioNon2Urb+AS154*'D2 Traffic'!AQ134*CO2RatioNon2Rur-AS154)) ->  | AT164: =IF(AT1="","",IF(AT154=0,0,AT154*'D2 Traffic'!AR133*CO2RatioNon2Urb+AT154*'D2 Traffic'!AR134*CO2RatioNon2Rur-AT154)) ->  | AU164: =IF(AU1="","",IF(AU154=0,0,AU154*'D2 Traffic'!AS133*CO2RatioNon2Urb+AU154*'D2 Traffic'!AS134*CO2RatioNon2Rur-AU154)) ->  | AV164: =IF(AV1="","",IF(AV154=0,0,AV154*'D2 Traffic'!AT133*CO2RatioNon2Urb+AV154*'D2 Traffic'!AT134*CO2RatioNon2Rur-AV154)) ->  | AW164: =IF(AW1="","",IF(AW154=0,0,AW154*'D2 Traffic'!AU133*CO2RatioNon2Urb+AW154*'D2 Traffic'!AU134*CO2RatioNon2Rur-AW154)) ->  | AX164: =IF(AX1="","",IF(AX154=0,0,AX154*'D2 Traffic'!AV133*CO2RatioNon2Urb+AX154*'D2 Traffic'!AV134*CO2RatioNon2Rur-AX154)) ->  | AY164: =IF(AY1="","",IF(AY154=0,0,AY154*'D2 Traffic'!AW133*CO2RatioNon2Urb+AY154*'D2 Traffic'!AW134*CO2RatioNon2Rur-AY154)) ->  | AZ164: =IF(AZ1="","",IF(AZ154=0,0,AZ154*'D2 Traffic'!AX133*CO2RatioNon2Urb+AZ154*'D2 Traffic'!AX134*CO2RatioNon2Rur-AZ154)) ->  | BA164: =IF(BA1="","",IF(BA154=0,0,BA154*'D2 Traffic'!AY133*CO2RatioNon2Urb+BA154*'D2 Traffic'!AY134*CO2RatioNon2Rur-BA154)) ->  | BB164: =IF(BB1="","",IF(BB154=0,0,BB154*'D2 Traffic'!AZ133*CO2RatioNon2Urb+BB154*'D2 Traffic'!AZ134*CO2RatioNon2Rur-BB154)) ->  | BC164: =IF(BC1="","",IF(BC154=0,0,BC154*'D2 Traffic'!BA133*CO2RatioNon2Urb+BC154*'D2 Traffic'!BA134*CO2RatioNon2Rur-BC154)) ->  | BD164: =IF(BD1="","",IF(BD154=0,0,BD154*'D2 Traffic'!BB133*CO2RatioNon2Urb+BD154*'D2 Traffic'!BB134*CO2RatioNon2Rur-BD154)) ->  | BE164: =IF(BE1="","",IF(BE154=0,0,BE154*'D2 Traffic'!BC133*CO2RatioNon2Urb+BE154*'D2 Traffic'!BC134*CO2RatioNon2Rur-BE154)) ->  | BF164: =IF(BF1="","",IF(BF154=0,0,BF154*'D2 Traffic'!BD133*CO2RatioNon2Urb+BF154*'D2 Traffic'!BD134*CO2RatioNon2Rur-BF154)) ->  | BG164: =IF(BG1="","",IF(BG154=0,0,BG154*'D2 Traffic'!BE133*CO2RatioNon2Urb+BG154*'D2 Traffic'!BE134*CO2RatioNon2Rur-BG154)) ->  | BH164: =IF(BH1="","",IF(BH154=0,0,BH154*'D2 Traffic'!BF133*CO2RatioNon2Urb+BH154*'D2 Traffic'!BF134*CO2RatioNon2Rur-BH154)) ->  | BI164: =IF(BI1="","",IF(BI154=0,0,BI154*'D2 Traffic'!BG133*CO2RatioNon2Urb+BI154*'D2 Traffic'!BG134*CO2RatioNon2Rur-BI154)) ->  | BJ164: =IF(BJ1="","",IF(BJ154=0,0,BJ154*'D2 Traffic'!BH133*CO2RatioNon2Urb+BJ154*'D2 Traffic'!BH134*CO2RatioNon2Rur-BJ154)) ->  | BK164: =IF(BK1="","",IF(BK154=0,0,BK154*'D2 Traffic'!BI133*CO2RatioNon2Urb+BK154*'D2 Traffic'!BI134*CO2RatioNon2Rur-BK154)) ->  | BL164: =IF(BL1="","",IF(BL154=0,0,BL154*'D2 Traffic'!BJ133*CO2RatioNon2Urb+BL154*'D2 Traffic'!BJ134*CO2RatioNon2Rur-BL154)) ->  | BM164: =IF(BM1="","",IF(BM154=0,0,BM154*'D2 Traffic'!BK133*CO2RatioNon2Urb+BM154*'D2 Traffic'!BK134*CO2RatioNon2Rur-BM154)) ->  | BN164: =IF(BN1="","",IF(BN154=0,0,BN154*'D2 Traffic'!BL133*CO2RatioNon2Urb+BN154*'D2 Traffic'!BL134*CO2RatioNon2Rur-BN154)) ->  | BO164: =IF(BO1="","",IF(BO154=0,0,BO154*'D2 Traffic'!BM133*CO2RatioNon2Urb+BO154*'D2 Traffic'!BM134*CO2RatioNon2Rur-BO154)) -> 
D165: Total Network Benefits costs | E165: £ k | F165: =SUM(H165:BO165) -> 9058880.309 | H165: =IF(H146="","",SUM(H162:H164)) -> 190072.0815 | I165: =IF(I146="","",SUM(I162:I164)) -> 194682.6888 | J165: 198695.2222 | K165: 202418.6981 | L165: 206524.2565 | M165: 210967.8921 | N165: 215860.368 | O165: 221202.025 | P165: 227295.1335 | Q165: 233293.6872 | R165: 239690.0074 | S165: 248883.8857 | T165: 259338.4982 | U165: 269581.4882 | V165: 280510.8209 | W165: 291398.3533 | X165: 303175.3862 | Y165: 314458.3937 | Z165: 326582.0326 | AA165: 338458.8971 | AB165: 350937.5922 | AC165: 363350.0053 | AD165: 376087.0769 | AE165: 388431.4099 | AF165: 401596.5995 | AG165: 414463.5915 | AH165: 427969.6068 | AI165: 440836.1986 | AJ165: 454451.2562 | AK165: 467667.1563
C167: Public Income | D167: Congestion charge | E167: £ k | F167: =SUM(H167:BO167) -> 1497511.925 | H167: =IF(H1="","",'D2 Traffic'!F303) -> 75334.90215 | I167: =IF(I1="","",'D2 Traffic'!G303) -> 76080.86835 | J167: =IF(J1="","",'D2 Traffic'!H303) -> 75662.42357 | K167: =IF(K1="","",'D2 Traffic'!I303) -> 74381.91272 | L167: =IF(L1="","",'D2 Traffic'!J303) -> 72500.94291 | M167: =IF(M1="","",'D2 Traffic'!K303) -> 70231.22839 | N167: =IF(N1="","",'D2 Traffic'!L303) -> 67731.69897 | O167: =IF(O1="","",'D2 Traffic'!M303) -> 65120.77744 | P167: =IF(P1="","",'D2 Traffic'!N303) -> 62490.93996 | Q167: =IF(Q1="","",'D2 Traffic'!O303) -> 59897.19101 | R167: =IF(R1="","",'D2 Traffic'!P303) -> 57374.44112 | S167: =IF(S1="","",'D2 Traffic'!Q303) -> 54946.24002 | T167: =IF(T1="","",'D2 Traffic'!R303) -> 52626.40977 | U167: =IF(U1="","",'D2 Traffic'!S303) -> 50420.62643 | V167: =IF(V1="","",'D2 Traffic'!T303) -> 48327.86791 | W167: =IF(W1="","",'D2 Traffic'!U303) -> 46341.68919 | X167: =IF(X1="","",'D2 Traffic'!V303) -> 44460.77271 | Y167: =IF(Y1="","",'D2 Traffic'!W303) -> 42678.87386 | Z167: =IF(Z1="","",'D2 Traffic'!X303) -> 40985.80294 | AA167: =IF(AA1="","",'D2 Traffic'!Y303) -> 39380.79889 | AB167: =IF(AB1="","",'D2 Traffic'!Z303) -> 37854.71418 | AC167: =IF(AC1="","",'D2 Traffic'!AA303) -> 36403.21301 | AD167: =IF(AD1="","",'D2 Traffic'!AB303) -> 35018.5076 | AE167: =IF(AE1="","",'D2 Traffic'!AC303) -> 33700.76116 | AF167: =IF(AF1="","",'D2 Traffic'!AD303) -> 32439.47647 | AG167: =IF(AG1="","",'D2 Traffic'!AE303) -> 31235.3231 | AH167: =IF(AH1="","",'D2 Traffic'!AF303) -> 30082.23992 | AI167: =IF(AI1="","",'D2 Traffic'!AG303) -> 28977.86072 | AJ167: =IF(AJ1="","",'D2 Traffic'!AH303) -> 27919.93698 | AK167: =IF(AK1="","",'D2 Traffic'!AI303) -> 26903.48376 | AL167: =IF(AL1="","",'D2 Traffic'!AJ303) ->  | AM167: =IF(AM1="","",'D2 Traffic'!AK303) ->  | AN167: =IF(AN1="","",'D2 Traffic'!AL303) ->  | AO167: =IF(AO1="","",'D2 Traffic'!AM303) ->  | AP167: =IF(AP1="","",'D2 Traffic'!AN303) ->  | AQ167: =IF(AQ1="","",'D2 Traffic'!AO303) ->  | AR167: =IF(AR1="","",'D2 Traffic'!AP303) ->  | AS167: =IF(AS1="","",'D2 Traffic'!AQ303) ->  | AT167: =IF(AT1="","",'D2 Traffic'!AR303) ->  | AU167: =IF(AU1="","",'D2 Traffic'!AS303) ->  | AV167: =IF(AV1="","",'D2 Traffic'!AT303) ->  | AW167: =IF(AW1="","",'D2 Traffic'!AU303) ->  | AX167: =IF(AX1="","",'D2 Traffic'!AV303) ->  | AY167: =IF(AY1="","",'D2 Traffic'!AW303) ->  | AZ167: =IF(AZ1="","",'D2 Traffic'!AX303) ->  | BA167: =IF(BA1="","",'D2 Traffic'!AY303) ->  | BB167: =IF(BB1="","",'D2 Traffic'!AZ303) ->  | BC167: =IF(BC1="","",'D2 Traffic'!BA303) ->  | BD167: =IF(BD1="","",'D2 Traffic'!BB303) ->  | BE167: =IF(BE1="","",'D2 Traffic'!BC303) ->  | BF167: =IF(BF1="","",'D2 Traffic'!BD303) ->  | BG167: =IF(BG1="","",'D2 Traffic'!BE303) ->  | BH167: =IF(BH1="","",'D2 Traffic'!BF303) ->  | BI167: =IF(BI1="","",'D2 Traffic'!BG303) ->  | BJ167: =IF(BJ1="","",'D2 Traffic'!BH303) ->  | BK167: =IF(BK1="","",'D2 Traffic'!BI303) ->  | BL167: =IF(BL1="","",'D2 Traffic'!BJ303) ->  | BM167: =IF(BM1="","",'D2 Traffic'!BK303) ->  | BN167: =IF(BN1="","",'D2 Traffic'!BL303) ->  | BO167: =IF(BO1="","",'D2 Traffic'!BM303) -> 
D168: Tolls | E168: £ k | F168: =SUM(H168:BO168) -> 281798.2495 | H168: =IF(H1="","",'D2 Traffic'!F331) -> 13941.66065 | I168: =IF(I1="","",'D2 Traffic'!G331) -> 14090.33638 | J168: =IF(J1="","",'D2 Traffic'!H331) -> 14025.29477 | K168: =IF(K1="","",'D2 Traffic'!I331) -> 13801.77757 | L168: =IF(L1="","",'D2 Traffic'!J331) -> 13467.61505 | M168: =IF(M1="","",'D2 Traffic'!K331) -> 13061.55049 | N168: =IF(N1="","",'D2 Traffic'!L331) -> 12612.69404 | O168: =IF(O1="","",'D2 Traffic'!M331) -> 12142.76744 | P168: =IF(P1="","",'D2 Traffic'!N331) -> 11668.77713 | Q168: =IF(Q1="","",'D2 Traffic'!O331) -> 11200.85391 | R168: =IF(R1="","",'D2 Traffic'!P331) -> 10745.44665 | S168: =IF(S1="","",'D2 Traffic'!Q331) -> 10306.92766 | T168: =IF(T1="","",'D2 Traffic'!R331) -> 9887.884726 | U168: =IF(U1="","",'D2 Traffic'!S331) -> 9489.404547 | V168: =IF(V1="","",'D2 Traffic'!T331) -> 9111.33263 | W168: =IF(W1="","",'D2 Traffic'!U331) -> 8752.502278 | X168: =IF(X1="","",'D2 Traffic'!V331) -> 8412.70834 | Y168: =IF(Y1="","",'D2 Traffic'!W331) -> 8090.822333 | Z168: =IF(Z1="","",'D2 Traffic'!X331) -> 7784.968834 | AA168: =IF(AA1="","",'D2 Traffic'!Y331) -> 7495.045465 | AB168: =IF(AB1="","",'D2 Traffic'!Z331) -> 7219.365658 | AC168: =IF(AC1="","",'D2 Traffic'!AA331) -> 6957.147106 | AD168: =IF(AD1="","",'D2 Traffic'!AB331) -> 6706.948841 | AE168: =IF(AE1="","",'D2 Traffic'!AC331) -> 6468.837018 | AF168: =IF(AF1="","",'D2 Traffic'!AD331) -> 6240.845905 | AG168: =IF(AG1="","",'D2 Traffic'!AE331) -> 6023.133521 | AH168: =IF(AH1="","",'D2 Traffic'!AF331) -> 5814.571022 | AI168: =IF(AI1="","",'D2 Traffic'!AG331) -> 5614.732776 | AJ168: =IF(AJ1="","",'D2 Traffic'!AH331) -> 5423.214598 | AK168: =IF(AK1="","",'D2 Traffic'!AI331) -> 5239.082144 | AL168: =IF(AL1="","",'D2 Traffic'!AJ331) ->  | AM168: =IF(AM1="","",'D2 Traffic'!AK331) ->  | AN168: =IF(AN1="","",'D2 Traffic'!AL331) ->  | AO168: =IF(AO1="","",'D2 Traffic'!AM331) ->  | AP168: =IF(AP1="","",'D2 Traffic'!AN331) ->  | AQ168: =IF(AQ1="","",'D2 Traffic'!AO331) ->  | AR168: =IF(AR1="","",'D2 Traffic'!AP331) ->  | AS168: =IF(AS1="","",'D2 Traffic'!AQ331) ->  | AT168: =IF(AT1="","",'D2 Traffic'!AR331) ->  | AU168: =IF(AU1="","",'D2 Traffic'!AS331) ->  | AV168: =IF(AV1="","",'D2 Traffic'!AT331) ->  | AW168: =IF(AW1="","",'D2 Traffic'!AU331) ->  | AX168: =IF(AX1="","",'D2 Traffic'!AV331) ->  | AY168: =IF(AY1="","",'D2 Traffic'!AW331) ->  | AZ168: =IF(AZ1="","",'D2 Traffic'!AX331) ->  | BA168: =IF(BA1="","",'D2 Traffic'!AY331) ->  | BB168: =IF(BB1="","",'D2 Traffic'!AZ331) ->  | BC168: =IF(BC1="","",'D2 Traffic'!BA331) ->  | BD168: =IF(BD1="","",'D2 Traffic'!BB331) ->  | BE168: =IF(BE1="","",'D2 Traffic'!BC331) ->  | BF168: =IF(BF1="","",'D2 Traffic'!BD331) ->  | BG168: =IF(BG1="","",'D2 Traffic'!BE331) ->  | BH168: =IF(BH1="","",'D2 Traffic'!BF331) ->  | BI168: =IF(BI1="","",'D2 Traffic'!BG331) ->  | BJ168: =IF(BJ1="","",'D2 Traffic'!BH331) ->  | BK168: =IF(BK1="","",'D2 Traffic'!BI331) ->  | BL168: =IF(BL1="","",'D2 Traffic'!BJ331) ->  | BM168: =IF(BM1="","",'D2 Traffic'!BK331) ->  | BN168: =IF(BN1="","",'D2 Traffic'!BL331) ->  | BO168: =IF(BO1="","",'D2 Traffic'!BM331) -> 
D169: Total Public Income | E169: £ k | F169: =SUM(H169:BO169) -> 1779310.175 | H169: =IF(H146="","",SUM(H167:H168)) -> 89276.5628 | I169: =IF(I146="","",SUM(I167:I168)) -> 90171.20473 | J169: 89687.71834 | K169: 88183.69029 | L169: 85968.55796 | M169: 83292.77888 | N169: 80344.39301 | O169: 77263.54488 | P169: 74159.71709 | Q169: 71098.04492 | R169: 68119.88777 | S169: 65253.16769 | T169: 62514.29449 | U169: 59910.03098 | V169: 57439.20054 | W169: 55094.19147 | X169: 52873.48105 | Y169: 50769.6962 | Z169: 48770.77177 | AA169: 46875.84436 | AB169: 45074.07983 | AC169: 43360.36012 | AD169: 41725.45644 | AE169: 40169.59818 | AF169: 38680.32238 | AG169: 37258.45662 | AH169: 35896.81094 | AI169: 34592.5935 | AJ169: 33343.15158 | AK169: 32142.5659
C171: Economic Impacts | D171: aGVA | E171: £ k | F171: =SUM(H171:BO171) -> 112722568.5 | H171: =D2_aGVA_Base*1000 -> 3089378.459 | I171: =IF(I$1="","",H171*(1+GR!I150)) -> 3131769.056 | J171: =IF(J$1="","",I171*(1+GR!J150)) -> 3174079.256 | K171: =IF(K$1="","",J171*(1+GR!K150)) -> 3216463.371 | L171: =IF(L$1="","",K171*(1+GR!L150)) -> 3259044.2 | M171: =IF(M$1="","",L171*(1+GR!M150)) -> 3301919.534 | N171: =IF(N$1="","",M171*(1+GR!N150)) -> 3345164.774 | O171: =IF(O$1="","",N171*(1+GR!O150)) -> 3388840.583 | P171: =IF(P$1="","",O171*(1+GR!P150)) -> 3433001.243 | Q171: =IF(Q$1="","",P171*(1+GR!Q150)) -> 3477684.5 | R171: =IF(R$1="","",Q171*(1+GR!R150)) -> 3522920.134 | S171: =IF(S$1="","",R171*(1+GR!S150)) -> 3568734.301 | T171: =IF(T$1="","",S171*(1+GR!T150)) -> 3615149.259 | U171: =IF(U$1="","",T171*(1+GR!U150)) -> 3662183.074 | V171: =IF(V$1="","",U171*(1+GR!V150)) -> 3709849.316 | W171: =IF(W$1="","",V171*(1+GR!W150)) -> 3758156.748 | X171: =IF(X$1="","",W171*(1+GR!X150)) -> 3807119.518 | Y171: =IF(Y$1="","",X171*(1+GR!Y150)) -> 3856746.843 | Z171: =IF(Z$1="","",Y171*(1+GR!Z150)) -> 3907042.679 | AA171: =IF(AA$1="","",Z171*(1+GR!AA150)) -> 3958021.772 | AB171: =IF(AB$1="","",AA171*(1+GR!AB150)) -> 4009688.205 | AC171: =IF(AC$1="","",AB171*(1+GR!AC150)) -> 4062051.525 | AD171: =IF(AD$1="","",AC171*(1+GR!AD150)) -> 4115115.729 | AE171: =IF(AE$1="","",AD171*(1+GR!AE150)) -> 4168896.176 | AF171: =IF(AF$1="","",AE171*(1+GR!AF150)) -> 4223391.153 | AG171: =IF(AG$1="","",AF171*(1+GR!AG150)) -> 4278616.216 | AH171: =IF(AH$1="","",AG171*(1+GR!AH150)) -> 4334575.382 | AI171: =IF(AI$1="","",AH171*(1+GR!AI150)) -> 4391278.563 | AJ171: =IF(AJ$1="","",AI171*(1+GR!AJ150)) -> 4448735.808 | AK171: =IF(AK$1="","",AJ171*(1+GR!AK150)) -> 4506951.075 | AL171: =IF(AL$1="","",AK171*(1+GR!AL150)) ->  | AM171: =IF(AM$1="","",AL171*(1+GR!AM150)) ->  | AN171: =IF(AN$1="","",AM171*(1+GR!AN150)) ->  | AO171: =IF(AO$1="","",AN171*(1+GR!AO150)) ->  | AP171: =IF(AP$1="","",AO171*(1+GR!AP150)) ->  | AQ171: =IF(AQ$1="","",AP171*(1+GR!AQ150)) ->  | AR171: =IF(AR$1="","",AQ171*(1+GR!AR150)) ->  | AS171: =IF(AS$1="","",AR171*(1+GR!AS150)) ->  | AT171: =IF(AT$1="","",AS171*(1+GR!AT150)) ->  | AU171: =IF(AU$1="","",AT171*(1+GR!AU150)) ->  | AV171: =IF(AV$1="","",AU171*(1+GR!AV150)) ->  | AW171: =IF(AW$1="","",AV171*(1+GR!AW150)) ->  | AX171: =IF(AX$1="","",AW171*(1+GR!AX150)) ->  | AY171: =IF(AY$1="","",AX171*(1+GR!AY150)) ->  | AZ171: =IF(AZ$1="","",AY171*(1+GR!AZ150)) ->  | BA171: =IF(BA$1="","",AZ171*(1+GR!BA150)) ->  | BB171: =IF(BB$1="","",BA171*(1+GR!BB150)) ->  | BC171: =IF(BC$1="","",BB171*(1+GR!BC150)) ->  | BD171: =IF(BD$1="","",BC171*(1+GR!BD150)) ->  | BE171: =IF(BE$1="","",BD171*(1+GR!BE150)) ->  | BF171: =IF(BF$1="","",BE171*(1+GR!BF150)) ->  | BG171: =IF(BG$1="","",BF171*(1+GR!BG150)) ->  | BH171: =IF(BH$1="","",BG171*(1+GR!BH150)) ->  | BI171: =IF(BI$1="","",BH171*(1+GR!BI150)) ->  | BJ171: =IF(BJ$1="","",BI171*(1+GR!BJ150)) ->  | BK171: =IF(BK$1="","",BJ171*(1+GR!BK150)) ->  | BL171: =IF(BL$1="","",BK171*(1+GR!BL150)) ->  | BM171: =IF(BM$1="","",BL171*(1+GR!BM150)) ->  | BN171: =IF(BN$1="","",BM171*(1+GR!BN150)) ->  | BO171: =IF(BO$1="","",BN171*(1+GR!BO150)) -> 
D172: Per Capita aGVA | E172: £ | H172: =IFERROR((H171*1000)/H177,"") -> 60224.6668 | I172: =IF(I$1="","",IFERROR((I171*1000)/I177,"")) -> 60517.21722 | J172: =IF(J$1="","",IFERROR((J171*1000)/J177,"")) -> 60806.69865 | K172: 61094.21767 | L172: 61380.63362 | M172: 61666.61192 | N172: 61952.64921 | O172: 62239.12987 | P172: 62526.38439 | Q172: 62814.62648 | R172: 63104.01201 | S172: 63394.66868 | T172: 63686.69528 | U172: 63980.16105 | V172: 64275.10494 | W172: 64571.53493 | X172: 64869.49079 | Y172: 65168.981 | Z172: 65469.98209 | AA172: 65772.5344 | AB172: 66076.61423 | AC172: 66382.22986 | AD172: 66689.35693 | AE172: 66998.03614 | AF172: 67308.20998 | AG172: 67619.9191 | AH172: 67933.13825 | AI172: 68247.87507 | AJ172: 68564.13718 | AK172: 68881.89857
D173: Tax Receipts from income | E173: £ k | F173: =SUM(H173:BO173) -> 18034285.9 | H173: =D2_TaxReceip_Base -> 494264.2378 | I173: =IF(I$1="","",H173*(1+GR!I152)) -> 501046.2351 | J173: =IF(J$1="","",I173*(1+GR!J152)) -> 507815.3697 | K173: =IF(K$1="","",J173*(1+GR!K152)) -> 514596.3299 | L173: =IF(L$1="","",K173*(1+GR!L152)) -> 521408.762 | M173: =IF(M$1="","",L173*(1+GR!M152)) -> 528268.3114 | N173: =IF(N$1="","",M173*(1+GR!N152)) -> 535187.0414 | O173: =IF(O$1="","",N173*(1+GR!O152)) -> 542174.6575 | P173: =IF(P$1="","",O173*(1+GR!P152)) -> 549239.8439 | Q173: =IF(Q$1="","",P173*(1+GR!Q152)) -> 556388.6399 | R173: =IF(R$1="","",Q173*(1+GR!R152)) -> 563625.8095 | S173: =IF(S$1="","",R173*(1+GR!S152)) -> 570955.5377 | T173: =IF(T$1="","",S173*(1+GR!T152)) -> 578381.3854 | U173: =IF(U$1="","",T173*(1+GR!U152)) -> 585906.2429 | V173: =IF(V$1="","",U173*(1+GR!V152)) -> 593532.2814 | W173: =IF(W$1="","",V173*(1+GR!W152)) -> 601260.9026 | X173: =IF(X$1="","",W173*(1+GR!X152)) -> 609094.3702 | Y173: =IF(Y$1="","",X173*(1+GR!Y152)) -> 617034.1589 | Z173: =IF(Z$1="","",Y173*(1+GR!Z152)) -> 625080.9014 | AA173: =IF(AA$1="","",Z173*(1+GR!AA152)) -> 633236.957 | AB173: =IF(AB$1="","",AA173*(1+GR!AB152)) -> 641502.9789 | AC173: =IF(AC$1="","",AB173*(1+GR!AC152)) -> 649880.4946 | AD173: =IF(AD$1="","",AC173*(1+GR!AD152)) -> 658370.1435 | AE173: =IF(AE$1="","",AD173*(1+GR!AE152)) -> 666974.3829 | AF173: =IF(AF$1="","",AE173*(1+GR!AF152)) -> 675692.9386 | AG173: =IF(AG$1="","",AF173*(1+GR!AG152)) -> 684528.2995 | AH173: =IF(AH$1="","",AG173*(1+GR!AH152)) -> 693481.1082 | AI173: =IF(AI$1="","",AH173*(1+GR!AI152)) -> 702552.9507 | AJ173: =IF(AJ$1="","",AI173*(1+GR!AJ152)) -> 711745.4345 | AK173: =IF(AK$1="","",AJ173*(1+GR!AK152)) -> 721059.1929 | AL173: =IF(AL$1="","",AK173*(1+GR!AL152)) ->  | AM173: =IF(AM$1="","",AL173*(1+GR!AM152)) ->  | AN173: =IF(AN$1="","",AM173*(1+GR!AN152)) ->  | AO173: =IF(AO$1="","",AN173*(1+GR!AO152)) ->  | AP173: =IF(AP$1="","",AO173*(1+GR!AP152)) ->  | AQ173: =IF(AQ$1="","",AP173*(1+GR!AQ152)) ->  | AR173: =IF(AR$1="","",AQ173*(1+GR!AR152)) ->  | AS173: =IF(AS$1="","",AR173*(1+GR!AS152)) ->  | AT173: =IF(AT$1="","",AS173*(1+GR!AT152)) ->  | AU173: =IF(AU$1="","",AT173*(1+GR!AU152)) ->  | AV173: =IF(AV$1="","",AU173*(1+GR!AV152)) ->  | AW173: =IF(AW$1="","",AV173*(1+GR!AW152)) ->  | AX173: =IF(AX$1="","",AW173*(1+GR!AX152)) ->  | AY173: =IF(AY$1="","",AX173*(1+GR!AY152)) ->  | AZ173: =IF(AZ$1="","",AY173*(1+GR!AZ152)) ->  | BA173: =IF(BA$1="","",AZ173*(1+GR!BA152)) ->  | BB173: =IF(BB$1="","",BA173*(1+GR!BB152)) ->  | BC173: =IF(BC$1="","",BB173*(1+GR!BC152)) ->  | BD173: =IF(BD$1="","",BC173*(1+GR!BD152)) ->  | BE173: =IF(BE$1="","",BD173*(1+GR!BE152)) ->  | BF173: =IF(BF$1="","",BE173*(1+GR!BF152)) ->  | BG173: =IF(BG$1="","",BF173*(1+GR!BG152)) ->  | BH173: =IF(BH$1="","",BG173*(1+GR!BH152)) ->  | BI173: =IF(BI$1="","",BH173*(1+GR!BI152)) ->  | BJ173: =IF(BJ$1="","",BI173*(1+GR!BJ152)) ->  | BK173: =IF(BK$1="","",BJ173*(1+GR!BK152)) ->  | BL173: =IF(BL$1="","",BK173*(1+GR!BL152)) ->  | BM173: =IF(BM$1="","",BL173*(1+GR!BM152)) ->  | BN173: =IF(BN$1="","",BM173*(1+GR!BN152)) ->  | BO173: =IF(BO$1="","",BN173*(1+GR!BO152)) -> 
D174: VAT | E174: £ k | F174: =IFERROR(SUM(H174:BO174),0) -> 3186312.222 | H174: =D2_VAT_Base -> 87327.00539 | I174: =IF(I$1="","",H174*(1+GR!I153)) -> 88525.25416 | J174: =IF(J$1="","",I174*(1+GR!J153)) -> 89721.23034 | K174: =IF(K$1="","",J174*(1+GR!K153)) -> 90919.29588 | L174: =IF(L$1="","",K174*(1+GR!L153)) -> 92122.92188 | M174: =IF(M$1="","",L174*(1+GR!M153)) -> 93334.87262 | N174: =IF(N$1="","",M174*(1+GR!N153)) -> 94557.27944 | O174: =IF(O$1="","",N174*(1+GR!O153)) -> 95791.85711 | P174: =IF(P$1="","",O174*(1+GR!P153)) -> 97040.13996 | Q174: =IF(Q$1="","",P174*(1+GR!Q153)) -> 98303.19501 | R174: =IF(R$1="","",Q174*(1+GR!R153)) -> 99581.86399 | S174: =IF(S$1="","",R174*(1+GR!S153)) -> 100876.8863 | T174: =IF(T$1="","",S174*(1+GR!T153)) -> 102188.8911 | U174: =IF(U$1="","",T174*(1+GR!U153)) -> 103518.389 | V174: =IF(V$1="","",U174*(1+GR!V153)) -> 104865.7636 | W174: =IF(W$1="","",V174*(1+GR!W153)) -> 106231.2627 | X174: =IF(X$1="","",W174*(1+GR!X153)) -> 107615.2861 | Y174: =IF(Y$1="","",X174*(1+GR!Y153)) -> 109018.0944 | Z174: =IF(Z$1="","",Y174*(1+GR!Z153)) -> 110439.7993 | AA174: =IF(AA$1="","",Z174*(1+GR!AA153)) -> 111880.8178 | AB174: =IF(AB$1="","",AA174*(1+GR!AB153)) -> 113341.2653 | AC174: =IF(AC$1="","",AB174*(1+GR!AC153)) -> 114821.4115 | AD174: =IF(AD$1="","",AC174*(1+GR!AD153)) -> 116321.3696 | AE174: =IF(AE$1="","",AD174*(1+GR!AE153)) -> 117841.5735 | AF174: =IF(AF$1="","",AE174*(1+GR!AF153)) -> 119381.975 | AG174: =IF(AG$1="","",AF174*(1+GR!AG153)) -> 120943.0137 | AH174: =IF(AH$1="","",AG174*(1+GR!AH153)) -> 122524.8032 | AI174: =IF(AI$1="","",AH174*(1+GR!AI153)) -> 124127.6237 | AJ174: =IF(AJ$1="","",AI174*(1+GR!AJ153)) -> 125751.7592 | AK174: =IF(AK$1="","",AJ174*(1+GR!AK153)) -> 127397.3215 | AL174: =IF(AL$1="","",AK174*(1+GR!AL153)) ->  | AM174: =IF(AM$1="","",AL174*(1+GR!AM153)) ->  | AN174: =IF(AN$1="","",AM174*(1+GR!AN153)) ->  | AO174: =IF(AO$1="","",AN174*(1+GR!AO153)) ->  | AP174: =IF(AP$1="","",AO174*(1+GR!AP153)) ->  | AQ174: =IF(AQ$1="","",AP174*(1+GR!AQ153)) ->  | AR174: =IF(AR$1="","",AQ174*(1+GR!AR153)) ->  | AS174: =IF(AS$1="","",AR174*(1+GR!AS153)) ->  | AT174: =IF(AT$1="","",AS174*(1+GR!AT153)) ->  | AU174: =IF(AU$1="","",AT174*(1+GR!AU153)) ->  | AV174: =IF(AV$1="","",AU174*(1+GR!AV153)) ->  | AW174: =IF(AW$1="","",AV174*(1+GR!AW153)) ->  | AX174: =IF(AX$1="","",AW174*(1+GR!AX153)) ->  | AY174: =IF(AY$1="","",AX174*(1+GR!AY153)) ->  | AZ174: =IF(AZ$1="","",AY174*(1+GR!AZ153)) ->  | BA174: =IF(BA$1="","",AZ174*(1+GR!BA153)) ->  | BB174: =IF(BB$1="","",BA174*(1+GR!BB153)) ->  | BC174: =IF(BC$1="","",BB174*(1+GR!BC153)) ->  | BD174: =IF(BD$1="","",BC174*(1+GR!BD153)) ->  | BE174: =IF(BE$1="","",BD174*(1+GR!BE153)) ->  | BF174: =IF(BF$1="","",BE174*(1+GR!BF153)) ->  | BG174: =IF(BG$1="","",BF174*(1+GR!BG153)) ->  | BH174: =IF(BH$1="","",BG174*(1+GR!BH153)) ->  | BI174: =IF(BI$1="","",BH174*(1+GR!BI153)) ->  | BJ174: =IF(BJ$1="","",BI174*(1+GR!BJ153)) ->  | BK174: =IF(BK$1="","",BJ174*(1+GR!BK153)) ->  | BL174: =IF(BL$1="","",BK174*(1+GR!BL153)) ->  | BM174: =IF(BM$1="","",BL174*(1+GR!BM153)) ->  | BN174: =IF(BN$1="","",BM174*(1+GR!BN153)) ->  | BO174: =IF(BO$1="","",BN174*(1+GR!BO153)) -> 
D175: NIC | E175: £ k | F175: =SUM(H175:BO175) -> 2767007.308 | H175: =D2_NIC_Base -> 75835.14899 | I175: =IF(I$1="","",H175*(1+GR!I154)) -> 76875.7134 | J175: =IF(J$1="","",I175*(1+GR!J154)) -> 77914.30429 | K175: =IF(K$1="","",J175*(1+GR!K154)) -> 78954.70958 | L175: =IF(L$1="","",K175*(1+GR!L154)) -> 79999.9436 | M175: =IF(M$1="","",L175*(1+GR!M154)) -> 81052.40686 | N175: =IF(N$1="","",M175*(1+GR!N154)) -> 82113.95024 | O175: =IF(O$1="","",N175*(1+GR!O154)) -> 83186.06282 | P175: =IF(P$1="","",O175*(1+GR!P154)) -> 84270.07704 | Q175: =IF(Q$1="","",P175*(1+GR!Q154)) -> 85366.91951 | R175: =IF(R$1="","",Q175*(1+GR!R154)) -> 86477.32117 | S175: =IF(S$1="","",R175*(1+GR!S154)) -> 87601.92415 | T175: =IF(T$1="","",S175*(1+GR!T154)) -> 88741.27477 | U175: =IF(U$1="","",T175*(1+GR!U154)) -> 89895.8165 | V175: =IF(V$1="","",U175*(1+GR!V154)) -> 91065.88247 | W175: =IF(W$1="","",V175*(1+GR!W154)) -> 92251.68775 | X175: =IF(X$1="","",W175*(1+GR!X154)) -> 93453.57964 | Y175: =IF(Y$1="","",X175*(1+GR!Y154)) -> 94671.78444 | Z175: =IF(Z$1="","",Y175*(1+GR!Z154)) -> 95906.39918 | AA175: =IF(AA$1="","",Z175*(1+GR!AA154)) -> 97157.78587 | AB175: =IF(AB$1="","",AA175*(1+GR!AB154)) -> 98426.04475 | AC175: =IF(AC$1="","",AB175*(1+GR!AC154)) -> 99711.41015 | AD175: =IF(AD$1="","",AC175*(1+GR!AD154)) -> 101013.9802 | AE175: =IF(AE$1="","",AD175*(1+GR!AE154)) -> 102334.1319 | AF175: =IF(AF$1="","",AE175*(1+GR!AF154)) -> 103671.8232 | AG175: =IF(AG$1="","",AF175*(1+GR!AG154)) -> 105027.436 | AH175: =IF(AH$1="","",AG175*(1+GR!AH154)) -> 106401.0688 | AI175: =IF(AI$1="","",AH175*(1+GR!AI154)) -> 107792.965 | AJ175: =IF(AJ$1="","",AI175*(1+GR!AJ154)) -> 109203.3713 | AK175: =IF(AK$1="","",AJ175*(1+GR!AK154)) -> 110632.3848 | AL175: =IF(AL$1="","",AK175*(1+GR!AL154)) ->  | AM175: =IF(AM$1="","",AL175*(1+GR!AM154)) ->  | AN175: =IF(AN$1="","",AM175*(1+GR!AN154)) ->  | AO175: =IF(AO$1="","",AN175*(1+GR!AO154)) ->  | AP175: =IF(AP$1="","",AO175*(1+GR!AP154)) ->  | AQ175: =IF(AQ$1="","",AP175*(1+GR!AQ154)) ->  | AR175: =IF(AR$1="","",AQ175*(1+GR!AR154)) ->  | AS175: =IF(AS$1="","",AR175*(1+GR!AS154)) ->  | AT175: =IF(AT$1="","",AS175*(1+GR!AT154)) ->  | AU175: =IF(AU$1="","",AT175*(1+GR!AU154)) ->  | AV175: =IF(AV$1="","",AU175*(1+GR!AV154)) ->  | AW175: =IF(AW$1="","",AV175*(1+GR!AW154)) ->  | AX175: =IF(AX$1="","",AW175*(1+GR!AX154)) ->  | AY175: =IF(AY$1="","",AX175*(1+GR!AY154)) ->  | AZ175: =IF(AZ$1="","",AY175*(1+GR!AZ154)) ->  | BA175: =IF(BA$1="","",AZ175*(1+GR!BA154)) ->  | BB175: =IF(BB$1="","",BA175*(1+GR!BB154)) ->  | BC175: =IF(BC$1="","",BB175*(1+GR!BC154)) ->  | BD175: =IF(BD$1="","",BC175*(1+GR!BD154)) ->  | BE175: =IF(BE$1="","",BD175*(1+GR!BE154)) ->  | BF175: =IF(BF$1="","",BE175*(1+GR!BF154)) ->  | BG175: =IF(BG$1="","",BF175*(1+GR!BG154)) ->  | BH175: =IF(BH$1="","",BG175*(1+GR!BH154)) ->  | BI175: =IF(BI$1="","",BH175*(1+GR!BI154)) ->  | BJ175: =IF(BJ$1="","",BI175*(1+GR!BJ154)) ->  | BK175: =IF(BK$1="","",BJ175*(1+GR!BK154)) ->  | BL175: =IF(BL$1="","",BK175*(1+GR!BL154)) ->  | BM175: =IF(BM$1="","",BL175*(1+GR!BM154)) ->  | BN175: =IF(BN$1="","",BM175*(1+GR!BN154)) ->  | BO175: =IF(BO$1="","",BN175*(1+GR!BO154)) -> 
D176: Total tax receipts | E176: £ k | F176: =IFERROR(SUM(H176:BO176),0) -> 23987605.43 | H176: =SUM(H173:H175) -> 657426.3922 | I176: =IF(I$1="","",SUM(I173:I175)) -> 666447.2026 | J176: =IF(J$1="","",SUM(J173:J175)) -> 675450.9044 | K176: =IF(K$1="","",SUM(K173:K175)) -> 684470.3354 | L176: =IF(L$1="","",SUM(L173:L175)) -> 693531.6275 | M176: =IF(M$1="","",SUM(M173:M175)) -> 702655.5908 | N176: =IF(N$1="","",SUM(N173:N175)) -> 711858.2711 | O176: =IF(O$1="","",SUM(O173:O175)) -> 721152.5774 | P176: =IF(P$1="","",SUM(P173:P175)) -> 730550.0609 | Q176: =IF(Q$1="","",SUM(Q173:Q175)) -> 740058.7544 | R176: =IF(R$1="","",SUM(R173:R175)) -> 749684.9946 | S176: =IF(S$1="","",SUM(S173:S175)) -> 759434.3481 | T176: =IF(T$1="","",SUM(T173:T175)) -> 769311.5513 | U176: =IF(U$1="","",SUM(U173:U175)) -> 779320.4484 | V176: =IF(V$1="","",SUM(V173:V175)) -> 789463.9275 | W176: =IF(W$1="","",SUM(W173:W175)) -> 799743.8531 | X176: =IF(X$1="","",SUM(X173:X175)) -> 810163.2359 | Y176: =IF(Y$1="","",SUM(Y173:Y175)) -> 820724.0377 | Z176: =IF(Z$1="","",SUM(Z173:Z175)) -> 831427.0999 | AA176: =IF(AA$1="","",SUM(AA173:AA175)) -> 842275.5607 | AB176: =IF(AB$1="","",SUM(AB173:AB175)) -> 853270.289 | AC176: =IF(AC$1="","",SUM(AC173:AC175)) -> 864413.3163 | AD176: =IF(AD$1="","",SUM(AD173:AD175)) -> 875705.4932 | AE176: =IF(AE$1="","",SUM(AE173:AE175)) -> 887150.0883 | AF176: =IF(AF$1="","",SUM(AF173:AF175)) -> 898746.7369 | AG176: =IF(AG$1="","",SUM(AG173:AG175)) -> 910498.7492 | AH176: =IF(AH$1="","",SUM(AH173:AH175)) -> 922406.9802 | AI176: =IF(AI$1="","",SUM(AI173:AI175)) -> 934473.5394 | AJ176: =IF(AJ$1="","",SUM(AJ173:AJ175)) -> 946700.565 | AK176: 959088.8992
D177: Employment | E177: No. | H177: =D2_Employ_Base -> 51297.56 | I177: =IF(I$1="","",H177*(1+GR!I156)) -> 51750.05065 | J177: =IF(J$1="","",I177*(1+GR!J156)) -> 52199.49984 | K177: =IF(K$1="","",J177*(1+GR!K156)) -> 52647.59078 | L177: =IF(L$1="","",K177*(1+GR!L156)) -> 53095.64284 | M177: =IF(M$1="","",L177*(1+GR!M156)) -> 53544.68862 | N177: =IF(N$1="","",M177*(1+GR!N156)) -> 53995.50813 | O177: =IF(O$1="","",N177*(1+GR!O156)) -> 54448.71402 | P177: =IF(P$1="","",O177*(1+GR!P156)) -> 54904.84179 | Q177: =IF(Q$1="","",P177*(1+GR!Q156)) -> 55364.24707 | R177: =IF(R$1="","",Q177*(1+GR!R156)) -> 55827.19737 | S177: =IF(S$1="","",R177*(1+GR!S156)) -> 56293.91832 | T177: =IF(T$1="","",S177*(1+GR!T156)) -> 56764.59178 | U177: =IF(U$1="","",T177*(1+GR!U156)) -> 57239.35379 | V177: =IF(V$1="","",U177*(1+GR!V156)) -> 57718.29264 | W177: =IF(W$1="","",V177*(1+GR!W156)) -> 58201.44669 | X177: =IF(X$1="","",W177*(1+GR!X156)) -> 58688.90709 | Y177: =IF(Y$1="","",X177*(1+GR!Y156)) -> 59180.71426 | Z177: =IF(Z$1="","",Y177*(1+GR!Z156)) -> 59676.85578 | AA177: =IF(AA$1="","",Z177*(1+GR!AA156)) -> 60177.42525 | AB177: =IF(AB$1="","",AA177*(1+GR!AB156)) -> 60682.41013 | AC177: =IF(AC$1="","",AB177*(1+GR!AC156)) -> 61191.8511 | AD177: =IF(AD$1="","",AC177*(1+GR!AD156)) -> 61705.73414 | AE177: =IF(AE$1="","",AD177*(1+GR!AE156)) -> 62224.15487 | AF177: =IF(AF$1="","",AE177*(1+GR!AF156)) -> 62747.04311 | AG177: =IF(AG$1="","",AF177*(1+GR!AG156)) -> 63274.49475 | AH177: =IF(AH$1="","",AG177*(1+GR!AH156)) -> 63806.49405 | AI177: =IF(AI$1="","",AH177*(1+GR!AI156)) -> 64343.08114 | AJ177: =IF(AJ$1="","",AI177*(1+GR!AJ156)) -> 64884.29654 | AK177: =IF(AK$1="","",AJ177*(1+GR!AK156)) -> 65430.1227 | AL177: =IF(AL$1="","",AK177*(1+GR!AL156)) ->  | AM177: =IF(AM$1="","",AL177*(1+GR!AM156)) ->  | AN177: =IF(AN$1="","",AM177*(1+GR!AN156)) ->  | AO177: =IF(AO$1="","",AN177*(1+GR!AO156)) ->  | AP177: =IF(AP$1="","",AO177*(1+GR!AP156)) ->  | AQ177: =IF(AQ$1="","",AP177*(1+GR!AQ156)) ->  | AR177: =IF(AR$1="","",AQ177*(1+GR!AR156)) ->  | AS177: =IF(AS$1="","",AR177*(1+GR!AS156)) ->  | AT177: =IF(AT$1="","",AS177*(1+GR!AT156)) ->  | AU177: =IF(AU$1="","",AT177*(1+GR!AU156)) ->  | AV177: =IF(AV$1="","",AU177*(1+GR!AV156)) ->  | AW177: =IF(AW$1="","",AV177*(1+GR!AW156)) ->  | AX177: =IF(AX$1="","",AW177*(1+GR!AX156)) ->  | AY177: =IF(AY$1="","",AX177*(1+GR!AY156)) ->  | AZ177: =IF(AZ$1="","",AY177*(1+GR!AZ156)) ->  | BA177: =IF(BA$1="","",AZ177*(1+GR!BA156)) ->  | BB177: =IF(BB$1="","",BA177*(1+GR!BB156)) ->  | BC177: =IF(BC$1="","",BB177*(1+GR!BC156)) ->  | BD177: =IF(BD$1="","",BC177*(1+GR!BD156)) ->  | BE177: =IF(BE$1="","",BD177*(1+GR!BE156)) ->  | BF177: =IF(BF$1="","",BE177*(1+GR!BF156)) ->  | BG177: =IF(BG$1="","",BF177*(1+GR!BG156)) ->  | BH177: =IF(BH$1="","",BG177*(1+GR!BH156)) ->  | BI177: =IF(BI$1="","",BH177*(1+GR!BI156)) ->  | BJ177: =IF(BJ$1="","",BI177*(1+GR!BJ156)) ->  | BK177: =IF(BK$1="","",BJ177*(1+GR!BK156)) ->  | BL177: =IF(BL$1="","",BK177*(1+GR!BL156)) ->  | BM177: =IF(BM$1="","",BL177*(1+GR!BM156)) ->  | BN177: =IF(BN$1="","",BM177*(1+GR!BN156)) ->  | BO177: =IF(BO$1="","",BN177*(1+GR!BO156)) -> 
D178: Total Economic Impacts | E178: £ k | F178: =SUM(H178:BO178) -> 136710173.9 | H178: =IF(H146="","",SUM(H171,H173:H175)) -> 3746804.851 | I178: =IF(I146="","",SUM(I171,I173:I175)) -> 3798216.259 | J178: 3849530.161 | K178: 3900933.707 | L178: 3952575.827 | M178: 4004575.125 | N178: 4057023.045 | O178: 4109993.161 | P178: 4163551.303 | Q178: 4217743.255 | R178: 4272605.128 | S178: 4328168.649 | T178: 4384460.81 | U178: 4441503.522 | V178: 4499313.244 | W178: 4557900.601 | X178: 4617282.753 | Y178: 4677470.881 | Z178: 4738469.779 | AA178: 4800297.333 | AB178: 4862958.494 | AC178: 4926464.841 | AD178: 4990821.222 | AE178: 5056046.265 | AF178: 5122137.89 | AG178: 5189114.965 | AH178: 5256982.362 | AI178: 5325752.103 | AJ178: 5395436.373 | AK178: 5466039.975
A181: =IF(D2_Name="","","Discounted costs for " & D2_Name) -> Discounted costs for R2 | F181: Analysis period total | H181: =H146 -> 2020 | I181: 2021 | J181: 2022 | K181: 2023 | L181: 2024 | M181: 2025 | N181: 2026 | O181: 2027 | P181: 2028 | Q181: 2029 | R181: 2030 | S181: 2031 | T181: 2032 | U181: 2033 | V181: 2034 | W181: 2035 | X181: 2036 | Y181: 2037 | Z181: 2038 | AA181: 2039 | AB181: 2040 | AC181: 2041 | AD181: 2042 | AE181: 2043 | AF181: 2044 | AG181: 2045 | AH181: 2046 | AI181: 2047 | AJ181: 2048 | AK181: =AK146 -> 2049
D183: Parameter | E183: Unit
D184: Expenditure by Treatment | E184: £ k | F184: =SUM(H184:BO184) -> 65134.58877 | H184: =H149 -> 3421.695 | I184: =IF(I$1="","",I149/(1+GR!I$27)^(I$1-1)) -> 3305.985507 | J184: =IF(J$1="","",J149/(1+GR!J$27)^(J$1-1)) -> 3194.188896 | K184: =IF(K$1="","",K149/(1+GR!K$27)^(K$1-1)) -> 3086.172846 | L184: =IF(L$1="","",L149/(1+GR!L$27)^(L$1-1)) -> 2981.809513 | M184: =IF(M$1="","",M149/(1+GR!M$27)^(M$1-1)) -> 2880.975375 | N184: =IF(N$1="","",N149/(1+GR!N$27)^(N$1-1)) -> 2783.551087 | O184: =IF(O$1="","",O149/(1+GR!O$27)^(O$1-1)) -> 2689.42134 | P184: =IF(P$1="","",P149/(1+GR!P$27)^(P$1-1)) -> 2598.474725 | Q184: =IF(Q$1="","",Q149/(1+GR!Q$27)^(Q$1-1)) -> 2510.603599 | R184: =IF(R$1="","",R149/(1+GR!R$27)^(R$1-1)) -> 2425.70396 | S184: =IF(S$1="","",S149/(1+GR!S$27)^(S$1-1)) -> 2343.675324 | T184: =IF(T$1="","",T149/(1+GR!T$27)^(T$1-1)) -> 2264.420603 | U184: =IF(U$1="","",U149/(1+GR!U$27)^(U$1-1)) -> 2187.845993 | V184: =IF(V$1="","",V149/(1+GR!V$27)^(V$1-1)) -> 2113.860863 | W184: =IF(W$1="","",W149/(1+GR!W$27)^(W$1-1)) -> 2042.377645 | X184: =IF(X$1="","",X149/(1+GR!X$27)^(X$1-1)) -> 1973.311735 | Y184: =IF(Y$1="","",Y149/(1+GR!Y$27)^(Y$1-1)) -> 1906.581386 | Z184: =IF(Z$1="","",Z149/(1+GR!Z$27)^(Z$1-1)) -> 1842.107619 | AA184: =IF(AA$1="","",AA149/(1+GR!AA$27)^(AA$1-1)) -> 1779.814125 | AB184: =IF(AB$1="","",AB149/(1+GR!AB$27)^(AB$1-1)) -> 1719.627174 | AC184: =IF(AC$1="","",AC149/(1+GR!AC$27)^(AC$1-1)) -> 1661.47553 | AD184: =IF(AD$1="","",AD149/(1+GR!AD$27)^(AD$1-1)) -> 1605.290368 | AE184: =IF(AE$1="","",AE149/(1+GR!AE$27)^(AE$1-1)) -> 1551.005186 | AF184: =IF(AF$1="","",AF149/(1+GR!AF$27)^(AF$1-1)) -> 1498.555735 | AG184: =IF(AG$1="","",AG149/(1+GR!AG$27)^(AG$1-1)) -> 1447.879937 | AH184: =IF(AH$1="","",AH149/(1+GR!AH$27)^(AH$1-1)) -> 1398.917814 | AI184: =IF(AI$1="","",AI149/(1+GR!AI$27)^(AI$1-1)) -> 1351.611414 | AJ184: =IF(AJ$1="","",AJ149/(1+GR!AJ$27)^(AJ$1-1)) -> 1305.904748 | AK184: =IF(AK$1="","",AK149/(1+GR!AK$27)^(AK$1-1)) -> 1261.743718 | AL184: =IF(AL$1="","",AL149/(1+GR!AL$27)^(AL$1-1)) ->  | AM184: =IF(AM$1="","",AM149/(1+GR!AM$27)^(AM$1-1)) ->  | AN184: =IF(AN$1="","",AN149/(1+GR!AN$27)^(AN$1-1)) ->  | AO184: =IF(AO$1="","",AO149/(1+GR!AO$27)^(AO$1-1)) ->  | AP184: =IF(AP$1="","",AP149/(1+GR!AP$27)^(AP$1-1)) ->  | AQ184: =IF(AQ$1="","",AQ149/(1+GR!AQ$27)^(AQ$1-1)) ->  | AR184: =IF(AR$1="","",AR149/(1+GR!AR$27)^(AR$1-1)) ->  | AS184: =IF(AS$1="","",AS149/(1+GR!AS$27)^(AS$1-1)) ->  | AT184: =IF(AT$1="","",AT149/(1+GR!AT$27)^(AT$1-1)) ->  | AU184: =IF(AU$1="","",AU149/(1+GR!AU$27)^(AU$1-1)) ->  | AV184: =IF(AV$1="","",AV149/(1+GR!AV$27)^(AV$1-1)) ->  | AW184: =IF(AW$1="","",AW149/(1+GR!AW$27)^(AW$1-1)) ->  | AX184: =IF(AX$1="","",AX149/(1+GR!AX$27)^(AX$1-1)) ->  | AY184: =IF(AY$1="","",AY149/(1+GR!AY$27)^(AY$1-1)) ->  | AZ184: =IF(AZ$1="","",AZ149/(1+GR!AZ$27)^(AZ$1-1)) ->  | BA184: =IF(BA$1="","",BA149/(1+GR!BA$27)^(BA$1-1)) ->  | BB184: =IF(BB$1="","",BB149/(1+GR!BB$27)^(BB$1-1)) ->  | BC184: =IF(BC$1="","",BC149/(1+GR!BC$27)^(BC$1-1)) ->  | BD184: =IF(BD$1="","",BD149/(1+GR!BD$27)^(BD$1-1)) ->  | BE184: =IF(BE$1="","",BE149/(1+GR!BE$27)^(BE$1-1)) ->  | BF184: =IF(BF$1="","",BF149/(1+GR!BF$27)^(BF$1-1)) ->  | BG184: =IF(BG$1="","",BG149/(1+GR!BG$27)^(BG$1-1)) ->  | BH184: =IF(BH$1="","",BH149/(1+GR!BH$27)^(BH$1-1)) ->  | BI184: =IF(BI$1="","",BI149/(1+GR!BI$27)^(BI$1-1)) ->  | BJ184: =IF(BJ$1="","",BJ149/(1+GR!BJ$27)^(BJ$1-1)) ->  | BK184: =IF(BK$1="","",BK149/(1+GR!BK$27)^(BK$1-1)) ->  | BL184: =IF(BL$1="","",BL149/(1+GR!BL$27)^(BL$1-1)) ->  | BM184: =IF(BM$1="","",BM149/(1+GR!BM$27)^(BM$1-1)) ->  | BN184: =IF(BN$1="","",BN149/(1+GR!BN$27)^(BN$1-1)) ->  | BO184: =IF(BO$1="","",BO149/(1+GR!BO$27)^(BO$1-1)) -> 
D185: Percentage in poor condition | E185: % | H185: =IF(H150="","",H150) -> 0.4246 | I185: =IF(I150="","",I150) -> 0.4445 | J185: 0.4596 | K185: 0.4708 | L185: 0.479 | M185: 0.4849 | N185: 0.4891 | O185: 0.492 | P185: 0.4938 | Q185: 0.4949 | R185: 0.4955 | S185: 0.4957 | T185: 0.4956 | U185: 0.4953 | V185: 0.4949 | W185: 0.4945 | X185: 0.494 | Y185: 0.4935 | Z185: 0.4931 | AA185: 0.4926 | AB185: 0.4922 | AC185: 0.4918 | AD185: 0.4915 | AE185: 0.4911 | AF185: 0.4909 | AG185: 0.4906 | AH185: 0.4904 | AI185: 0.4902 | AJ185: 0.49 | AK185: 0.4899
C187: Treatment and Condition Impacts | D187: Vehicle operating costs | E187: £ k | F187: =SUM(H187:BO187) -> 38498988.35 | H187: =H152 -> 1137024.991 | I187: =IF(I$1="","",I152/(1+GR!I$27)^(I$1-1)) -> 1132089.494 | J187: =IF(J$1="","",J152/(1+GR!J$27)^(J$1-1)) -> 1128079.643 | K187: =IF(K$1="","",K152/(1+GR!K$27)^(K$1-1)) -> 1130356.209 | L187: =IF(L$1="","",L152/(1+GR!L$27)^(L$1-1)) -> 1137016.352 | M187: =IF(M$1="","",M152/(1+GR!M$27)^(M$1-1)) -> 1154544.103 | N187: =IF(N$1="","",N152/(1+GR!N$27)^(N$1-1)) -> 1178822.143 | O187: =IF(O$1="","",O152/(1+GR!O$27)^(O$1-1)) -> 1203197.586 | P187: =IF(P$1="","",P152/(1+GR!P$27)^(P$1-1)) -> 1221508.321 | Q187: =IF(Q$1="","",Q152/(1+GR!Q$27)^(Q$1-1)) -> 1245606.845 | R187: =IF(R$1="","",R152/(1+GR!R$27)^(R$1-1)) -> 1279016.436 | S187: =IF(S$1="","",S152/(1+GR!S$27)^(S$1-1)) -> 1300596.187 | T187: =IF(T$1="","",T152/(1+GR!T$27)^(T$1-1)) -> 1320482.582 | U187: =IF(U$1="","",U152/(1+GR!U$27)^(U$1-1)) -> 1336910.727 | V187: =IF(V$1="","",V152/(1+GR!V$27)^(V$1-1)) -> 1350535.513 | W187: =IF(W$1="","",W152/(1+GR!W$27)^(W$1-1)) -> 1360948.098 | X187: =IF(X$1="","",X152/(1+GR!X$27)^(X$1-1)) -> 1368084.991 | Y187: =IF(Y$1="","",Y152/(1+GR!Y$27)^(Y$1-1)) -> 1371351.215 | Z187: =IF(Z$1="","",Z152/(1+GR!Z$27)^(Z$1-1)) -> 1375536.428 | AA187: =IF(AA$1="","",AA152/(1+GR!AA$27)^(AA$1-1)) -> 1376670.638 | AB187: =IF(AB$1="","",AB152/(1+GR!AB$27)^(AB$1-1)) -> 1375195.379 | AC187: =IF(AC$1="","",AC152/(1+GR!AC$27)^(AC$1-1)) -> 1373992.167 | AD187: =IF(AD$1="","",AD152/(1+GR!AD$27)^(AD$1-1)) -> 1368798.235 | AE187: =IF(AE$1="","",AE152/(1+GR!AE$27)^(AE$1-1)) -> 1361187.925 | AF187: =IF(AF$1="","",AF152/(1+GR!AF$27)^(AF$1-1)) -> 1352207.551 | AG187: =IF(AG$1="","",AG152/(1+GR!AG$27)^(AG$1-1)) -> 1340683.231 | AH187: =IF(AH$1="","",AH152/(1+GR!AH$27)^(AH$1-1)) -> 1327642.977 | AI187: =IF(AI$1="","",AI152/(1+GR!AI$27)^(AI$1-1)) -> 1312823.413 | AJ187: =IF(AJ$1="","",AJ152/(1+GR!AJ$27)^(AJ$1-1)) -> 1297368.68 | AK187: =IF(AK$1="","",AK152/(1+GR!AK$27)^(AK$1-1)) -> 1280710.285 | AL187: =IF(AL$1="","",AL152/(1+GR!AL$27)^(AL$1-1)) ->  | AM187: =IF(AM$1="","",AM152/(1+GR!AM$27)^(AM$1-1)) ->  | AN187: =IF(AN$1="","",AN152/(1+GR!AN$27)^(AN$1-1)) ->  | AO187: =IF(AO$1="","",AO152/(1+GR!AO$27)^(AO$1-1)) ->  | AP187: =IF(AP$1="","",AP152/(1+GR!AP$27)^(AP$1-1)) ->  | AQ187: =IF(AQ$1="","",AQ152/(1+GR!AQ$27)^(AQ$1-1)) ->  | AR187: =IF(AR$1="","",AR152/(1+GR!AR$27)^(AR$1-1)) ->  | AS187: =IF(AS$1="","",AS152/(1+GR!AS$27)^(AS$1-1)) ->  | AT187: =IF(AT$1="","",AT152/(1+GR!AT$27)^(AT$1-1)) ->  | AU187: =IF(AU$1="","",AU152/(1+GR!AU$27)^(AU$1-1)) ->  | AV187: =IF(AV$1="","",AV152/(1+GR!AV$27)^(AV$1-1)) ->  | AW187: =IF(AW$1="","",AW152/(1+GR!AW$27)^(AW$1-1)) ->  | AX187: =IF(AX$1="","",AX152/(1+GR!AX$27)^(AX$1-1)) ->  | AY187: =IF(AY$1="","",AY152/(1+GR!AY$27)^(AY$1-1)) ->  | AZ187: =IF(AZ$1="","",AZ152/(1+GR!AZ$27)^(AZ$1-1)) ->  | BA187: =IF(BA$1="","",BA152/(1+GR!BA$27)^(BA$1-1)) ->  | BB187: =IF(BB$1="","",BB152/(1+GR!BB$27)^(BB$1-1)) ->  | BC187: =IF(BC$1="","",BC152/(1+GR!BC$27)^(BC$1-1)) ->  | BD187: =IF(BD$1="","",BD152/(1+GR!BD$27)^(BD$1-1)) ->  | BE187: =IF(BE$1="","",BE152/(1+GR!BE$27)^(BE$1-1)) ->  | BF187: =IF(BF$1="","",BF152/(1+GR!BF$27)^(BF$1-1)) ->  | BG187: =IF(BG$1="","",BG152/(1+GR!BG$27)^(BG$1-1)) ->  | BH187: =IF(BH$1="","",BH152/(1+GR!BH$27)^(BH$1-1)) ->  | BI187: =IF(BI$1="","",BI152/(1+GR!BI$27)^(BI$1-1)) ->  | BJ187: =IF(BJ$1="","",BJ152/(1+GR!BJ$27)^(BJ$1-1)) ->  | BK187: =IF(BK$1="","",BK152/(1+GR!BK$27)^(BK$1-1)) ->  | BL187: =IF(BL$1="","",BL152/(1+GR!BL$27)^(BL$1-1)) ->  | BM187: =IF(BM$1="","",BM152/(1+GR!BM$27)^(BM$1-1)) ->  | BN187: =IF(BN$1="","",BN152/(1+GR!BN$27)^(BN$1-1)) ->  | BO187: =IF(BO$1="","",BO152/(1+GR!BO$27)^(BO$1-1)) -> 
D188: Travel time | E188: £ k | F188: 9972064.172 | H188: 381493.8324 | I188: =IF(I$1="","",I153/(1+GR!I$27)^(I$1-1)) -> 378998.5909 | J188: =IF(J$1="","",J153/(1+GR!J$27)^(J$1-1)) -> 374288.5352 | K188: =IF(K$1="","",K153/(1+GR!K$27)^(K$1-1)) -> 369360.8564 | L188: =IF(L$1="","",L153/(1+GR!L$27)^(L$1-1)) -> 364781.0416 | M188: =IF(M$1="","",M153/(1+GR!M$27)^(M$1-1)) -> 360520.6799 | N188: =IF(N$1="","",N153/(1+GR!N$27)^(N$1-1)) -> 356579.8465 | O188: =IF(O$1="","",O153/(1+GR!O$27)^(O$1-1)) -> 352909.3128 | P188: =IF(P$1="","",P153/(1+GR!P$27)^(P$1-1)) -> 349517.2242 | Q188: =IF(Q$1="","",Q153/(1+GR!Q$27)^(Q$1-1)) -> 346233.2975 | R188: =IF(R$1="","",R153/(1+GR!R$27)^(R$1-1)) -> 343218.613 | S188: =IF(S$1="","",S153/(1+GR!S$27)^(S$1-1)) -> 340163.658 | T188: =IF(T$1="","",T153/(1+GR!T$27)^(T$1-1)) -> 337561.8837 | U188: =IF(U$1="","",U153/(1+GR!U$27)^(U$1-1)) -> 334887.1042 | V188: =IF(V$1="","",V153/(1+GR!V$27)^(V$1-1)) -> 332227.1962 | W188: =IF(W$1="","",W153/(1+GR!W$27)^(W$1-1)) -> 329645.2141 | X188: =IF(X$1="","",X153/(1+GR!X$27)^(X$1-1)) -> 327235.4221 | Y188: =IF(Y$1="","",Y153/(1+GR!Y$27)^(Y$1-1)) -> 324571.8928 | Z188: =IF(Z$1="","",Z153/(1+GR!Z$27)^(Z$1-1)) -> 321915.757 | AA188: =IF(AA$1="","",AA153/(1+GR!AA$27)^(AA$1-1)) -> 319216.454 | AB188: =IF(AB$1="","",AB153/(1+GR!AB$27)^(AB$1-1)) -> 316452.6458 | AC188: =IF(AC$1="","",AC153/(1+GR!AC$27)^(AC$1-1)) -> 313709.9142 | AD188: =IF(AD$1="","",AD153/(1+GR!AD$27)^(AD$1-1)) -> 310655.1472 | AE188: =IF(AE$1="","",AE153/(1+GR!AE$27)^(AE$1-1)) -> 307581.6189 | AF188: =IF(AF$1="","",AF153/(1+GR!AF$27)^(AF$1-1)) -> 304466.2688 | AG188: =IF(AG$1="","",AG153/(1+GR!AG$27)^(AG$1-1)) -> 301343.4568 | AH188: =IF(AH$1="","",AH153/(1+GR!AH$27)^(AH$1-1)) -> 298224.9719 | AI188: =IF(AI$1="","",AI153/(1+GR!AI$27)^(AI$1-1)) -> 294821.7896 | AJ188: =IF(AJ$1="","",AJ153/(1+GR!AJ$27)^(AJ$1-1)) -> 291420.9583 | AK188: =IF(AK$1="","",AK153/(1+GR!AK$27)^(AK$1-1)) -> 288060.9876 | AL188: =IF(AL$1="","",AL153/(1+GR!AL$27)^(AL$1-1)) ->  | AM188: =IF(AM$1="","",AM153/(1+GR!AM$27)^(AM$1-1)) ->  | AN188: =IF(AN$1="","",AN153/(1+GR!AN$27)^(AN$1-1)) ->  | AO188: =IF(AO$1="","",AO153/(1+GR!AO$27)^(AO$1-1)) ->  | AP188: =IF(AP$1="","",AP153/(1+GR!AP$27)^(AP$1-1)) ->  | AQ188: =IF(AQ$1="","",AQ153/(1+GR!AQ$27)^(AQ$1-1)) ->  | AR188: =IF(AR$1="","",AR153/(1+GR!AR$27)^(AR$1-1)) ->  | AS188: =IF(AS$1="","",AS153/(1+GR!AS$27)^(AS$1-1)) ->  | AT188: =IF(AT$1="","",AT153/(1+GR!AT$27)^(AT$1-1)) ->  | AU188: =IF(AU$1="","",AU153/(1+GR!AU$27)^(AU$1-1)) ->  | AV188: =IF(AV$1="","",AV153/(1+GR!AV$27)^(AV$1-1)) ->  | AW188: =IF(AW$1="","",AW153/(1+GR!AW$27)^(AW$1-1)) ->  | AX188: =IF(AX$1="","",AX153/(1+GR!AX$27)^(AX$1-1)) ->  | AY188: =IF(AY$1="","",AY153/(1+GR!AY$27)^(AY$1-1)) ->  | AZ188: =IF(AZ$1="","",AZ153/(1+GR!AZ$27)^(AZ$1-1)) ->  | BA188: =IF(BA$1="","",BA153/(1+GR!BA$27)^(BA$1-1)) ->  | BB188: =IF(BB$1="","",BB153/(1+GR!BB$27)^(BB$1-1)) ->  | BC188: =IF(BC$1="","",BC153/(1+GR!BC$27)^(BC$1-1)) ->  | BD188: =IF(BD$1="","",BD153/(1+GR!BD$27)^(BD$1-1)) ->  | BE188: =IF(BE$1="","",BE153/(1+GR!BE$27)^(BE$1-1)) ->  | BF188: =IF(BF$1="","",BF153/(1+GR!BF$27)^(BF$1-1)) ->  | BG188: =IF(BG$1="","",BG153/(1+GR!BG$27)^(BG$1-1)) ->  | BH188: =IF(BH$1="","",BH153/(1+GR!BH$27)^(BH$1-1)) ->  | BI188: =IF(BI$1="","",BI153/(1+GR!BI$27)^(BI$1-1)) ->  | BJ188: =IF(BJ$1="","",BJ153/(1+GR!BJ$27)^(BJ$1-1)) ->  | BK188: =IF(BK$1="","",BK153/(1+GR!BK$27)^(BK$1-1)) ->  | BL188: =IF(BL$1="","",BL153/(1+GR!BL$27)^(BL$1-1)) ->  | BM188: =IF(BM$1="","",BM153/(1+GR!BM$27)^(BM$1-1)) ->  | BN188: =IF(BN$1="","",BN153/(1+GR!BN$27)^(BN$1-1)) ->  | BO188: =IF(BO$1="","",BO153/(1+GR!BO$27)^(BO$1-1)) -> 
D189: Carbon (vehicle fuel) | E189: £ k | F189: 1309819.527 | H189: 39594.42106 | I189: =IF(I$1="","",I154/(1+GR!I$27)^(I$1-1)) -> 38667.86454 | J189: =IF(J$1="","",J154/(1+GR!J$27)^(J$1-1)) -> 38137.84234 | K189: =IF(K$1="","",K154/(1+GR!K$27)^(K$1-1)) -> 37206.45203 | L189: =IF(L$1="","",L154/(1+GR!L$27)^(L$1-1)) -> 36346.89112 | M189: =IF(M$1="","",M154/(1+GR!M$27)^(M$1-1)) -> 35520.05674 | N189: =IF(N$1="","",N154/(1+GR!N$27)^(N$1-1)) -> 34845.27219 | O189: =IF(O$1="","",O154/(1+GR!O$27)^(O$1-1)) -> 34257.41619 | P189: =IF(P$1="","",P154/(1+GR!P$27)^(P$1-1)) -> 34080.51796 | Q189: =IF(Q$1="","",Q154/(1+GR!Q$27)^(Q$1-1)) -> 33600.13183 | R189: =IF(R$1="","",R154/(1+GR!R$27)^(R$1-1)) -> 33179.81537 | S189: =IF(S$1="","",S154/(1+GR!S$27)^(S$1-1)) -> 34976.59901 | T189: =IF(T$1="","",T154/(1+GR!T$27)^(T$1-1)) -> 37159.22752 | U189: =IF(U$1="","",U154/(1+GR!U$27)^(U$1-1)) -> 38888.81769 | V189: =IF(V$1="","",V154/(1+GR!V$27)^(V$1-1)) -> 40833.84365 | W189: =IF(W$1="","",W154/(1+GR!W$27)^(W$1-1)) -> 42398.09664 | X189: =IF(X$1="","",X154/(1+GR!X$27)^(X$1-1)) -> 44209.41834 | Y189: =IF(Y$1="","",Y154/(1+GR!Y$27)^(Y$1-1)) -> 45514.20232 | Z189: =IF(Z$1="","",Z154/(1+GR!Z$27)^(Z$1-1)) -> 47105.41233 | AA189: =IF(AA$1="","",AA154/(1+GR!AA$27)^(AA$1-1)) -> 48283.26861 | AB189: =IF(AB$1="","",AB154/(1+GR!AB$27)^(AB$1-1)) -> 49615.54965 | AC189: =IF(AC$1="","",AC154/(1+GR!AC$27)^(AC$1-1)) -> 50638.98422 | AD189: =IF(AD$1="","",AD154/(1+GR!AD$27)^(AD$1-1)) -> 51819.31798 | AE189: =IF(AE$1="","",AE154/(1+GR!AE$27)^(AE$1-1)) -> 52558.84387 | AF189: =IF(AF$1="","",AF154/(1+GR!AF$27)^(AF$1-1)) -> 53558.19622 | AG189: =IF(AG$1="","",AG154/(1+GR!AG$27)^(AG$1-1)) -> 54190.3508 | AH189: =IF(AH$1="","",AH154/(1+GR!AH$27)^(AH$1-1)) -> 54947.76702 | AI189: =IF(AI$1="","",AI154/(1+GR!AI$27)^(AI$1-1)) -> 55392.66627 | AJ189: =IF(AJ$1="","",AJ154/(1+GR!AJ$27)^(AJ$1-1)) -> 56020.91035 | AK189: =IF(AK$1="","",AK154/(1+GR!AK$27)^(AK$1-1)) -> 56271.37303 | AL189: =IF(AL$1="","",AL154/(1+GR!AL$27)^(AL$1-1)) ->  | AM189: =IF(AM$1="","",AM154/(1+GR!AM$27)^(AM$1-1)) ->  | AN189: =IF(AN$1="","",AN154/(1+GR!AN$27)^(AN$1-1)) ->  | AO189: =IF(AO$1="","",AO154/(1+GR!AO$27)^(AO$1-1)) ->  | AP189: =IF(AP$1="","",AP154/(1+GR!AP$27)^(AP$1-1)) ->  | AQ189: =IF(AQ$1="","",AQ154/(1+GR!AQ$27)^(AQ$1-1)) ->  | AR189: =IF(AR$1="","",AR154/(1+GR!AR$27)^(AR$1-1)) ->  | AS189: =IF(AS$1="","",AS154/(1+GR!AS$27)^(AS$1-1)) ->  | AT189: =IF(AT$1="","",AT154/(1+GR!AT$27)^(AT$1-1)) ->  | AU189: =IF(AU$1="","",AU154/(1+GR!AU$27)^(AU$1-1)) ->  | AV189: =IF(AV$1="","",AV154/(1+GR!AV$27)^(AV$1-1)) ->  | AW189: =IF(AW$1="","",AW154/(1+GR!AW$27)^(AW$1-1)) ->  | AX189: =IF(AX$1="","",AX154/(1+GR!AX$27)^(AX$1-1)) ->  | AY189: =IF(AY$1="","",AY154/(1+GR!AY$27)^(AY$1-1)) ->  | AZ189: =IF(AZ$1="","",AZ154/(1+GR!AZ$27)^(AZ$1-1)) ->  | BA189: =IF(BA$1="","",BA154/(1+GR!BA$27)^(BA$1-1)) ->  | BB189: =IF(BB$1="","",BB154/(1+GR!BB$27)^(BB$1-1)) ->  | BC189: =IF(BC$1="","",BC154/(1+GR!BC$27)^(BC$1-1)) ->  | BD189: =IF(BD$1="","",BD154/(1+GR!BD$27)^(BD$1-1)) ->  | BE189: =IF(BE$1="","",BE154/(1+GR!BE$27)^(BE$1-1)) ->  | BF189: =IF(BF$1="","",BF154/(1+GR!BF$27)^(BF$1-1)) ->  | BG189: =IF(BG$1="","",BG154/(1+GR!BG$27)^(BG$1-1)) ->  | BH189: =IF(BH$1="","",BH154/(1+GR!BH$27)^(BH$1-1)) ->  | BI189: =IF(BI$1="","",BI154/(1+GR!BI$27)^(BI$1-1)) ->  | BJ189: =IF(BJ$1="","",BJ154/(1+GR!BJ$27)^(BJ$1-1)) ->  | BK189: =IF(BK$1="","",BK154/(1+GR!BK$27)^(BK$1-1)) ->  | BL189: =IF(BL$1="","",BL154/(1+GR!BL$27)^(BL$1-1)) ->  | BM189: =IF(BM$1="","",BM154/(1+GR!BM$27)^(BM$1-1)) ->  | BN189: =IF(BN$1="","",BN154/(1+GR!BN$27)^(BN$1-1)) ->  | BO189: =IF(BO$1="","",BO154/(1+GR!BO$27)^(BO$1-1)) -> 
D190: Roadworks Accidents | E190: £ k | F190: 702.4566204 | H190: 38.71021168 | I190: =IF(I$1="","",I155/(1+GR!I$27)^(I$1-1)) -> 37.96865833 | J190: =IF(J$1="","",J155/(1+GR!J$27)^(J$1-1)) -> 35.17252489 | K190: =IF(K$1="","",K155/(1+GR!K$27)^(K$1-1)) -> 34.28811008 | L190: =IF(L$1="","",L155/(1+GR!L$27)^(L$1-1)) -> 33.42136577 | M190: =IF(M$1="","",M155/(1+GR!M$27)^(M$1-1)) -> 32.57292977 | N190: =IF(N$1="","",N155/(1+GR!N$27)^(N$1-1)) -> 31.74292621 | O190: =IF(O$1="","",O155/(1+GR!O$27)^(O$1-1)) -> 30.92365005 | P190: =IF(P$1="","",P155/(1+GR!P$27)^(P$1-1)) -> 30.12343028 | Q190: =IF(Q$1="","",Q155/(1+GR!Q$27)^(Q$1-1)) -> 26.67868399 | R190: =IF(R$1="","",R155/(1+GR!R$27)^(R$1-1)) -> 24.70611772 | S190: =IF(S$1="","",S155/(1+GR!S$27)^(S$1-1)) -> 24.06202557 | T190: =IF(T$1="","",T155/(1+GR!T$27)^(T$1-1)) -> 23.46567876 | U190: =IF(U$1="","",U155/(1+GR!U$27)^(U$1-1)) -> 22.88254643 | V190: =IF(V$1="","",V155/(1+GR!V$27)^(V$1-1)) -> 22.312372 | W190: =IF(W$1="","",W155/(1+GR!W$27)^(W$1-1)) -> 21.7548983 | X190: =IF(X$1="","",X155/(1+GR!X$27)^(X$1-1)) -> 20.08088161 | Y190: =IF(Y$1="","",Y155/(1+GR!Y$27)^(Y$1-1)) -> 19.55717892 | Z190: =IF(Z$1="","",Z155/(1+GR!Z$27)^(Z$1-1)) -> 19.04612404 | AA190: =IF(AA$1="","",AA155/(1+GR!AA$27)^(AA$1-1)) -> 18.54129997 | AB190: =IF(AB$1="","",AB155/(1+GR!AB$27)^(AB$1-1)) -> 18.05483688 | AC190: =IF(AC$1="","",AC155/(1+GR!AC$27)^(AC$1-1)) -> 17.58017001 | AD190: =IF(AD$1="","",AD155/(1+GR!AD$27)^(AD$1-1)) -> 17.09847096 | AE190: =IF(AE$1="","",AE155/(1+GR!AE$27)^(AE$1-1)) -> 15.78563479 | AF190: =IF(AF$1="","",AF155/(1+GR!AF$27)^(AF$1-1)) -> 15.35215666 | AG190: =IF(AG$1="","",AG155/(1+GR!AG$27)^(AG$1-1)) -> 14.92998054 | AH190: =IF(AH$1="","",AH155/(1+GR!AH$27)^(AH$1-1)) -> 14.51882672 | AI190: =IF(AI$1="","",AI155/(1+GR!AI$27)^(AI$1-1)) -> 14.10606839 | AJ190: =IF(AJ$1="","",AJ155/(1+GR!AJ$27)^(AJ$1-1)) -> 13.70463441 | AK190: =IF(AK$1="","",AK155/(1+GR!AK$27)^(AK$1-1)) -> 13.31422663 | AL190: =IF(AL$1="","",AL155/(1+GR!AL$27)^(AL$1-1)) ->  | AM190: =IF(AM$1="","",AM155/(1+GR!AM$27)^(AM$1-1)) ->  | AN190: =IF(AN$1="","",AN155/(1+GR!AN$27)^(AN$1-1)) ->  | AO190: =IF(AO$1="","",AO155/(1+GR!AO$27)^(AO$1-1)) ->  | AP190: =IF(AP$1="","",AP155/(1+GR!AP$27)^(AP$1-1)) ->  | AQ190: =IF(AQ$1="","",AQ155/(1+GR!AQ$27)^(AQ$1-1)) ->  | AR190: =IF(AR$1="","",AR155/(1+GR!AR$27)^(AR$1-1)) ->  | AS190: =IF(AS$1="","",AS155/(1+GR!AS$27)^(AS$1-1)) ->  | AT190: =IF(AT$1="","",AT155/(1+GR!AT$27)^(AT$1-1)) ->  | AU190: =IF(AU$1="","",AU155/(1+GR!AU$27)^(AU$1-1)) ->  | AV190: =IF(AV$1="","",AV155/(1+GR!AV$27)^(AV$1-1)) ->  | AW190: =IF(AW$1="","",AW155/(1+GR!AW$27)^(AW$1-1)) ->  | AX190: =IF(AX$1="","",AX155/(1+GR!AX$27)^(AX$1-1)) ->  | AY190: =IF(AY$1="","",AY155/(1+GR!AY$27)^(AY$1-1)) ->  | AZ190: =IF(AZ$1="","",AZ155/(1+GR!AZ$27)^(AZ$1-1)) ->  | BA190: =IF(BA$1="","",BA155/(1+GR!BA$27)^(BA$1-1)) ->  | BB190: =IF(BB$1="","",BB155/(1+GR!BB$27)^(BB$1-1)) ->  | BC190: =IF(BC$1="","",BC155/(1+GR!BC$27)^(BC$1-1)) ->  | BD190: =IF(BD$1="","",BD155/(1+GR!BD$27)^(BD$1-1)) ->  | BE190: =IF(BE$1="","",BE155/(1+GR!BE$27)^(BE$1-1)) ->  | BF190: =IF(BF$1="","",BF155/(1+GR!BF$27)^(BF$1-1)) ->  | BG190: =IF(BG$1="","",BG155/(1+GR!BG$27)^(BG$1-1)) ->  | BH190: =IF(BH$1="","",BH155/(1+GR!BH$27)^(BH$1-1)) ->  | BI190: =IF(BI$1="","",BI155/(1+GR!BI$27)^(BI$1-1)) ->  | BJ190: =IF(BJ$1="","",BJ155/(1+GR!BJ$27)^(BJ$1-1)) ->  | BK190: =IF(BK$1="","",BK155/(1+GR!BK$27)^(BK$1-1)) ->  | BL190: =IF(BL$1="","",BL155/(1+GR!BL$27)^(BL$1-1)) ->  | BM190: =IF(BM$1="","",BM155/(1+GR!BM$27)^(BM$1-1)) ->  | BN190: =IF(BN$1="","",BN155/(1+GR!BN$27)^(BN$1-1)) ->  | BO190: =IF(BO$1="","",BO155/(1+GR!BO$27)^(BO$1-1)) -> 
D191: Carbon (vehicles in roadworks) | E191: £ k | F191: 126.9777041 | H191: 5.033078416 | I191: =IF(I$1="","",I156/(1+GR!I$27)^(I$1-1)) -> 4.941693241 | J191: =IF(J$1="","",J156/(1+GR!J$27)^(J$1-1)) -> 4.933778024 | K191: =IF(K$1="","",K156/(1+GR!K$27)^(K$1-1)) -> 4.814447445 | L191: =IF(L$1="","",L156/(1+GR!L$27)^(L$1-1)) -> 4.697290555 | M191: =IF(M$1="","",M156/(1+GR!M$27)^(M$1-1)) -> 4.582723437 | N191: =IF(N$1="","",N156/(1+GR!N$27)^(N$1-1)) -> 4.4695755 | O191: =IF(O$1="","",O156/(1+GR!O$27)^(O$1-1)) -> 4.356792071 | P191: =IF(P$1="","",P156/(1+GR!P$27)^(P$1-1)) -> 4.246138866 | Q191: =IF(Q$1="","",Q156/(1+GR!Q$27)^(Q$1-1)) -> 4.65200817 | R191: =IF(R$1="","",R156/(1+GR!R$27)^(R$1-1)) -> 4.872505221 | S191: =IF(S$1="","",S156/(1+GR!S$27)^(S$1-1)) -> 4.746556216 | T191: =IF(T$1="","",T156/(1+GR!T$27)^(T$1-1)) -> 4.629265074 | U191: =IF(U$1="","",U156/(1+GR!U$27)^(U$1-1)) -> 4.51422981 | V191: =IF(V$1="","",V156/(1+GR!V$27)^(V$1-1)) -> 4.401471196 | W191: =IF(W$1="","",W156/(1+GR!W$27)^(W$1-1)) -> 4.291000434 | X191: =IF(X$1="","",X156/(1+GR!X$27)^(X$1-1)) -> 4.372399081 | Y191: =IF(Y$1="","",Y156/(1+GR!Y$27)^(Y$1-1)) -> 4.257339297 | Z191: =IF(Z$1="","",Z156/(1+GR!Z$27)^(Z$1-1)) -> 4.144967325 | AA191: =IF(AA$1="","",AA156/(1+GR!AA$27)^(AA$1-1)) -> 4.221311631 | AB191: =IF(AB$1="","",AB156/(1+GR!AB$27)^(AB$1-1)) -> 4.109210508 | AC191: =IF(AC$1="","",AC156/(1+GR!AC$27)^(AC$1-1)) -> 3.999806713 | AD191: =IF(AD$1="","",AD156/(1+GR!AD$27)^(AD$1-1)) -> 3.890684595 | AE191: =IF(AE$1="","",AE156/(1+GR!AE$27)^(AE$1-1)) -> 3.697160657 | AF191: =IF(AF$1="","",AF156/(1+GR!AF$27)^(AF$1-1)) -> 3.594420474 | AG191: =IF(AG$1="","",AG156/(1+GR!AG$27)^(AG$1-1)) -> 3.494376522 | AH191: =IF(AH$1="","",AH156/(1+GR!AH$27)^(AH$1-1)) -> 3.396967314 | AI191: =IF(AI$1="","",AI156/(1+GR!AI$27)^(AI$1-1)) -> 3.299447661 | AJ191: =IF(AJ$1="","",AJ156/(1+GR!AJ$27)^(AJ$1-1)) -> 3.204625973 | AK191: =IF(AK$1="","",AK156/(1+GR!AK$27)^(AK$1-1)) -> 3.112432645 | AL191: =IF(AL$1="","",AL156/(1+GR!AL$27)^(AL$1-1)) ->  | AM191: =IF(AM$1="","",AM156/(1+GR!AM$27)^(AM$1-1)) ->  | AN191: =IF(AN$1="","",AN156/(1+GR!AN$27)^(AN$1-1)) ->  | AO191: =IF(AO$1="","",AO156/(1+GR!AO$27)^(AO$1-1)) ->  | AP191: =IF(AP$1="","",AP156/(1+GR!AP$27)^(AP$1-1)) ->  | AQ191: =IF(AQ$1="","",AQ156/(1+GR!AQ$27)^(AQ$1-1)) ->  | AR191: =IF(AR$1="","",AR156/(1+GR!AR$27)^(AR$1-1)) ->  | AS191: =IF(AS$1="","",AS156/(1+GR!AS$27)^(AS$1-1)) ->  | AT191: =IF(AT$1="","",AT156/(1+GR!AT$27)^(AT$1-1)) ->  | AU191: =IF(AU$1="","",AU156/(1+GR!AU$27)^(AU$1-1)) ->  | AV191: =IF(AV$1="","",AV156/(1+GR!AV$27)^(AV$1-1)) ->  | AW191: =IF(AW$1="","",AW156/(1+GR!AW$27)^(AW$1-1)) ->  | AX191: =IF(AX$1="","",AX156/(1+GR!AX$27)^(AX$1-1)) ->  | AY191: =IF(AY$1="","",AY156/(1+GR!AY$27)^(AY$1-1)) ->  | AZ191: =IF(AZ$1="","",AZ156/(1+GR!AZ$27)^(AZ$1-1)) ->  | BA191: =IF(BA$1="","",BA156/(1+GR!BA$27)^(BA$1-1)) ->  | BB191: =IF(BB$1="","",BB156/(1+GR!BB$27)^(BB$1-1)) ->  | BC191: =IF(BC$1="","",BC156/(1+GR!BC$27)^(BC$1-1)) ->  | BD191: =IF(BD$1="","",BD156/(1+GR!BD$27)^(BD$1-1)) ->  | BE191: =IF(BE$1="","",BE156/(1+GR!BE$27)^(BE$1-1)) ->  | BF191: =IF(BF$1="","",BF156/(1+GR!BF$27)^(BF$1-1)) ->  | BG191: =IF(BG$1="","",BG156/(1+GR!BG$27)^(BG$1-1)) ->  | BH191: =IF(BH$1="","",BH156/(1+GR!BH$27)^(BH$1-1)) ->  | BI191: =IF(BI$1="","",BI156/(1+GR!BI$27)^(BI$1-1)) ->  | BJ191: =IF(BJ$1="","",BJ156/(1+GR!BJ$27)^(BJ$1-1)) ->  | BK191: =IF(BK$1="","",BK156/(1+GR!BK$27)^(BK$1-1)) ->  | BL191: =IF(BL$1="","",BL156/(1+GR!BL$27)^(BL$1-1)) ->  | BM191: =IF(BM$1="","",BM156/(1+GR!BM$27)^(BM$1-1)) ->  | BN191: =IF(BN$1="","",BN156/(1+GR!BN$27)^(BN$1-1)) ->  | BO191: =IF(BO$1="","",BO156/(1+GR!BO$27)^(BO$1-1)) -> 
D192: Roadworks time delays | E192: £ k | F192: 61910.22747 | H192: 3308.945936 | I192: =IF(I$1="","",I157/(1+GR!I$27)^(I$1-1)) -> 3248.586798 | J192: =IF(J$1="","",J157/(1+GR!J$27)^(J$1-1)) -> 2701.655351 | K192: =IF(K$1="","",K157/(1+GR!K$27)^(K$1-1)) -> 2636.132224 | L192: =IF(L$1="","",L157/(1+GR!L$27)^(L$1-1)) -> 2571.794623 | M192: =IF(M$1="","",M157/(1+GR!M$27)^(M$1-1)) -> 2508.639207 | N192: =IF(N$1="","",N157/(1+GR!N$27)^(N$1-1)) -> 2446.522126 | O192: =IF(O$1="","",O157/(1+GR!O$27)^(O$1-1)) -> 2384.681294 | P192: =IF(P$1="","",P157/(1+GR!P$27)^(P$1-1)) -> 2324.01445 | Q192: =IF(Q$1="","",Q157/(1+GR!Q$27)^(Q$1-1)) -> 2437.712713 | R192: =IF(R$1="","",R157/(1+GR!R$27)^(R$1-1)) -> 2407.250855 | S192: =IF(S$1="","",S157/(1+GR!S$27)^(S$1-1)) -> 2344.945374 | T192: =IF(T$1="","",T157/(1+GR!T$27)^(T$1-1)) -> 2286.96001 | U192: =IF(U$1="","",U157/(1+GR!U$27)^(U$1-1)) -> 2230.07988 | V192: =IF(V$1="","",V157/(1+GR!V$27)^(V$1-1)) -> 2174.317514 | W192: =IF(W$1="","",W157/(1+GR!W$27)^(W$1-1)) -> 2119.680488 | X192: =IF(X$1="","",X157/(1+GR!X$27)^(X$1-1)) -> 1785.999021 | Y192: =IF(Y$1="","",Y157/(1+GR!Y$27)^(Y$1-1)) -> 1738.961244 | Z192: =IF(Z$1="","",Z157/(1+GR!Z$27)^(Z$1-1)) -> 1693.0208 | AA192: =IF(AA$1="","",AA157/(1+GR!AA$27)^(AA$1-1)) -> 1678.451085 | AB192: =IF(AB$1="","",AB157/(1+GR!AB$27)^(AB$1-1)) -> 1633.847162 | AC192: =IF(AC$1="","",AC157/(1+GR!AC$27)^(AC$1-1)) -> 1590.315677 | AD192: =IF(AD$1="","",AD157/(1+GR!AD$27)^(AD$1-1)) -> 1546.449464 | AE192: =IF(AE$1="","",AE157/(1+GR!AE$27)^(AE$1-1)) -> 1570.832547 | AF192: =IF(AF$1="","",AF157/(1+GR!AF$27)^(AF$1-1)) -> 1527.15441 | AG192: =IF(AG$1="","",AG157/(1+GR!AG$27)^(AG$1-1)) -> 1484.622699 | AH192: =IF(AH$1="","",AH157/(1+GR!AH$27)^(AH$1-1)) -> 1443.211274 | AI192: =IF(AI$1="","",AI157/(1+GR!AI$27)^(AI$1-1)) -> 1401.752792 | AJ192: =IF(AJ$1="","",AJ157/(1+GR!AJ$27)^(AJ$1-1)) -> 1361.441768 | AK192: =IF(AK$1="","",AK157/(1+GR!AK$27)^(AK$1-1)) -> 1322.248689 | AL192: =IF(AL$1="","",AL157/(1+GR!AL$27)^(AL$1-1)) ->  | AM192: =IF(AM$1="","",AM157/(1+GR!AM$27)^(AM$1-1)) ->  | AN192: =IF(AN$1="","",AN157/(1+GR!AN$27)^(AN$1-1)) ->  | AO192: =IF(AO$1="","",AO157/(1+GR!AO$27)^(AO$1-1)) ->  | AP192: =IF(AP$1="","",AP157/(1+GR!AP$27)^(AP$1-1)) ->  | AQ192: =IF(AQ$1="","",AQ157/(1+GR!AQ$27)^(AQ$1-1)) ->  | AR192: =IF(AR$1="","",AR157/(1+GR!AR$27)^(AR$1-1)) ->  | AS192: =IF(AS$1="","",AS157/(1+GR!AS$27)^(AS$1-1)) ->  | AT192: =IF(AT$1="","",AT157/(1+GR!AT$27)^(AT$1-1)) ->  | AU192: =IF(AU$1="","",AU157/(1+GR!AU$27)^(AU$1-1)) ->  | AV192: =IF(AV$1="","",AV157/(1+GR!AV$27)^(AV$1-1)) ->  | AW192: =IF(AW$1="","",AW157/(1+GR!AW$27)^(AW$1-1)) ->  | AX192: =IF(AX$1="","",AX157/(1+GR!AX$27)^(AX$1-1)) ->  | AY192: =IF(AY$1="","",AY157/(1+GR!AY$27)^(AY$1-1)) ->  | AZ192: =IF(AZ$1="","",AZ157/(1+GR!AZ$27)^(AZ$1-1)) ->  | BA192: =IF(BA$1="","",BA157/(1+GR!BA$27)^(BA$1-1)) ->  | BB192: =IF(BB$1="","",BB157/(1+GR!BB$27)^(BB$1-1)) ->  | BC192: =IF(BC$1="","",BC157/(1+GR!BC$27)^(BC$1-1)) ->  | BD192: =IF(BD$1="","",BD157/(1+GR!BD$27)^(BD$1-1)) ->  | BE192: =IF(BE$1="","",BE157/(1+GR!BE$27)^(BE$1-1)) ->  | BF192: =IF(BF$1="","",BF157/(1+GR!BF$27)^(BF$1-1)) ->  | BG192: =IF(BG$1="","",BG157/(1+GR!BG$27)^(BG$1-1)) ->  | BH192: =IF(BH$1="","",BH157/(1+GR!BH$27)^(BH$1-1)) ->  | BI192: =IF(BI$1="","",BI157/(1+GR!BI$27)^(BI$1-1)) ->  | BJ192: =IF(BJ$1="","",BJ157/(1+GR!BJ$27)^(BJ$1-1)) ->  | BK192: =IF(BK$1="","",BK157/(1+GR!BK$27)^(BK$1-1)) ->  | BL192: =IF(BL$1="","",BL157/(1+GR!BL$27)^(BL$1-1)) ->  | BM192: =IF(BM$1="","",BM157/(1+GR!BM$27)^(BM$1-1)) ->  | BN192: =IF(BN$1="","",BN157/(1+GR!BN$27)^(BN$1-1)) ->  | BO192: =IF(BO$1="","",BO157/(1+GR!BO$27)^(BO$1-1)) -> 
D193: Accidents | E193: £ k | F193: 1168646.239 | H193: 61392.1277 | I193: =IF(I$1="","",I158/(1+GR!I$27)^(I$1-1)) -> 59316.06541 | J193: =IF(J$1="","",J158/(1+GR!J$27)^(J$1-1)) -> 57310.20813 | K193: =IF(K$1="","",K158/(1+GR!K$27)^(K$1-1)) -> 55372.18176 | L193: =IF(L$1="","",L158/(1+GR!L$27)^(L$1-1)) -> 53499.69253 | M193: =IF(M$1="","",M158/(1+GR!M$27)^(M$1-1)) -> 51690.52418 | N193: =IF(N$1="","",N158/(1+GR!N$27)^(N$1-1)) -> 49942.53544 | O193: =IF(O$1="","",O158/(1+GR!O$27)^(O$1-1)) -> 48253.65743 | P193: =IF(P$1="","",P158/(1+GR!P$27)^(P$1-1)) -> 46621.89124 | Q193: =IF(Q$1="","",Q158/(1+GR!Q$27)^(Q$1-1)) -> 45045.30554 | R193: =IF(R$1="","",R158/(1+GR!R$27)^(R$1-1)) -> 43522.03434 | S193: =IF(S$1="","",S158/(1+GR!S$27)^(S$1-1)) -> 42050.27472 | T193: =IF(T$1="","",T158/(1+GR!T$27)^(T$1-1)) -> 40628.28476 | U193: =IF(U$1="","",U158/(1+GR!U$27)^(U$1-1)) -> 39254.38141 | V193: =IF(V$1="","",V158/(1+GR!V$27)^(V$1-1)) -> 37926.93856 | W193: =IF(W$1="","",W158/(1+GR!W$27)^(W$1-1)) -> 36644.38508 | X193: =IF(X$1="","",X158/(1+GR!X$27)^(X$1-1)) -> 35405.20298 | Y193: =IF(Y$1="","",Y158/(1+GR!Y$27)^(Y$1-1)) -> 34207.92558 | Z193: =IF(Z$1="","",Z158/(1+GR!Z$27)^(Z$1-1)) -> 33051.13583 | AA193: =IF(AA$1="","",AA158/(1+GR!AA$27)^(AA$1-1)) -> 31933.46457 | AB193: =IF(AB$1="","",AB158/(1+GR!AB$27)^(AB$1-1)) -> 30853.58895 | AC193: =IF(AC$1="","",AC158/(1+GR!AC$27)^(AC$1-1)) -> 29810.23087 | AD193: =IF(AD$1="","",AD158/(1+GR!AD$27)^(AD$1-1)) -> 28802.15543 | AE193: =IF(AE$1="","",AE158/(1+GR!AE$27)^(AE$1-1)) -> 27828.1695 | AF193: =IF(AF$1="","",AF158/(1+GR!AF$27)^(AF$1-1)) -> 26887.12029 | AG193: =IF(AG$1="","",AG158/(1+GR!AG$27)^(AG$1-1)) -> 25977.894 | AH193: =IF(AH$1="","",AH158/(1+GR!AH$27)^(AH$1-1)) -> 25099.41449 | AI193: =IF(AI$1="","",AI158/(1+GR!AI$27)^(AI$1-1)) -> 24250.64202 | AJ193: =IF(AJ$1="","",AJ158/(1+GR!AJ$27)^(AJ$1-1)) -> 23430.572 | AK193: =IF(AK$1="","",AK158/(1+GR!AK$27)^(AK$1-1)) -> 22638.23382 | AL193: =IF(AL$1="","",AL158/(1+GR!AL$27)^(AL$1-1)) ->  | AM193: =IF(AM$1="","",AM158/(1+GR!AM$27)^(AM$1-1)) ->  | AN193: =IF(AN$1="","",AN158/(1+GR!AN$27)^(AN$1-1)) ->  | AO193: =IF(AO$1="","",AO158/(1+GR!AO$27)^(AO$1-1)) ->  | AP193: =IF(AP$1="","",AP158/(1+GR!AP$27)^(AP$1-1)) ->  | AQ193: =IF(AQ$1="","",AQ158/(1+GR!AQ$27)^(AQ$1-1)) ->  | AR193: =IF(AR$1="","",AR158/(1+GR!AR$27)^(AR$1-1)) ->  | AS193: =IF(AS$1="","",AS158/(1+GR!AS$27)^(AS$1-1)) ->  | AT193: =IF(AT$1="","",AT158/(1+GR!AT$27)^(AT$1-1)) ->  | AU193: =IF(AU$1="","",AU158/(1+GR!AU$27)^(AU$1-1)) ->  | AV193: =IF(AV$1="","",AV158/(1+GR!AV$27)^(AV$1-1)) ->  | AW193: =IF(AW$1="","",AW158/(1+GR!AW$27)^(AW$1-1)) ->  | AX193: =IF(AX$1="","",AX158/(1+GR!AX$27)^(AX$1-1)) ->  | AY193: =IF(AY$1="","",AY158/(1+GR!AY$27)^(AY$1-1)) ->  | AZ193: =IF(AZ$1="","",AZ158/(1+GR!AZ$27)^(AZ$1-1)) ->  | BA193: =IF(BA$1="","",BA158/(1+GR!BA$27)^(BA$1-1)) ->  | BB193: =IF(BB$1="","",BB158/(1+GR!BB$27)^(BB$1-1)) ->  | BC193: =IF(BC$1="","",BC158/(1+GR!BC$27)^(BC$1-1)) ->  | BD193: =IF(BD$1="","",BD158/(1+GR!BD$27)^(BD$1-1)) ->  | BE193: =IF(BE$1="","",BE158/(1+GR!BE$27)^(BE$1-1)) ->  | BF193: =IF(BF$1="","",BF158/(1+GR!BF$27)^(BF$1-1)) ->  | BG193: =IF(BG$1="","",BG158/(1+GR!BG$27)^(BG$1-1)) ->  | BH193: =IF(BH$1="","",BH158/(1+GR!BH$27)^(BH$1-1)) ->  | BI193: =IF(BI$1="","",BI158/(1+GR!BI$27)^(BI$1-1)) ->  | BJ193: =IF(BJ$1="","",BJ158/(1+GR!BJ$27)^(BJ$1-1)) ->  | BK193: =IF(BK$1="","",BK158/(1+GR!BK$27)^(BK$1-1)) ->  | BL193: =IF(BL$1="","",BL158/(1+GR!BL$27)^(BL$1-1)) ->  | BM193: =IF(BM$1="","",BM158/(1+GR!BM$27)^(BM$1-1)) ->  | BN193: =IF(BN$1="","",BN158/(1+GR!BN$27)^(BN$1-1)) ->  | BO193: =IF(BO$1="","",BO158/(1+GR!BO$27)^(BO$1-1)) -> 
D194: Carbon (Embodied in materials) | E194: £ k | F194: 1591.375974 | H194: 51.4377943 | I194: =IF(I$1="","",I159/(1+GR!I$27)^(I$1-1)) -> 50.41861795 | J194: =IF(J$1="","",J159/(1+GR!J$27)^(J$1-1)) -> 50.10545883 | K194: =IF(K$1="","",K159/(1+GR!K$27)^(K$1-1)) -> 49.08344733 | L194: =IF(L$1="","",L159/(1+GR!L$27)^(L$1-1)) -> 48.07325924 | M194: =IF(M$1="","",M159/(1+GR!M$27)^(M$1-1)) -> 47.07526365 | N194: =IF(N$1="","",N159/(1+GR!N$27)^(N$1-1)) -> 46.08979115 | O194: =IF(O$1="","",O159/(1+GR!O$27)^(O$1-1)) -> 45.11713601 | P194: =IF(P$1="","",P159/(1+GR!P$27)^(P$1-1)) -> 44.72368084 | Q194: =IF(Q$1="","",Q159/(1+GR!Q$27)^(Q$1-1)) -> 43.75826414 | R194: =IF(R$1="","",R159/(1+GR!R$27)^(R$1-1)) -> 42.80699752 | S194: =IF(S$1="","",S159/(1+GR!S$27)^(S$1-1)) -> 44.93368858 | T194: =IF(T$1="","",T159/(1+GR!T$27)^(T$1-1)) -> 47.36093658 | U194: =IF(U$1="","",U159/(1+GR!U$27)^(U$1-1)) -> 49.09597894 | V194: =IF(V$1="","",V159/(1+GR!V$27)^(V$1-1)) -> 51.12005687 | W194: =IF(W$1="","",W159/(1+GR!W$27)^(W$1-1)) -> 52.5061297 | X194: =IF(X$1="","",X159/(1+GR!X$27)^(X$1-1)) -> 54.1699201 | Y194: =IF(Y$1="","",Y159/(1+GR!Y$27)^(Y$1-1)) -> 55.24575856 | Z194: =IF(Z$1="","",Z159/(1+GR!Z$27)^(Z$1-1)) -> 56.58822387 | AA194: =IF(AA$1="","",AA159/(1+GR!AA$27)^(AA$1-1)) -> 57.3889549 | AB194: =IF(AB$1="","",AB159/(1+GR!AB$27)^(AB$1-1)) -> 58.44546915 | AC194: =IF(AC$1="","",AC159/(1+GR!AC$27)^(AC$1-1)) -> 59.00292005 | AD194: =IF(AD$1="","",AD159/(1+GR!AD$27)^(AD$1-1)) -> 59.8055738 | AE194: =IF(AE$1="","",AE159/(1+GR!AE$27)^(AE$1-1)) -> 60.14855574 | AF194: =IF(AF$1="","",AF159/(1+GR!AF$27)^(AF$1-1)) -> 60.72643634 | AG194: =IF(AG$1="","",AG159/(1+GR!AG$27)^(AG$1-1)) -> 60.88100469 | AH194: =IF(AH$1="","",AH159/(1+GR!AH$27)^(AH$1-1)) -> 61.26045377 | AI194: =IF(AI$1="","",AI159/(1+GR!AI$27)^(AI$1-1)) -> 61.25014726 | AJ194: =IF(AJ$1="","",AJ159/(1+GR!AJ$27)^(AJ$1-1)) -> 61.45499725 | AK194: =IF(AK$1="","",AK159/(1+GR!AK$27)^(AK$1-1)) -> 61.30105737 | AL194: =IF(AL$1="","",AL159/(1+GR!AL$27)^(AL$1-1)) ->  | AM194: =IF(AM$1="","",AM159/(1+GR!AM$27)^(AM$1-1)) ->  | AN194: =IF(AN$1="","",AN159/(1+GR!AN$27)^(AN$1-1)) ->  | AO194: =IF(AO$1="","",AO159/(1+GR!AO$27)^(AO$1-1)) ->  | AP194: =IF(AP$1="","",AP159/(1+GR!AP$27)^(AP$1-1)) ->  | AQ194: =IF(AQ$1="","",AQ159/(1+GR!AQ$27)^(AQ$1-1)) ->  | AR194: =IF(AR$1="","",AR159/(1+GR!AR$27)^(AR$1-1)) ->  | AS194: =IF(AS$1="","",AS159/(1+GR!AS$27)^(AS$1-1)) ->  | AT194: =IF(AT$1="","",AT159/(1+GR!AT$27)^(AT$1-1)) ->  | AU194: =IF(AU$1="","",AU159/(1+GR!AU$27)^(AU$1-1)) ->  | AV194: =IF(AV$1="","",AV159/(1+GR!AV$27)^(AV$1-1)) ->  | AW194: =IF(AW$1="","",AW159/(1+GR!AW$27)^(AW$1-1)) ->  | AX194: =IF(AX$1="","",AX159/(1+GR!AX$27)^(AX$1-1)) ->  | AY194: =IF(AY$1="","",AY159/(1+GR!AY$27)^(AY$1-1)) ->  | AZ194: =IF(AZ$1="","",AZ159/(1+GR!AZ$27)^(AZ$1-1)) ->  | BA194: =IF(BA$1="","",BA159/(1+GR!BA$27)^(BA$1-1)) ->  | BB194: =IF(BB$1="","",BB159/(1+GR!BB$27)^(BB$1-1)) ->  | BC194: =IF(BC$1="","",BC159/(1+GR!BC$27)^(BC$1-1)) ->  | BD194: =IF(BD$1="","",BD159/(1+GR!BD$27)^(BD$1-1)) ->  | BE194: =IF(BE$1="","",BE159/(1+GR!BE$27)^(BE$1-1)) ->  | BF194: =IF(BF$1="","",BF159/(1+GR!BF$27)^(BF$1-1)) ->  | BG194: =IF(BG$1="","",BG159/(1+GR!BG$27)^(BG$1-1)) ->  | BH194: =IF(BH$1="","",BH159/(1+GR!BH$27)^(BH$1-1)) ->  | BI194: =IF(BI$1="","",BI159/(1+GR!BI$27)^(BI$1-1)) ->  | BJ194: =IF(BJ$1="","",BJ159/(1+GR!BJ$27)^(BJ$1-1)) ->  | BK194: =IF(BK$1="","",BK159/(1+GR!BK$27)^(BK$1-1)) ->  | BL194: =IF(BL$1="","",BL159/(1+GR!BL$27)^(BL$1-1)) ->  | BM194: =IF(BM$1="","",BM159/(1+GR!BM$27)^(BM$1-1)) ->  | BN194: =IF(BN$1="","",BN159/(1+GR!BN$27)^(BN$1-1)) ->  | BO194: =IF(BO$1="","",BO159/(1+GR!BO$27)^(BO$1-1)) -> 
D195: Total HMAT costs | E195: £ k | F195: 51013849.32 | H195: =IF(H181="","",SUM(H187:H194)) -> 1622909.499 | I195: =IF(I181="","",SUM(I187:I194)) -> 1612413.931 | J195: =IF(J181="","",SUM(J187:J194)) -> 1600608.096 | K195: 1595020.017 | L195: 1594301.964 | M195: 1604868.234 | N195: 1622718.622 | O195: 1641083.052 | P195: 1654131.063 | Q195: 1672998.381 | R195: 1701416.535 | S195: 1720205.406 | T195: 1738194.394 | U195: 1752247.603 | V195: 1763775.643 | W195: 1771834.027 | X195: 1776799.656 | Y195: 1777463.257 | Z195: 1779381.534 | AA195: 1777862.428 | AB195: 1773831.62 | AC195: 1769822.195 | AD195: 1761702.099 | AE195: 1750807.021 | AF195: 1738725.964 | AG195: 1723758.861 | AH195: 1707437.518 | AI195: 1688768.919 | AJ195: 1669680.927 | AK195: 1649080.856
C197: Network Benefits | D197: Change in accident costs | E197: £ k | F197: =SUM(H197:BO197) -> -68343.82621 | H197: =H162 -> -7725.626135 | I197: =IF(I$1="","",I162/(1+GR!I$27)^(I$1-1)) -> -7027.580308 | J197: =IF(J$1="","",J162/(1+GR!J$27)^(J$1-1)) -> -6566.053985 | K197: =IF(K$1="","",K162/(1+GR!K$27)^(K$1-1)) -> -6122.58846 | L197: =IF(L$1="","",L162/(1+GR!L$27)^(L$1-1)) -> -5695.850827 | M197: =IF(M$1="","",M162/(1+GR!M$27)^(M$1-1)) -> -5284.360791 | N197: =IF(N$1="","",N162/(1+GR!N$27)^(N$1-1)) -> -4884.941387 | O197: =IF(O$1="","",O162/(1+GR!O$27)^(O$1-1)) -> -4506.976961 | P197: =IF(P$1="","",P162/(1+GR!P$27)^(P$1-1)) -> -4140.028468 | Q197: =IF(Q$1="","",Q162/(1+GR!Q$27)^(Q$1-1)) -> -3783.802052 | R197: =IF(R$1="","",R162/(1+GR!R$27)^(R$1-1)) -> -3438.028512 | S197: =IF(S$1="","",S162/(1+GR!S$27)^(S$1-1)) -> -3102.457256 | T197: =IF(T$1="","",T162/(1+GR!T$27)^(T$1-1)) -> -2729.645951 | U197: =IF(U$1="","",U162/(1+GR!U$27)^(U$1-1)) -> -2368.128592 | V197: =IF(V$1="","",V162/(1+GR!V$27)^(V$1-1)) -> -2017.650113 | W197: =IF(W$1="","",W162/(1+GR!W$27)^(W$1-1)) -> -1677.962857 | X197: =IF(X$1="","",X162/(1+GR!X$27)^(X$1-1)) -> -1348.825032 | Y197: =IF(Y$1="","",Y162/(1+GR!Y$27)^(Y$1-1)) -> -1063.508939 | Z197: =IF(Z$1="","",Z162/(1+GR!Z$27)^(Z$1-1)) -> -787.1618704 | AA197: =IF(AA$1="","",AA162/(1+GR!AA$27)^(AA$1-1)) -> -519.5808793 | AB197: =IF(AB$1="","",AB162/(1+GR!AB$27)^(AB$1-1)) -> -260.5659046 | AC197: =IF(AC$1="","",AC162/(1+GR!AC$27)^(AC$1-1)) -> -9.919653056 | AD197: =IF(AD$1="","",AD162/(1+GR!AD$27)^(AD$1-1)) -> 198.5206037 | AE197: =IF(AE$1="","",AE162/(1+GR!AE$27)^(AE$1-1)) -> 400.1113893 | AF197: =IF(AF$1="","",AF162/(1+GR!AF$27)^(AF$1-1)) -> 595.0142546 | AG197: =IF(AG$1="","",AG162/(1+GR!AG$27)^(AG$1-1)) -> 783.3883623 | AH197: =IF(AH$1="","",AH162/(1+GR!AH$27)^(AH$1-1)) -> 965.36913 | AI197: =IF(AI$1="","",AI162/(1+GR!AI$27)^(AI$1-1)) -> 1115.319843 | AJ197: =IF(AJ$1="","",AJ162/(1+GR!AJ$27)^(AJ$1-1)) -> 1260.038204 | AK197: =IF(AK$1="","",AK162/(1+GR!AK$27)^(AK$1-1)) -> 1399.656935 | AL197: =IF(AL$1="","",AL162/(1+GR!AL$27)^(AL$1-1)) ->  | AM197: =IF(AM$1="","",AM162/(1+GR!AM$27)^(AM$1-1)) ->  | AN197: =IF(AN$1="","",AN162/(1+GR!AN$27)^(AN$1-1)) ->  | AO197: =IF(AO$1="","",AO162/(1+GR!AO$27)^(AO$1-1)) ->  | AP197: =IF(AP$1="","",AP162/(1+GR!AP$27)^(AP$1-1)) ->  | AQ197: =IF(AQ$1="","",AQ162/(1+GR!AQ$27)^(AQ$1-1)) ->  | AR197: =IF(AR$1="","",AR162/(1+GR!AR$27)^(AR$1-1)) ->  | AS197: =IF(AS$1="","",AS162/(1+GR!AS$27)^(AS$1-1)) ->  | AT197: =IF(AT$1="","",AT162/(1+GR!AT$27)^(AT$1-1)) ->  | AU197: =IF(AU$1="","",AU162/(1+GR!AU$27)^(AU$1-1)) ->  | AV197: =IF(AV$1="","",AV162/(1+GR!AV$27)^(AV$1-1)) ->  | AW197: =IF(AW$1="","",AW162/(1+GR!AW$27)^(AW$1-1)) ->  | AX197: =IF(AX$1="","",AX162/(1+GR!AX$27)^(AX$1-1)) ->  | AY197: =IF(AY$1="","",AY162/(1+GR!AY$27)^(AY$1-1)) ->  | AZ197: =IF(AZ$1="","",AZ162/(1+GR!AZ$27)^(AZ$1-1)) ->  | BA197: =IF(BA$1="","",BA162/(1+GR!BA$27)^(BA$1-1)) ->  | BB197: =IF(BB$1="","",BB162/(1+GR!BB$27)^(BB$1-1)) ->  | BC197: =IF(BC$1="","",BC162/(1+GR!BC$27)^(BC$1-1)) ->  | BD197: =IF(BD$1="","",BD162/(1+GR!BD$27)^(BD$1-1)) ->  | BE197: =IF(BE$1="","",BE162/(1+GR!BE$27)^(BE$1-1)) ->  | BF197: =IF(BF$1="","",BF162/(1+GR!BF$27)^(BF$1-1)) ->  | BG197: =IF(BG$1="","",BG162/(1+GR!BG$27)^(BG$1-1)) ->  | BH197: =IF(BH$1="","",BH162/(1+GR!BH$27)^(BH$1-1)) ->  | BI197: =IF(BI$1="","",BI162/(1+GR!BI$27)^(BI$1-1)) ->  | BJ197: =IF(BJ$1="","",BJ162/(1+GR!BJ$27)^(BJ$1-1)) ->  | BK197: =IF(BK$1="","",BK162/(1+GR!BK$27)^(BK$1-1)) ->  | BL197: =IF(BL$1="","",BL162/(1+GR!BL$27)^(BL$1-1)) ->  | BM197: =IF(BM$1="","",BM162/(1+GR!BM$27)^(BM$1-1)) ->  | BN197: =IF(BN$1="","",BN162/(1+GR!BN$27)^(BN$1-1)) ->  | BO197: =IF(BO$1="","",BO162/(1+GR!BO$27)^(BO$1-1)) -> 
